Workbook

Sheet Control Panel
A1: GO TO
A2: Utah | B2: Wyoming | D2: FILING INFORMATION | K2: Model Checks
A3: 1.1 | B3: 1.1 | K3: (Must Be 0)
A4: 1.2 | B4: 1.2 | F4: UTAH | K4: ='Model Checks'!D7 -> 1.151672617
A5: 1.3 pg 1 | B5: 1.3 pg 1 | E5: Current Case No. | F5: 14-057-22 | K5: (If this is not 0, or very close, go to
A6: 1.3 pg 2 | B6: 1.3 pg 2 | E6: Filing Date | F6: 2014-10-01 | K6: the "Model Checks"
B7: 1.3 pg 3 | E7: Test Year Ending | F7: 2015-10-31 | K7: Tab and find the
A8: 1.4 pg 1 | B8: 1.4 pg 1 | E8: Proposed Effective Date | F8: 2014-11-01 | K8: problem.)
A9: 1.4 pg 2 | B9: 1.4 pg 2 | E9: Prior Case No. | F9: 14-057-09
A10: 1.4 pg 3 | K10: Go To
A11: 1.5 | B11: 1.5 | D11: Total Increase (Decrease) | F11: ='Utah Summary-by class'!Q31 -> -29811041.24 | H11: =F11-G11 -> -29811041.24 | K11: Model Checks'
A12: 1.6 pg 1 | B12: 1.6 pg 1
A13: 1.6 pg 2 | B13: 1.6 pg 2
A14: 1.6 pg 3 | B14: 1.6 pg 3 | D14: Typical Customer's Bill | K14: Old Ut Data color
A15: 1.7 pg 1 | B15: 1.7 pg 1 | K15: Old Wy Data color
A16: 1.7 pg 2 | B16: 1.7 pg 2 | E16: Previous | F16: ='Ut 1.7'!F30 -> 767.07 | K16: New Data color
A17: 1.8 | B17: 1.8 | E17: Proposed | F17: ='Ut 1.7'!H30 -> 744.59
A18: 1.9 | B18: 1.9 | E18: Difference | F18: ='Ut 1.7'!J30 -> -22.48 | H18: =F18-G18 -> -22.48
A19: Monthly Inputs | E19: % Difference | F19: ='Ut 1.7'!J32 -> -2.93 | H19: =F19-G19 -> -2.93
A20: Other Inputs
A21: Expenses
A22: Rate Base
D29: Exhibit Headings
D31: UTAH
F32: Questar Gas Company
F33: ="Docket No. "&F5 -> Docket No. 14-057-22
D35: WYOMING
F36: =F32 -> Questar Gas Company
F37: ="PSCW Docket No. "&#REF! -> 
D39: Test Year (enter as text)
E40: from | F40: Nov-14
E41: to | F41: Oct-15

Sheet Application
A1: Application Information
B3: Utah
A4: Utah Gas Costs | B4: ='Ut 1.5'!G41 -> 598234114.7
A5: Increase (Decrease) to Commodity | B5: ='Utah Summary-by class'!G34 -> -23743000
A6: Increase (Decrease) to SNG | B6: ='Utah Summary-by class'!N34 -> -5522000
A7: Total Increase (Decrease) | B7: ='Utah Summary-by class'!Q34 -> -29811000
A8: Typical Increase in $ | B8: ='Ut 1.7'!J30 -> -22.48
A9: Typical Monthly Increase | B9: =B8/12 -> -1.873333333
A10: Typical Increase in % | B10: ='Ut 1.7'!J32/100 -> -0.0293
A11: Proposed Rate Effective Date | B11: ='Control Panel'!F8 -> 2014-11-01
A12: Test Year Ending | B12: ='Control Panel'!F7 -> 2015-10-31
A13: System-Wide Production Costs - Wexpro I | B13: ='Ut 1.1'!I1437 -> 332756883.4
A14: System-Wide Royalty Payments - Wexpro I | B14: ='Ut 1.1'!I1432 -> 40530802.39
A15: Wexpro Operators Service Fee - Wexpro I | B15: ='Ut 1.1'!I1434 -> 292226081
A16: System-Wide Production Costs - Wexpro II | B16: ='Ut 1.1'!I1533 -> 27408307.59
A17: System-Wide Royalty Payments - Wexpro II | B17: ='Ut 1.1'!I1528 -> 2604618.585
A18: Wexpro Operators Service Fee - Wexpro II | B18: ='Ut 1.1'!I1530 -> 24803689
A19: Purchased Gas Costs | B19: ='Ut 1.2'!G24 -> 189270645
A20: Purchased Gas Costs per Dth | B20: ='Ut 1.2'!F24 -> 3.907687167
A21: Contracted Dth | B21: ='Ut 1.2'!E17 -> 18105000 | C21: Dth
A22: Contracted Dth Costs | B22: ='Ut 1.2'!G17 -> 75162118
A23: Stabailization Costs | B23: ='Ut 1.2'!G16 -> 0
A24: Spot Market Dth | B24: ='Ut 1.2'!E19 -> 29415461 | C24: Dth
A25: Spot Market Costs | B25: ='Ut 1.2'!G19 -> 110819845
A26: Purchased Gas Dth | B26: ='Ut 1.2'!E24 -> 48435465 | C26: Dth
A27: Future Contract Dth | B27: ='Ut 1.2'!E21 -> 915004 | C27: Dth
A28: Future Contract Costs | B28: ='Ut 1.2'!G21 -> 3288682
A29: Transportation & Gathering Costs | B29: ='Ut 1.3 p1'!M61 -> 84375635
A30: Transportation Costs | B30: ='Ut 1.3 p1'!M29 -> 62325165
A31: Capacity Release Credits | B31: =-'Ut 1.3 p1'!L20 -> 212509
A32: Transportation Commodity Costs | B32: ='Ut 1.3 p1'!M44 -> 531000
A34: Other Trans. & Gathering Costs | B34: ='Ut 1.3 p1'!L54 -> 2020284
A35: CO2 Processing Costs
A36: Storage & Working Gas Costs | B36: ='Ut 1.3 p1'!L55 -> 3536398
A37: Total Other Costs | B37: ='Ut 1.3 p1'!M56 -> 7313454
A38: Storage Costs | B38: ='Ut 1.3 p2'!K56 -> 18128916.03
A39: Storage Demand | B39: ='Ut 1.3 p2'!J20 -> 14025058
A40: Storage Commodity | B40: ='Ut 1.3 p2'!J27 -> 128019
A41: Working Storage Gas Return | B41: ='Ut 1.3 p2'!K53 -> 3708384.03
A42: Total Other Revenues | B42: ='Ut 1.4 p3'!H28 -> 28782968
A46: Utah Gas Costs | B46: ='Ut 1.5'!G41 -> 598234114.7
A47: Utah Gas Costs | B47: =B46 -> 598234114.7
A48: Utah Net Gas Costs | B48: ='Ut 1.6 p1'!#REF! -> 
A49: Commodity Portion of Gas Costs | B49: ='Ut 1.6 p1'!J25 -> 503037817.6
A50: Firm Gas Cost | B50: ='Ut 1.6 p1'!F31 -> 4.63135
A51: Current Amortization | B51: ='Ut 1.6 p1'!H32 -> 0.22364
A52: Previous Case No. | B52: ='Ut 1.6 p1'!H29 -> 14-057-09
A53: Forecasted 191 Account Balance | B53: ='Ut 1.6 p1'!D49 -> 45111165
A54: Proposed Amortization | B54: ='Ut 1.6 p1'!F32 -> 0.4153277541
A55: Total Unit Cost in Rates | B55: ='Ut 1.6 p1'!F33 -> 5.046677754
A56: Increase in Unit Cost In Rates | B56: ='Ut 1.6 p1'!J33 -> -0.2292022459
A57: Test Year SNG Costs | B57: ='Ut 1.6 p2'!F14 -> 95196297.14
A58: Forested 191 SNG Balance | B58: ='Ut 1.6 p2'!F15 -> 0
A59: Total SNG | B59: ='Ut 1.6 p2'!F16 -> 95196297.14
A60: Forecasted Current SNG Revenues | B60: ='Ut 1.6 p2'!F19 -> 94706544.11
A61: % Change in SNG Rates | B61: =-ROUND('Ut 1.6 p2'!F35,2)/100 -> -0.0052
A62: Average Monthly Increase | B62: ='Ut 1.7'!J30/12 -> -1.873333333
A63: Typical Increase in % | B63: ='Ut 1.7'!J32/100 -> -0.0293
A64: Company Owned Gas %
A65: Utah Gas Costs | B65: ='Ut 1.5'!G41 -> 598234114.7

Sheet Monthly Inputs
A1: MONTHLY INPUTS | E1: Col. E-F, copy from col. J-K (or appropriate columns), rows 3 through 81, before updating test year
G2: TEST YEAR COLUMNS | S2: 12-Month
E3: Sep14 | F3: Oct14 | G3: Nov14 | H3: Dec14 | I3: Jan15 | J3: Feb15 | K3: Mar15 | L3: Apr15 | M3: May15 | N3: Jun15 | O3: Jul15 | P3: Aug15 | Q3: Sep15 | R3: Oct15 | S3: Sep15 | T3: Oct15
E4: =MONTH(E3) -> 9 | F4: =MONTH(F3) -> 10 | G4: =MONTH(G3) -> 11 | H4: 12 | I4: 1 | J4: 2 | K4: 3 | L4: 4 | M4: 5 | N4: 6 | O4: 7 | P4: 8 | Q4: 9 | R4: 10
A5: QGC Company Produced Gas In MDth | G5: Scott Nelsen | I5: Updated: | J5: 2014-09-09
A6: WEXPRO I
B7: Company Production In Dth | E7: 5847084 | F7: 5899016 | G7: 5992920 | H7: 6012020 | I7: 5859660 | J7: 5172850 | K7: 5608700 | L7: 5407980 | M7: 5563110 | N7: 5624680 | O7: 5587050 | P7: 5368300 | Q7: 5227300 | R7: 5307540 | S7: =SUM(G7:R7) -> 66732110 | U7: ScottN | V7: For this pass through only we used Mike Neese Production #'s since we didn't have an updated IRP
B8: Birch Cr Gathering | E8: 0 | F8: 0 | G8: =G7/$S$7*$S$8 -> 0 | H8: =H7/$S$7*$S$8 -> 0 | I8: =I7/$S$7*$S$8 -> 0 | J8: 0 | K8: 0 | L8: 0 | M8: 0 | N8: 0 | O8: 0 | P8: 0 | Q8: 0 | R8: =R7/$S$7*$S$8 -> 0 | S8: ='Other Inputs'!$D$160 -> 0
B9: QGM Gathering | E9: =E7/$S$7*$S$9 -> 3666606.91 | F9: =F7/$S$7*$S$9 -> 3699172.584 | G9: =G7/$S$7*$S$9 -> 3758058.185 | H9: =H7/$S$7*$S$9 -> 3770035.47 | I9: 3674493.106 | J9: 3243806.238 | K9: 3517120.359 | L9: 3391252.261 | M9: 3488531.645 | N9: 3527141.145 | O9: 3503544.012 | P9: 3366369.608 | Q9: 3277950.907 | R9: =R7/$S$7*$S$9 -> 3328268.046 | S9: ='Other Inputs'!$D$174 -> 41846570.98
A12: WEXPRO II
B13: Company Production In Dth | E13: 394330 | F13: 400353 | G13: =380.88*1000 -> 380880 | H13: =387.11*1000 -> 387110 | I13: =380.94*1000 -> 380940 | J13: =338.74*1000 -> 338740 | K13: =369.37*1000 -> 369370 | L13: =352.2*1000 -> 352200 | M13: =358.72*1000 -> 358720 | N13: =342.3*1000 -> 342300 | O13: =305.93*1000 -> 305930 | P13: =292.77*1000 -> 292770 | Q13: =320.7*1000 -> 320700 | R13: =335.4*1000 -> 335400 | S13: =SUM(G13:R13) -> 4165060 | U13: ScottN | V13: For this pass through only we used Mike Neese Production #'s since we didn't have an updated IRP
B14: Samson Gathering | E14: =E13/$S$13*$S$14 -> 394393.5504 | F14: 400417.521 | G14: 380941.3828 | H14: 387172.3868 | I14: 381001.3924 | J14: 338794.5915 | K14: 369429.5278 | L14: 352256.7607 | M14: 358777.8114 | N14: 342355.1652 | O14: 305979.3038 | P14: 292817.1829 | Q14: 320751.6841 | R14: =R13/$S$13*$S$14 -> 335454.0532 | S14: ='Other Inputs'!D177 -> 4165731.243
D21: 1000
B23: Injections in Dth | M23: 539800 | N23: 2023900 | O23: 2547440 | P23: 2346910
C24: Chalk Creek | E24: 143921 | F24: 181406 | G24: 0 | H24: 0 | I24: 0 | J24: 0 | K24: 0 | L24: 0 | M24: 0 | N24: 0 | O24: 0 | P24: 0 | Q24: 0 | R24: 0 | S24: =SUM(G24:R24) -> 0 | U24: ScottN
C25: Clay Basin | E25: 1927450 | F25: 1862260 | G25: 0 | H25: 0 | I25: 0 | J25: 0 | K25: 0 | L25: 0 | M25: 780215.0852 | N25: 2207180.008 | O25: 2723568.425 | P25: 2469479.909 | Q25: =2046.35*1000 -> 2046350 | R25: =1977.13*1000 -> 1977130 | S25: =SUM(G25:R25) -> 12203923.43 | U25: ScottN
C26: Coalville | E26: 281370 | F26: 265704 | G26: 0 | H26: 0 | I26: 0 | J26: 0 | K26: 0 | L26: 0 | M26: 0 | N26: 0 | O26: 0 | P26: 0 | Q26: 0 | R26: =156.389*1000 -> 156389 | S26: 156389 | U26: ScottN
C27: Leroy | E27: 603926 | F27: 312266 | G27: 0 | H27: 0 | I27: 0 | J27: 0 | K27: 0 | L27: 0 | M27: 0 | N27: 0 | O27: 0 | P27: 0 | Q27: 0 | R27: =635.881*1000 -> 635881 | S27: 635881 | U27: ScottN
C28: Ryckman | E28: 358462 | F28: 0 | G28: 0 | H28: 0 | I28: 0 | J28: 0 | K28: 0 | L28: 0 | M28: 0 | N28: 0 | O28: 0 | P28: 0 | Q28: 0 | R28: =0 -> 0 | S28: 0 | U28: ScottN
C29: Total Injections | E29: 470850 | F29: 2185040 | G29: =SUM(G24:G28) -> 0 | H29: 0 | I29: 0 | J29: 0 | K29: 0 | L29: 0 | M29: 780215.0852 | N29: 2207180.008 | O29: 2723568.425 | P29: 2469479.909 | Q29: 2046350 | R29: 2769400 | S29: 12996193.43
B31: Withdrawls In Dth
C32: Chalk Creek | E32: 0 | F32: 0 | G32: 0 | H32: 0 | I32: =3.868*1000 -> 3868 | J32: 0 | K32: 0 | L32: 0 | M32: 0 | N32: 0 | O32: 0 | P32: 0 | Q32: 0 | R32: 0 | S32: =SUM(G32:R32) -> 3868 | U32: ScottN
C33: Clay Basin | E33: 0 | F33: 6880 | G33: =666.21*1000 -> 666210 | H33: =5092.42*1000 -> 5092420 | I33: =3898.54*1000 -> 3898540 | J33: 2026000 | K33: 0 | L33: 0 | M33: =185.53*1000 -> 185530 | N33: =104.88*1000 -> 104880 | O33: =66.78*1000 -> 66780 | P33: 0 | Q33: 0 | R33: 0 | S33: =SUM(G33:R33) -> 12040360 | U33: ScottN
C34: Coalville | E34: 0 | F34: 0 | G34: 0 | H34: =136.173*1000 -> 136173 | I34: =20.073*1000 -> 20073 | J34: 0 | K34: 0 | L34: 0 | M34: 0 | N34: 0 | O34: 0 | P34: 0 | Q34: 0 | R34: 0 | S34: 156246 | U34: ScottN
C35: Leroy | E35: 0 | F35: 0 | G35: 0 | H35: =199.691*1000 -> 199691 | I35: =217.12*1000 -> 217120 | J35: 0 | K35: 0 | L35: 0 | M35: 0 | N35: 0 | O35: 0 | P35: 0 | Q35: 0 | R35: 0 | S35: 416811 | U35: ScottN
C36: Ryckman | E36: 0 | F36: 0 | G36: 0 | H36: 0 | I36: 0 | J36: 0 | K36: 0 | L36: 0 | M36: 0 | N36: 0 | O36: 0 | P36: 0 | Q36: 0 | R36: 0 | S36: 0 | U36: ScottN
C37: Total Withdrawls | E37: 252680 | F37: 145370 | G37: =SUM(G32:G36) -> 666210 | H37: 5428284 | I37: 4139601 | J37: 2026000 | K37: 0 | L37: 0 | M37: 185530 | N37: 104880 | O37: 66780 | P37: 0 | Q37: 0 | R37: 0 | S37: 12617285
B39: Lost & Unaccounted for on QPC
A42: Injection and Withdrawl Used, Lost and Unaccounted For
D43: Gas Use
D44: %
B45: Injections in Dth
C46: Chalk Creek | D46: ='Other Inputs'!E135 -> 0.0113 | E46: 0 | F46: 0 | G46: =G24*-$D46 -> 0 | H46: =H24*-$D46 -> 0 | I46: =I24*-$D46 -> 0 | J46: =J24*-$D46 -> 0 | K46: 0 | L46: 0 | M46: 0 | N46: 0 | O46: 0 | P46: 0 | Q46: 0 | R46: 0 | S46: =SUM(G46:R46) -> 0
C47: Clay Basin | D47: ='Other Inputs'!E144 -> 0.0238 | E47: -5238.8871 | F47: -37145.4761 | G47: =G25*-$D47 -> 0 | H47: =H25*-$D47 -> 0 | I47: =I25*-$D47 -> 0 | J47: =J25*-$D47 -> 0 | K47: 0 | L47: 0 | M47: -18569.11903 | N47: =N25*-$D47 -> -52530.8842 | O47: -64820.92852 | P47: -58773.62183 | Q47: -48703.13 | R47: -47055.694 | S47: =SUM(G47:R47) -> -290453.3776
C48: Coalville | D48: ='Other Inputs'!E147 -> 0.0137 | E48: 0 | F48: 0 | G48: =G26*-$D48 -> 0 | H48: 0 | I48: 0 | J48: 0 | K48: 0 | L48: 0 | M48: 0 | N48: 0 | O48: 0 | P48: 0 | Q48: 0 | R48: -2142.5293 | S48: =SUM(G48:R48) -> -2142.5293
C49: Leroy | D49: ='Other Inputs'!E141 -> 0.0342 | E49: 0 | F49: 0 | G49: =G27*-$D49 -> 0 | H49: 0 | I49: 0 | J49: 0 | K49: 0 | L49: 0 | M49: 0 | N49: 0 | O49: 0 | P49: 0 | Q49: 0 | R49: -21747.1302 | S49: =SUM(G49:R49) -> -21747.1302
C50: Ryckman | D50: ='Other Inputs'!E138 -> 0.025 | E50: -5373 | F50: -9260.25 | G50: 0 | H50: 0 | I50: 0 | J50: 0 | K50: 0 | L50: 0 | M50: 0 | N50: 0 | O50: 0 | P50: 0 | Q50: 0 | R50: 0 | S50: =SUM(G50:R50) -> 0
C51: Total Injections | E51: -10611.8871 | F51: -46405.7261 | G51: =SUM(G46:G50) -> 0 | H51: 0 | I51: 0 | J51: 0 | K51: 0 | L51: 0 | M51: -18569.11903 | N51: -52530.8842 | O51: -64820.92852 | P51: -58773.62183 | Q51: -48703.13 | R51: -70945.3535 | S51: =SUM(S46:S50) -> -314343.0371
B53: Withdrawls In Dth
C54: Chalk Creek | D54: ='Other Inputs'!E136 -> 0.0118 | E54: 0 | F54: 0 | G54: =G32*-$D54 -> 0 | H54: 0 | I54: -45.6424 | J54: 0 | K54: 0 | L54: 0 | M54: 0 | N54: 0 | O54: 0 | P54: 0 | Q54: 0 | R54: 0 | S54: =SUM(G54:R54) -> -45.6424
C55: Clay Basin | D55: ='Other Inputs'!E145 -> 0.013 | E55: -1996.172 | F55: -1148.423 | G55: =G33*-$D55 -> -8660.73 | H55: -66201.46 | I55: -50681.02 | J55: -26338 | K55: 0 | L55: 0 | M55: -2411.89 | N55: -1363.44 | O55: -868.14 | P55: 0 | Q55: 0 | R55: 0 | S55: =SUM(G55:R55) -> -156524.68
C56: Coalville | D56: ='Other Inputs'!E148 -> 0.0128 | E56: 0 | F56: 0 | G56: =G34*-$D56 -> 0 | H56: -1743.0144 | I56: -256.9344 | J56: 0 | K56: =K34*-$D56 -> 0 | L56: 0 | M56: 0 | N56: 0 | O56: 0 | P56: 0 | Q56: 0 | R56: 0 | S56: =SUM(G56:R56) -> -1999.9488
C57: Leroy | D57: ='Other Inputs'!E142 -> 0.0119 | E57: 0 | F57: 0 | G57: =G35*-$D57 -> 0 | H57: -2376.3229 | I57: -2583.728 | J57: 0 | K57: 0 | L57: 0 | M57: 0 | N57: 0 | O57: 0 | P57: 0 | Q57: 0 | R57: 0 | S57: =SUM(G57:R57) -> -4960.0509
C58: Ryckman | D58: ='Other Inputs'!E139 -> 0 | E58: 0 | F58: 0 | G58: 0 | H58: 0 | I58: 0 | J58: 0 | K58: 0 | L58: 0 | M58: 0 | N58: =N36*-$D58 -> 0 | O58: 0 | P58: 0 | Q58: 0 | R58: 0 | S58: =SUM(G58:R58) -> 0
C59: Total Withdrawls | E59: -1996.172 | F59: -1148.423 | G59: =SUM(G54:G58) -> -8660.73 | H59: -70320.7973 | I59: -53567.3248 | J59: -26338 | K59: =SUM(K54:K58) -> 0 | L59: 0 | M59: -2411.89 | N59: -1363.44 | O59: -868.14 | P59: 0 | Q59: 0 | R59: 0 | S59: =SUM(S54:S58) -> -163530.3221
B61: QPC Transportation Loss
C62: Chalk Creek | D62: ='Other Inputs'!$E$286 -> 0.0197 | E62: 0 | F62: 0 | G62: =G32*-$D62 -> 0 | H62: 0 | I62: -76.1996 | J62: 0 | K62: 0 | L62: 0 | M62: 0 | N62: 0 | O62: 0 | P62: 0 | Q62: 0 | R62: 0 | S62: =SUM(G62:R62) -> -76.1996
C63: Clay Basin | D63: ='Other Inputs'!$E$286 -> 0.0197 | E63: -4346.096 | F63: -2500.364 | G63: =G33*-$D63 -> -13124.337 | H63: -100320.674 | I63: -76801.238 | J63: -39912.2 | K63: 0 | L63: 0 | M63: -3654.941 | N63: -2066.136 | O63: -1315.566 | P63: 0 | Q63: 0 | R63: 0 | S63: =SUM(G63:R63) -> -237195.092
C64: Coalville | D64: ='Other Inputs'!$E$286 -> 0.0197 | E64: 0 | F64: 0 | G64: =G34*-$D64 -> 0 | H64: -2682.6081 | I64: -395.4381 | J64: 0 | K64: 0 | L64: 0 | M64: 0 | N64: 0 | O64: 0 | P64: 0 | Q64: 0 | R64: 0 | S64: =SUM(G64:R64) -> -3078.0462
C65: Leroy | D65: ='Other Inputs'!$E$286 -> 0.0197 | E65: 0 | F65: 0 | G65: =G35*-$D65 -> 0 | H65: -3933.9127 | I65: -4277.264 | J65: 0 | K65: 0 | L65: 0 | M65: 0 | N65: 0 | O65: 0 | P65: 0 | Q65: 0 | R65: 0 | S65: =SUM(G65:R65) -> -8211.1767
C66: Ryckman | D66: ='Other Inputs'!$E$286 -> 0.0197 | E66: 0 | F66: 0 | G66: 0 | H66: 0 | I66: 0 | J66: 0 | K66: 0 | L66: 0 | M66: 0 | N66: =N36*-$D66 -> 0 | O66: 0 | P66: 0 | Q66: 0 | R66: 0 | S66: =SUM(G66:R66) -> 0
C67: Total Withdrawls | E67: -4346.096 | F67: -2500.364 | G67: =SUM(G62:G66) -> -13124.337 | H67: -106937.1948 | I67: -81550.1397 | J67: -39912.2 | K67: 0 | L67: 0 | M67: -3654.941 | N67: -2066.136 | O67: -1315.566 | P67: 0 | Q67: 0 | R67: 0 | S67: -248560.5145
B70: Total Injections & Withdrawls | E70: -12608.0591 | F70: -47554.1491 | G70: =G51+G59 -> -8660.73 | H70: =H51+H59 -> -70320.7973 | I70: =I51+I59 -> -53567.3248 | J70: -26338 | K70: =K51+K59 -> 0 | L70: 0 | M70: -20981.00903 | N70: -53894.3242 | O70: -65689.06852 | P70: -58773.62183 | Q70: -48703.13 | R70: -70945.3535 | S70: =S51+S59 -> -477873.3592
R72: Fuel Factor | S72: =-S70/(S37+S29) -> 0.01865710511
S74: 12-Month
E75: =E3 -> Sep14 | F75: Oct14 | G75: Nov14 | H75: Dec14 | I75: Jan15 | J75: Feb15 | K75: Mar15 | L75: Apr15 | M75: May15 | N75: Jun15 | O75: Jul15 | P75: Aug15 | Q75: Sep15 | R75: Oct15 | S75: Total
I77: Updated: | J77: 2014-09-10 | K77: EXH 1.2
A78: Natural Gas Spot Price Forecast - Average of GI, Cera & Pira | E78: (Forecast --->) | G78: (Forecast --->)
B79: Kern River Opal, Wyoming | E79: 3.85 | F79: =TRANSPOSE('Graph (Ex 1.10) Inputs'!F2:F14) -> 3.86 | G79: 3.97 | H79: 3.95 | I79: 3.94 | J79: 3.86 | K79: 3.75 | L79: 3.49 | M79: 3.49 | N79: 3.46 | O79: 3.55 | P79: 3.52 | Q79: 3.5 | R79: 3.51
B82: Spot Purchases from IRP | G82: =4299.218-579.384 -> 3719.834 | H82: =3663.03-2471.633 -> 1191.397 | I82: =7419.882-3094.188 -> 4325.694 | J82: =8939.617-2491.909 -> 6447.708 | K82: =5398.707 -> 5398.707 | L82: =3393.604 -> 3393.604 | M82: 0 | N82: 0 | O82: 0 | P82: =64.2-64.2 -> 0 | Q82: =851.963-19.409 -> 832.554 | R82: 4105.963 | S82: =SUM(G82:R82) -> 29415.461 | U82: Scott N
C83: In DTH | G83: =G82*1000 -> 3719834 | H83: =H82*1000 -> 1191397 | I83: 4325694 | J83: 6447708 | K83: 5398707 | L83: 3393604 | M83: 0 | N83: 0 | O83: 0 | P83: 0 | Q83: 832554 | R83: 4105963 | S83: =SUM(G83:R83) -> 29415461
C84: In $ | G84: =G83*G79 -> 14767740.98 | H84: 4706018.15 | I84: 17043234.36 | J84: 24888152.88 | K84: =K83*K79 -> 20245151.25 | L84: 11843677.96 | M84: 0 | N84: 0 | O84: 0 | P84: 0 | Q84: 2913939 | R84: 14411930.13 | S84: =SUM(G84:R84) -> 110819844.7
A87: CONTRACT PURCHASES | G87: 1000000 | I87: Updated: | J87: 2014-09-25
B88: RESET FORMULAS TO Brent's WORKSHEET
B89: Peaking Purchases (DTH) | G89: 1000000 | H89: 4000000 | I89: 5000000 | J89: 2000000 | K89: 0 | L89: 0 | M89: 0 | N89: 0 | O89: 0 | P89: 0 | Q89: 0 | R89: 0 | S89: =SUM(G89:R89) -> 12000000 | T89: =S90/S89 -> 4.181599684
B90: Peaking Purchases ($) | G90: 4216336.702 | H90: 16792335 | I90: 20933186.94 | J90: 8237337.565 | K90: 0 | L90: 0 | M90: 0 | N90: 0 | O90: 0 | P90: 0 | Q90: 0 | R90: 0 | S90: =SUM(G90:R90) -> 50179196.21
B92: Term Purchases (DTH) | G92: 900000 | H92: 1472500 | I92: 1472500 | J92: 1330000 | K92: 930000 | L92: 0 | M92: 0 | N92: 0 | O92: 0 | P92: 0 | Q92: 0 | R92: 0 | S92: =SUM(G92:R92) -> 6105000
B93: Term Purchases ($) | G93: 3806910 | H93: 6055757 | I93: 6041032 | J93: 5350016 | K93: 3729207 | L93: 0 | M93: 0 | N93: 0 | O93: 0 | P93: 0 | Q93: 0 | R93: 0 | S93: =SUM(G93:R93) -> 24982922 | T93: =S93/S92 -> 4.092206716
B94: Stabilization Costs (Winter Months - Oct to Mar) | G94: 0 | H94: 0 | I94: 0 | J94: 0 | K94: 0 | L94: 0 | M94: 0 | N94: 0 | O94: 0 | P94: 0 | Q94: 0 | R94: 0 | S94: =SUM(G94:R94) -> 0
B97: Total Purchases (DTH) | E97: =E89+E92 -> 0 | F97: 0 | G97: 1900000 | H97: =H89+H92 -> 5472500 | I97: 6472500 | J97: 3330000 | K97: 930000 | L97: =L89+L92 -> 0 | M97: 0 | N97: 0 | O97: 0 | P97: 0 | Q97: 0 | R97: 0 | S97: =SUM(G97:R97) -> 18105000 | T97: =S92/S97 -> 0.3371996686
B98: Total Purchases ($) | E98: 0 | F98: 0 | G98: 8023246.702 | H98: 22848092 | I98: 26974218.94 | J98: 13587353.57 | K98: 3729207 | L98: =L90+L93 -> 0 | M98: 0 | N98: 0 | O98: 0 | P98: 0 | Q98: 0 | R98: 0 | S98: =SUM(G98:R98) -> 75162118.21
A101: Typical Customer Monthly Usage in Dth
B102: Utah | G102: =VLOOKUP(MONTH(G3),$F$116:$G$127,2,FALSE) -> 6.3 | H102: 11.5 | I102: 14.9 | J102: 12.5 | K102: 10.1 | L102: 8.3 | M102: 4.4 | N102: 3.1 | O102: 2 | P102: 1.8 | Q102: 2 | R102: 3.1 | S102: =SUM(G102:R102) -> 80
B103: Wyoming | G103: =VLOOKUP(MONTH(G3),$F$116:$H$127,3,FALSE) -> 8 | H103: 12.3 | I103: 14.7 | J103: 14.1 | K103: 11.8 | L103: 9.4 | M103: 5.8 | N103: 3.7 | O103: 2.3 | P103: 1.7 | Q103: 2.1 | R103: 4.1 | S103: =SUM(G103:R103) -> 90
A105: INPUTS FROM WEXPRO | G105: =G3 -> Nov14 | H105: =H3 -> Dec14 | I105: Jan15 | J105: Feb15 | K105: Mar15 | L105: Apr15 | M105: May15 | N105: Jun15 | O105: Jul15 | P105: Aug15 | Q105: Sep15 | R105: Oct15 | S105: 12-Month
G106: =G3 -> Nov14 | H106: =H3 -> Dec14 | I106: Jan15 | J106: Feb15 | K106: Mar15 | L106: Apr15 | M106: May15 | N106: Jun15 | O106: Jul15 | P106: Aug15 | Q106: Sep15 | R106: Oct15 | S106: Total
A107: Wexpro I Operator Fee (Wexpro forecast) | E107: Updated Mike Neese 9/25/2014 | G107: 25076524 | H107: 24623244 | I107: 25153323 | J107: 25029354 | K107: 24774682 | L107: 24299637 | M107: 24215331 | N107: 23828697 | O107: 23923573 | P107: 23425243 | Q107: 23740040 | R107: 24136433 | S107: =SUM(G107:R107) -> 292226081
A109: Wexpro II Operator Fee (Wexpro forecast) | E109: Updated Mike Neese 9/25/2014 | G109: 2188334 | H109: 2195798 | I109: 2114188 | J109: 2121145 | K109: 2099033 | L109: 1995061 | M109: 2054850 | N109: 2008469 | O109: 2017696 | P109: 1970839 | Q109: 1982008 | R109: 2056268 | S109: =SUM(G109:R109) -> 24803689
F115: Typical UPC | G115: UT | H115: WY
F116: 1 | G116: 14.9 | H116: 14.7
F117: 2 | G117: 12.5 | H117: 14.1
F118: 3 | G118: 10.1 | H118: 11.8
F119: 4 | G119: 8.3 | H119: 9.4
F120: 5 | G120: 4.4 | H120: 5.8
F121: 6 | G121: 3.1 | H121: 3.7
F122: 7 | G122: 2 | H122: 2.3
F123: 8 | G123: 1.8 | H123: 1.7
F124: 9 | G124: 2 | H124: 2.1
F125: 10 | G125: 3.1 | H125: 4.1
F126: 11 | G126: 6.3 | H126: 8
F127: 12 | G127: 11.5 | H127: 12.3
F128: Total | G128: =SUM(G116:G127) -> 80 | H128: =SUM(H116:H127) -> 90

Sheet Graph (Ex 1.10) Inputs
C1: ACTUAL | D1: CERA | E1: PIRA | F1: AVG
B2: 2014-10-01 | D2: 3.89 | E2: 3.822 | F2: 3.86
B3: 2014-11-01 | D3: 4.01 | E3: 3.92 | F3: 3.97
B4: 2014-12-01 | D4: 3.96 | E4: 3.94 | F4: 3.95
B5: 2015-01-01 | D5: 4.01 | E5: 3.86 | F5: 3.94
B6: 2015-02-01 | D6: 3.85 | E6: 3.87 | F6: 3.86
B7: 2015-03-01 | D7: 3.77 | E7: 3.72 | F7: 3.75
B8: 2015-04-01 | D8: 3.71 | E8: 3.26 | F8: 3.49
B9: 2015-05-01 | D9: 3.64 | E9: 3.33 | F9: 3.49
B10: 2015-06-01 | D10: 3.61 | E10: 3.31 | F10: 3.46
B11: 2015-07-01 | D11: 3.64 | E11: 3.46 | F11: 3.55
B12: 2015-08-01 | D12: 3.65 | E12: 3.39 | F12: 3.52
B13: 2015-09-01 | D13: 3.65 | E13: 3.34 | F13: 3.5
B14: 2015-10-01 | D14: 3.71 | E14: 3.31 | F14: 3.51
D17: Price Forecasts
B19: Make sure all pricing is in Whole number @ 2 decimal places only

Sheet Other Inputs
H1: Used In
A2: INPUT SECTION | H2: Ut | I2: Wy | J2: Source
A3: INPUTS FROM QUESTAR PIPELINE TARIFF AND CONTRACTS
B5: QPC Storage Commodity Rates | E5: Rate | F5: Effective
B6: Peaking Injections | E6: 0.03872 | F6: 2014-01-01 | H6: 1.3.2 | I6: 1.3p2 | J6: QPC Tariff Statement of Rates
B7: Peaking Withdrawals | E7: 0.03872 | F7: =$F$6 -> 2014-01-01 | H7: 1.3.2 | I7: 1.3p2 | J7: =J6 -> QPC Tariff Statement of Rates
B8: Ryckman Injections | E8: 0.015 | F8: =$F$6 -> 2014-01-01 | J8: Glen W
B9: Ryckman Withdrawals | E9: 0.01 | F9: 2014-01-01 | J9: Glen W
B10: Clay Basin Injections | E10: 0.01049 | F10: 2014-01-01 | H10: 1.3.2 | I10: 1.3p2 | J10: QPC Tariff Statement of Rates
B11: Clay Basin Withdrawals | E11: 0.01781 | F11: =$F$6 -> 2014-01-01 | H11: 1.3.2 | I11: 1.3p2 | J11: =J10 -> QPC Tariff Statement of Rates
B13: QPC Storage Field Reservation Charges
B14: Peaking Storage Fields Demand (Leroy, Chalk Creek, Coalville) | E14: 2.87375 | F14: =$F$6 -> 2014-01-01 | H14: 1.3.2 | I14: 1.3p2 | J14: =$J$6 -> QPC Tariff Statement of Rates
B15: Ryckman | E15: 0.09 | F15: =$F$6 -> 2014-01-01 | J15: Glen W
B16: Clay Basin Demand | E16: 2.85338 | F16: =$F$6 -> 2014-01-01 | H16: 1.3.2 | I16: 1.3p2 | J16: =$J$6 -> QPC Tariff Statement of Rates
B17: Clay Basin Capacity | E17: 0.02378 | F17: =$F$6 -> 2014-01-01 | H17: 1.3.2 | I17: 1.3p2 | J17: =$J$6 -> QPC Tariff Statement of Rates
J20: used in Exhibit 1.3
B21: FIRM TRANSPORTATION | D21: Contract Dth | E21: Months | F21: Maximum Rate | G21: Effective
B22: T-1 Transportation - Yearly (MT241) | D22: =798902 -> 798902 | E22: 12 | F22: 5.28804 | G22: 1/1/2014 | H22: 1.3p1 | J22: =$J$6 -> QPC Tariff Statement of Rates | N22: 4000000
B23: T-1 Transportation - Yearly (Mainline 104) | D23: 30000 | E23: 12 | F23: 5.28804 | G23: =$G$22 -> 1/1/2014 | H23: Jan | J23: =$J$6 -> QPC Tariff Statement of Rates | N23: 28100
B24: T-1 Transportation - Yearly (Tieline 112) | D24: 12000 | E24: 12 | F24: 5.28804 | G24: =$G$22 -> 1/1/2014 | H24: 1.3p1 | J24: =$J$6 -> QPC Tariff Statement of Rates | N24: =N21/N22 -> 0
B25: T-1 Transportation - Nov-Mar | D25: 75000 | E25: 5 | F25: 6.80887 | G25: =$G$22 -> 1/1/2014 | J25: Rate from Glen | N25: =N22/N23 -> 142.3487544
B26: Total Yearly T-1 Transportation | D26: =SUM(D22:D25) -> 915902 | E26: 12
B28: T-1 Transportation - Seasonal(BASE TARIFF RATE LOW LOAD) Mainline 104 | D28: 0 | E28: 0 | F28: 0 | J28: not using currently - ck with Glen
B30: No-Notice Transportation (BASE TARIFF RATE) | D30: 203542 | E30: 12 | F30: 0.86753 | G30: =$G$22 -> 1/1/2014 | H30: 1.3p1 | J30: =$J$6 -> QPC Tariff Statement of Rates
B31: GRI - Yearly (SURCHARGE LOW LOAD CUSTOMERS MAXIMUM) | D31: =D26 -> 915902 | E31: 12 | F31: 0 | G31: =$G$22 -> 1/1/2014 | H31: 1.3p1 | J31: =$J$6 -> QPC Tariff Statement of Rates
B32: GRI - Seasonal (No GRI currently) | D32: 30000 | E32: 3 | F32: =+F31 -> 0 | G32: =$G$22 -> 1/1/2014 | H32: 1.3p1 | J32: =$J$6 -> QPC Tariff Statement of Rates
B33: GRI | D33: 52000 | E33: 12 | F33: =+F31 -> 0 | G33: =$G$22 -> 1/1/2014 | H33: 1.3p1 | J33: =$J$6 -> QPC Tariff Statement of Rates
B35: TRANSPORTATION COMMODITY
B36: PIPELINE USAGE CHARGE TO VOLUMETRIC RELEASES
B37: QPC Commodity
B38: QPC Firm Transportation Usage Charge (Max & Min) (BASE TARIFF RATE) | F38: 0.00267 | G38: 2014-01-01 | H38: 1.3p1 | J38: =$J$6 -> QPC Tariff Statement of Rates
B39: QPC (ANNUAL CHARGE ADJUSTMENT) | F39: 0.0014 | G39: 2014-10-01 | H39: 1.3p1 | J39: FERC Website
B40: QPC GRI SURCHARGE (not used currently) | F40: 0 | G40: =G38 -> 2014-01-01 | H40: 1.3p1 | J40: =$J$6 -> QPC Tariff Statement of Rates
E41: Current | F41: Proposed
B42: INTER TRANS (T-2 PIPELINE BASE TARIFF) MAX | D42: Base Tariff | E42: 0.17652 | F42: 0.17652 | G42: 2014-01-01 | J42: =$J$6 -> QPC Tariff Statement of Rates
C43: (not used currently) | D43: GRI Surcharge | E43: 0 | F43: 0 | G43: =G42 -> 2014-01-01 | J43: =$J$6 -> QPC Tariff Statement of Rates
D44: Annual Charge | E44: 0.0012 | F44: 0.0014 | G44: 2014-10-01 | J44: ferc.gov
D45: Total | E45: =SUM(E42:E44) -> 0.17772 | F45: =SUM(F42:F44) -> 0.17792
B48: Utah | E48: =ROUND((E45)/(1-$E283),5) -> 0.1786 | F48: =ROUND((F45)/(1-E283),5) -> 0.1788 | H48: 1.6.3 | J48: Before Adjustment for Bad Debt (Transport grossed up for QGC fuel)
B49: Wyoming | F49: =ROUND((F45)/(1-E284),5) -> 0.18063
A51: INPUTS FROM KERN RIVER PIPELINE TARIFF AND CONTRACTS
B52: Kern River 2003 Expansion | D52: Contract Dth | E52: Months | F52: Maximum Rate | G52: Effective
F53: 0.4717 | G53: 2014-04-01 | J53: KR Tariff 5-A
B54: Jan - Dec | D54: 3000 | E54: 12 | F54: 14.34754167 | H54: 1.3.1
B55: November - March | D55: 50000 | E55: 5 | F55: 14.34754167 | H55: Jan
B56: Jan - Dec | D56: 1885 | E56: 12 | F56: 17.74204167
B57: Days in Tariff Rate | E57: 365 | F57: 0.5833 | G57: =G53 -> 2014-04-01 | J57: e.g., if rates effective Jan 1 in a leap year, then use 366
B59: Kern River 2003 Expansion | E59: Days in TEST PERIOD
B60: Jan - Dec | C60: 1.001527372 | D60: =D54+D56 -> 4885 | E60: 365 | F60: 0.0044 | G60: =G57 -> 2014-04-01 | H60: 1.3p1 | J60: KR Tariff 5-A
B61: November - March | C61: =C60 -> 1.001527372 | D61: =D55 -> 50000 | E61: 151 | F61: 0.0044 | G61: =G57 -> 2014-04-01 | H61: 1.3p1 | J61: KR Tariff 5-A
A63: INPUTS FROM QUESTAR GAS TARIFF
B65: I-Sales Commodity Rates | E65: I-2 -eliminated | F65: IS | J65: =31*5 -> 155
B66: Effective Date | E66: 11/1/2005 | F66: 7/31/2009 | J66: =J65*0.75 -> 116.25
B67: Commodity Rate | E67: 0 | F67: =ROUND((7353080/1941997),5) -> 3.78635 | G67: Should this just be utah | J67: =J65*0.15 -> 23.25
B68: CO2 Refund | E68: 0 | F68: 0 | J68: =J65*0.1 -> 15.5
B69: Net Commodity Rate | E69: =SUM(E67:E68) -> 0 | F69: =SUM(F67:F68) -> 3.78635
A71: Current SNG Rates
B72: UTAH | E72: Current SNG Base | F72: Current SNG Amort. | G72: Current SNG Total | J72: Effective
B73: GS | D73: Winter | E73: 1.12022 | F73: -0.06718 | G73: =E73+F73 -> 1.05304 | J73: 2014-07-01
D74: Summer | E74: 0.52595 | F74: -0.03154 | G74: =E74+F74 -> 0.49441 | J74: =J73 -> 2014-07-01
B76: FS | D76: Winter | E76: 1.09105 | F76: -0.06543 | G76: =E76+F76 -> 1.02562 | J76: 2014-07-01
D77: Summer | E77: 0.52593 | F77: -0.03153 | G77: =E77+F77 -> 0.4944 | J77: =J76 -> 2014-07-01
B79: NGV | E79: 0.80838 | F79: -0.04848 | G79: =E79+F79 -> 0.7599 | J79: 2014-07-01
B81: (This includes bad debt adjustment) IS | E81: 0.17905 | F81: 0 | G81: =E81+F81 -> 0.17905 | J81: 2014-07-01
A84: Current Rates
B85: Utah GS | J85: Effective
B86: Block 1 | D86: Summer | G86: 7.78812 | J86: 2014-07-01
B87: Block 2 | D87: Summer | G87: 6.85423 | J87: =$J$86 -> 2014-07-01
B88: Block 1 | D88: Winter | G88: 8.92762 | J88: =$J$86 -> 2014-07-01
B89: Block 2 | D89: Winter | G89: 7.99373 | J89: =$J$86 -> 2014-07-01
B90: #1 BSF | G90: 6.75 | J90: =J86 -> 2014-07-01
B92: Wyoming GS
B93: Block 1 | G93: 7.92321 | J93: 2014-07-01
B94: Block 2 | G94: 7.67466 | J94: =J93 -> 2014-07-01
B95: BSF | G95: 11 | J95: =J93 -> 2014-07-01
A97: INPUTS FROM PREVIOUS PASSTHROUGH CASE
B98: PRIOR PERIOD COMPANY PRODUCTION AVERAGE GAS COST
E99: PROPOSED | F99: PRIOR CASE | G99: Most Recent
B100: VOLUMES DTH | E100: ='Monthly Inputs'!S7+'Monthly Inputs'!S13 -> 70897170 | F100: 74434458 | G100: EXH 1.1 | J100: LAST CASE IN WHICH RATES CHANGED
B101: AMOUNT | E101: =+D184+D205 -> 360165191 | F101: 392353509 | G101: EXH 1.1
B102: AVG COST | E102: =+E101/E100 -> 5.080106737 | F102: =ROUND(+F101/F100,5) -> 5.27113
B104: Utah Cost of Gas by Component
B105: Unit Cost Of Gas (Line 9) | F105: 5.05224 | J105: Exhibit 1.6 pg 1 (Prior case)
B106: 191 Account Amortization (Line 10) | F106: 0.22364 | J106: Exhibit 1.6 pg 1 (Prior case )
B107: Total Unit Cost In Rates (Line 11) | F107: =SUM(F105:F106) -> 5.27588
B109: I-2 Commodity Cost (excluding bad debt) | E109: 0
B111: Wyoming Cost of Gas by Component
B112: Unit Cost Of Gas (Line 9) | F112: 5.74208 | J112: (WY) Exhibit 1.6 pg 1
B113: 191 Account Amortization (Line 10) | F113: 0.17717 | J113: (WY) Exhibit 1.6 pg 1
B114: Total Unit Cost In Rates (Line 11) | F114: =F112+F113 -> 5.91925 | J114: (WY) Exhibit 1.6 pg 1
A119: INPUTS FROM 191 ACCOUNT MONTH END BALANCE ACTUAL OR FORECAST | E119: Utah | F119: Wyoming
E120: 2014 | F120: 2014-08-31
H121: 1.6.2
D122: current yr /mo(text)
B123: August 2014 191 account (Actual/Forecast) | D123: 2014 | E123: 45987640 | F123: 2089680 | H123: 1.6.1 | J123: 191 Account Forecast/Actual
B124: Supplier Non-Gas Cost Under (Over) Collected through August 2014 (act/fcst) | D124: August | E124: 876475 | H124: 1.6.2 | J124: 191 Account Year-End (sometimes through current period)
B125: Commodity Cost Under (Over) Collected during YEAR (Act/Fcst) | E125: =E123-E124 -> 45111165
A127: INPUTS FROM IRP
B128: #1 Peak Day Demand Forecast | E128: 2014 | F128: Source
B129: Utah | E129: =E131-E130 -> 1263667.429 | F129: 2014 IRP
B130: Wyoming | E130: 39213.57146
B131: System Total Peak Day Demand Forecast | E131: 1302881 | H131: 1.5 | I131: 1.5
A134: STORAGE FIELD INPUTS | E134: Storage
B135: Chalk Creek Injections Factor | E135: 0.0113 | H135: Scott Nelson Monthly IRP
B136: Chalk Creek Withdrawls Factor | E136: 0.0118 | H136: Scott Nelson Monthly IRP
B138: Ryckman Injections Factor | E138: 0.025 | H138: Scott Nelson Monthly IRP
B139: Ryckman Withdrawls Factor | E139: 0 | H139: Scott Nelson Monthly IRP
B141: Leroy Injections Factor | E141: 0.0342 | H141: Scott Nelson Monthly IRP
B142: Leroy Withdrawls Factor | E142: 0.0119 | H142: Scott Nelson Monthly IRP
B144: Clay Basin Injections Factor | E144: 0.0238 | H144: Scott Nelson Monthly IRP
B145: Clay Basin Withdrawls Factor | E145: 0.013 | H145: Scott Nelson Monthly IRP
B147: Coalville Injections Factor | E147: 0.0137 | H147: Scott Nelson Monthly IRP
B148: Coalville Withdrawls Factor | E148: 0.0128 | H148: Scott Nelson Monthly IRP
B150: QPC Storage Field Reservation Charges | E150: Monthly Dth
B151: Peaking Storage Fields Maximum Daily Withdrawal Qty (Leroy, Chalk Creek, Coalville) | E151: 184625 | H151: From Contract Amounts. (See Ex 1.3 pg 2 if not changed)
B152: Ryckman Maximum Storage Qty | E152: =2500000*0 -> 0 | H152: From Glen Watkins (Contract Amounts) (See Ex 1.3 pg 2 if not changed)
B153: Clay Basin Minimum Required Deliverability | E153: 111827 | H153: From Glen Watkins (Contract Amounts) (See Ex 1.3 pg 2 if not changed)
B154: Clay Basin Capacity | E154: 13419000 | H154: From Glen Watkins (Contract Amounts) (See Ex 1.3 pg 2 if not changed)
A156: OTHER INPUTS FROM GLEN, TOM, TINA & Al | D156: Revenue
B157: OTHER GATHERING
B162: Total Forecasted Birch Creek | D162: 301041.25 | E162: 2014-08-31 | J162: Birch Creek from Jesse
B164: Other gathering | D164: 1719242.32 | E164: 2014-08-31 | H164: JanB | J164: Jesse Query
B165: Total Gathering | D165: =SUM(D162:D164) -> 2020283.57 | H165: 1.3.1 | I165: 1.3P1
B167: Other Transportation | D167: 3536398.4 | E167: 8/31/2014 | H167: 1.3.1 | J167: Jesse Query
B169: Forecast Future Contracts Premium over spot price | E169: 0.02 | F169: Verified with Tina 09/18/14
D171: Commodity | E171: Mo. Demand
D172: Charge | E172: Charge | F172: Effective
B173: QEP Gathering Rates -System wide Gathering agreement #163 (SWGA) | D173: 0.12579 | E173: 745178 | F173: 2013-09-01 | I173: 1.3p1 | J173: QEP Rates (Changes every Sep 1)
B174: QGC Gathering Throughput Dth From Exhibit 1.1 Backup | D174: ='Ex 1.1 Data'!E1 -> 41846570.98 | E174: 12 | I174: 1.3p1 | J174: Ex. 1.1 updated on 11-17-2010
B176: Gathering Rate | D176: 0.42172 | I176: 1.3p1 | J176: Samson Rate (amount changes in September ask John Wilkey) a new september rate has not been given to wexpro as of 9-19-14
B177: Wexpro II Gathering Throughput Dth From Exhibit 1.1 Backup | D177: ='Ex 1.1 Data'!L1 -> 4165731.243 | I177: 1.3p1 | J177: Ex. 1.1 backup calucated each time
A179: OTHER INPUTS FROM JIM LIVSEY | D179: Volume (Dth) | E179: Revenue
A180: WEXPRO I
B181: Questar Gas Production 1/ | D181: Current
B182: Test Year Royalties | D182: ='Ut 1.1'!I1432 -> 40530802.39 | H182: 1.4.1 | I182: 1.4P1 | J182: Exhibit 1.1
B183: Operator Service Fee | D183: ='Monthly Inputs'!S107 -> 292226081 | H183: 1.4.1 | I183: 1.4P1 | J183: Jim Livsey (Updated on 11-10-2010
B184: Total Questar Gas Production Costs | D184: =SUM(D182:D183) -> 332756883.4
B186: Total Questar Gas Production Dth | D186: ='Ut 1.1'!F1437 -> 66732110 | J186: this formula changes each time
F187: Hot | G187: Hot
B188: Other Revenue Credits | D188: 1 | E188: 2 | F188: 2 | G188: 2 | I188: 1
D189: Historical | E189: Forecast | F189: =HLOOKUP(F$188,$D$188:$E$196,$I189) -> Forecast | G189: =HLOOKUP(G$188,$D$188:$E$196,$I189) -> Forecast | I189: 2
D190: 12 Mo Ending | E190: 12 Mo Ending | F190: Utah | G190: Wyoming | I190: 3
B191: 483 Sales for Resale | E191: 3481704 | F191: =HLOOKUP(F$188,$D$188:$E$196,$I191) -> 3481704 | G191: =HLOOKUP(G$188,$D$188:$E$196,$I191) -> 3481704 | I191: 4 | J191: Wexpro (Mike Neese)
B192: 490 Incidental Plant Prod Sales | E192: 6215460 | F192: =HLOOKUP(F$188,$D$188:$E$196,$I192) -> 6215460 | G192: 6215460 | I192: 5 | J192: Wexpro (Mike Neese)
B193: 492 Incidental Gasoline_Oil Sales | E193: 909964 | F193: 909964 | G193: 909964 | I193: 6 | J193: Wexpro (Mike Neese)
B194: 4951 Overriding Royalty Revenue from Celsius | E194: 18312335 | F194: 18312335 | G194: 18312335 | I194: 7 | J194: Wexpro (Mike Neese)
B195: 4952 Oil Revenue Received from Wexpro | E195: 0 | F195: 0 | G195: 0 | I195: 8 | J195: Wexpro (Mike Neese)
B196: 758001 Gas Well Royalities - Other | E196: -136495 | F196: -136495 | G196: -136495 | I196: 9 | J196: Wexpro (Mike Neese)
B199: Total Other Revenue Credits | D199: =SUM(D191:D196) -> 0 | E199: =SUM(E191:E196) -> 28782968 | F199: =SUM(F191:F196) -> 28782968 | G199: =SUM(G191:G196) -> 28782968
A201: WEXPRO II
B202: Questar Gas Production 1/ | D202: Current
B203: Test Year Royalties | D203: ='Ut 1.1'!I1528 -> 2604618.585 | H203: 1.4.1 | I203: 1.4P1 | J203: Exhibit 1.1
B204: Operator Service Fee | D204: ='Monthly Inputs'!S109 -> 24803689 | H204: 1.4.1 | I204: 1.4P1 | J204: Jim Livsey (Updated on 11-10-2010
B205: Total Questar Gas Production Costs | D205: =SUM(D203:D204) -> 27408307.59
B207: Total Questar Gas Production Dth | D207: ='Ut 1.1'!F1533 -> 4165060 | J207: this formula changes each time
F208: Hot | G208: Hot
B209: Other Revenue Credits | D209: 1 | E209: 2 | F209: 2 | G209: 2 | I209: 1
D210: Historical | E210: Forecast | F210: =HLOOKUP(F$188,$D$188:$E$196,$I210) -> Forecast | G210: =HLOOKUP(G$188,$D$188:$E$196,$I210) -> Forecast | I210: 2
D211: 12 Mo Ending | E211: 12 Mo Ending | F211: Utah | G211: Wyoming | I211: 3
B212: 483 Sales for Resale | E212: 0 | F212: =HLOOKUP(F$209,$D$209:$E$217,$I212) -> 0 | G212: 0 | I212: 4 | J212: Wexpro (Mike Neese)
B213: 490 Incidental Plant Prod Sales | E213: 1271523 | F213: 1271523 | G213: 1271523 | I213: 5 | J213: Wexpro (Mike Neese)
B214: 492 Incidental Gasoline_Oil Sales | E214: 1085170 | F214: 1085170 | G214: 1085170 | I214: 6 | J214: Wexpro (Mike Neese)
B215: 4951 Overriding Royalty Revenue from Celsius | E215: 0 | F215: 0 | G215: 0 | I215: 7 | J215: Wexpro (Mike Neese)
B216: 4952 Oil Revenue Received from Wexpro | E216: 0 | F216: 0 | G216: 0 | I216: 8 | J216: Wexpro (Mike Neese)
B217: 758001 Gas Well Royalities - Other | E217: -162776 | F217: -162776 | G217: -162776 | I217: 9 | J217: Wexpro (Mike Neese)
B220: Total Other Revenue Credits | D220: =SUM(D212:D217) -> 0 | E220: =SUM(E212:E218) -> 2193917 | F220: =SUM(F212:F217) -> 2193917 | G220: =SUM(G212:G217) -> 2193917
E222: Proceeds | F222: Dths | G222: Price
B223: Sales of Wexpro Gas | E223: 0 | F223: 0 | G223: 0 | J223: Will S. Updated sales vs. shut ins
A225: SUMMARY INPUTS FROM REVRUN, RATE BASE, EXPENSES, ETC.
B227: Supplier Non-Gas Costs Recovered at Current Rates 3/ | E227: ='RevRun Fcst'!T$199 -> 94707732.71 | H227: 1.6.2 | J227: Dave's Revrun
B228: MT Supplier Non-Gas | E228: ='RevRun Fcst'!T142 -> 0 | J228: Dave's Revrun
B229: Net Supplier Non-Gas | E229: =E227-E228 -> 94707732.71
B230: UT Current Int Sales SNG Rate - not including Bad Debt adj. | E230: ='RevRun Fcst'!T102+'RevRun Fcst'!T93 -> 2641336 | F230: 0.1786 | J230: Revrun (D210); SNG from last case in which rates changed (see Exh. 1.6, p. 2, line 6c col. C)
E232: ='Rate Base'!$U$8 -> 2014-08-31 | F232: update to most current
B233: Account 164-1 - Gas Stored Underground | D233: Dth | E233: Ending Balance | F233: $ per Dth
D234: ='Rate Base'!T295 -> -11686091 | E234: ='Rate Base'!T216 -> 56135251.62 | F234: =+E234/D234 -> -4.803595284 | H234: 1.4.2
A237: UT CET and DSM AMORTIZATION FILING INPUTS
E238: Base DNG | F238: Current DNG
B239: GS Rates (Base rates are before CET, DSM, & EA Amortizations) | D239: Summer Blk 1 | E239: 1.73142 | F239: 2.01783
D240: Summer Blk 2 | E240: 0.73142 | F240: 1.08394
D241: Winter Blk 1 | E241: 2.35422 | F241: 2.5987
D242: Winter Blk 2 | E242: 1.35422 | F242: 1.66481 | J242: Base DNG Rate from latest general rate case Docket 13-057-05
J243: Current Rates Effective 03-1-14
D244: Energy Assistance | E244: 0.01419 | F244: Current Rate 7/1/2014 GS Rate
E245: 0.01174 | F245: Current Rate 7/1/2014 FS Rate
E246: 0.00657 | F246: Current Rate 7/1/2014 IS Rate
E247: 0.2679 | F247: Current Rate 7/1/2014 NGV Rate
E248: Ending Balance | F248: Date
B249: CET Balance (Account 191.9) | E249: -1886289.514 | F249: 2011-07-31 | J249: Accounting
B250: DSM Expense Deferral Balance (Account 182.4) | E250: 42000000 | F250: 2011-03-31 | J250: Accounting
B252: GS Block Usage in Dth | D252: Winter Blk 1 | E252: 52526064 | J252: Block out from Dave's REVRUN
D253: Winter Blk 2 | E253: 14984828 | J253: (used Gary's "Rate Design Model - Bill Factor Input.xls" &
D254: Summer Blk 1 | E254: 23076373 | J254: Dave's "PT0802.bk" files) Updated March 31, 2010
D255: Summer Blk 2 | E255: 4705902
A257: WY CET and DSM AMORTIZATION FILING INPUTS
E258: Base DNG | F258: Current DNG
B259: GS Rates (Base rates are before CET and DSM Amortizations) | D259: Blk 1 | E259: 1.73142 | F259: 2.01783
D260: Blk 2 | E260: 0.73142 | F260: 1.08394
J262: Base DNG Rate from latest general rate case Docket 30010-94-GR-08
J263: Current Rates Effective 10/1/13
... 33 more rows

Sheet Calculations
A1: GAS BALANCE FOR 12 MONTHS ENDING: _________________
D3: SALES VOLUMES IN DECATHERMS (12 Months of Forecast)
D4: Forecast | E4: Forecast | F4: Forecast | G4: Forecast | H4: Forecast | I4: Forecast | J4: Forecast | K4: Forecast | L4: Forecast | M4: Forecast | N4: Forecast | O4: Forecast | P4: 12-Month
A5: RATE CLASS | D5: ='Monthly Inputs'!G3 -> Nov14 | E5: ='Monthly Inputs'!H3 -> Dec14 | F5: ='Monthly Inputs'!I3 -> Jan15 | G5: ='Monthly Inputs'!J3 -> Feb15 | H5: ='Monthly Inputs'!K3 -> Mar15 | I5: ='Monthly Inputs'!L3 -> Apr15 | J5: ='Monthly Inputs'!M3 -> May15 | K5: ='Monthly Inputs'!N3 -> Jun15 | L5: ='Monthly Inputs'!O3 -> Jul15 | M5: ='Monthly Inputs'!P3 -> Aug15 | N5: ='Monthly Inputs'!Q3 -> Sep15 | O5: ='Monthly Inputs'!R3 -> Oct15 | P5: Total
A6: UTAH | D6: =MONTH(D5) -> 11 | E6: =MONTH(E5) -> 12 | F6: 1 | G6: 2 | H6: 3 | I6: 4 | J6: 5 | K6: 6 | L6: 7 | M6: 8 | N6: 9 | O6: 10
B7: GSR | D7: ='RevRun Fcst'!H21 -> 10871472 | E7: ='RevRun Fcst'!I21 -> 16313434 | F7: ='RevRun Fcst'!J21 -> 18881793 | G7: ='RevRun Fcst'!K21 -> 15270204 | H7: ='RevRun Fcst'!L21 -> 10868335 | I7: ='RevRun Fcst'!M21 -> 7920517 | J7: ='RevRun Fcst'!N21 -> 4084475 | K7: ='RevRun Fcst'!O21 -> 2712683 | L7: ='RevRun Fcst'!P21 -> 2165355 | M7: ='RevRun Fcst'!Q21 -> 2124144 | N7: ='RevRun Fcst'!R21 -> 3185955 | O7: ='RevRun Fcst'!S21 -> 6015433 | P7: =SUM(D7:O7) -> 100413800
B8: GSC | D8: ='RevRun Fcst'!H30 -> 0 | E8: ='RevRun Fcst'!I30 -> 0 | F8: ='RevRun Fcst'!J30 -> 0 | G8: ='RevRun Fcst'!K30 -> 0 | H8: ='RevRun Fcst'!L30 -> 0 | I8: ='RevRun Fcst'!M30 -> 0 | J8: ='RevRun Fcst'!N30 -> 0 | K8: ='RevRun Fcst'!O30 -> 0 | L8: ='RevRun Fcst'!P30 -> 0 | M8: ='RevRun Fcst'!Q30 -> 0 | N8: ='RevRun Fcst'!R30 -> 0 | O8: ='RevRun Fcst'!S30 -> 0 | P8: 0
B9: GSS | D9: ='RevRun Fcst'!H39 -> 0 | E9: ='RevRun Fcst'!I39 -> 0 | F9: ='RevRun Fcst'!J39 -> 0 | G9: ='RevRun Fcst'!K39 -> 0 | H9: ='RevRun Fcst'!L39 -> 0 | I9: ='RevRun Fcst'!M39 -> 0 | J9: ='RevRun Fcst'!N39 -> 0 | K9: ='RevRun Fcst'!O39 -> 0 | L9: ='RevRun Fcst'!P39 -> 0 | M9: ='RevRun Fcst'!Q39 -> 0 | N9: ='RevRun Fcst'!R39 -> 0 | O9: ='RevRun Fcst'!S39 -> 0 | P9: 0
B10: F-1 | D10: ='RevRun Fcst'!H48 -> 496826 | E10: ='RevRun Fcst'!I48 -> 537946 | F10: ='RevRun Fcst'!J48 -> 543690 | G10: ='RevRun Fcst'!K48 -> 495942 | H10: ='RevRun Fcst'!L48 -> 414123 | I10: ='RevRun Fcst'!M48 -> 378815 | J10: ='RevRun Fcst'!N48 -> 355832 | K10: ='RevRun Fcst'!O48 -> 346138 | L10: ='RevRun Fcst'!P48 -> 297931 | M10: ='RevRun Fcst'!Q48 -> 295420 | N10: ='RevRun Fcst'!R48 -> 337785 | O10: ='RevRun Fcst'!S48 -> 374570 | P10: 4875018
B11: F-4 | D11: ='RevRun Fcst'!H75 -> 0 | E11: ='RevRun Fcst'!I75 -> 0 | F11: ='RevRun Fcst'!J75 -> 0 | G11: ='RevRun Fcst'!K75 -> 0 | H11: ='RevRun Fcst'!L75 -> 0 | I11: ='RevRun Fcst'!M75 -> 0 | J11: ='RevRun Fcst'!N75 -> 0 | K11: ='RevRun Fcst'!O75 -> 0 | L11: ='RevRun Fcst'!P75 -> 0 | M11: ='RevRun Fcst'!Q75 -> 0 | N11: ='RevRun Fcst'!R75 -> 0 | O11: ='RevRun Fcst'!S75 -> 0 | P11: 0
B12: NGV | D12: ='RevRun Fcst'!H66 -> 56263 | E12: ='RevRun Fcst'!I66 -> 52265 | F12: ='RevRun Fcst'!J66 -> 50352 | G12: ='RevRun Fcst'!K66 -> 50249 | H12: ='RevRun Fcst'!L66 -> 57834 | I12: ='RevRun Fcst'!M66 -> 49713 | J12: ='RevRun Fcst'!N66 -> 70158 | K12: ='RevRun Fcst'!O66 -> 56410 | L12: ='RevRun Fcst'!P66 -> 59086 | M12: ='RevRun Fcst'!Q66 -> 66544 | N12: ='RevRun Fcst'!R66 -> 56704 | O12: ='RevRun Fcst'!S66 -> 60089 | P12: 685667
A13: Total Firm Sales | D13: =SUM(D7:D12) -> 11424561 | E13: 16903645 | F13: =SUM(F7:F12) -> 19475835 | G13: 15816395 | H13: 11340292 | I13: 8349045 | J13: 4510465 | K13: 3115231 | L13: 2522372 | M13: 2486108 | N13: 3580444 | O13: 6450092 | P13: =SUM(P7:P12) -> 105974485
B15: I-4 | D15: ='RevRun Fcst'!H102 -> 260770 | E15: ='RevRun Fcst'!I102 -> 234163 | F15: ='RevRun Fcst'!J102 -> 253528 | G15: ='RevRun Fcst'!K102 -> 244532 | H15: ='RevRun Fcst'!L102 -> 211298 | I15: ='RevRun Fcst'!M102 -> 192971 | J15: ='RevRun Fcst'!N102 -> 188961 | K15: ='RevRun Fcst'!O102 -> 202960 | L15: ='RevRun Fcst'!P102 -> 200475 | M15: ='RevRun Fcst'!Q102 -> 224055 | N15: ='RevRun Fcst'!R102 -> 198725 | O15: ='RevRun Fcst'!S102 -> 228898 | P15: =SUM(D15:O15) -> 2641336
B16: IS-4 | D16: ='RevRun Fcst'!H93 -> 0 | E16: ='RevRun Fcst'!I93 -> 0 | F16: ='RevRun Fcst'!J93 -> 0 | G16: ='RevRun Fcst'!K93 -> 0 | H16: ='RevRun Fcst'!L93 -> 0 | I16: ='RevRun Fcst'!M93 -> 0 | J16: ='RevRun Fcst'!N93 -> 0 | K16: ='RevRun Fcst'!O93 -> 0 | L16: ='RevRun Fcst'!P93 -> 0 | M16: ='RevRun Fcst'!Q93 -> 0 | N16: ='RevRun Fcst'!R93 -> 0 | O16: ='RevRun Fcst'!S93 -> 0 | P16: =SUM(D16:O16) -> 0
A17: Total Interruptible Sales | D17: =SUM(D15:D16) -> 260770 | E17: 234163 | F17: 253528 | G17: 244532 | H17: 211298 | I17: 192971 | J17: 188961 | K17: 202960 | L17: 200475 | M17: 224055 | N17: 198725 | O17: 228898 | P17: 2641336
A20: Total Utah Sales | D20: =+D13+D17 -> 11685331 | E20: =+E13+E17 -> 17137808 | F20: =+F13+F17 -> 19729363 | G20: 16060927 | H20: 11551590 | I20: 8542016 | J20: 4699426 | K20: 3318191 | L20: 2722847 | M20: 2710163 | N20: 3779169 | O20: 6678990 | P20: =+P13+P17 -> 108615821
A22: Total Utah Transportation | D22: ='RevRun Fcst'!H204 -> 7330268 | E22: ='RevRun Fcst'!I204 -> 8470892 | F22: ='RevRun Fcst'!J204 -> 8181978 | G22: ='RevRun Fcst'!K204 -> 7838597 | H22: ='RevRun Fcst'!L204 -> 7250929 | I22: ='RevRun Fcst'!M204 -> 6625252 | J22: ='RevRun Fcst'!N204 -> 6549907 | K22: ='RevRun Fcst'!O204 -> 7166421 | L22: ='RevRun Fcst'!P204 -> 7351965 | M22: ='RevRun Fcst'!Q204 -> 7352843 | N22: ='RevRun Fcst'!R204 -> 6858792 | O22: ='RevRun Fcst'!S204 -> 7623164 | P22: =SUM(D22:O22) -> 88601008
A25: Total Utah Sales & Trans | D25: =+D20+D22 -> 19015599 | E25: 25608700 | F25: 27911341 | G25: 23899524 | H25: 18802519 | I25: 15167268 | J25: 11249333 | K25: 10484612 | L25: 10074812 | M25: 10063006 | N25: 10637961 | O25: 14302154 | P25: 197216829
A27: WYOMING
A28: GS-1 | D28: ='RevRun Fcst'!H244 -> 377608 | E28: ='RevRun Fcst'!I244 -> 541298 | F28: ='RevRun Fcst'!J244 -> 591828 | G28: ='RevRun Fcst'!K244 -> 549450 | H28: ='RevRun Fcst'!L244 -> 437115 | I28: ='RevRun Fcst'!M244 -> 313490 | J28: ='RevRun Fcst'!N244 -> 203260 | K28: ='RevRun Fcst'!O244 -> 104709 | L28: ='RevRun Fcst'!P244 -> 71757 | M28: ='RevRun Fcst'!Q244 -> 62710 | N28: ='RevRun Fcst'!R244 -> 127121 | O28: ='RevRun Fcst'!S244 -> 221194 | P28: =SUM(D28:O28) -> 3601540
A29: GS-W | D29: ='RevRun Fcst'!H271 -> 0 | E29: ='RevRun Fcst'!I271 -> 0 | F29: ='RevRun Fcst'!J271 -> 0 | G29: ='RevRun Fcst'!K271 -> 0 | H29: ='RevRun Fcst'!L271 -> 0 | I29: ='RevRun Fcst'!M271 -> 0 | J29: ='RevRun Fcst'!N271 -> 0 | K29: ='RevRun Fcst'!O271 -> 0 | L29: ='RevRun Fcst'!P271 -> 0 | M29: ='RevRun Fcst'!Q271 -> 0 | N29: ='RevRun Fcst'!R271 -> 0 | O29: ='RevRun Fcst'!S271 -> 0 | P29: =SUM(D29:O29) -> 0
A30: F-1 | D30: ='RevRun Fcst'!H253 -> 19573 | E30: ='RevRun Fcst'!I253 -> 23562 | F30: ='RevRun Fcst'!J253 -> 25468 | G30: ='RevRun Fcst'!K253 -> 25854 | H30: ='RevRun Fcst'!L253 -> 22772 | I30: ='RevRun Fcst'!M253 -> 20029 | J30: ='RevRun Fcst'!N253 -> 17121 | K30: ='RevRun Fcst'!O253 -> 14444 | L30: ='RevRun Fcst'!P253 -> 10882 | M30: ='RevRun Fcst'!Q253 -> 9463 | N30: ='RevRun Fcst'!R253 -> 12311 | O30: ='RevRun Fcst'!S253 -> 14772 | P30: =SUM(D30:O30) -> 216251
A31: NGV | D31: ='RevRun Fcst'!H262 -> 1924 | E31: ='RevRun Fcst'!I262 -> 1695 | F31: ='RevRun Fcst'!J262 -> 1015 | G31: ='RevRun Fcst'!K262 -> 1255 | H31: ='RevRun Fcst'!L262 -> 1293 | I31: ='RevRun Fcst'!M262 -> 1313 | J31: ='RevRun Fcst'!N262 -> 1861 | K31: ='RevRun Fcst'!O262 -> 1427 | L31: ='RevRun Fcst'!P262 -> 1794 | M31: ='RevRun Fcst'!Q262 -> 2156 | N31: ='RevRun Fcst'!R262 -> 1766 | O31: ='RevRun Fcst'!S262 -> 2102 | P31: =SUM(D31:O31) -> 19601
A32: Total Firm Sales | D32: =SUM(D28:D31) -> 399105 | E32: 566555 | F32: 618311 | G32: 576559 | H32: 461180 | I32: 334832 | J32: 222242 | K32: 120580 | L32: 84433 | M32: 74329 | N32: 141198 | O32: 238068 | P32: 3837392
A34: I-2 | D34: ='RevRun Fcst'!H280 -> 15145 | E34: ='RevRun Fcst'!I280 -> 21253 | F34: ='RevRun Fcst'!J280 -> 21741 | G34: ='RevRun Fcst'!K280 -> 19141 | H34: ='RevRun Fcst'!L280 -> 18266 | I34: ='RevRun Fcst'!M280 -> 12871 | J34: ='RevRun Fcst'!N280 -> 14710 | K34: ='RevRun Fcst'!O280 -> 8605 | L34: ='RevRun Fcst'!P280 -> 7971 | M34: ='RevRun Fcst'!Q280 -> 7880 | N34: ='RevRun Fcst'!R280 -> 9166 | O34: ='RevRun Fcst'!S280 -> 14042 | P34: =SUM(D34:O34) -> 170791
A35: I-4 | D35: ='RevRun Fcst'!H289 -> 0 | E35: ='RevRun Fcst'!I289 -> 0 | F35: ='RevRun Fcst'!J289 -> 0 | G35: ='RevRun Fcst'!K289 -> 0 | H35: ='RevRun Fcst'!L289 -> 0 | I35: ='RevRun Fcst'!M289 -> 0 | J35: ='RevRun Fcst'!N289 -> 0 | K35: ='RevRun Fcst'!O289 -> 0 | L35: ='RevRun Fcst'!P289 -> 0 | M35: ='RevRun Fcst'!Q289 -> 0 | N35: ='RevRun Fcst'!R289 -> 0 | O35: ='RevRun Fcst'!S289 -> 0 | P35: =SUM(D35:O35) -> 0
A36: Total Interruptible Sales | D36: =SUM(D34:D35) -> 15145 | E36: 21253 | F36: 21741 | G36: 19141 | H36: 18266 | I36: 12871 | J36: 14710 | K36: 8605 | L36: 7971 | M36: 7880 | N36: 9166 | O36: 14042 | P36: 170791
A39: Total Wyoming Sales | D39: =+D32+D36 -> 414250 | E39: 587808 | F39: 640052 | G39: 595700 | H39: 479446 | I39: 347703 | J39: 236952 | K39: 129185 | L39: 92404 | M39: 82209 | N39: 150364 | O39: 252110 | P39: 4008183
A41: Total Wyoming Transportation | D41: ='RevRun Fcst'!H328 -> 26399 | E41: ='RevRun Fcst'!I328 -> 72140 | F41: ='RevRun Fcst'!J328 -> 72451 | G41: ='RevRun Fcst'!K328 -> 69065 | H41: ='RevRun Fcst'!L328 -> 42795 | I41: ='RevRun Fcst'!M328 -> 51997 | J41: ='RevRun Fcst'!N328 -> 78572 | K41: ='RevRun Fcst'!O328 -> 24113 | L41: ='RevRun Fcst'!P328 -> 31649 | M41: ='RevRun Fcst'!Q328 -> 21226 | N41: ='RevRun Fcst'!R328 -> 42391 | O41: ='RevRun Fcst'!S328 -> 37336 | P41: =SUM(D41:O41) -> 570134
A44: Total Wyoming Sales & Trans | D44: =+D39+D41 -> 440649 | E44: 659948 | F44: 712503 | G44: 664765 | H44: 522241 | I44: 399700 | J44: 315524 | K44: 153298 | L44: 124053 | M44: 103435 | N44: 192755 | O44: 289446 | P44: 4578317
A47: Total System Sales and Trans | D47: =+D25+D44 -> 19456248 | E47: 26268648 | F47: 28623844 | G47: 24564289 | H47: 19324760 | I47: 15566968 | J47: 11564857 | K47: 10637910 | L47: 10198865 | M47: 10166441 | N47: 10830716 | O47: =+O25+O44 -> 14591600 | P47: 201795146
A49: Usage by Season
C50: Month | D50: =MONTH(D5) -> 11 | E50: 12 | F50: 1 | G50: 2 | H50: 3 | I50: 4 | J50: 5 | K50: 6 | L50: 7 | M50: 8 | N50: 9 | O50: 10
A51: GS | C51: Season (0=Winter, 1=Summer) | D51: =IF(D$50<4,0,IF(D$50>10,0,1)) -> 0 | E51: =IF(E$50<4,0,IF(E$50>10,0,1)) -> 0 | F51: 0 | G51: 0 | H51: 0 | I51: 1 | J51: 1 | K51: 1 | L51: 1 | M51: 1 | N51: 1 | O51: 1 | P51: Total
B52: Winter | D52: =IF(D51=0,D7+D8,0) -> 10871472 | E52: =IF(E51=0,E7+E8,0) -> 16313434 | F52: 18881793 | G52: 15270204 | H52: 10868335 | I52: 0 | J52: 0 | K52: 0 | L52: 0 | M52: 0 | N52: 0 | O52: 0 | P52: =SUM(D52:O52) -> 72205238 | Q52: =SUM(G52:I52) -> 26138539
B53: Summer | D53: =IF(D51=1,D7+D8,0) -> 0 | E53: 0 | F53: 0 | G53: 0 | H53: 0 | I53: 7920517 | J53: 4084475 | K53: 2712683 | L53: 2165355 | M53: 2124144 | N53: 3185955 | O53: 6015433 | P53: =SUM(D53:O53) -> 28208562 | Q53: =P52+P53-Q52 -> 74275261
A54: GSS
B55: Winter | D55: =IF(D51=0,D9,0) -> 0 | E55: 0 | F55: 0 | G55: 0 | H55: 0 | I55: 0 | J55: 0 | K55: 0 | L55: 0 | M55: 0 | N55: 0 | O55: 0 | P55: =SUM(D55:O55) -> 0
B56: Summer | D56: =IF(D51=1,D9,0) -> 0 | E56: 0 | F56: 0 | G56: 0 | H56: 0 | I56: 0 | J56: 0 | K56: 0 | L56: 0 | M56: 0 | N56: 0 | O56: 0 | P56: =SUM(D56:O56) -> 0
A57: F-S
B58: Winter | D58: =IF(D51=0,D10,0) -> 496826 | E58: 537946 | F58: 543690 | G58: 495942 | H58: 414123 | I58: 0 | J58: 0 | K58: 0 | L58: 0 | M58: 0 | N58: 0 | O58: 0 | P58: =SUM(D58:O58) -> 2488527 | Q58: =SUM(G58:I58) -> 910065
B59: Summer | D59: =IF(D51=1,D10,0) -> 0 | E59: 0 | F59: 0 | G59: 0 | H59: 0 | I59: 378815 | J59: 355832 | K59: 346138 | L59: 297931 | M59: 295420 | N59: 337785 | O59: 374570 | P59: =SUM(D59:O59) -> 2386491 | Q59: =P58+P59-Q58 -> 3964953
B62: Rates: R050201.R1 | C62: WYOMING NON-CORE DNG REVENUES FROM DEMAND FORECAST AND CURRENTLY EFFECTIVE I-SALES GAS COST RATES
D63: Forecast | E63: Forecast | F63: Forecast | G63: Forecast | H63: Forecast | I63: Forecast | J63: Forecast | K63: Forecast | L63: Forecast | M63: Forecast | N63: Forecast | O63: Forecast | P63: 12-Month
D64: ='Monthly Inputs'!G3 -> Nov14 | E64: ='Monthly Inputs'!H3 -> Dec14 | F64: ='Monthly Inputs'!I3 -> Jan15 | G64: ='Monthly Inputs'!J3 -> Feb15 | H64: ='Monthly Inputs'!K3 -> Mar15 | I64: ='Monthly Inputs'!L3 -> Apr15 | J64: ='Monthly Inputs'!M3 -> May15 | K64: ='Monthly Inputs'!N3 -> Jun15 | L64: ='Monthly Inputs'!O3 -> Jul15 | M64: ='Monthly Inputs'!P3 -> Aug15 | N64: ='Monthly Inputs'!Q3 -> Sep15 | O64: ='Monthly Inputs'!R3 -> Oct15 | P64: Total
A65: I-2 & 1-4 (Non-Gas Revenue) (Yearly) | D65: ='RevRun Fcst'!H273+'RevRun Fcst'!H282 -> 3206.03 | E65: ='RevRun Fcst'!I273+'RevRun Fcst'!I282 -> 4049.54 | F65: ='RevRun Fcst'!J273+'RevRun Fcst'!J282 -> 4116.93 | G65: ='RevRun Fcst'!K273+'RevRun Fcst'!K282 -> 3757.87 | H65: ='RevRun Fcst'!L273+'RevRun Fcst'!L282 -> 3637.03 | I65: ='RevRun Fcst'!M273+'RevRun Fcst'!M282 -> 2891.99 | J65: ='RevRun Fcst'!N273+'RevRun Fcst'!N282 -> 3145.95 | K65: ='RevRun Fcst'!O273+'RevRun Fcst'!O282 -> 2302.86 | L65: ='RevRun Fcst'!P273+'RevRun Fcst'!P282 -> 2215.3 | M65: ='RevRun Fcst'!Q273+'RevRun Fcst'!Q282 -> 2202.73 | N65: ='RevRun Fcst'!R273+'RevRun Fcst'!R282 -> 2380.32 | O65: ='RevRun Fcst'!S273+'RevRun Fcst'!S282 -> 3053.7 | P65: =SUM(D65:O65) -> 36960.25
A66: IC (Total Revenue) (Yearly) | D66: =ROUND(D41*$P66/$P41,0) -> 4354 | E66: 11899 | F66: 11950 | G66: 11391 | H66: 7058 | I66: 8576 | J66: 12959 | K66: 3977 | L66: 5220 | M66: 3501 | N66: 6992 | O66: =P66-SUM(D66:N66) -> 6159.17 | P66: ='RevRun Fcst'!T300+'RevRun Fcst'!T314 -> 94036.17
A68: ="I-2 Gas Cost (Rate Effective "&'Other Inputs'!E66&")" -> I-2 Gas Cost (Rate Effective 11/1/2005) | D68: ='Other Inputs'!E69 -> 0 | E68: =+D68 -> 0 | F68: 0 | G68: 0 | H68: 0 | I68: 0 | J68: 0 | K68: 0 | L68: 0 | M68: 0 | N68: 0 | O68: 0
A69: ="I-4 Gas Cost (Rate Effective "&'Other Inputs'!F66&")" -> I-4 Gas Cost (Rate Effective 7/31/2009) | D69: ='Other Inputs'!F69 -> 3.78635 | E69: =+D69 -> 3.78635 | F69: 3.78635 | G69: 3.78635 | H69: 3.78635 | I69: 3.78635 | J69: 3.78635 | K69: 3.78635 | L69: 3.78635 | M69: 3.78635 | N69: 3.78635 | O69: 3.78635
D72: ALLOCATION BASES
D73: DEMAND | G73: OTHER COST
A74: Utah Peak Day Demand | D74: =+D76-D75 -> 1263667.429 | E74: =D74/D76 -> 0.9699024151 | G74: Utah Sales | H74: =+P20 -> 108615821 | I74: =H74/H76 -> 0.964410935
A75: Wyoming Peak Day Demand | D75: ='Other Inputs'!E130 -> 39213.57146 | E75: =1-E74 -> 0.03009758486 | G75: Wyoming Sales | H75: =+P39 -> 4008183 | I75: =1-I74 -> 0.03558906501
A76: Peak Day Demand | D76: ='Other Inputs'!E131 -> 1302881 | E76: =ROUND(D76/D$76,4) -> 1 | G76: Total Sales | H76: =+H74+H75 -> 112624004 | I76: =ROUND(H76/H$76,4) -> 1
D79: Financial Report Information (Latest 12 Months of Actual Expenses and 13 Months of Rate Base)
D80: Actual | E80: Actual | F80: Actual | G80: Actual | H80: Actual | I80: Actual | J80: Actual | K80: Actual | L80: Actual | M80: Actual | N80: Actual | O80: Actual
A81: Accounts | D81: =Expenses!J9 -> 2013-12-01 | E81: =Expenses!K9 -> 2014-01-01 | F81: =Expenses!L9 -> 2014-02-01 | G81: =Expenses!M9 -> 2014-03-01 | H81: =Expenses!N9 -> 2014-04-01 | I81: =Expenses!O9 -> 2014-05-01 | J81: =Expenses!P9 -> 2014-06-01 | K81: =Expenses!Q9 -> 2014-07-01 | L81: =Expenses!R9 -> 2014-08-01 | M81: =Expenses!G9 -> 2013-09-01 | N81: =Expenses!H9 -> 2013-10-01 | O81: =Expenses!I9 -> 2013-11-01 | P81: =+'Monthly Inputs'!S3 -> Sep15
A82: EXPENSES
B83: Gas Use In Dth (Acct 810 & 812) | D83: 0 | E83: 0 | F83: 0 | G83: 0 | H83: 0 | I83: 0 | J83: 0 | K83: 0 | L83: 0 | M83: 0 | N83: 0 | O83: 0 | P83: =SUM(D83:O83) -> 0
B85: Other Revenue (Yearly)
B86: Sales for Resale (account 483) | D86: =Expenses!J445 -> 342993.8 | E86: =Expenses!K445 -> 285805.45 | F86: =Expenses!L445 -> 390027.42 | G86: =Expenses!M445 -> 355732.67 | H86: =Expenses!N445 -> 482844.32 | I86: =Expenses!O445 -> 386906.98 | J86: =Expenses!P445 -> 297005.47 | K86: =Expenses!Q445 -> 360254.28 | L86: =Expenses!R445 -> 422737.5 | M86: =Expenses!G445 -> -970738.18 | N86: =Expenses!H445 -> 324291.84 | O86: =Expenses!I445 -> 362637.2 | P86: =SUM(D86:O86) -> 3040498.75
B87: Incidental Plant Prod Sales (Acct 490) | D87: =Expenses!J446 -> 480344.33 | E87: =Expenses!K446 -> 531955.12 | F87: =Expenses!L446 -> 512794.7 | G87: =Expenses!M446 -> 462317.5 | H87: =Expenses!N446 -> 570422.87 | I87: =Expenses!O446 -> 66701.74 | J87: =Expenses!P446 -> 646109.25 | K87: =Expenses!Q446 -> 545078.25 | L87: =Expenses!R446 -> 892809.25 | M87: =Expenses!G446 -> 462491.88 | N87: =Expenses!H446 -> 434707.72 | O87: =Expenses!I446 -> 377417.25 | P87: =SUM(D87:O87) -> 5983149.86
B88: Gas Processed by Others (account 491) | D88: =Expenses!J461 -> 0 | E88: =Expenses!K461 -> 0 | F88: =Expenses!L461 -> 0 | G88: =Expenses!M461 -> 0 | H88: =Expenses!N461 -> 0 | I88: =Expenses!O461 -> 0 | J88: =Expenses!P461 -> 0 | K88: =Expenses!Q461 -> 0 | L88: =Expenses!R461 -> 0 | M88: =Expenses!G461 -> 0 | N88: =Expenses!H461 -> 0 | O88: =Expenses!I461 -> 0 | P88: =SUM(D88:O88) -> 0
B89: Gasoline - Oil Sales (account 492) | D89: =Expenses!J447 -> 113138.41 | E89: =Expenses!K447 -> 146049.28 | F89: =Expenses!L447 -> 248347.57 | G89: =Expenses!M447 -> 94501.64 | H89: =Expenses!N447 -> 205916.78 | I89: =Expenses!O447 -> 290565.3 | J89: =Expenses!P447 -> 215010.66 | K89: =Expenses!Q447 -> 339266.74 | L89: =Expenses!R447 -> 275951.21 | M89: =Expenses!G447 -> 109110.73 | N89: =Expenses!H447 -> 78843.62 | O89: =Expenses!I447 -> 48797.86 | P89: =SUM(D89:O89) -> 2165499.8
B90: Gasoline - Oil Cost (account 758.001) | D90: =-Expenses!J450 -> -17353.49 | E90: =-Expenses!K450 -> -20538.29 | F90: =-Expenses!L450 -> -18198.9 | G90: =-Expenses!M450 -> -13823.09 | H90: =-Expenses!N450 -> -33676.42 | I90: =-Expenses!O450 -> -46868.47 | J90: =-Expenses!P450 -> -35513.94 | K90: =-Expenses!Q450 -> -55547.94 | L90: =-Expenses!R450 -> -42487.02 | M90: =-Expenses!G450 -> -16274.63 | N90: =-Expenses!H450 -> -10695.31 | O90: =-Expenses!I450 -> -7621.21 | P90: =SUM(D90:O90) -> -318598.71
B93: Overriding Royalty (account 495-1) | D93: =Expenses!J448 -> 1492067.2 | E93: =Expenses!K448 -> 1408789.02 | F93: =Expenses!L448 -> 1378706.02 | G93: =Expenses!M448 -> 1611841.58 | H93: =Expenses!N448 -> 1694361.11 | I93: =Expenses!O448 -> 1724812.65 | J93: =Expenses!P448 -> 1524511.55 | K93: =Expenses!Q448 -> 1624327.84 | L93: =Expenses!R448 -> 1664443.26 | M93: =Expenses!G448 -> 1647864.39 | N93: =Expenses!H448 -> 1653109.41 | O93: =Expenses!I448 -> 2081244.23 | P93: =SUM(D93:O93) -> 19506078.26
B94: Wexpro Revenue Sharing (account 495-2) | D94: =Expenses!J449 -> 0 | E94: =Expenses!K449 -> 33771 | F94: =Expenses!L449 -> 0 | G94: =Expenses!M449 -> 0 | H94: =Expenses!N449 -> 0 | I94: =Expenses!O449 -> 0 | J94: =Expenses!P449 -> 0 | K94: =Expenses!Q449 -> 0 | L94: =Expenses!R449 -> 0 | M94: =Expenses!G449 -> 0 | N94: =Expenses!H449 -> 0 | O94: =Expenses!I449 -> 0 | P94: =SUM(D94:O94) -> 33771
P95: Page 2 of 6
C96: Actual | D96: Actual | E96: Actual | F96: Actual | G96: Actual | H96: Actual | I96: Actual | J96: Actual | K96: Actual | L96: Actual | M96: Actual | N96: Actual | O96: Actual | P96: 13-Month
A97: Accounts | C97: ='Rate Base'!H8 -> 2013-08-21 | D97: ='Rate Base'!I8 -> 2013-09-20 | E97: ='Rate Base'!J8 -> 2013-10-20 | F97: ='Rate Base'!K8 -> 2013-11-19 | G97: ='Rate Base'!L8 -> 2013-12-19 | H97: ='Rate Base'!M8 -> 2014-01-18 | I97: ='Rate Base'!N8 -> 2014-02-17 | J97: ='Rate Base'!O8 -> 2014-03-19 | K97: ='Rate Base'!P8 -> 2014-04-18 | L97: ='Rate Base'!Q8 -> 2014-05-18 | M97: ='Rate Base'!R8 -> 2014-06-17 | N97: ='Rate Base'!S8 -> 2014-07-17 | O97: ='Rate Base'!T8 -> 2014-08-16 | P97: Average
A98: RATE BASE - PRODUCTION
B99: Acct 164 (Working Gas) - Production | C99: ='Rate Base'!H216 -> 46052383.98 | D99: ='Rate Base'!I216 -> 56496783.48 | E99: ='Rate Base'!J216 -> 64325936.47 | F99: ='Rate Base'!K216 -> 58898100.36 | G99: ='Rate Base'!L216 -> 39172683.37 | H99: ='Rate Base'!M216 -> 29848683.37 | I99: ='Rate Base'!N216 -> 18583033.52 | J99: ='Rate Base'!O216 -> 6166884.89 | K99: ='Rate Base'!P216 -> 4699533.51 | L99: ='Rate Base'!Q216 -> 13360087 | M99: ='Rate Base'!R216 -> 27776654.2 | N99: ='Rate Base'!S216 -> 42002346.57 | O99: ='Rate Base'!T216 -> 56135251.62 | P99: =(((+C99+O99)/2)+SUM(D99:N99))/12 -> 34368712.05
B100: Acct 101 - Production | C100: ='Rate Base'!H158 -> 81179889.44 | D100: ='Rate Base'!I158 -> 81179889.44 | E100: ='Rate Base'!J158 -> 81179889.44 | F100: ='Rate Base'!K158 -> 81179889.44 | G100: ='Rate Base'!L158 -> 81179889.44 | H100: ='Rate Base'!M158 -> 81179889.44 | I100: ='Rate Base'!N158 -> 81179889.44 | J100: ='Rate Base'!O158 -> 81179889.44 | K100: ='Rate Base'!P158 -> 81179889.44 | L100: ='Rate Base'!Q158 -> 81179889.44 | M100: ='Rate Base'!R158 -> 79968136.83 | N100: ='Rate Base'!S158 -> 79968136.83 | O100: ='Rate Base'!T158 -> 79968136.83 | P100: 80927440.98
B101: Acct 108 - Production | C101: ='Rate Base'!H176 -> -67730549.63 | D101: ='Rate Base'!I176 -> -67777089.28 | E101: ='Rate Base'!J176 -> -67811857.43 | F101: ='Rate Base'!K176 -> -67843367.93 | G101: ='Rate Base'!L176 -> -67886609.88 | H101: ='Rate Base'!M176 -> -67961140.79 | I101: ='Rate Base'!N176 -> -68050568.86 | J101: ='Rate Base'!O176 -> -68129649.47 | K101: ='Rate Base'!P176 -> -68224081.55 | L101: ='Rate Base'!Q176 -> -68304512.95 | M101: ='Rate Base'!R176 -> -67171390.31 | N101: ='Rate Base'!S176 -> -67270278.51 | O101: ='Rate Base'!T176 -> -67313568.07 | P101: -67829383.82
B102: Acct 111 - Production | C102: ='Rate Base'!H183 -> -6071047.41 | D102: ='Rate Base'!I183 -> -6071574.3 | E102: ='Rate Base'!J183 -> -6072342.48 | F102: ='Rate Base'!K183 -> -6073025 | G102: ='Rate Base'!L183 -> -6074498.01 | H102: ='Rate Base'!M183 -> -6076311.65 | I102: ='Rate Base'!N183 -> -6078507.36 | J102: ='Rate Base'!O183 -> -6080432.19 | K102: ='Rate Base'!P183 -> -6082750.98 | L102: ='Rate Base'!Q183 -> -6084703.26 | M102: ='Rate Base'!R183 -> -6086682.23 | N102: ='Rate Base'!S183 -> -6089142.24 | O102: ='Rate Base'!T183 -> -6090167.45 | P102: -6079214.761
B103: Acct 2550 - Production | C103: ='Rate Base'!H251 -> -22906.79 | D103: ='Rate Base'!I251 -> -21078.5 | E103: ='Rate Base'!J251 -> -19250.21 | F103: ='Rate Base'!K251 -> -17421.92 | G103: ='Rate Base'!L251 -> -15593.63 | H103: ='Rate Base'!M251 -> -14689.99 | I103: ='Rate Base'!N251 -> -13786.35 | J103: ='Rate Base'!O251 -> -12882.71 | K103: ='Rate Base'!P251 -> -11979.07 | L103: ='Rate Base'!Q251 -> -11075.43 | M103: ='Rate Base'!R251 -> -10171.79 | N103: ='Rate Base'!S251 -> -9268.15 | O103: ='Rate Base'!T251 -> -8364.51 | P103: -14402.78333
B104: Acct 2820 - Production | C104: ='Rate Base'!H258 -> -1847428.76 | D104: ='Rate Base'!I258 -> -1819346.2 | E104: ='Rate Base'!J258 -> -1721431.91 | F104: ='Rate Base'!K258 -> -2077877.9 | G104: ='Rate Base'!L258 -> -1969223.29 | H104: ='Rate Base'!M258 -> -1964136.38 | I104: ='Rate Base'!N258 -> -1959322.05 | J104: ='Rate Base'!O258 -> -1954845.67 | K104: ='Rate Base'!P258 -> -1950222.48 | L104: ='Rate Base'!Q258 -> -1946320.13 | M104: ='Rate Base'!R258 -> -1942949.9 | N104: ='Rate Base'!S258 -> -1939270.93 | O104: ='Rate Base'!T258 -> -1916040.18 | P104: -1927223.442
B105: Acct 2821 - Production | C105: ='Rate Base'!H265 -> -761345.31 | D105: ='Rate Base'!I265 -> -761345.31 | E105: ='Rate Base'!J265 -> -761345.31 | F105: ='Rate Base'!K265 -> -743900.31 | G105: ='Rate Base'!L265 -> -743900.31 | H105: ='Rate Base'!M265 -> -743900.31 | I105: ='Rate Base'!N265 -> -743900.31 | J105: ='Rate Base'!O265 -> -743900.31 | K105: ='Rate Base'!P265 -> -743900.31 | L105: ='Rate Base'!Q265 -> -743900.31 | M105: ='Rate Base'!R265 -> -743900.31 | N105: ='Rate Base'!S265 -> -743900.31 | O105: ='Rate Base'!T265 -> -743900.31 | P105: -747534.685
D107: Production | H107: Acct 101 | I107: Acct 108 | J107: Acct 111 | K107: Acct 2550 | L107: Acct 2820 | M107: Acct 2821 | N107: Total
B108: Depreciation - Acct 403 | D108: =Expenses!S385 -> 813104.68 | F108: Thirteen month average | H108: =P100 -> 80927440.98 | I108: =P101 -> -67829383.82 | J108: =P102 -> -6079214.761 | K108: =P103 -> -14402.78333 | L108: =P104 -> -1927223.442 | M108: =P105 -> -747534.685 | N108: =SUM(H108:M108) -> 4329681.49
B109: Amortization & Depletion - Acct 404 | D109: =Expenses!S392 -> 19120.04 | F109: =CONCATENATE("Wexpro Red. @ ",-'Other Inputs'!E278*100," %") -> Wexpro Red. @ 6.3 % | H109: =H108*'Other Inputs'!$E$278 -> -5098428.782 | I109: =I108*'Other Inputs'!$E$278 -> 4273251.181 | J109: =J108*'Other Inputs'!$E$278 -> 382990.5299 | N109: =SUM(H109:M109) -> -442187.0713
B110: Utah Pre-Tax Return on Production Assets | D110: =+N111 -> 419460.6478 | M110: =SUM(N108:N109) -> 3887494.419
B111: Utah Production Cost | D111: =SUM(D108:D110) -> 1251685.368 | M111: ="Utah Pre-Tax Rate of Return on Production Assets ("&'Other Inputs'!E281&")" -> Utah Pre-Tax Rate of Return on Production Assets (0.1079) | N111: =M110*'Other Inputs'!E281 -> 419460.6478
M112: ="Wyoming Pre-Tax Rate of Return on Production Assets ("&'Other Inputs'!E280&")" -> Wyoming Pre-Tax Rate of Return on Production Assets (0.1088) | N112: =M110*'Other Inputs'!E280 -> 422959.3928
A114: TACTICAL PLAN INFORMATION (IRP) | P114: 12-Month
D115: ='Monthly Inputs'!G3 -> Nov14 | E115: ='Monthly Inputs'!H3 -> Dec14 | F115: ='Monthly Inputs'!I3 -> Jan15 | G115: ='Monthly Inputs'!J3 -> Feb15 | H115: ='Monthly Inputs'!K3 -> Mar15 | I115: ='Monthly Inputs'!L3 -> Apr15 | J115: ='Monthly Inputs'!M3 -> May15 | K115: ='Monthly Inputs'!N3 -> Jun15 | L115: ='Monthly Inputs'!O3 -> Jul15 | M115: ='Monthly Inputs'!P3 -> Aug15 | N115: ='Monthly Inputs'!Q3 -> Sep15 | O115: ='Monthly Inputs'!R3 -> Oct15 | P115: Total
A116: COMPANY PRODUCTION
B117: Prior Company
B118: D24 Wells
B119: Brady & Powel
B120: Total Company Production Wexpro I & II | D120: ='Monthly Inputs'!G7+'Monthly Inputs'!G13 -> 6373800 | E120: ='Monthly Inputs'!H7+'Monthly Inputs'!H13 -> 6399130 | F120: ='Monthly Inputs'!I7+'Monthly Inputs'!I13 -> 6240600 | G120: ='Monthly Inputs'!J7+'Monthly Inputs'!J13 -> 5511590 | H120: ='Monthly Inputs'!K7+'Monthly Inputs'!K13 -> 5978070 | I120: ='Monthly Inputs'!L7+'Monthly Inputs'!L13 -> 5760180 | J120: ='Monthly Inputs'!M7+'Monthly Inputs'!M13 -> 5921830 | K120: ='Monthly Inputs'!N7+'Monthly Inputs'!N13 -> 5966980 | L120: ='Monthly Inputs'!O7+'Monthly Inputs'!O13 -> 5892980 | M120: ='Monthly Inputs'!P7+'Monthly Inputs'!P13 -> 5661070 | N120: ='Monthly Inputs'!Q7+'Monthly Inputs'!Q13 -> 5548000 | O120: ='Monthly Inputs'!R7+'Monthly Inputs'!R13 -> 5642940 | P120: =SUM(D120:O120) -> 70897170
A122: STORAGE INJECTIONS
B123: Chalk Creek | D123: ='Monthly Inputs'!G24 -> 0 | E123: ='Monthly Inputs'!H24 -> 0 | F123: ='Monthly Inputs'!I24 -> 0 | G123: ='Monthly Inputs'!J24 -> 0 | H123: ='Monthly Inputs'!K24 -> 0 | I123: ='Monthly Inputs'!L24 -> 0 | J123: ='Monthly Inputs'!M24 -> 0 | K123: ='Monthly Inputs'!N24 -> 0 | L123: ='Monthly Inputs'!O24 -> 0 | M123: ='Monthly Inputs'!P24 -> 0 | N123: ='Monthly Inputs'!Q24 -> 0 | O123: ='Monthly Inputs'!R24 -> 0 | P123: =SUM(D123:O123) -> 0
B124: Coalville | D124: ='Monthly Inputs'!G26 -> 0 | E124: ='Monthly Inputs'!H26 -> 0 | F124: ='Monthly Inputs'!I26 -> 0 | G124: ='Monthly Inputs'!J26 -> 0 | H124: ='Monthly Inputs'!K26 -> 0 | I124: ='Monthly Inputs'!L26 -> 0 | J124: ='Monthly Inputs'!M26 -> 0 | K124: ='Monthly Inputs'!N26 -> 0 | L124: ='Monthly Inputs'!O26 -> 0 | M124: ='Monthly Inputs'!P26 -> 0 | N124: ='Monthly Inputs'!Q26 -> 0 | O124: ='Monthly Inputs'!R26 -> 156389 | P124: =SUM(D124:O124) -> 156389
B125: Leroy | D125: ='Monthly Inputs'!G27 -> 0 | E125: ='Monthly Inputs'!H27 -> 0 | F125: ='Monthly Inputs'!I27 -> 0 | G125: ='Monthly Inputs'!J27 -> 0 | H125: ='Monthly Inputs'!K27 -> 0 | I125: ='Monthly Inputs'!L27 -> 0 | J125: ='Monthly Inputs'!M27 -> 0 | K125: ='Monthly Inputs'!N27 -> 0 | L125: ='Monthly Inputs'!O27 -> 0 | M125: ='Monthly Inputs'!P27 -> 0 | N125: ='Monthly Inputs'!Q27 -> 0 | O125: ='Monthly Inputs'!R27 -> 635881 | P125: =SUM(D125:O125) -> 635881
B126: Ryckman | D126: ='Monthly Inputs'!G28 -> 0 | E126: ='Monthly Inputs'!H28 -> 0 | F126: ='Monthly Inputs'!I28 -> 0 | G126: ='Monthly Inputs'!J28 -> 0 | H126: ='Monthly Inputs'!K28 -> 0 | I126: ='Monthly Inputs'!L28 -> 0 | J126: ='Monthly Inputs'!M28 -> 0 | K126: ='Monthly Inputs'!N28 -> 0 | L126: ='Monthly Inputs'!O28 -> 0 | M126: ='Monthly Inputs'!P28 -> 0 | N126: ='Monthly Inputs'!Q28 -> 0 | O126: ='Monthly Inputs'!R28 -> 0 | P126: =SUM(D126:O126) -> 0
B127: Total Peaking Storage | D127: =SUM(D123:D126) -> 0 | E127: 0 | F127: 0 | G127: 0 | H127: 0 | I127: 0 | J127: 0 | K127: 0 | L127: 0 | M127: 0 | N127: 0 | O127: 792270 | P127: 792270
B128: Clay Basin | D128: ='Monthly Inputs'!G25 -> 0 | E128: ='Monthly Inputs'!H25 -> 0 | F128: ='Monthly Inputs'!I25 -> 0 | G128: ='Monthly Inputs'!J25 -> 0 | H128: ='Monthly Inputs'!K25 -> 0 | I128: ='Monthly Inputs'!L25 -> 0 | J128: ='Monthly Inputs'!M25 -> 780215.0852 | K128: ='Monthly Inputs'!N25 -> 2207180.008 | L128: ='Monthly Inputs'!O25 -> 2723568.425 | M128: ='Monthly Inputs'!P25 -> 2469479.909 | N128: ='Monthly Inputs'!Q25 -> 2046350 | O128: ='Monthly Inputs'!R25 -> 1977130 | P128: =SUM(D128:O128) -> 12203923.43
B129: Total Storage Injections | D129: =SUM(D127:D128) -> 0 | E129: =SUM(E127:E128) -> 0 | F129: 0 | G129: 0 | H129: 0 | I129: 0 | J129: 780215.0852 | K129: 2207180.008 | L129: 2723568.425 | M129: 2469479.909 | N129: 2046350 | O129: 2769400 | P129: 12996193.43
A130: STORAGE WITHDRAWLS
B131: Chalk Creek | D131: ='Monthly Inputs'!G32 -> 0 | E131: ='Monthly Inputs'!H32 -> 0 | F131: ='Monthly Inputs'!I32 -> 3868 | G131: ='Monthly Inputs'!J32 -> 0 | H131: ='Monthly Inputs'!K32 -> 0 | I131: ='Monthly Inputs'!L32 -> 0 | J131: ='Monthly Inputs'!M32 -> 0 | K131: ='Monthly Inputs'!N32 -> 0 | L131: ='Monthly Inputs'!O32 -> 0 | M131: ='Monthly Inputs'!P32 -> 0 | N131: ='Monthly Inputs'!Q32 -> 0 | O131: ='Monthly Inputs'!R32 -> 0 | P131: =SUM(D131:O131) -> 3868
B132: Coalville | D132: ='Monthly Inputs'!G34 -> 0 | E132: ='Monthly Inputs'!H34 -> 136173 | F132: ='Monthly Inputs'!I34 -> 20073 | G132: ='Monthly Inputs'!J34 -> 0 | H132: ='Monthly Inputs'!K34 -> 0 | I132: ='Monthly Inputs'!L34 -> 0 | J132: ='Monthly Inputs'!M34 -> 0 | K132: ='Monthly Inputs'!N34 -> 0 | L132: ='Monthly Inputs'!O34 -> 0 | M132: ='Monthly Inputs'!P34 -> 0 | N132: ='Monthly Inputs'!Q34 -> 0 | O132: ='Monthly Inputs'!R34 -> 0 | P132: =SUM(D132:O132) -> 156246
B133: Leroy | D133: ='Monthly Inputs'!G35 -> 0 | E133: ='Monthly Inputs'!H35 -> 199691 | F133: ='Monthly Inputs'!I35 -> 217120 | G133: ='Monthly Inputs'!J35 -> 0 | H133: ='Monthly Inputs'!K35 -> 0 | I133: ='Monthly Inputs'!L35 -> 0 | J133: ='Monthly Inputs'!M35 -> 0 | K133: ='Monthly Inputs'!N35 -> 0 | L133: ='Monthly Inputs'!O35 -> 0 | M133: ='Monthly Inputs'!P35 -> 0 | N133: ='Monthly Inputs'!Q35 -> 0 | O133: ='Monthly Inputs'!R35 -> 0 | P133: =SUM(D133:O133) -> 416811
B134: Ryckman | D134: ='Monthly Inputs'!G36 -> 0 | E134: ='Monthly Inputs'!H36 -> 0 | F134: ='Monthly Inputs'!I36 -> 0 | G134: ='Monthly Inputs'!J36 -> 0 | H134: ='Monthly Inputs'!K36 -> 0 | I134: ='Monthly Inputs'!L36 -> 0 | J134: ='Monthly Inputs'!M36 -> 0 | K134: ='Monthly Inputs'!N36 -> 0 | L134: ='Monthly Inputs'!O36 -> 0 | M134: ='Monthly Inputs'!P36 -> 0 | N134: ='Monthly Inputs'!Q36 -> 0 | O134: ='Monthly Inputs'!R36 -> 0 | P134: =SUM(D134:O134) -> 0
B135: Total Peaking Storage | D135: =SUM(D131:D134) -> 0 | E135: =SUM(E131:E134) -> 335864 | F135: 241061 | G135: 0 | H135: 0 | I135: 0 | J135: 0 | K135: 0 | L135: 0 | M135: 0 | N135: 0 | O135: 0 | P135: 576925
B136: Clay Basin | D136: ='Monthly Inputs'!G33 -> 666210 | E136: ='Monthly Inputs'!H33 -> 5092420 | F136: ='Monthly Inputs'!I33 -> 3898540 | G136: ='Monthly Inputs'!J33 -> 2026000 | H136: ='Monthly Inputs'!K33 -> 0 | I136: ='Monthly Inputs'!L33 -> 0 | J136: ='Monthly Inputs'!M33 -> 185530 | K136: ='Monthly Inputs'!N33 -> 104880 | L136: ='Monthly Inputs'!O33 -> 66780 | M136: ='Monthly Inputs'!P33 -> 0 | N136: ='Monthly Inputs'!Q33 -> 0 | O136: ='Monthly Inputs'!R33 -> 0 | P136: =SUM(D136:O136) -> 12040360
B137: Total Storage Withdrawls | D137: =SUM(D135:D136) -> 666210 | E137: 5428284 | F137: 4139601 | G137: 2026000 | H137: 0 | I137: 0 | J137: 185530 | K137: 104880 | L137: 66780 | M137: 0 | N137: 0 | O137: 0 | P137: 12617285
A140: Gas Supply and Demand | D140: =D4 -> Forecast | E140: Forecast | F140: Forecast | G140: Forecast | H140: Forecast | I140: Forecast | J140: Forecast | K140: Forecast | L140: Forecast | M140: Forecast | N140: Forecast | O140: Forecast | P140: 12-Month
A141: Demand | D141: =D5 -> Nov14 | E141: Dec14 | F141: Jan15 | G141: Feb15 | H141: Mar15 | I141: Apr15 | J141: May15 | K141: Jun15 | L141: Jul15 | M141: Aug15 | N141: Sep15 | O141: Oct15 | P141: Total
A143: Utah Sales | D143: =+D20 -> 11685331 | E143: 17137808 | F143: =+F20 -> 19729363 | G143: 16060927 | H143: 11551590 | I143: 8542016 | J143: 4699426 | K143: 3318191 | L143: 2722847 | M143: 2710163 | N143: 3779169 | O143: 6678990 | P143: =SUM(D143:O143) -> 108615821
A144: Wyoming Sales | D144: =+D39 -> 414250 | E144: 587808 | F144: 640052 | G144: 595700 | H144: 479446 | I144: 347703 | J144: 236952 | K144: 129185 | L144: 92404 | M144: 82209 | N144: 150364 | O144: 252110 | P144: =SUM(D144:O144) -> 4008183
A145: Total Sales | D145: =+D143+D144 -> 12099581 | E145: 17725616 | F145: 20369415 | G145: 16656627 | H145: 12031036 | I145: 8889719 | J145: 4936378 | K145: 3447376 | L145: 2815251 | M145: 2792372 | N145: 3929533 | O145: 6931100 | P145: 112624004
A147: Distribution Use (Offices) | C147: Check formulas for correct month | D147: =ROUND(O83,0) -> 0 | E147: =ROUND(D83,0) -> 0 | F147: =ROUND(E83,0) -> 0 | G147: 0 | H147: 0 | I147: 0 | J147: 0 | K147: 0 | L147: 0 | M147: 0 | N147: 0 | O147: 0 | P147: =SUM(D147:O147) -> 0 | Q147: =(O145/O150)-1 -> -0.004940054641
A148: Distribution Lost and Unaccounted for | D148: =+D150-D145-D147 -> 60069 | E148: =+E150-E145-E147 -> 87999 | F148: 101124 | G148: 82692 | H148: 59728 | I148: 44133 | J148: 24507 | K148: 17115 | L148: 13976 | M148: 13863 | N148: 19508 | O148: =+O150-O145-O147 -> 34410 | P148: =SUM(D148:O148) -> 559124
A150: Total City Gate | D150: =ROUND((D145+D147)/(1-'Other Inputs'!$E$283),0) -> 12159650 | E150: =ROUND((E145+E147)/(1-'Other Inputs'!$E$283),0) -> 17813615 | F150: =ROUND((F145+F147)/(1-'Other Inputs'!$E$283),0) -> 20470539 | G150: =ROUND((G145+G147)/(1-'Other Inputs'!$E$283),0) -> 16739319 | H150: =ROUND((H145+H147)/(1-'Other Inputs'!$E$283),0) -> 12090764 | I150: =ROUND((I145+I147)/(1-'Other Inputs'!$E$283),0) -> 8933852 | J150: =ROUND((J145+J147)/(1-'Other Inputs'!$E$283),0) -> 4960885 | K150: =ROUND((K145+K147)/(1-'Other Inputs'!$E$283),0) -> 3464491 | L150: =ROUND((L145+L147)/(1-'Other Inputs'!$E$283),0) -> 2829227 | M150: =ROUND((M145+M147)/(1-'Other Inputs'!$E$283),0) -> 2806235 | N150: =ROUND((N145+N147)/(1-'Other Inputs'!$E$283),0) -> 3949041 | O150: =ROUND((O145+O147)/(1-'Other Inputs'!$E$283),0) -> 6965510 | P150: =SUM(D150:O150) -> 113183128
A152: Peaking Injection | D152: =+D127 -> 0 | E152: 0 | F152: 0 | G152: 0 | H152: 0 | I152: 0 | J152: 0 | K152: 0 | L152: 0 | M152: =+M127 -> 0 | N152: 0 | O152: 792270 | P152: =SUM(D152:O152) -> 792270
A153: Clay Basin Injection | D153: =+D128 -> 0 | E153: 0 | F153: 0 | G153: 0 | H153: 0 | I153: 0 | J153: 780215.0852 | K153: 2207180.008 | L153: 2723568.425 | M153: 2469479.909 | N153: 2046350 | O153: 1977130 | P153: =SUM(D153:O153) -> 12203923.43
A154: Storage Lost & Unaccounted For | D154: =-'Monthly Inputs'!G51 -> 0 | E154: =-'Monthly Inputs'!H51 -> 0 | F154: =-'Monthly Inputs'!I51 -> 0 | G154: =-'Monthly Inputs'!J51 -> 0 | H154: =-'Monthly Inputs'!K51 -> 0 | I154: =-'Monthly Inputs'!L51 -> 0 | J154: =-'Monthly Inputs'!M51 -> 18569.11903 | K154: =-'Monthly Inputs'!N51 -> 52530.8842 | L154: =-'Monthly Inputs'!O51 -> 64820.92852 | M154: =-'Monthly Inputs'!P51 -> 58773.62183 | N154: =-'Monthly Inputs'!Q51 -> 48703.13 | O154: =-'Monthly Inputs'!R51 -> 70945.3535 | P154: =SUM(D154:O154) -> 314343.0371
A155: Total Demand | D155: =SUM(D150:D154) -> 12159650 | E155: =SUM(E150:E154) -> 17813615 | F155: 20470539 | G155: 16739319 | H155: =SUM(H150:H154) -> 12090764 | I155: 8933852 | J155: 5759669.204 | K155: 5724201.893 | L155: 5617616.354 | M155: 5334488.531 | N155: 6044094.13 | O155: =SUM(O150:O154) -> 9805855.353 | P155: =SUM(D155:O155) -> 126493664.5
A157: Supply
A158: Company Production | D158: =+D120 -> 6373800 | E158: 6399130 | F158: 6240600 | G158: 5511590 | H158: 5978070 | I158: 5760180 | J158: 5921830 | K158: 5966980 | L158: 5892980 | M158: 5661070 | N158: 5548000 | O158: 5642940 | P158: =SUM(D158:O158) -> 70897170
A159: Co Prod Lost & Unaccounted For | D159: =ROUND(D158*(-'Other Inputs'!$E$285-'Other Inputs'!$E$286),0) -> -367698 | E159: =ROUND(E158*(-'Other Inputs'!$E$285-'Other Inputs'!$E$286),0) -> -369159 | F159: =ROUND(F158*(-'Other Inputs'!$E$285-'Other Inputs'!$E$286),0) -> -360014 | G159: =ROUND(G158*(-'Other Inputs'!$E$285-'Other Inputs'!$E$286),0) -> -317958 | H159: =ROUND(H158*(-'Other Inputs'!$E$285-'Other Inputs'!$E$286),0) -> -344869 | I159: =ROUND(I158*(-'Other Inputs'!$E$285-'Other Inputs'!$E$286),0) -> -332299 | J159: =ROUND(J158*(-'Other Inputs'!$E$285-'Other Inputs'!$E$286),0) -> -341624 | K159: =ROUND(K158*(-'Other Inputs'!$E$285-'Other Inputs'!$E$286),0) -> -344229 | L159: =ROUND(L158*(-'Other Inputs'!$E$285-'Other Inputs'!$E$286),0) -> -339960 | M159: =ROUND(M158*(-'Other Inputs'!$E$285-'Other Inputs'!$E$286),0) -> -326581 | N159: =ROUND(N158*(-'Other Inputs'!$E$285-'Other Inputs'!$E$286),0) -> -320059 | O159: =ROUND(O158*(-'Other Inputs'!$E$285-'Other Inputs'!$E$286),0) -> -325536 | P159: =SUM(D159:O159) -> -4089986
A160: Company Production @ City Gate | D160: =SUM(D158:D159) -> 6006102 | E160: =SUM(E158:E159) -> 6029971 | F160: 5880586 | G160: 5193632 | H160: 5633201 | I160: 5427881 | J160: 5580206 | K160: 5622751 | L160: 5553020 | M160: 5334489 | N160: 5227941 | O160: 5317404 | P160: =SUM(D160:O160) -> 66807184
A162: Peaking Withdrawal | D162: =+D135 -> 0 | E162: 335864 | F162: 241061 | G162: 0 | H162: 0 | I162: 0 | J162: 0 | K162: 0 | L162: 0 | M162: 0 | N162: 0 | O162: 0 | P162: =SUM(D162:O162) -> 576925
A163: Clay Basin Withdrawal | D163: =+D136 -> 666210 | E163: 5092420 | F163: =+F136 -> 3898540 | G163: 2026000 | H163: 0 | I163: 0 | J163: 185530 | K163: 104880 | L163: 66780 | M163: 0 | N163: 0 | O163: 0 | P163: =SUM(D163:O163) -> 12040360
A164: QPC Transportation Loss on Storage | D164: ='Monthly Inputs'!G67+'Monthly Inputs'!G59 -> -21785.067 | E164: ='Monthly Inputs'!H67+'Monthly Inputs'!H59 -> -177257.9921 | F164: ='Monthly Inputs'!I67+'Monthly Inputs'!I59 -> -135117.4645 | G164: ='Monthly Inputs'!J67+'Monthly Inputs'!J59 -> -66250.2 | H164: ='Monthly Inputs'!K67+'Monthly Inputs'!K59 -> 0 | I164: ='Monthly Inputs'!L67+'Monthly Inputs'!L59 -> 0 | J164: ='Monthly Inputs'!M67+'Monthly Inputs'!M59 -> -6066.831 | K164: ='Monthly Inputs'!N67+'Monthly Inputs'!N59 -> -3429.576 | L164: ='Monthly Inputs'!O67+'Monthly Inputs'!O59 -> -2183.706 | M164: ='Monthly Inputs'!P67+'Monthly Inputs'!P59 -> 0 | N164: ='Monthly Inputs'!Q67+'Monthly Inputs'!Q59 -> 0 | O164: ='Monthly Inputs'!R67+'Monthly Inputs'!R59 -> 0 | P164: =SUM(D164:O164) -> -412090.8366 | R164: =4761675+168421 -> 4930096
A165: Storage Lost & Unaccounted For | D165: ='Monthly Inputs'!G51 -> 0 | E165: ='Monthly Inputs'!H51 -> 0 | F165: ='Monthly Inputs'!I51 -> 0 | G165: ='Monthly Inputs'!J51 -> 0 | H165: ='Monthly Inputs'!K51 -> 0 | I165: ='Monthly Inputs'!L51 -> 0 | J165: ='Monthly Inputs'!M51 -> -18569.11903 | K165: ='Monthly Inputs'!N51 -> -52530.8842 | L165: ='Monthly Inputs'!O51 -> -64820.92852 | M165: ='Monthly Inputs'!P51 -> -58773.62183 | N165: ='Monthly Inputs'!Q51 -> -48703.13 | O165: ='Monthly Inputs'!R51 -> -70945.3535 | P165: =SUM(D165:O165) -> -314343.0371
A166: Storage Supply @ City Gate | D166: =SUM(D162:D165) -> 644424.933 | E166: =SUM(E162:E165) -> 5251026.008 | F166: 4004483.536 | G166: 1959749.8 | H166: 0 | I166: 0 | J166: 160894.05 | K166: 48919.5398 | L166: -224.6345181 | M166: -58773.62183 | N166: -48703.13 | O166: -70945.3535 | P166: 11890851.13
A168: Gas Purchased @ City Gate | D168: =D155-D160-D166-D154 -> 5509123.067 | E168: =E155-E160-E166-E154 -> 6532617.992 | F168: =F155-F160-F166-F154 -> 10585469.46 | G168: =G155-G160-G166-G154 -> 9585937.2 | H168: =H155-H160-H166-H154 -> 6457563 | I168: =I155-I160-I166-I154 -> 3505971 | J168: =J155-J160-J166-J154 -> 0.03519078881 | K168: 0.4686597573 | L168: =L155-L160-L166-L154 -> 0.05965037527 | M168: =M155-M160-M166-M154 -> -0.4691650579 | N168: 816153.13 | O168: 4488451.353 | P168: =SUM(D168:O168) -> 47481286.3
A169: Gas Reimbursement | D169: =+D170-D168 -> 110710.933 | E169: =+E170-E168 -> 131279.0079 | F169: 212724.5355 | G169: 192637.8 | H169: 129770 | I169: 70456 | J169: -0.03519078881 | K169: -0.4686597573 | L169: -0.05965037527 | M169: 0.4691650579 | N169: 16400.87 | O169: 90199.6465 | P169: =SUM(D169:O169) -> 954178.6986
A170: Gas Purchased - Dth ( /.98) | D170: =ROUND(D168/(1-'Other Inputs'!$E$286),0) -> 5619834 | E170: =ROUND(E168/(1-'Other Inputs'!$E$286),0) -> 6663897 | F170: =ROUND(F168/(1-'Other Inputs'!$E$286),0) -> 10798194 | G170: =ROUND(G168/(1-'Other Inputs'!$E$286),0) -> 9778575 | H170: =ROUND(H168/(1-'Other Inputs'!$E$286),0) -> 6587333 | I170: =ROUND(I168/(1-'Other Inputs'!$E$286),0) -> 3576427 | J170: =ROUND(J168/(1-'Other Inputs'!$E$286),0) -> 0 | K170: =ROUND(K168/(1-'Other Inputs'!$E$286),0) -> 0 | L170: =ROUND(L168/(1-'Other Inputs'!$E$286),0) -> 0 | M170: =ROUND(M168/(1-'Other Inputs'!$E$286),0) -> 0 | N170: =ROUND(N168/(1-'Other Inputs'!$E$286),0) -> 832554 | O170: =ROUND(O168/(1-'Other Inputs'!$E$286),0) -> 4578651 | P170: =SUM(D170:O170) -> 48435465
A172: Transported Volumes - total | D172: =+D160+D168+D137+D164 -> 12159650 | E172: =+E160+E168+E137+E164 -> 17813615 | F172: 20470539 | G172: 16739319 | H172: 12090764 | I172: 8933852 | J172: 5759669.204 | K172: 5724201.893 | L172: 5617616.354 | M172: 5334488.531 | N172: 6044094.13 | O172: =+O160+O168+O137+O164 -> 9805855.353 | P172: =+P160+P168+P137+P164 -> 126493664.5
A173: Kern transported volumes | D173: =HLOOKUP(MONTH(D5),kernrivertrans,6,FALSE) -> 1592428.521 | E173: 1645509.472 | F173: 1645509.472 | G173: 1486266.62 | H173: 1645509.472 | I173: 90137.46347 | J173: 93142.04559 | K173: 90137.46347 | L173: 93142.04559 | M173: 93142.04559 | N173: 90137.46347 | O173: 93142.04559
A174: Storage Fuel % | C174: =(P154-P165)/(P162+P163+P152+P153) -> 0.02454512674
A176: Company Production as % of Total Supply / Demand | D176: =D158/(D170+D158) -> 0.5314319246 | E176: 0.4898657869 | F176: =F158/(F170+F158) -> 0.3662583162 | G176: 0.3604663521 | H176: =H158/(H170+H158) -> 0.4757563287 | I176: 0.6169457491 | J176: 1 | K176: 1 | L176: 1 | M176: 1 | N176: 0.869516973 | O176: =O158/(O170+O158) -> 0.5520608289 | P176: =P158/(P170+P158) -> 0.5941138399
A178: PURCHASES BREAKDOWN
A179: Spot Market Purchases | D179: ='Monthly Inputs'!G83 -> 3719834 | E179: ='Monthly Inputs'!H83 -> 1191397 | F179: ='Monthly Inputs'!I83 -> 4325694 | G179: ='Monthly Inputs'!J83 -> 6447708 | H179: ='Monthly Inputs'!K83 -> 5398707 | I179: ='Monthly Inputs'!L83 -> 3393604 | J179: ='Monthly Inputs'!M83 -> 0 | K179: ='Monthly Inputs'!N83 -> 0 | L179: ='Monthly Inputs'!O83 -> 0 | M179: ='Monthly Inputs'!P83 -> 0 | N179: ='Monthly Inputs'!Q83 -> 832554 | O179: ='Monthly Inputs'!R83 -> 4105963 | P179: =SUM(D179:O179) -> 29415461
A180: Spot Market Purchases Cost | D180: ='Monthly Inputs'!G84 -> 14767740.98 | E180: ='Monthly Inputs'!H84 -> 4706018.15 | F180: ='Monthly Inputs'!I84 -> 17043234.36 | G180: ='Monthly Inputs'!J84 -> 24888152.88 | H180: ='Monthly Inputs'!K84 -> 20245151.25 | I180: ='Monthly Inputs'!L84 -> 11843677.96 | J180: ='Monthly Inputs'!M84 -> 0 | K180: ='Monthly Inputs'!N84 -> 0 | L180: ='Monthly Inputs'!O84 -> 0 | M180: ='Monthly Inputs'!P84 -> 0 | N180: ='Monthly Inputs'!Q84 -> 2913939 | O180: ='Monthly Inputs'!R84 -> 14411930.13 | P180: =SUM(D180:O180) -> 110819844.7
A182: Contract Purchases (Dth) | D182: ='Monthly Inputs'!G92 -> 900000 | E182: ='Monthly Inputs'!H92 -> 1472500 | F182: ='Monthly Inputs'!I92 -> 1472500 | G182: ='Monthly Inputs'!J92 -> 1330000 | H182: ='Monthly Inputs'!K92 -> 930000 | I182: ='Monthly Inputs'!L92 -> 0 | J182: ='Monthly Inputs'!M92 -> 0 | K182: ='Monthly Inputs'!N92 -> 0 | L182: ='Monthly Inputs'!O92 -> 0 | M182: ='Monthly Inputs'!P92 -> 0 | N182: ='Monthly Inputs'!Q92 -> 0 | O182: ='Monthly Inputs'!R92 -> 0 | P182: =SUM(D182:O182) -> 6105000
A183: Contract Purchases Cost Including Stabalization Costs | D183: ='Monthly Inputs'!G93+'Monthly Inputs'!G94 -> 3806910 | E183: ='Monthly Inputs'!H93+'Monthly Inputs'!H94 -> 6055757 | F183: ='Monthly Inputs'!I93+'Monthly Inputs'!I94 -> 6041032 | G183: ='Monthly Inputs'!J93+'Monthly Inputs'!J94 -> 5350016 | H183: ='Monthly Inputs'!K93+'Monthly Inputs'!K94 -> 3729207 | I183: ='Monthly Inputs'!L93+'Monthly Inputs'!L94 -> 0 | J183: ='Monthly Inputs'!M93+'Monthly Inputs'!M94 -> 0 | K183: ='Monthly Inputs'!N93+'Monthly Inputs'!N94 -> 0 | L183: ='Monthly Inputs'!O93+'Monthly Inputs'!O94 -> 0 | M183: ='Monthly Inputs'!P93+'Monthly Inputs'!P94 -> 0 | N183: ='Monthly Inputs'!Q93+'Monthly Inputs'!Q94 -> 0 | O183: ='Monthly Inputs'!R93+'Monthly Inputs'!R94 -> 0 | P183: =SUM(D183:O183) -> 24982922
Q184: =P183+P186 -> 75162118.21
A185: Peak Purchases (Dth) | D185: ='Monthly Inputs'!G89 -> 1000000 | E185: ='Monthly Inputs'!H89 -> 4000000 | F185: ='Monthly Inputs'!I89 -> 5000000 | G185: ='Monthly Inputs'!J89 -> 2000000 | H185: ='Monthly Inputs'!K89 -> 0 | I185: ='Monthly Inputs'!L89 -> 0 | J185: ='Monthly Inputs'!M89 -> 0 | K185: ='Monthly Inputs'!N89 -> 0 | L185: ='Monthly Inputs'!O89 -> 0 | M185: ='Monthly Inputs'!P89 -> 0 | N185: ='Monthly Inputs'!Q89 -> 0 | O185: ='Monthly Inputs'!R89 -> 0 | P185: =SUM(D185:O185) -> 12000000
A186: Peak Purchases Cost | D186: ='Monthly Inputs'!G90 -> 4216336.702 | E186: ='Monthly Inputs'!H90 -> 16792335 | F186: ='Monthly Inputs'!I90 -> 20933186.94 | G186: ='Monthly Inputs'!J90 -> 8237337.565 | H186: ='Monthly Inputs'!K90 -> 0 | I186: ='Monthly Inputs'!L90 -> 0 | J186: ='Monthly Inputs'!M90 -> 0 | K186: ='Monthly Inputs'!N90 -> 0 | L186: ='Monthly Inputs'!O90 -> 0 | M186: ='Monthly Inputs'!P90 -> 0 | N186: ='Monthly Inputs'!Q90 -> 0 | O186: ='Monthly Inputs'!R90 -> 0 | P186: =SUM(D186:O186) -> 50179196.21
A188: Future Purchases | D188: =+D170-D179-D182-D185 -> 0 | E188: =+E170-E179-E182-E185 -> 0 | F188: =+F170-F179-F182-F185 -> 0 | G188: =+G170-G179-G182-G185 -> 867 | H188: =+H170-H179-H182-H185 -> 258626 | I188: =+I170-I179-I182-I185 -> 182823 | J188: =+J170-J179-J182-J185 -> 0 | K188: =+K170-K179-K182-K185 -> 0 | L188: 0 | M188: =+M170-M179-M182-M185 -> 0 | N188: 0 | O188: 472688 | P188: =SUM(D188:O188) -> 915004
A189: Future Purchases Cost | D189: =ROUND(D188*D196,0) -> 0 | E189: =ROUND(E188*E196,0) -> 0 | F189: =ROUND(F188*F196,0) -> 0 | G189: 3364 | H189: =ROUND(H188*H196,0) -> 975020 | I189: 641709 | J189: 0 | K189: 0 | L189: 0 | M189: 0 | N189: 0 | O189: 1668589 | P189: =SUM(D189:O189) -> 3288682
A191: Total Purchases Cost | D191: =+D180+D183+D186+D189 -> 22790987.68 | E191: =+E180+E183+E186+E189 -> 27554110.15 | F191: =+F180+F183+F186+F189 -> 44017453.3 | G191: =+G180+G183+G186+G189 -> 38478870.45 | H191: =+H180+H183+H186+H189 -> 24949378.25 | I191: 12485386.96 | J191: =+J180+J183+J186+J189 -> 0 | K191: 0 | L191: 0 | M191: 0 | N191: 2913939 | O191: =+O180+O183+O186+O189 -> 16080519.13 | P191: 189270644.9
A193: Gas Cost
A194: Gas Cost Purchases | D194: =IF(D170=0,0,ROUND(D191/D170,5)) -> 4.05546 | E194: =IF(E170=0,0,ROUND(E191/E170,5)) -> 4.13483 | F194: 4.07637 | G194: 3.93502 | H194: 3.78748 | I194: 3.49102 | J194: 0 | K194: 0 | L194: 0 | M194: 0 | N194: 3.5 | O194: 3.51206
A195: Gas Cost Injection Rate - this line not used - DELETE? | D195: ='Ut Storage'!K27 -> 4.735951082 | E195: =+D195 -> 4.735951082 | F195: 4.735951082 | G195: 4.735951082 | H195: 4.735951082 | I195: 4.735951082 | J195: 4.735951082 | K195: 4.735951082 | L195: 4.735951082 | M195: 4.735951082 | N195: 4.735951082 | O195: 4.735951082
A196: =CONCATENATE("'Future Contract Price (spot + $",'Other Inputs'!E169,")") -> 'Future Contract Price (spot + $0.02) | D196: =+D228+'Other Inputs'!$E$169 -> 3.99 | E196: =+E228+'Other Inputs'!$E$169 -> 3.97 | F196: =+F228+'Other Inputs'!$E$169 -> 3.96 | G196: =+G228+'Other Inputs'!$E$169 -> 3.88 | H196: =+H228+'Other Inputs'!$E$169 -> 3.77 | I196: =+I228+'Other Inputs'!$E$169 -> 3.51 | J196: =+J228+'Other Inputs'!$E$169 -> 3.51 | K196: =+K228+'Other Inputs'!$E$169 -> 3.48 | L196: =+L228+'Other Inputs'!$E$169 -> 3.57 | M196: =+M228+'Other Inputs'!$E$169 -> 3.54 | N196: =+N228+'Other Inputs'!$E$169 -> 3.52 | O196: =+O228+'Other Inputs'!$E$169 -> 3.53
A198: System Production | D198: =+D160 -> 6006102 | E198: 6029971 | F198: 5880586 | G198: 5193632 | H198: 5633201 | I198: 5427881 | J198: 5580206 | K198: 5622751 | L198: 5553020 | M198: 5334489 | N198: 5227941 | O198: 5317404 | P198: =SUM(D198:O198) -> 66807184
A199: System Purchases | D199: =+D168 -> 5509123.067 | E199: 6532617.992 | F199: 10585469.46 | G199: 9585937.2 | H199: 6457563 | I199: 3505971 | J199: 0.03519078881 | K199: 0.4686597573 | L199: 0.05965037527 | M199: -0.4691650579 | N199: 816153.13 | O199: 4488451.353 | P199: =SUM(D199:O199) -> 47481286.3
A200: System Gathering of Production | D200: =ROUND($P200*D$120/$P$120,0) -> 3762092 | E200: 3777043 | F200: 3683472 | G200: 3253178 | H200: 3528515 | I200: 3399907 | J200: 3495320 | K200: 3521969 | L200: 3478291 | M200: 3341408 | N200: 3274669 | O200: 3330707 | P200: ='Other Inputs'!$D$174 -> 41846570.98
A201: System Birch Creek Gathering | D201: =ROUND($P201*D$120/$P$120,0) -> 0 | E201: 0 | F201: 0 | G201: 0 | H201: 0 | I201: 0 | J201: 0 | K201: 0 | L201: 0 | M201: 0 | N201: 0 | O201: 0 | P201: ='Other Inputs'!$D$158 -> 0
A203: Utah Production | D203: =ROUND(D198*$I$74,0) -> 5792350 | E203: 5815370 | F203: 5671301 | G203: 5008795 | H203: 5432721 | I203: 5234708 | J203: 5381612 | K203: 5422643 | L203: 5355393 | M203: 5144640 | N203: 5041883 | O203: 5128163 | P203: =SUM(D203:O203) -> 64429579
A204: Utah Purchases | D204: =ROUND(D199*$I$74,0) -> 5313059 | E204: 6300128 | F204: 10208743 | G204: 9244783 | H204: 6227744 | I204: 3381197 | J204: 0 | K204: 0 | L204: 0 | M204: 0 | N204: 787107 | O204: 4328712 | P204: =SUM(D204:O204) -> 45791473
A205: Utah Gathering | D205: =ROUND(D200*$I$74,0) -> 3628203 | E205: 3642622 | F205: 3552381 | G205: 3137400 | H205: 3402938 | I205: 3278907 | J205: 3370925 | K205: 3396625 | L205: 3354502 | M205: 3222490 | N205: 3158127 | O205: 3212170 | P205: =SUM(D205:O205) -> 40357290
A206: Utah Birch Creek Gathering | D206: =ROUND(D201*$I$74,0) -> 0 | E206: 0 | F206: 0 | G206: 0 | H206: 0 | I206: 0 | J206: 0 | K206: 0 | L206: 0 | M206: 0 | N206: 0 | O206: 0 | P206: =SUM(D206:O206) -> 0
A208: Wyoming Production | D208: =+D198-D203 -> 213752 | E208: 214601 | F208: 209285 | G208: 184837 | H208: 200480 | I208: 193173 | J208: 198594 | K208: 200108 | L208: 197627 | M208: 189849 | N208: 186058 | O208: 189241 | P208: =SUM(D208:O208) -> 2377605
A209: Wyoming Purchases | D209: =+D199-D204 -> 196064.067 | E209: 232489.9921 | F209: 376726.4645 | G209: 341154.2 | H209: 229819 | I209: 124774 | J209: 0.03519078881 | K209: 0.4686597573 | L209: 0.05965037527 | M209: -0.4691650579 | N209: 29046.13 | O209: 159739.3535 | P209: =SUM(D209:O209) -> 1689813.301
A210: Wyoming Gathering | D210: =+D200-D205 -> 133889 | E210: 134421 | F210: 131091 | G210: 115778 | H210: 125577 | I210: 121000 | J210: 124395 | K210: 125344 | L210: 123789 | M210: 118918 | N210: 116542 | O210: 118537 | P210: =SUM(D210:O210) -> 1489281
A211: Wyoming Birch Creek Gathering | D211: =+D201-D206 -> 0 | E211: 0 | F211: 0 | G211: 0 | H211: 0 | I211: 0 | J211: 0 | K211: 0 | L211: 0 | M211: 0 | N211: 0 | O211: 0 | P211: =SUM(D211:O211) -> 0
A214: I-2, I-4 Averate Gas Cost Calculations
A215: Wyoming
B216: Wyoming I-2 Volumes | D216: =D34 -> 15145 | E216: 21253 | F216: 21741 | G216: 19141 | H216: 18266 | I216: 12871 | J216: 14710 | K216: 8605 | L216: 7971 | M216: 7880 | N216: 9166 | O216: 14042 | P216: 170791
B217: Wyoming I-4 Volumes | D217: =D35 -> 0 | E217: 0 | F217: 0 | G217: 0 | H217: 0 | I217: 0 | J217: 0 | K217: 0 | L217: 0 | M217: 0 | N217: 0 | O217: 0 | P217: 0
D218: =SUM(D216:D217) -> 15145 | E218: =SUM(E216:E217) -> 21253 | F218: 21741 | G218: 19141 | H218: 18266 | I218: 12871 | J218: 14710 | K218: 8605 | L218: 7971 | M218: 7880 | N218: 9166 | O218: 14042 | P218: 170791
B220: Global Insight Spot Price Forecast | D220: ='Monthly Inputs'!G79 -> 3.97 | E220: ='Monthly Inputs'!H79 -> 3.95 | F220: ='Monthly Inputs'!I79 -> 3.94 | G220: ='Monthly Inputs'!J79 -> 3.86 | H220: ='Monthly Inputs'!K79 -> 3.75 | I220: ='Monthly Inputs'!L79 -> 3.49 | J220: ='Monthly Inputs'!M79 -> 3.49 | K220: ='Monthly Inputs'!N79 -> 3.46 | L220: ='Monthly Inputs'!O79 -> 3.55 | M220: ='Monthly Inputs'!P79 -> 3.52 | N220: ='Monthly Inputs'!Q79 -> 3.5 | O220: ='Monthly Inputs'!R79 -> 3.51
D221: =D218*D220 -> 60125.65 | E221: =E218*E220 -> 83949.35 | F221: 85659.54 | G221: 73884.26 | H221: 68497.5 | I221: 44919.79 | J221: 51337.9 | K221: 29773.3 | L221: 28297.05 | M221: 27737.6 | N221: 32081 | O221: 49287.42 | P221: =SUM(D221:O221) -> 635550.36
P222: =P221/P218 -> 3.721216926
P223: =1-'Other Inputs'!$E$284 -> 0.985
P224: =1-'Other Inputs'!$E$286 -> 0.9803
P225: =P222/P223/P224 -> 3.853805166
A226: Utah
B227: Utah I-4 & IS-4 Volumes | D227: =D15+D16 -> 260770 | E227: 234163 | F227: 253528 | G227: 244532 | H227: 211298 | I227: 192971 | J227: 188961 | K227: 202960 | L227: 200475 | M227: 224055 | N227: 198725 | O227: 228898 | P227: 2641336
B228: =B220 -> Global Insight Spot Price Forecast | D228: ='Monthly Inputs'!G79 -> 3.97 | E228: ='Monthly Inputs'!H79 -> 3.95 | F228: ='Monthly Inputs'!I79 -> 3.94 | G228: ='Monthly Inputs'!J79 -> 3.86 | H228: ='Monthly Inputs'!K79 -> 3.75 | I228: ='Monthly Inputs'!L79 -> 3.49 | J228: ='Monthly Inputs'!M79 -> 3.49 | K228: ='Monthly Inputs'!N79 -> 3.46 | L228: ='Monthly Inputs'!O79 -> 3.55 | M228: ='Monthly Inputs'!P79 -> 3.52 | N228: ='Monthly Inputs'!Q79 -> 3.5 | O228: ='Monthly Inputs'!R79 -> 3.51
D229: =D227*D228 -> 1035256.9 | E229: =E227*E228 -> 924943.85 | F229: 998900.32 | G229: 943893.52 | H229: 792367.5 | I229: 673468.79 | J229: 659473.89 | K229: 702241.6 | L229: 711686.25 | M229: 788673.6 | N229: 695537.5 | O229: =O227*O228 -> 803431.98 | P229: =SUM(D229:O229) -> 9729875.7
P230: =P229/P227 -> 3.683694804
P231: =1-'Other Inputs'!$E$283 -> 0.99506 | Q231: QGC Lost & Unaccounted For % (Utah
P232: =1-'Other Inputs'!$E$286 -> 0.9803 | Q232: QPC Lost & Unaccounted For %
P234: =P230/P231/P232 -> 3.77637723
D236: =MONTH(D237) -> 1 | E236: =MONTH(E237) -> 2 | F236: =MONTH(F237) -> 3 | G236: 4 | H236: 5 | I236: 6 | J236: 7 | K236: 8 | L236: 9 | M236: 10 | N236: 11 | O236: 12
D237: 2011-01-01 | E237: 2011-02-01 | F237: 2011-03-01 | G237: 2011-04-01 | H237: 2011-05-01 | I237: 2011-06-01 | J237: 2011-07-01 | K237: 2010-08-01 | L237: 2010-09-01 | M237: 2010-10-01 | N237: 2010-11-01 | O237: 2010-12-01
D238: 31 | E238: 28 | F238: 31 | G238: 30 | H238: 31 | I238: 30 | J238: 31 | K238: 31 | L238: 30 | M238: 31 | N238: 30 | O238: 31
D239: ='Other Inputs'!$D$54+'Other Inputs'!$D$55 -> 53000 | E239: ='Other Inputs'!$D$54+'Other Inputs'!$D$55 -> 53000 | F239: ='Other Inputs'!$D$54+'Other Inputs'!$D$55 -> 53000 | G239: ='Other Inputs'!$D$54 -> 3000 | H239: ='Other Inputs'!$D$54 -> 3000 | I239: ='Other Inputs'!$D$54 -> 3000 | J239: ='Other Inputs'!$D$54 -> 3000 | K239: ='Other Inputs'!$D$54 -> 3000 | L239: ='Other Inputs'!$D$54 -> 3000 | M239: ='Other Inputs'!$D$54 -> 3000 | N239: ='Other Inputs'!$D$54+'Other Inputs'!$D$55 -> 53000 | O239: ='Other Inputs'!$D$54+'Other Inputs'!$D$55 -> 53000
D240: ='Other Inputs'!$C$60 -> 1.001527372 | E240: ='Other Inputs'!$C$60 -> 1.001527372 | F240: ='Other Inputs'!$C$60 -> 1.001527372 | G240: ='Other Inputs'!$C$60 -> 1.001527372 | H240: ='Other Inputs'!$C$60 -> 1.001527372 | I240: ='Other Inputs'!$C$60 -> 1.001527372 | J240: ='Other Inputs'!$C$60 -> 1.001527372 | K240: ='Other Inputs'!$C$60 -> 1.001527372 | L240: ='Other Inputs'!$C$60 -> 1.001527372 | M240: ='Other Inputs'!$C$60 -> 1.001527372 | N240: ='Other Inputs'!$C$60 -> 1.001527372 | O240: ='Other Inputs'!$C$60 -> 1.001527372
D241: =D238*D239*D240 -> 1645509.472 | E241: =E238*E239*E240 -> 1486266.62 | F241: 1645509.472 | G241: 90137.46347 | H241: 93142.04559 | I241: 90137.46347 | J241: 93142.04559 | K241: 93142.04559 | L241: 90137.46347 | M241: 93142.04559 | N241: 1592428.521 | O241: 1645509.472 | P241: =SUM(D241:O241) -> 8658204.13
D245: 0.13 | E245: 0.14 | F245: 0.05 | G245: 0.05 | H245: 0.02 | I245: 0.02 | J245: 0.02 | K245: 0.02 | L245: 0.01 | M245: 0 | N245: 0 | O245: 0
D246: =D245*(D179+D182+D185+D188) -> 730578.42 | E246: 932945.58 | F246: 539909.7 | G246: 488928.75 | H246: 131746.66 | I246: 71528.54 | J246: 0 | K246: 0 | L246: 0 | M246: 0 | N246: 0 | O246: 0

Sheet Utah Summary-by class
A1: UTAH SUMMARY
B2: NOT AN EXHIBIT !!!
A3: NEEDS TO BE UPDATED FOR GSR AND GSC RATES | Q3: Sub Total
C4: COMMODITY | J4: SNG | Q4: TOTAL
C5: Current | D5: Proposed | E5: Current | F5: Proposed | G5: Revenue | H5: % | J5: Current | K5: Proposed | L5: Current | M5: Proposed | N5: Revenue | O5: % | Q5: Revenue | R5: %
A6: RATE | B6: Dth Sales | C6: Rates | D6: Rates | E6: Revenue | F6: Revenue | G6: Difference | H6: Change | J6: Rates | K6: Rates | L6: Revenue | M6: Revenue | N6: Difference | O6: Change | Q6: Difference | R6: Change
A8: GS (W) | B8: =Calculations!P52 -> 72205238 | C8: ='Ut 1.6 p1'!$H$33 -> 5.27588 | D8: =ROUND('Ut 1.6 p1'!$F$33,5) -> 5.04668 | E8: =ROUND(B8*C8,0) -> 380946171 | F8: =ROUND(B8*D8,0) -> 364396731 | G8: =(F8-E8) -> -16549440 | J8: ='Ut 1.6 p3'!E16 -> 1.05304 | K8: ='Ut 1.6 p3'!I16 -> 0.99133 | L8: =ROUND(B8*J8,0) -> 76035004 | M8: =B8*K8 -> 71579218.59 | N8: =(M8-L8) -> -4455785.413 | Q8: =G8+N8 -> -21005225.41
A9: GS (S) | B9: =Calculations!P53 -> 28208562 | C9: ='Ut 1.6 p1'!$H$33 -> 5.27588 | D9: =D8 -> 5.04668 | E9: =ROUND(B9*C9,0) -> 148824988 | F9: =ROUND(B9*D9,0) -> 142359586 | G9: =(F9-E9) -> -6465402 | J9: ='Ut 1.6 p3'!E17 -> 0.49441 | K9: ='Ut 1.6 p3'!I17 -> 0.46544 | L9: =ROUND(B9*J9,0) -> 13946595 | M9: =B9*K9 -> 13129393.1 | N9: =(M9-L9) -> -817201.9027 | Q9: =G9+N9 -> -7282603.903
A10: Total | B10: =SUM(B8:B9) -> 100413800 | E10: =SUM(E8:E9) -> 529771159 | F10: =SUM(F8:F9) -> 506756317 | G10: =SUM(G8:G9) -> -23014842 | H10: =IF(G10=0,0,G10/E10) -> -0.04344298781 | L10: =SUM(L8:L9) -> 89981599 | M10: =SUM(M8:M9) -> 84708611.68 | N10: =SUM(N8:N9) -> -5272987.316 | O10: =IF(N10=0,0,N10/L10) -> -0.0586007292 | Q10: =SUM(Q8:Q9) -> -28287829.32 | R10: =IF(Q10=0,0,Q10/(E10+L10)) -> -0.04564373285
A13: FS | B13: =Calculations!P58 -> 2488527 | C13: ='Ut 1.6 p1'!$H$33 -> 5.27588 | D13: =D8 -> 5.04668 | E13: =ROUND(B13*C13,0) -> 13129170 | F13: =ROUND(B13*D13,0) -> 12558799 | G13: =(F13-E13) -> -570371 | J13: ='Ut 1.6 p3'!E19 -> 1.02562 | K13: ='Ut 1.6 p3'!I19 -> 0.96551 | L13: =ROUND(B13*J13,0) -> 2552283 | M13: =B13*K13 -> 2402697.704 | N13: =(M13-L13) -> -149585.2962 | Q13: =G13+N13 -> -719956.2962
B14: =Calculations!P59 -> 2386491 | C14: ='Ut 1.6 p1'!$H$33 -> 5.27588 | D14: =D9 -> 5.04668 | E14: =ROUND(B14*C14,0) -> 12590840 | F14: =ROUND(B14*D14,0) -> 12043856 | G14: =(F14-E14) -> -546984 | J14: ='Ut 1.6 p3'!E20 -> 0.4944 | K14: ='Ut 1.6 p3'!I20 -> 0.46544 | L14: =ROUND(B14*J14,0) -> 1179881 | M14: =B14*K14 -> 1110768.371 | N14: =(M14-L14) -> -69112.62896 | Q14: =G14+N14 -> -616096.629
A15: Total | B15: =SUM(B13:B14) -> 4875018 | E15: =SUM(E13:E14) -> 25720010 | F15: =SUM(F13:F14) -> 24602655 | G15: =SUM(G13:G14) -> -1117355 | H15: =IF(G15=0,0,G15/E15) -> -0.04344302354 | L15: =SUM(L13:L14) -> 3732164 | M15: =SUM(M13:M14) -> 3513466.075 | N15: =SUM(N13:N14) -> -218697.9252 | O15: =IF(N15=0,0,N15/L15) -> -0.05859815517 | Q15: =SUM(Q13:Q14) -> -1336052.925 | R15: =IF(Q15=0,0,Q15/(E15+L15)) -> -0.04536347385
A19: NGV | B19: =Calculations!P12 -> 685667 | C19: ='Ut 1.6 p1'!$H$33 -> 5.27588 | D19: =D8 -> 5.04668 | E19: =ROUND(B19*C19,0) -> 3617497 | F19: =ROUND(B19*D19,0) -> 3460342 | G19: =(F19-E19) -> -157155 | H19: =IF(G19=0,0,G19/E19) -> -0.04344302151 | J19: ='Ut 1.6 p3'!E22 -> 0.7599 | K19: ='Ut 1.6 p3'!I22 -> 0.71537 | L19: =ROUND(B19*J19,0) -> 521038 | M19: =ROUND(B19*K19,0) -> 490506 | N19: =(M19-L19) -> -30532 | O19: =IF(N19=0,0,N19/L19) -> -0.05859841317 | Q19: =G19+N19 -> -187687 | R19: =IF(Q19=0,0,Q19/(E19+L19)) -> -0.0453510723
A21: IS | B21: =Calculations!P17 -> 2641336 | C21: 4.839795 | D21: =D8 -> 5.04668 | E21: =ROUND(B21*C21,0) -> 12783525 | F21: =ROUND(B21*D21,0) -> 13329978 | G21: =(F21-E21) -> 546453 | H21: =IF(G21=0,0,G21/E21) -> 0.04274666025
G24: =G10+G15+G19+G21 -> -23742899 | N24: =N10+N15+N19 -> -5522217.241 | Q24: =Q10+Q15+Q19 -> -29811569.24
A27: IS | B27: 0 | E27: =ROUND(B27*C27,0) -> 0 | F27: =ROUND(B27*D27,0) -> 0 | G27: =(F27-E27) -> 0 | H27: =IF(G27=0,0,G27/E27) -> 0 | J27: ='Ut 1.6 p3'!E24 -> 0.1786 | K27: ='Ut 1.6 p3'!I24 -> 0.1788 | L27: =ROUND(B21*J27,0) -> 471743 | M27: =ROUND(B21*K27,0) -> 472271 | N27: =(M27-L27) -> 528 | O27: =IF(N27=0,0,N27/L27) -> 0.001119253492 | Q27: =G27+N27 -> 528 | R27: =IF(Q27=0,0,Q27/(E27+L27)) -> 0.001119253492
B29: 0 | E29: =ROUND(B29*C29,0) -> 0 | F29: =ROUND(B29*D29,0) -> 0 | G29: =(F29-E29) -> 0 | H29: =IF(G29=0,0,G29/E29) -> 0 | J29: 0 | K29: 0 | L29: =ROUND(B29*J29,0) -> 0 | M29: =ROUND(B29*K29,0) -> 0 | N29: =(M29-L29) -> 0 | O29: =IF(N29=0,0,N29/L29) -> 0 | Q29: =G29+N29 -> 0 | R29: =IF(Q29=0,0,Q29/(E29+L29)) -> 0
B30: - | E30: - | F30: - | G30: - | L30: ------------------- | M30: ------------------- | N30: ------------------- | Q30: -------------------
B31: =B10+B15+B19+B27+B29+B21 -> 108615821 | E31: =E10+E15+E19+E27+E29+E21 -> 571892191 | F31: =F10+F15+F19+F27+F29+F21 -> 548149292 | G31: =G10+G15+G19+G27+G29+G21 -> -23742899 | H31: =IF(G31=0,0,G31/E31) -> -0.04151638958 | L31: =L10+L15+L19+L27+L29 -> 94706544 | M31: =M10+M15+M19+M27+M29 -> 89184854.76 | N31: =N10+N15+N19+N27+N29 -> -5521689.241 | O31: =IF(N31=0,0,N31/L31) -> -0.05830314367 | Q31: =Q10+Q15+Q19+Q27+Q29 -> -29811041.24 | R31: =IF(Q31=0,0,Q31/(E31+L31)) -> -0.04472111883 | W31: =49300714-6927605-5328088 -> 37045021
G32: =IF(G31>0,"Commodity Increase","Commodity Decrease") -> Commodity Decrease | N32: =IF(N31>0,"Increase to SNG","Decrease to SNG") -> Decrease to SNG | W32: =W31-N31 -> 42566710.24
B33: NOT AN EXHIBIT !!!
G34: =ROUND(G31,-3) -> -23743000 | N34: =ROUND(N31,-3) -> -5522000 | Q34: =ROUND(Q31,-3) -> -29811000 | W34: =W32-8603966 -> 33962744.24
G35: Rounded | N35: Rounded | Q35: Rounded
A38: FT2 | B38: ='RevRun Fcst'!S138+'RevRun Fcst'!S183 -> 0 | M38: =0.0005*B27 -> 0
M39: =M38+M31 -> 89184854.76
A40: IT | B40: ='RevRun Fcst'!S165+'RevRun Fcst'!S174 -> 3156360
A43: winter | B43: =B8+B13 -> 74693765 | J43: =L43/B43 -> 1.052126466 | L43: =L8+L13 -> 78587287
A44: summer | B44: =B9+B14 -> 30595053 | J44: =L44/B44 -> 0.4944092105 | L44: =L9+L14 -> 15126476
A45: year | B45: =B10+B15 -> 105288818 | J45: =L45/B45 -> 0.8900637768 | L45: =L10+L15 -> 93713763
B47: =B10+B15+B19 -> 105974485 | J47: =L47/B47 -> 0.889221599 | L47: =L10+L15+L19 -> 94234801

Sheet Model Checks
B2: Model Checks
B3: If the total of all checks is not zero, or very close to zero, find the checks below that are out of balance and follow the calculations
B4: back through the model and correct any errors.
D6: Total of all Checks
D7: =ABS(SUM(D10:D1993)) -> 1.151672617
B9: Forecasted Demand
C10: Utah | D10: =Calculations!P25-'RevRun Fcst'!T205 -> 0
C11: Wyoming | D11: =Calculations!P44-'RevRun Fcst'!T329 -> 0
C12: Total System | D12: =Calculations!P47-'RevRun Fcst'!T370 -> 0
B13: Forecasted Utah Demand Check by Month
C14: 1 | D14: =Calculations!D25-'RevRun Fcst'!H205 -> 0
C15: 2 | D15: =Calculations!E25-'RevRun Fcst'!I205 -> 0
C16: 3 | D16: =Calculations!F25-'RevRun Fcst'!J205 -> 0
C17: 4 | D17: =Calculations!G25-'RevRun Fcst'!K205 -> 0
C18: 5 | D18: =Calculations!H25-'RevRun Fcst'!L205 -> 0
C19: 6 | D19: =Calculations!I25-'RevRun Fcst'!M205 -> 0
C20: 7 | D20: =Calculations!J25-'RevRun Fcst'!N205 -> 0
C21: 8 | D21: =Calculations!K25-'RevRun Fcst'!O205 -> 0
C22: 9 | D22: =Calculations!L25-'RevRun Fcst'!P205 -> 0
C23: 10 | D23: =Calculations!M25-'RevRun Fcst'!Q205 -> 0
C24: 11 | D24: =Calculations!N25-'RevRun Fcst'!R205 -> 0
C25: 12 | D25: =Calculations!O25-'RevRun Fcst'!S205 -> 0
C26: Wyoming I-2 and I-4 Revenues | D26: =('RevRun Fcst'!T273+'RevRun Fcst'!T282)-Calculations!P65 -> 0
C27: System Sales Volumes | D27: =Calculations!H76-'RevRun Fcst'!T368 -> 0
C28: Utah Sales Volumes | D28: =Calculations!P20-'Utah Summary-by class'!B31 -> 0
B29: Company Production | D29: =Calculations!P120-'Monthly Inputs'!S7-'Monthly Inputs'!S13 -> 0
B30: Injections | D30: ='Monthly Inputs'!S29-SUM('Monthly Inputs'!S23:S28) -> 0
B31: Withdrawls | D31: ='Monthly Inputs'!S37-SUM('Monthly Inputs'!S32:S36) -> 0
B32: Injections & Withdrawls | D32: =SUM('Ut 1.3 p2'!D23:D28)-'Monthly Inputs'!S29-'Monthly Inputs'!S37 -> 0
B33: Injections | D33: =Calculations!P129-'Monthly Inputs'!S29 -> 0
B34: Withdrawls | D34: =Calculations!P137-'Monthly Inputs'!S37 -> 0
B35: Sales for Resale | D35: =Expenses!S445-Calculations!P86 -> 0
B36: Incidental Plant Prod Sales | D36: =Expenses!S446-Calculations!P87 -> 0
B37: Incidental Gas & Oil Sales | D37: =Expenses!S447-Calculations!P89 -> 0
B38: Gasoline and Oil Costs | D38: =Expenses!S450+Calculations!P90 -> 0
B39: Wexpro Revenue Sharing | D39: =Expenses!S449-Calculations!P94 -> 0
B40: Storage Gas | D40: ='Rate Base'!U216-Calculations!P99 -> 0
B41: 101 Production | D41: ='Rate Base'!U158-Calculations!P100 -> 0
B42: 108 Production | D42: ='Rate Base'!U176-Calculations!P101 -> 0
B43: 111 Production | D43: ='Rate Base'!U183-Calculations!P102 -> 0
B44: 255 Production | D44: ='Rate Base'!U251-Calculations!P103 -> 0
B45: 282 Production | D45: ='Rate Base'!U258-Calculations!P104 -> 0
B46: 282.1 Production | D46: ='Rate Base'!U265-Calculations!P105 -> 0
B47: Production Rate Base | D47: =SUM(Calculations!P99:P105)-'Rate Base'!U285 -> 0
B48: Purchased Gas Cost | D48: ='Ut 1.2'!G24-Calculations!P191 -> 0.08350649476
B49: Working Gas Rate Base | D49: =Calculations!P99-'Ut 1.3 p2'!D53 -> 0
B50: Allocations | D50: ='Ut 1.5'!E41-'Ut 1.5'!F41-'Ut 1.5'!G41+'Ut 1.5'!G39 -> -1.192092896e-07
B52: System Sales | D52: ='SDR#1'!C10-'RevRun Fcst'!T368 -> 0
B53: Lost & Unaccounted For | D53: ='SDR#1'!C15-(('SDR#1'!C10+'SDR#1'!C11)/(1-'Other Inputs'!E283)) -> -0.655558452
B54: Supply / Demand | D54: ='SDR#1'!C36-'SDR#1'!C15 -> -1.802065864
B55: System Sales | D55: ='SDR#3'!H36-'SDR#1'!C10 -> 0
B56: SNG Revenue | D56: ='SDR#4'!G23-'Utah Summary-by class'!L31 -> 0.1369799972
B57: Utah Sales | D57: ='SDR#3'!D36-'SDR#4'!E23 -> 0
B58: Utah Sales | D58: ='SDR#2'!G59+'Ut 1.6 p1'!J22 -> 1.085465327
B59: Seasonal Volumes | D59: =Calculations!P52+Calculations!P53-Calculations!P7-Calculations!P8 -> 0
B60: Seasonal Volumes | D60: =Calculations!P55+Calculations!P56-Calculations!P9 -> 0
B61: Seasonal Volumes | D61: =Calculations!P58+Calculations!P59-Calculations!P10 -> 0

Sheet SDR#1
E1: ='Control Panel'!F32 -> Questar Gas Company
E2: ='Control Panel'!F33 -> Docket No. 14-057-22
B4: Standard Data Request #1
B5: Summary of Sources of Supply and Demand
A8: 1 | B8: DEMAND | C8: Total | D8: Utah | E8: Wyoming
A10: =A8+1 -> 2 | B10: SALES IN DTHS | C10: =D10+E10 -> 112624004 | D10: =Calculations!P20 -> 108615821 | E10: =Calculations!P39 -> 4008183
A11: =A10+1 -> 3 | B11: DIST. CO. USE & | C11: 0
A12: =A11+1 -> 4 | B12: DIST. LOST & UNACCT. (0.49%) | C12: =Calculations!P148 -> 559124
A15: =A12+1 -> 5 | B15: TOTAL | C15: =SUM(C10:C12) -> 113183128
A19: =A15+1 -> 6 | B19: SUPPLY | C19: Total | D19: Utah | E19: Wyoming
A21: =A19+1 -> 7 | B21: COMPANY PRODUCTION | C21: ='Ut 1.1'!F1437+'Ut 1.1'!F1533 -> 70897170 | D21: =$D$10/$C$10*C21 -> 68374006.01 | E21: =$E$10/$C$10*C21 -> 2523163.992
A22: =A21+1 -> 8 | B22: GAS REIMBURSEMENT | C22: =C21*-'Other Inputs'!$E$287 -> -4089986.84 | D22: =D21*-'Other Inputs'!$E$287 -> -3944428.033 | E22: =E21*-'Other Inputs'!$E$287 -> -145558.8075 | G22: =C21/C10 -> 0.6295031919 | H22: =D21/D10 -> 0.6295031919 | I22: =E21/E10 -> 0.6295031919
A25: =A22+1 -> 9 | B25: CONTRACT GAS | C25: ='Ut 1.2'!E24 -> 48435465 | D25: =$D$10/$C$10*C25 -> 46711692.09 | E25: =$E$10/$C$10*C25 -> 1723772.913
A26: =A25+1 -> 10 | B26: GAS REIMBURSEMENT | C26: =C25*-'Other Inputs'!$E$286 -> -954178.6605 | D26: =D25*-'Other Inputs'!$E$286 -> -920220.3341 | E26: =E25*-'Other Inputs'!$E$286 -> -33958.32638
A28: =A26+1 -> 11 | B28: STORAGE
A29: =A28+1 -> 12 | B29: INJECTIONS | C29: ='Ut 1.4 p2'!E22 -> -12996193.43 | D29: =$D$10/$C$10*C29 -> -12533671.05 | E29: =$E$10/$C$10*C29 -> -462522.3728
A30: =A29+1 -> 13 | B30: WITHDRAWALS | C30: ='Ut 1.4 p2'!E21 -> 12617285 | D30: =$D$10/$C$10*C30 -> 12168247.62 | E30: =$E$10/$C$10*C30 -> 449037.3761
A31: =A30+1 -> 14 | B31: NET (INJECTIONS) WITHDRAWALS | C31: =C29+C30 -> -378908.4278 | D31: =D29+D30 -> -365423.4311 | E31: =E29+E30 -> -13484.99667
A33: =A31+1 -> 15 | B33: Storage Fuel | C33: =Calculations!P164+Calculations!P165-1 -> -726434.8737 | D33: =D10/C10*C33 -> -700581.7357 | E33: =E10/C10*C33 -> -25853.13794
A36: =A33+1 -> 16 | B36: TOTAL SUPPLY | C36: =C21+C22+C25+C26+C29+C30+C33 -> 113183126.2 | D36: =SUM(D21:D30)+D33 -> 109155044.6 | E36: =SUM(E21:E30)+E33 -> 4028081.636
A38: =A36+1 -> 17 | B38: Company Use & Loss % | C38: =(+C36-C10)/C36 -> 0.004939978394 | D38: =(+D36-D10)/D36 -> 0.004939978394 | E38: =(+E36-E10)/E36 -> 0.004939978394
B41: Difference | C41: =C15-C36 -> 1.802065864

Sheet SDR#2
H1: ='Control Panel'!F32 -> Questar Gas Company
H2: ='Control Panel'!F33 -> Docket No. 14-057-22
A5: Standard Data Request #2
A6: Supplier Non-Gas Costs
B8: (A) | C8: (B) | D8: (C) | E8: (D) | F8: (E) | G8: (F) | T8: withdraw
A9: I. Transportation (QPC T-1) | C9: Volume (Dth) | G9: Utah Total | J9: Utah gas | K9: Utah Co. | L9: Utah gas | M9: Wyo gas | N9: Wyo Co. | O9: Wyo gas | Q9: @city gate | R9: @city gate | T9: loss | U9: Kern River
B10: Month | C10: Utah | D10: Wyoming | E10: $/dth | F10: Demand | G10: b*d+e*(Ut %) | J10: purchased | K10: production | L10: withdrawn | M10: purchased | N10: production | O10: withdrawn | P10: Total | Q10: purchased | R10: co production | S10: withdrawls | T10: =-Calculations!P164/Calculations!P137 -> 0.03266081701 | U10: Transportation
B12: =#REF! ->  | C12: =J12+K12+L12-(T12+$B$43*U12)*$J$39 -> 11585374.31 | D12: =M12+N12+O12-(T12+$B$43*U12)*$K$39 -> 427527.9598 | E12: ='Other Inputs'!$F$38 -> 0.00267 | F12: =('Other Inputs'!$D$22)*('Other Inputs'!$F$22)-('Other Inputs'!$E$291/12)+('Other Inputs'!$D$30*'Other Inputs'!$F$30) -> 4383495.463 | G12: =(+C12)*E12+F12*$J$33/$L$33 -> 4282495.785 | J12: =Q12*$J$39 -> 5313058.528 | K12: =R12*$J$39 -> 5792350.445 | L12: =S12*$J$39 -> 642500.209 | M12: =Q12-J12 -> 196064.539 | N12: =R12-K12 -> 213751.5545 | O12: =S12-L12 -> 23709.791 | P12: =SUM(J12:O12)-U12 -> 12034885.07 | Q12: =Calculations!D168 -> 5509123.067 | R12: =Calculations!D160 -> 6006102 | S12: =Calculations!D162+Calculations!D163 -> 666210 | T12: =S12*$T$10 -> 21758.9629 | U12: =V12*W12 -> 146550 | V12: 4885 | W12: 30 | X12: =B12 -> 
B13: =#REF! ->  | C13: =J13+K13+L13-(T13+$B$43*U13)*$J$39 -> 17033343.48 | D13: =M13+N13+O13-(T13+$B$43*U13)*$K$39 -> 628571.0235 | E13: ='Other Inputs'!$F$38 -> 0.00267 | F13: =('Other Inputs'!$D$22)*('Other Inputs'!$F$22)-('Other Inputs'!$E$291/12)+('Other Inputs'!$D$30*'Other Inputs'!$F$30) -> 4383495.463 | G13: 4297041.863 | J13: 6300128.226 | K13: 5815369.97 | L13: 5235096.448 | M13: 232489.7664 | N13: 214601.0299 | O13: 193187.5522 | P13: 17839437.99 | Q13: =Calculations!E168 -> 6532617.992 | R13: =Calculations!E160 -> 6029971 | S13: =Calculations!E162+Calculations!E163 -> 5428284 | T13: =S13*$T$10 -> 177292.1904 | U13: =V13*W13 -> 151435 | V13: 4885 | W13: 31 | X13: =B13 -> 
B14: =#REF! ->  | C14: 18151553.19 | D14: 669835.6303 | E14: ='Other Inputs'!$F$38 -> 0.00267 | F14: =('Other Inputs'!$D$22)*('Other Inputs'!$F$22)-('Other Inputs'!$E$291/12)+('Other Inputs'!$D$30*'Other Inputs'!$F$30) -> 4383495.463 | G14: 4300027.483 | J14: 10208742.5 | K14: 5671301.443 | L14: 3992276.471 | M14: 376726.9609 | N14: 209284.5574 | O14: 147324.5291 | P14: 18959106.46 | Q14: =Calculations!F168 -> 10585469.46 | R14: =Calculations!F160 -> 5880586 | S14: =Calculations!F162+Calculations!F163 -> 4139601 | T14: 135202.7508 | U14: 1646550 | V14: 54885 | W14: 30
B15: =#REF! ->  | C15: 14500270.09 | D15: 535094.5704 | E15: ='Other Inputs'!$F$38 -> 0.00267 | F15: =('Other Inputs'!$D$22)*('Other Inputs'!$F$22)-('Other Inputs'!$E$291/12)+('Other Inputs'!$D$30*'Other Inputs'!$F$30) -> 4383495.463 | G15: 4290278.557 | J15: 9244782.658 | K15: 5008795.493 | L15: 1953896.554 | M15: 341154.5422 | N15: 184836.5069 | O15: 72103.44571 | P15: 15104134.2 | Q15: =Calculations!G168 -> 9585937.2 | R15: =Calculations!G160 -> 5193632 | S15: =Calculations!G162+Calculations!G163 -> 2026000 | T15: 66170.81527 | U15: 1701435 | V15: 54885 | W15: 31
B16: =#REF! ->  | C16: 10017076.26 | D16: 369654.019 | E16: ='Other Inputs'!$F$38 -> 0.00267 | F16: =('Other Inputs'!$D$22)*('Other Inputs'!$F$22)-('Other Inputs'!$E$291/12)+('Other Inputs'!$D$30*'Other Inputs'!$F$30) -> 4383495.463 | G16: 4278308.43 | J16: 6227744.371 | K16: 5432720.643 | L16: 0 | M16: 229818.6294 | N16: 200480.3566 | O16: 0 | P16: 10389329 | Q16: =Calculations!H168 -> 6457563 | R16: =Calculations!H160 -> 5633201 | S16: =Calculations!H162+Calculations!H163 -> 0 | T16: 0 | U16: 1701435 | V16: 54885 | W16: 31
B17: =#REF! ->  | C17: 7131553.425 | D17: 263171.3404 | E17: ='Other Inputs'!$F$38 -> 0.00267 | F17: =('Other Inputs'!$D$22)*('Other Inputs'!$F$22)-('Other Inputs'!$E$291/12)+('Other Inputs'!$D$30*'Other Inputs'!$F$30) -> 4383495.463 | G17: 4270604.084 | J17: 3381196.77 | K17: 5234707.79 | L17: 0 | M17: 124774.2298 | N17: 193173.2098 | O17: 0 | P17: 7397072 | Q17: =Calculations!I168 -> 3505971 | R17: =Calculations!I160 -> 5427881 | S17: =Calculations!I162+Calculations!I163 -> 0 | T17: 0 | U17: 1536780 | V17: 54885 | W17: 28
B18: =#REF! ->  | C18: 3911306.216 | D18: 144336.5335 | E18: ='Other Inputs'!$F$38 -> 0.00267 | F18: =('Other Inputs'!$D$22)*('Other Inputs'!$F$22)-('Other Inputs'!$E$291/12)+('Other Inputs'!$D$30*'Other Inputs'!$F$30) -> 4383495.463 | G18: 4262006.024 | J18: 0.03393838154 | K18: 5381611.686 | L18: 178927.1608 | M18: 0.001252407271 | N18: 198594.3141 | O18: 6602.839231 | P18: 4064301.035 | Q18: =Calculations!J168 -> 0.03519078881 | R18: =Calculations!J160 -> 5580206 | S18: =Calculations!J162+Calculations!J163 -> 185530 | T18: 6059.561381 | U18: 1701435 | V18: 54885 | W18: 31
B19: =#REF! ->  | C19: 5378936.57 | D19: 198495.5959 | E19: ='Other Inputs'!$F$38 -> 0.00267 | F19: =('Other Inputs'!$D$22)*('Other Inputs'!$F$22)-('Other Inputs'!$E$291/12)+('Other Inputs'!$D$30*'Other Inputs'!$F$30) -> 4383495.463 | G19: 4265924.597 | J19: 0.4519805947 | K19: 5422642.549 | L19: 101147.4189 | M19: 0.01667916257 | N19: 200108.4509 | O19: 3732.581138 | P19: 5581081.469 | Q19: =Calculations!K168 -> 0.4686597573 | R19: =Calculations!K160 -> 5622751 | S19: =Calculations!K162+Calculations!K163 -> 104880 | T19: 3425.466488 | U19: 146550 | V19: 4885 | W19: 30
B20: =#REF! ->  | C20: 5271424.528 | D20: 194528.145 | E20: ='Other Inputs'!$F$38 -> 0.00267 | F20: =('Other Inputs'!$D$22)*('Other Inputs'!$F$22)-('Other Inputs'!$E$291/12)+('Other Inputs'!$D$30*'Other Inputs'!$F$30) -> 4383495.463 | G20: 4265637.539 | J20: 0.05752747418 | K20: 5355393.21 | L20: 64403.36224 | M20: 0.002122901083 | N20: 197626.7898 | O20: 2376.637761 | P20: 5468365.06 | Q20: =Calculations!L168 -> 0.05965037527 | R20: =Calculations!L160 -> 5553020 | S20: =Calculations!L162+Calculations!L163 -> 66780 | T20: 2181.08936 | U20: 151435 | V20: 4885 | W20: 31
B21: =#REF! ->  | C21: 5003088.779 | D21: 184625.9155 | E21: ='Other Inputs'!$F$38 -> 0.00267 | F21: =('Other Inputs'!$D$22)*('Other Inputs'!$F$22)-('Other Inputs'!$E$291/12)+('Other Inputs'!$D$30*'Other Inputs'!$F$30) -> 4383495.463 | G21: 4264921.083 | J21: -0.4524679121 | K21: 5144639.524 | L21: 0 | M21: -0.01669714574 | N21: 189849.4758 | O21: 0 | P21: 5187938.531 | Q21: =Calculations!M168 -> -0.4691650579 | R21: =Calculations!M160 -> 5334489 | S21: =Calculations!M162+Calculations!M163 -> 0 | T21: 0 | U21: 146550 | V21: 4885 | W21: 30
B22: =#REF! ->  | C22: 5682721.835 | D22: 209705.9972 | E22: ='Other Inputs'!$F$38 -> 0.00267 | F22: =('Other Inputs'!$D$22)*('Other Inputs'!$F$22)-('Other Inputs'!$E$291/12)+('Other Inputs'!$D$30*'Other Inputs'!$F$30) -> 4383495.463 | G22: 4266735.703 | J22: 787107.0032 | K22: 5041883.468 | L22: 0 | M22: 29046.1268 | N22: 186057.5321 | O22: 0 | P22: 5892659.13 | Q22: =Calculations!N168 -> 816153.13 | R22: =Calculations!N160 -> 5227941 | S22: =Calculations!N162+Calculations!N163 -> 0 | T22: 0 | U22: 151435 | V22: 4885 | W22: 31
B23: =#REF! ->  | C23: 9310605.494 | D23: 343583.5619 | E23: ='Other Inputs'!$F$38 -> 0.00267 | F23: =('Other Inputs'!$D$22)*('Other Inputs'!$F$22)-('Other Inputs'!$E$291/12)+('Other Inputs'!$D$30*'Other Inputs'!$F$30) -> 4383495.463 | G23: 4276422.153 | J23: 4328711.566 | K23: 5128162.563 | L23: 0 | M23: 159739.787 | N23: 189241.4366 | O23: 0 | P23: 9654420.353 | Q23: =Calculations!O168 -> 4488451.353 | R23: =Calculations!O160 -> 5317404 | S23: =Calculations!O162+Calculations!O163 -> 0 | T23: 0 | U23: 151435 | V23: 4885 | W23: 31
C26: =SUM(C12:C23) -> 112977254.2 | D26: =SUM(D12:D23) -> 4169130.292 | G26: =SUM(G12:G23) -> 51320403.3 | J26: =SUM(J12:J25) -> 45791471.72 | K26: 64429578.79 | L26: 12168247.62 | M26: 1689814.585 | N26: 2377605.214 | O26: 449037.3761 | P26: =SUM(P12:P23) -> 117572730.3 | Q26: 47481286.3 | R26: 66807184 | S26: 12617285 | T26: 412090.8366 | U26: 9333025
C29: Months | F29: System | G29: Utah | J29: Allocation Factors
C30: or Days | D30: Dth | E30: Rate | F30: Total | G30: Total
J31: Peak Demand Allocation Base
A32: II. Transportation (ML 104 demand) | C32: ='Other Inputs'!E23 -> 12 | D32: ='Other Inputs'!D23 -> 30000 | E32: ='Other Inputs'!F23 -> 5.28804 | F32: =C32*D32*E32 -> 1903694.4 | G32: =F32*J34 -> 1846397.796 | J32: Utah | K32: Wyo | L32: Total
J33: ='Other Inputs'!E129 -> 1263667.429 | K33: ='Other Inputs'!E130 -> 39213.57146 | L33: =J33+K33 -> 1302881
J34: =J33/L33 -> 0.9699024151 | K34: =K33/L33 -> 0.03009758486
A36: III. Transportation (TL 112 demand) | C36: ='Other Inputs'!E24 -> 12 | D36: ='Other Inputs'!D24 -> 12000 | E36: ='Other Inputs'!F24 -> 5.28804 | F36: =C36*D36*E36 -> 761477.76 | G36: =F36*J34 -> 738559.1185 | J36: Dth Sales Allocation Base
C37: ='Other Inputs'!E25 -> 5 | D37: ='Other Inputs'!D25 -> 75000 | E37: ='Other Inputs'!F25 -> 6.80887 | F37: =C37*D37*E37 -> 2553326.25 | G37: =F37*J34 -> 2476477.297 | J37: Utah | K37: Wyo | L37: Total
J38: =Calculations!P20 -> 108615821 | K38: =Calculations!P39 -> 4008183 | L38: =J38+K38 -> 112624004
A39: IV. Transportation (KR 2003 Expansion) | C39: ='Other Inputs'!E54 -> 12 | D39: ='Other Inputs'!D54 -> 3000 | E39: ='Other Inputs'!F54 -> 14.34754167 | F39: =C39*D39*E39 -> 516511.5 | J39: =J38/L38 -> 0.964410935 | K39: =K38/L38 -> 0.03558906501
C40: ='Other Inputs'!E55 -> 5 | D40: ='Other Inputs'!D55 -> 50000 | E40: ='Other Inputs'!F55 -> 14.34754167 | F40: =C40*D40*E40 -> 3586885.417 | G40: =(F39+F40+F41)*J34 -> 4369140.65
C41: ='Other Inputs'!E56 -> 12 | D41: ='Other Inputs'!D56 -> 1885 | E41: ='Other Inputs'!F56 -> 17.74204167 | F41: =C41*D41*E41 -> 401324.9825
A43: V. Trans (KR 2003 Expansion) | B43: ='Other Inputs'!C61 -> 1.001527372 | C43: ='Other Inputs'!E60 -> 365 | D43: ='Other Inputs'!D60 -> 4885 | E43: ='Other Inputs'!F60 -> 0.0044 | F43: =B43*C43*D43*E43 -> 7857.292706
B44: ='Other Inputs'!C60 -> 1.001527372 | C44: ='Other Inputs'!E61 -> 151 | D44: ='Other Inputs'!D61 -> 50000 | E44: ='Other Inputs'!F61 -> 0.0044 | F44: =B44*C44*D44*E44 -> 33270.73929 | G44: =(F43+F44)*J39 -> 39664.3238
A47: VI. Other Trans, Gathering & Processing | F47: ='Other Inputs'!$D$165+'Other Inputs'!$D$167 -> 5556681.97 | G47: =F47*$J$39 -> 5358924.854
A49: VII. QGM Gathering | B49: Demand | C49: ='Ut 1.3 p1'!H49 -> 12 | E49: ='Ut 1.3 p1'!J49 -> 745178 | F49: =C49*E49 -> 8942136
B50: Commodity | C50: ='Ut 1.3 p1'!F50 -> 41846570.98 | D50: ='Ut 1.3 p1'!F50 -> 41846570.98 | E50: ='Ut 1.3 p1'!J50 -> 0.12579 | F50: =C50*E50 -> 5263880.164 | G50: =(F49)*'Ut 1.5'!G51+(F50)*'Ut 1.5'!G54 -> 13749542.89
A51: Wexpro II Gathering | B51: Commodity | D51: ='Ut 1.3 p1'!F53 -> 4165731.243 | E51: ='Ut 1.3 p1'!J53 -> 0.42172 | F51: =E51*D51 -> 1756772.18 | G51: =(F51)*'Ut 1.5'!G54 -> 1694250.3
A53: VII. Storage Demand | C53: 12 | D53: ='Other Inputs'!E151 -> 184625 | E53: ='Other Inputs'!E14 -> 2.87375 | F53: =C53*D53*E53 -> 6366793.125
C54: 12 | D54: ='Other Inputs'!E152 -> 0 | E54: ='Other Inputs'!E15 -> 0.09 | F54: =C54*D54*E54 -> 0
C55: 12 | D55: ='Other Inputs'!E153 -> 111827 | E55: ='Other Inputs'!E16 -> 2.85338 | F55: =C55*D55*E55 -> 3829019.103
C56: 12 | D56: ='Other Inputs'!E154 -> 13419000 | E56: ='Other Inputs'!E17 -> 0.02378 | F56: =C56*D56*E56 -> 3829245.84 | G56: =SUM(F53:F56)*J34 -> 13602937.69
A59: Total Supplier Non-Gas Costs | G59: =G26+G32+G36+G37+G40+G44+G47+G51+G56+G50 -> 95196298.22

Sheet SDR#3
I1: ='Control Panel'!F32 -> Questar Gas Company
I2: ='Control Panel'!F33 -> Docket No. 14-057-22
C5: Standard Data Request #3
C6: Monthly Forecasted Sales
D8: Utah Sales | F8: Wyoming Sales | H8: System Total
C9: Month | D9: Dth | F9: Dth | H9: Dth
B11: 1 | C11: =Calculations!D141 -> Nov14 | D11: =Calculations!D20 -> 11685331 | F11: =Calculations!D39 -> 414250 | H11: =SUM(D11:F11) -> 12099581
B13: =B11+1 -> 2 | C13: =Calculations!E141 -> Dec14 | D13: =Calculations!E20 -> 17137808 | F13: =Calculations!E39 -> 587808 | H13: =SUM(D13:F13) -> 17725616
B15: =B13+1 -> 3 | C15: =Calculations!F141 -> Jan15 | D15: =Calculations!F20 -> 19729363 | F15: =Calculations!F39 -> 640052 | H15: 20369415
B17: =B15+1 -> 4 | C17: =Calculations!G141 -> Feb15 | D17: =Calculations!G20 -> 16060927 | F17: =Calculations!G39 -> 595700 | H17: 16656627
B19: =B17+1 -> 5 | C19: =Calculations!H141 -> Mar15 | D19: =Calculations!H20 -> 11551590 | F19: =Calculations!H39 -> 479446 | H19: 12031036
B21: =B19+1 -> 6 | C21: =Calculations!I141 -> Apr15 | D21: =Calculations!I20 -> 8542016 | F21: =Calculations!I39 -> 347703 | H21: 8889719
B23: =B21+1 -> 7 | C23: =Calculations!J141 -> May15 | D23: =Calculations!J20 -> 4699426 | F23: =Calculations!J39 -> 236952 | H23: 4936378
B25: =B23+1 -> 8 | C25: =Calculations!K141 -> Jun15 | D25: =Calculations!K20 -> 3318191 | F25: =Calculations!K39 -> 129185 | H25: 3447376
B27: =B25+1 -> 9 | C27: =Calculations!L141 -> Jul15 | D27: =Calculations!L20 -> 2722847 | F27: =Calculations!L39 -> 92404 | H27: 2815251
B29: =B27+1 -> 10 | C29: =Calculations!M141 -> Aug15 | D29: =Calculations!M20 -> 2710163 | F29: =Calculations!M39 -> 82209 | H29: 2792372
B31: =B29+1 -> 11 | C31: =Calculations!N141 -> Sep15 | D31: =Calculations!N20 -> 3779169 | F31: =Calculations!N39 -> 150364 | H31: 3929533
B33: =B31+1 -> 12 | C33: =Calculations!O141 -> Oct15 | D33: =Calculations!O20 -> 6678990 | F33: =Calculations!O39 -> 252110 | H33: 6931100
B36: =B33+1 -> 13 | C36: Total Sales (Dth) | D36: =SUM(D11:D33) -> 108615821 | F36: =SUM(F11:F33) -> 4008183 | H36: =SUM(H11:H33) -> 112624004

Sheet SDR#4
H1: ='Control Panel'!F32 -> Questar Gas Company
H2: ='Control Panel'!F33 -> Docket No. 14-057-22
C5: Standard Data Request #4
C6: Supplier Non-Gas Costs Recovered at Current Rates
C9: (A) | D9: (B) | E9: (C) | F9: (D) | G9: (E)
B10: 1 | C10: Rate Schedule | D10: Season | E10: Sales Dth | F10: SNG Rate | G10: SNG Revenue
B12: =B10+1 -> 2 | C12: GS | D12: winter | E12: ='Utah Summary-by class'!B8 -> 72205238 | F12: ='Utah Summary-by class'!J8 -> 1.05304 | G12: =E12*F12 -> 76035003.82
B13: =B12+1 -> 3 | D13: summer | E13: ='Utah Summary-by class'!B9 -> 28208562 | F13: ='Utah Summary-by class'!J9 -> 0.49441 | G13: =E13*F13 -> 13946595.14
B15: =B13+1 -> 4 | C15: FS | D15: winter | E15: ='Utah Summary-by class'!B13 -> 2488527 | F15: ='Utah Summary-by class'!J13 -> 1.02562 | G15: =E15*F15 -> 2552283.062
B16: =B15+1 -> 5 | D16: summer | E16: ='Utah Summary-by class'!B14 -> 2386491 | F16: ='Utah Summary-by class'!J14 -> 0.4944 | G16: =E16*F16 -> 1179881.15
B18: =B16+1 -> 6 | C18: NGV | D18: annual | E18: ='Utah Summary-by class'!B19 -> 685667 | F18: ='Utah Summary-by class'!J19 -> 0.7599 | G18: =E18*F18 -> 521038.3533
B20: =B18+1 -> 7 | C20: IS | D20: annual | E20: ='Utah Summary-by class'!B21 -> 2641336 | F20: ='Utah Summary-by class'!J27 -> 0.1786 | G20: =E20*F20 -> 471742.6096
B23: =B20+1 -> 8 | C23: Total Supplier Non-Gas Costs | E23: =SUM(E12:E20) -> 108615821 | G23: =SUM(G12:G20) -> 94706544.14

Sheet Ut 1.1
I1: Questar Gas Company
I2: ='Control Panel'!$F$33 -> Docket No. 14-057-22
I3: Exhibit 1.1
D4: Test Year Cost of Questar Gas' Production
D5: =CONCATENATE('Control Panel'!F40," through ",'Control Panel'!F41) -> Nov-14 through Oct-15
B7: WEXPRO I
B8: (A) | C8: (B) | D8: (C) | E8: (D) | F8: (E) | G8: (F) | H8: (G) | I8: (H)
F9: Base Year | G9: Market | H9: Royalty | I9: Test Year
B10: Field Name | C10: Well Name | D10: Formation | E10: Price $ | F10: Dth | G10: Value $ | H10: Rate % | I10: Royalty $
A12: 1 | B12: ACE UNIT (CO) | C12: ACE UNIT 2 FT UN | D12: FORT UNION | E12: 3.571878704 | F12: 57158.823 | G12: =E12*F12 -> 204164.3826 | H12: 0.1268519763 | I12: =G12*H12 -> 25898.65543
A13: =A12+1 -> 2 | C13: ACE UNIT 10 FT UN | D13: MESAVERDE | E13: 3.571878704 | F13: 2479.007 | G13: =E13*F13 -> 8854.712311 | H13: 0.1268519763 | I13: =G13*H13 -> 1123.237756
A14: =A13+1 -> 3 | C14: ACE UNIT 12 FT UN | D14: FORT UNION | E14: 3.571878704 | F14: 44315.263 | G14: =E14*F14 -> 158288.7442 | H14: 0.1268519763 | I14: 20079.24003
A15: 4 | C15: ACE UNIT 11 FT UN | D15: FORT UNION | E15: 3.571878704 | F15: 23226.521 | G15: 82962.31573 | H15: 0.1268519763 | I15: 10523.93371
A16: 5 | C16: ACE UNIT 13 FT UN | D16: FORT UNION | E16: 3.571878704 | F16: 44778.297 | G16: 159942.6455 | H16: 0.1268519763 | I16: =G16*H16 -> 20289.04067
A17: 6 | B17: E HIAW (CO) | C17: HIAWATHA UNIT 1 FT UN | D17: FORT UNION | E17: 3.571878704 | F17: 37146.328 | G17: 132682.1779 | H17: 0.1925 | I17: 25541.31925
A18: 7 | C18: F WILSON A 2 WAS | D18: WASATCH | E18: 3.571878704 | F18: 86366.963 | G18: 308492.3159 | H18: 0.1925 | I18: 59384.77081
A19: 8 | C19: F WILSON B 3 WAS | D19: WASATCH | E19: 3.571878704 | F19: 283786.925 | G19: 1013652.474 | H19: 0.1625 | I19: 164718.527
A20: 9 | C20: F WILSON B 6 WAS | D20: WASATCH | E20: 3.571878704 | F20: 129897.957 | G20: 463979.7463 | H20: 0.1625 | I20: 75396.70878
A21: 10 | C21: F WILSON A 9 WAS | D21: WASATCH | E21: 3.571878704 | F21: 143710.268 | G21: 513315.6459 | H21: 0.1925 | I21: 98813.26183
A22: 11 | C22: F WILSON B 12 FT UN | D22: FORT UNION | E22: 3.571878704 | F22: 71260.452 | G22: 254533.691 | H22: 0.1625 | I22: 41361.72478
A23: 12 | C23: F WILSON B 2 UNIT (HIAW) FT UN | D23: FORT UNION | E23: 3.571878704 | F23: 43442.794 | G23: 155172.3907 | H23: 0.1625 | I23: 25215.5135
A24: 13 | C24: F WILSON A 22 FT UN | D24: FORT UNION | E24: 3.571878704 | F24: 42355.665 | G24: 151289.2978 | H24: 0.1925 | I24: 29123.18983
A25: 14 | C25: STLD 3712100 NE4 2 WAS | D25: WASATCH | E25: 3.571878704 | F25: 14171.054 | G25: 50617.286 | H25: 0.13375 | I25: 6770.062002
A26: 15 | C26: STLD 3712100 SE4 4 WAS | D26: WASATCH | E26: 3.571878704 | F26: 38819.699 | G26: 138659.2562 | H26: 0.1375 | I26: 19065.64772
A27: 16 | C27: STATE LAND 5 FT UN | D27: FORT UNION | E27: 3.571878704 | F27: 33438.831 | G27: 119439.4483 | H27: 0.13375 | I27: 15975.02622
A28: 17 | C28: G KUYKENDALL A 8 FT UN | D28: FORT UNION | E28: 3.571878704 | F28: 5404.248 | G28: 19303.31834 | H28: 0.1925 | I28: 3715.888781
A29: 18 | C29: KS WHITFORD 1 WAS | D29: WASATCH | E29: 3.571878704 | F29: 58837.787 | G29: 210161.4384 | H29: 0.155 | I29: 32575.02295
A30: 19 | C30: F WILSON B 24 FT UN | D30: FORT UNION | E30: 3.571878704 | F30: 83452.31 | G30: 298081.5289 | H30: 0.1625 | I30: 48438.24845
A31: 20 | C31: F WILSON A 26 FT UN | D31: FORT UNION | E31: 3.571878704 | F31: 177563.826 | G31: 634236.4487 | H31: 0.1925 | I31: 122090.5164
A32: 21 | C32: HIAWATHA STATELAND 6 FT UN | D32: FORT UNION | E32: 3.571878704 | F32: 13398.883 | G32: 47859.18485 | H32: 0.13375 | I32: 6401.165974
A33: 22 | C33: F WILSON A 7 UPPER WAS | D33: WASATCH | E33: 3.571878704 | F33: 182.981 | G33: 653.5859372 | H33: 0.1925 | I33: 125.8152929
A34: 23 | C34: G KUYKENDALL 9 FT UN | D34: FORT UNION | E34: 3.571878704 | F34: 27683.214 | G34: 98881.08255 | H34: 0.1925 | I34: 19034.60839
A35: 24 | C35: F WILSON A 20 FT UN | D35: FORT UNION | E35: 3.571878704 | F35: 1349.98 | G35: 4821.964813 | H35: 0.1925 | I35: 928.2282265
A36: 25 | C36: F WILSON A 20 LEW/LAN/FT UN | D36: LEWIS/LANCE/FT U | E36: 3.571878704 | F36: 25641.545 | G36: 91588.48853 | H36: 0.1925 | I36: 17630.78404
A37: 26 | C37: F WILSON 32 MESA | D37: MESAVERDE | E37: 3.571878704 | F37: 4530.393 | G37: 16182.01428 | H37: 0.1925 | I37: 3115.037749
A38: 27 | C38: F WILSON 32 LEWIS | D38: LEWIS | E38: 3.571878704 | F38: 32484.674 | G38: 116031.3153 | H38: 0.1925 | I38: 22336.02819
A39: 28 | C39: F WILSON 32 LANCE | D39: LANCE | E39: 3.571878704 | F39: 36629.317 | G39: 130835.4773 | H39: 0.1925 | I39: 25185.82939
A40: 29 | C40: HIAWATHA STLD 7 FT UN | D40: FORT UNION | E40: 3.571878704 | F40: 37812.594 | G40: 135061.9993 | H40: 0.1375 | I40: 18571.0249
A41: 30 | C41: F WILSON 33 FT UN | D41: FORT UNION | E41: 3.571878704 | F41: 504363.224 | G41: 1801524.259 | H41: 0.1925 | I41: 346793.4199
A42: 31 | C42: F WILSON 33 LEWIS | D42: LEWIS | E42: 3.571878704 | F42: 9688.937 | G42: 34607.70774 | H42: 0.1925 | I42: 6661.983739
A43: 32 | C43: F WILSON 33 LANCE | D43: LANCE | E43: 3.571878704 | F43: 9688.937 | G43: 34607.70774 | H43: 0.1925 | I43: 6661.983739
A44: 33 | C44: F WILSON 34 LEW/LAN/FT UN | D44: LEWIS/LANCE/FT U | E44: 3.571878704 | F44: 39141.133 | G44: 139807.3794 | H44: 0.1625 | I44: 22718.69916
A45: 34 | C45: F WILSON 35 MESA | D45: MESAVERDE | E45: 3.571878704 | F45: 1587.22 | G45: 5669.357317 | H45: 0.1925 | I45: 1091.351284
A46: 35 | C46: F WILSON 35 LEW/LAN/FT UN | D46: LEWIS/LANCE/FT U | E46: 3.571878704 | F46: 77723.322 | G46: 277618.2787 | H46: 0.1925 | I46: 53441.51865
A47: 36 | C47: F WILSON 29E (DD) FT UN | D47: FORT UNION | E47: 3.571878704 | F47: 20740.855 | G47: 74083.81828 | H47: 0.1625 | I47: 12038.62047
A48: 37 | C48: F WILSON 37 MESA | D48: FORT UNION | E48: 3.571878704 | F48: 11253.69 | G48: 40196.81566 | H48: 0.2325 | I48: 9345.75964
A49: 38 | C49: F WILSON 37 LEW/LNC/FTUN | D49: FORT UNION | E49: 3.571878704 | F49: 63768.337 | G49: 227772.7649 | H49: 0.1625 | I49: 37013.0743
A50: 39 | B50: HIAW DEEP (CO) | C50: HIAWATHA DEEP UNIT 1 NUGGET | D50: NUGGET | E50: 3.571878704 | F50: 47179.114 | G50: 168518.0726 | H50: 0.1723962084 | I50: 29051.87675
A51: 40 | C51: HIAWATHA DEEP UNIT 3 NUGGET | D51: NUGGET | E51: 3.571878704 | F51: 184238.832 | G51: 658078.7605 | H51: 0.1714959958 | I51: 112857.8723
A52: 41 | C52: HIAWATHA DEEP UNIT 2 NUGGET | D52: NUGGET | E52: 3.571878704 | F52: 7985.973 | G52: 28524.92689 | H52: 0.172395903 | I52: 4917.580529
A53: 42 | B53: JACKS DRAW (CO) | C53: JACKS DRAW UNIT 2 FT UN | D53: FORT UNION | E53: 3.571878704 | F53: 51255.537 | G53: 183078.5611 | H53: 0.1396875 | I53: 25573.7865
A54: 43 | C54: JACKS DRAW UNIT 3 FT UN | D54: FORT UNION | E54: 3.571878704 | F54: 11180.444 | G54: 39935.18983 | H54: 0.1396875 | I54: 5578.446829
A55: 44 | C55: JACKS DRAW UNIT 9 FT UN | D55: FORT UNION | E55: 3.571878704 | F55: 31350.01 | G55: 111978.4331 | H55: 0.1396875 | I55: 15641.98737
A56: 45 | C56: JACKS DRAW UNIT 5 FT UN | D56: FORT UNION | E56: 3.571878704 | F56: 1507.215 | G56: 5383.589161 | H56: 0.1489132823 | I56: 801.6879327
A57: 46 | C57: JACKS DRAW UNIT 8 FT UN | D57: FORT UNION | E57: 3.571878704 | F57: 3517.284 | G57: 12563.31182 | H57: 0.1489132823 | I57: 1870.843999
A58: 47 | C58: JACKS DRAW UNIT 17 FT UN | D58: FORT UNION | E58: 3.571878704 | F58: 24863.394 | G58: 88809.02754 | H58: 0.1396875 | I58: 12405.51104
A59: 48 | C59: JACKS DRAW UNIT 18 FT UN | D59: FORT UNION | E59: 3.571878704 | F59: 181013.356 | G59: 646557.7515 | H59: 0.1396877 | I59: 90316.16522
A60: 49 | C60: JACKS DRAW UNIT 19 FT UN | D60: FORT UNION | E60: 3.571878704 | F60: 144212.337 | G60: 515108.9754 | H60: 0.149541643 | I60: 77030.24249
A61: 50 | C61: JACKS DRAW UNIT 20 FT UN | D61: FORT UNION | E61: 3.571878704 | F61: 153759.723 | G61: 549211.0802 | H61: 0.1396877 | I61: 76718.0326
A62: 51 | B62: LO HORSE DR (CO) | C62: LOWER HORSE DRAW 11-1 MANCOS B | D62: MANCOS B | E62: 3.571878704 | F62: 1238.106 | G62: 4422.364455 | H62: 0.125 | I62: 552.7955569
A63: 52 | C63: LOWER HORSE DRAW 12-2 MANCOS B | D63: MANCOS B | E63: 3.571878704 | F63: 39894.089 | G63: 142496.8469 | H63: 0.125 | I63: 17812.10587
A64: 53 | C64: LOWER HORSE DRAW 10-1 MANCOS B | D64: MANCOS B | E64: 3.571878704 | F64: 2846.055 | G64: 10165.76325 | H64: 0.125 | I64: 1270.720406
A65: 54 | C65: LOWER HORSE DRAW 10-2 MB SILT | D65: MANCOS B SILT | E65: 3.571878704 | F65: 5711.282 | G65: 20400.00655 | H65: 0.125 | I65: 2550.000819
A66: 55 | C66: LOWER HORSE FED 11-5 MANCOS B | D66: MANCOS B | E66: 3.571878704 | F66: 25484.192 | G66: 91026.4427 | H66: 0.125 | I66: 11378.30534
A67: 56 | C67: LOWER HORSE FED 11-5 MB SILT | D67: MANCOS B SILT | E67: 3.571878704 | F67: 16641.846 | G67: 59442.65533 | H67: 0.125 | I67: 7430.331916
A68: 57 | B68: POWDER WASH (CO) | C68: CARL ALLEN B 4 WAS | D68: WASATCH | E68: 3.571878704 | F68: 488.893 | G68: 1746.266495 | H68: 0.1100461 | I68: 192.1698174
A69: 58 | C69: CARL ALLEN B 6 FT UN | D69: FORT UNION | E69: 3.571878704 | F69: 25706.191 | G69: 91819.3962 | H69: 0.1100461 | I69: 10104.36646
A70: 59 | C70: CARL ALLEN B 6 LOWER FT UN | D70: FORT UNION | E70: 3.571878704 | F70: 25706.191 | G70: 91819.3962 | H70: 0.1100461 | I70: 10104.36646
A71: 60 | C71: CARL ALLEN B 7 FT UN | D71: FORT UNION | E71: 3.571878704 | F71: 7909.435 | G71: 28251.54244 | H71: 0.1100461 | I71: 3108.972064
A72: 61 | C72: CARL ALLEN A 8 FT UN | D72: FORT UNION | E72: 3.571878704 | F72: 29380.416 | G72: 104943.2822 | H72: 0.1100461 | I72: 11548.59893
A73: 62 | C73: CARL ALLEN B 10 WAS | D73: WASATCH | E73: 3.571878704 | F73: 1406.175 | G73: 5022.686537 | H73: 0.1100461 | I73: 552.7270649
A74: 63 | C74: CARL ALLEN A 11 FT UN | D74: FORT UNION | E74: 3.571878704 | F74: 2462.362 | G74: 8795.25839 | H74: 0.1100461 | I74: 967.8838843
A75: 64 | C75: CARL ALLEN A 11 LOWER FT UN | D75: FORT UNION | E75: 3.571878704 | F75: 46741.918 | G75: 166956.4615 | H75: 0.110046 | I75: 18372.89076
A76: 65 | C76: CARL ALLEN A 14 WAS | D76: WASATCH | E76: 3.571878704 | F76: 1 | G76: 3.571878704 | H76: 0.1100461 | I76: 0.3930713211
A77: 66 | C77: CARL ALLEN B 15 WAS | D77: WASATCH | E77: 3.571878704 | F77: 9342.338 | G77: =E77*F77 -> 33369.69815 | H77: 0.1100461 | I77: =G77*H77 -> 3672.20514
A78: =A77+1 -> 67 | C78: CARL ALLEN B 17 WAS | D78: WASATCH | E78: 3.571878704 | F78: 12013.727 | G78: 42911.57563 | H78: 0.1100461 | I78: 4722.251543
A79: 68 | C79: CARL ALLEN A 19 FT UN | D79: FORT UNION | E79: 3.571878704 | F79: 87926.951 | G79: 314064.4038 | H79: 0.1100461 | I79: 34561.56279
A80: 69 | C80: CARL ALLEN A 20 FT UN | D80: FORT UNION | E80: 3.571878704 | F80: 28743.91 | G80: 102669.76 | H80: 0.1100461 | I80: 11298.40668
A81: 70 | C81: BW MUSSER A 1 WAS | D81: WASATCH | E81: 3.571878704 | F81: 12186.229 | G81: 43527.73185 | H81: 0.1100461 | I81: 4790.057132
A82: 71 | C82: BW MUSSER B 21 FT UN | D82: FORT UNION | E82: 3.571878704 | F82: 7817.416 | G82: 27922.86173 | H82: 0.1100461 | I82: 3072.802035
A83: 72 | C83: BW MUSSER B 6 WAS | D83: WASATCH | E83: 3.571878704 | F83: 67.98 | G83: 242.8163143 | H83: 0.1100461 | I83: 26.72098841
A84: 73 | C84: BW MUSSER B 10 FT UN | D84: FORT UNION | E84: 3.571878704 | F84: 15064.329 | G84: 53807.95595 | H84: 0.1100461 | I84: 5921.355701
A85: 74 | C85: BW MUSSER B 11 FT UN | D85: FORT UNION | E85: 3.571878704 | F85: 12653.846 | G85: 45198.00305 | H85: 0.1100461 | I85: 4973.863964
A86: 75 | C86: JC DONNELL B 3 WAS | D86: WASATCH | E86: 3.571878704 | F86: 53943.874 | G86: 192680.9748 | H86: 0.1100461 | I86: 21203.78982
A87: 76 | C87: JC DONNELL B 5 FT UN | D87: FORT UNION | E87: 3.571878704 | F87: 24263.996 | G87: 86668.05059 | H87: 0.1100461 | I87: 9537.480962
A88: 77 | C88: JC DONNELL B 9 FT UN | D88: FORT UNION | E88: 3.571878704 | F88: 19657.923 | G88: 70215.71653 | H88: 0.1100461 | I88: 7726.965763
A89: 78 | C89: JC DONNELL B 10 FT UN | D89: FORT UNION | E89: 3.571878704 | F89: 44647.288 | G89: 159474.6972 | H89: 0.1100461 | I89: 17549.56848
A90: 79 | C90: H STEWART A 1 FT UN | D90: FORT UNION | E90: 3.571878704 | F90: 9404.672 | G90: 33592.34764 | H90: 0.1100461 | I90: 3696.706847
A91: 80 | C91: BW MUSSER B 13 FT UN | D91: FORT UNION | E91: 3.571878704 | F91: 28136.845 | G91: 100501.3975 | H91: 0.1100461 | I91: 11059.78684
A92: 81 | C92: BW MUSSER A 14 FT UN | D92: FORT UNION | E92: 3.571878704 | F92: 23588.793 | G92: 84256.30738 | H92: 0.1100461 | I92: 9272.078027
A93: 82 | C93: BW MUSSER 15 UPPER FT UN | D93: FORT UNION | E93: 3.571878704 | F93: 14592.22 | G93: 52121.63987 | H93: 0.1100461 | I93: 5735.783193
A94: 83 | C94: BW MUSSER B 18 FT UN | D94: FORT UNION | E94: 3.571878704 | F94: 42088.91 | G94: 150336.4813 | H94: 0.1100461 | I94: 16543.94346
A95: 84 | C95: BW MUSSER B 19 FT UN | D95: FORT UNION | E95: 3.571878704 | F95: 36612.936 | G95: 130776.9664 | H95: 0.1100461 | I95: 14391.49512
A96: 85 | C96: BW MUSSER B 20 FT UN | D96: FORT UNION | E96: 3.571878704 | F96: 8557.577 | G96: 30566.62705 | H96: 0.1100461 | I96: 3363.738097
A97: 86 | C97: POWDER WASH GOVT 1 FT UN | D97: FORT UNION | E97: 3.571878704 | F97: 10405.777 | G97: 37168.17327 | H97: 0.1100461 | I97: 4090.212512
A98: 87 | C98: JC DONNELL A 11 FT UN | D98: FORT UNION | E98: 3.571878704 | F98: 68171.722 | G98: 243501.122 | H98: 0.1100461 | I98: 26796.34883
A99: 88 | C99: JA LEE 1 FT UN | D99: FORT UNION | E99: 3.571878704 | F99: 21338.587 | G99: 76218.84448 | H99: 0.1100461 | I99: 8387.586582
A100: 89 | C100: JC DONNELL A 1 FT UN | D100: FORT UNION | E100: 3.571878704 | F100: 17090.923 | G100: 61046.7039 | H100: 0.1100461 | I100: 6717.951682
A101: 90 | C101: MFS 20-1 FT UN | D101: FORT UNION | E101: 3.571878704 | F101: 87896.148 | G101: 313954.3792 | H101: 0.125 | I101: 39244.2974
A102: 91 | C102: CARL ALLEN A 16 WAS | D102: WASATCH | E102: 3.571878704 | F102: 17053.382 | G102: 60912.612 | H102: 0.1100461 | I102: 6703.195392
A103: 92 | C103: H STEWART A 2 FT UN | D103: FORT UNION | E103: 3.571878704 | F103: 98396.565 | G103: 351460.5951 | H103: 0.1100461 | I103: 38676.86779
A104: 93 | C104: CARL ALLEN B 9 UPPER WAS | D104: WASATCH | E104: 3.571878704 | F104: 14828.739 | G104: 52966.45705 | H104: 0.1100461 | I104: 5828.752029
A105: 94 | C105: CARL ALLEN A 2 WAS | D105: WASATCH | E105: 3.571878704 | F105: 25085.41 | G105: 89602.04177 | H105: 0.1100461 | I105: 9860.355248
A106: 95 | C106: BW MUSSER 22 FT UN | D106: FORT UNION | E106: 3.571878704 | F106: 117.011 | G106: 417.9490991 | H106: 0.1100461 | I106: 45.99366835
A107: 96 | C107: CARL ALLEN 22 FT UN | D107: FORT UNION | E107: 3.571878704 | F107: 118310.071 | G107: 422589.2231 | H107: 0.1100461 | I107: 46504.2959
A108: 97 | C108: JC DONNELL 14-29 FT UN | D108: FORT UNION | E108: 3.571878704 | F108: 155086.587 | G108: 553950.4774 | H108: 0.1100461 | I108: 60960.08963
A109: 98 | C109: CARL ALLEN 23 FT UN | D109: FORT UNION | E109: 3.571878704 | F109: 49290.753 | G109: 176060.591 | H109: 0.1100461 | I109: 19374.7814
A110: 99 | C110: BW MUSSER 23 FT UN | D110: FORT UNION | E110: 3.571878704 | F110: 84600.464 | G110: 302182.5957 | H110: 0.1100461 | I110: 33254.01615
A111: 100 | C111: BW MUSSER 24 FT UN | D111: FORT UNION | E111: 3.571878704 | F111: 56639.383 | G111: 202309.006 | H111: 0.1100461 | I111: 22263.3171
A112: 101 | C112: CARL ALLEN 26 FT UN | D112: MESAVERDE | E112: 3.571878704 | F112: 168575.303 | G112: 602130.5349 | H112: 0.1100461 | I112: 66262.11705
A113: 102 | C113: CARL ALLEN 25 FT UN | D113: WASATCH | E113: 3.571878704 | F113: 223781.388 | G113: 799319.9742 | H113: 0.1100461 | I113: 87962.04581
A114: 103 | C114: H STEWART 5 FT UN | D114: FORT UNION | E114: 3.571878704 | F114: 137042.935 | G114: 489500.7411 | H114: 0.1100461 | I114: 53867.6475
A115: 104 | C115: CARL ALLEN 27 FT UN | D115: FORT UNION | E115: 3.571878704 | F115: 253099.386 | G115: 904040.3069 | H115: 0.110046 | I115: 99486.01962
A116: 105 | C116: CARL ALLEN 28 FT UN | D116: FORT UNION | E116: 3.571878704 | F116: 77802.037 | G116: 277899.4391 | H116: 0.110046 | I116: 30581.72168
A117: 106 | C117: CARL ALLEN 29 FT UN | D117: FORT UNION | E117: 3.571878704 | F117: 77469.178 | G117: 276710.5071 | H117: 0.110046 | I117: 30450.88447
A118: 107 | C118: BW MUSSER 27 FT UN | D118: FORT UNION | E118: 3.571878704 | F118: 115843.791 | G118: 413779.9701 | H118: 0.110046 | I118: 45534.83059
A119: 108 | C119: JC DONNELL 14 FT UN | D119: FORT UNION | E119: 3.571878704 | F119: 45073.734 | G119: 160997.9106 | H119: 0.110046 | I119: 17717.17607
A120: 109 | C120: JC DONNELL 15 FT UN | D120: FORT UNION | E120: 3.571878704 | F120: 80689.35 | G120: 288212.5709 | H120: 0.110046 | I120: 31716.64058
A121: 110 | C121: JC DONNELL 16 FT UN | D121: FORT UNION | E121: 3.571878704 | F121: 85443.257 | G121: 305192.9501 | H121: 0.110046 | I121: 33585.26339
A122: 111 | C122: BW MUSSER 28 FT UN | D122: FORT UNION | E122: 3.571878704 | F122: 7821.998 | G122: 27939.22808 | H122: 0.110046 | I122: 3074.600293
A123: 112 | C123: BW MUSSER 29 FT UN | D123: FORT UNION | E123: 3.571878704 | F123: 87789.981 | G123: 313575.1636 | H123: 0.110046 | I123: 34507.69245
A124: 113 | C124: BW MUSSER 26R FT UN | D124: FORT UNION | E124: 3.571878704 | F124: 84773.702 | G124: 302801.3809 | H124: 0.1100461 | I124: 33322.11104
A125: 114 | C125: CARL ALLEN 30 FT UN | D125: FORT UNION | E125: 3.571878704 | F125: 107286.086 | G125: 383212.8858 | H125: 0.110046 | I125: 42171.04524
A126: 115 | C126: CARL ALLEN 31 FT UN | D126: FORT UNION | E126: 3.571878704 | F126: 264313.243 | G126: 944094.8439 | H126: 0.110046 | I126: 103893.8612
A127: 116 | C127: CARL ALLEN 32 FT UN | D127: FORT UNION | E127: 3.571878704 | F127: 126911.23 | G127: 453311.5198 | H127: 0.110046 | I127: 49885.1195
A128: 117 | C128: CARL ALLEN 33 FT UN | D128: FORT UNION | E128: 3.571878704 | F128: 12518.541 | G128: 44714.71001 | H128: 0.110046 | I128: 4920.674977
A129: 118 | C129: CARL ALLEN 34 FT UN | D129: FORT UNION | E129: 3.571878704 | F129: 132774.742 | G129: 474255.2734 | H129: 0.110046 | I129: 52189.89582
A130: 119 | C130: JC DONNELL 18 FT UN | D130: FORT UNION | E130: 3.571878704 | F130: 18535.166 | G130: 66205.36472 | H130: 0.110046 | I130: 7285.635565
A131: 120 | C131: BW MUSSER 31 FT UN | D131: FORT UNION | E131: 3.571878704 | F131: 146367.932 | G131: 522808.4993 | H131: 0.110046 | I131: 57532.98411
A132: 121 | C132: BW MUSSER 32 FT UN | D132: FORT UNION | E132: 3.571878704 | F132: 92612.971 | G132: 330802.2989 | H132: 0.110046 | I132: 36403.46978
A133: 122 | C133: BW MUSSER 34 FT UN | D133: FORT UNION | E133: 3.571878704 | F133: 97705.777 | G133: 348993.1842 | H133: 0.110046 | I133: 38405.30394
A134: 123 | C134: BW MUSSER 35 FT UN | D134: FORT UNION | E134: 3.571878704 | F134: 9242.426 | G134: 33012.82461 | H134: 0.110046 | I134: 3632.929297
A135: 124 | C135: STEWART 6 FT UN | D135: FORT UNION | E135: 3.571878704 | F135: 113514.677 | G135: 405460.6574 | H135: 0.110046 | I135: 44619.3235
A136: 125 | C136: BW MUSSER 36 FT UN | D136: FORT UNION | E136: 3.571878704 | F136: 198637.456 | G136: 709508.899 | H136: 0.110046 | I136: 78078.61629
A137: 126 | C137: BW MUSSER 37 FT UN | D137: FORT UNION | E137: 3.571878704 | F137: 149295.789 | G137: 533266.4494 | H137: 0.110046 | I137: 58683.83969
A138: 127 | C138: CARL ALLEN 35 FT UN | D138: FORT UNION | E138: 3.571878704 | F138: 93370.903 | G138: 333509.54 | H138: 0.110046 | I138: 36701.39084
A139: 128 | C139: CARL ALLEN 36 FT UN | D139: FORT UNION | E139: 3.571878704 | F139: 189397.588 | G139: 676505.2112 | H139: 0.110046 | I139: 74446.69247
A140: 129 | C140: BW MUSSER 38 FT UN | D140: FORT UNION | E140: 3.571878704 | F140: 214113.174 | G140: 764786.2865 | H140: 0.110046 | I140: 84161.67169
A141: 130 | C141: BW MUSSER 39 FT UN | D141: FORT UNION | E141: 3.571878704 | F141: 161304.885 | G141: =E141*F141 -> 576161.4836 | H141: 0.110046 | I141: =G141*H141 -> 63404.26663
A142: =A141+1 -> 131 | C142: CARL ALLEN 37 FT UN | D142: FORT UNION | E142: 3.571878704 | F142: 161920.332 | G142: 578359.7857 | H142: 0.1100461 | I142: 63646.23881
A143: 132 | C143: BW MUSSER 42 FT UN | D143: FORT UNION | E143: 3.571878704 | F143: 102772.907 | G143: 367092.3579 | H143: 0.110046 | I143: 40397.04562
A144: 133 | C144: POWDER WASH GOVT 17 FT UN | D144: FORT UNION | E144: 3.571878704 | F144: 21799.848 | G144: 77866.41283 | H144: 0.110046 | I144: 8568.887266
A145: 134 | C145: BW MUSSER 72 FT UN | D145: FORT UNION | E145: 3.571878704 | F145: 15642.09 | G145: 55871.64816 | H145: 0.110046 | I145: 6148.451394
A146: 135 | C146: BW MUSSER 73 FT UN | D146: FORT UNION | E146: 3.571878704 | F146: 79295.533 | G146: 283234.0257 | H146: 0.110046 | I146: 31168.77159
A147: 136 | C147: CARL ALLEN 40 FT UN | D147: FORT UNION | E147: 3.571878704 | F147: 102033.177 | G147: 364450.1321 | H147: 0.110046 | I147: 40106.27923
A148: 137 | C148: CARL ALLEN 41 FT UN | D148: FORT UNION | E148: 3.571878704 | F148: 125586.975 | G148: 448581.4415 | H148: 0.110046 | I148: 49364.59332
A149: 138 | B149: RABBIT MTN (CO) | C149: MF FEDERAL 8-1 MANCOS B | D149: MANCOS B | E149: 3.571878704 | F149: 36197.815 | G149: 129294.2045 | H149: 0.155 | I149: 20040.6017
A150: 139 | C150: RABBIT MTN FED 7-1 MANCOS B | D150: MANCOS B | E150: 3.571878704 | F150: 41533.061 | G150: 148351.0561 | H150: 0.125 | I150: 18543.88201
A151: 140 | B151: SUGAR LOAF (CO) | C151: SUGARLOAF GOVT 1 MESA | D151: MESAVERDE | E151: 3.571878704 | F151: 117891.971 | G151: 421095.8206 | H151: 0.13375 | I151: 56321.56601
A152: 141 | C152: SUGARLOAF GOVT 2 MESA | D152: MESAVERDE | E152: 3.571878704 | F152: 145705.739 | G152: 520443.2262 | H152: 0.13375 | I152: 69609.28151
A153: 142 | C153: SUGARLOAF GOVT 3 FT UN | D153: FORT UNION | E153: 3.571878704 | F153: 78190.688 | G153: 279287.6533 | H153: 0.13375 | I153: 37354.72363
A154: 143 | C154: SUGARLOAF GOVT 4 MESA | D154: MESAVERDE | E154: 3.571878704 | F154: 21152.878 | G154: 75555.51446 | H154: 0.13375 | I154: 10105.55006
A155: 144 | C155: SUGARLOAF GOVT 6 MESA | D155: MESAVERDE | E155: 3.571878704 | F155: 102950.886 | G155: 367728.0773 | H155: 0.13375 | I155: 49183.63034
A156: 145 | C156: SUGARLOAF GOVT 8 MESA | D156: MESAVERDE | E156: 3.571878704 | F156: 9155.037 | G156: 32700.6817 | H156: 0.13375 | I156: 4373.716177
A157: 146 | C157: SUGARLOAF GOVT 10 MESA | D157: MESAVERDE | E157: 3.571878704 | F157: 94762.305 | G157: 338479.4592 | H157: 0.13375 | I157: 45271.62767
A158: 147 | C158: SUGARLOAF GOVT 12 MESA | D158: MESAVERDE | E158: 3.571878704 | F158: 6535.759 | G158: 23344.93839 | H158: 0.13375 | I158: 3122.385509
A159: 148 | C159: SUGARLOAF GOVT 14 MESA | D159: MESAVERDE | E159: 3.571878704 | F159: 30522.575 | G159: 109022.9356 | H159: 0.13375 | I159: 14581.81764
A160: 149 | C160: SUGARLOAF GOVT 15 MESA | D160: MESAVERDE | E160: 3.571878704 | F160: 10891.988 | G160: 38904.85998 | H160: 0.13375 | I160: 5203.525023
A161: 150 | C161: SUGARLOAF GOVT 17 ALMOND | D161: ALMOND | E161: 3.571878704 | F161: 239894.313 | G161: 856873.3879 | H161: 0.20375 | I161: 174587.9528
A162: 151 | B162: W HIAW (CO) | C162: WB LASHER A 2 WAS | D162: WASATCH | E162: 3.571878704 | F162: 18456.847 | G162: 65925.61875 | H162: 0.1925 | I162: 12690.68161
A163: 152 | C163: WB LASHER A 4 FT UN | D163: FORT UNION | E163: 3.571878704 | F163: 34793.874 | G163: 124279.4976 | H163: 0.1925 | I163: 23923.80328
A164: 153 | C164: WM WHEELER A 2 WAS | D164: WASATCH | E164: 3.571878704 | F164: 34466.443 | G164: 123109.9538 | H164: 0.1925 | I164: 23698.6661
A165: 154 | C165: WM WHEELER A 2 FT UN | D165: FORT UNION | E165: 3.571878704 | F165: 7925.983 | G165: 28310.64989 | H165: 0.1925 | I165: 5449.800103
A166: 155 | C166: WM WHEELER A 3 FT UN | D166: FORT UNION | E166: 3.571878704 | F166: 26873.751 | G166: 95989.7789 | H166: 0.1925 | I166: 18478.03244
A167: 156 | C167: WB LASHER A 5 FT UN | D167: FORT UNION | E167: 3.571878704 | F167: 28376.235 | G167: 101356.4695 | H167: 0.1840625 | I167: 18655.92517
A168: 157 | C168: WB LASHER A 6 LEW/LNC/FT UN | D168: LANCE/LEWIS | E168: 3.571878704 | F168: 61424.835 | G168: 219402.06 | H168: 0.1925 | I168: 42234.89656
A169: 158 | C169: WM WHEELER A 4 LEW/LNC/FT UN | D169: LANCE/LEWIS | E169: 3.571878704 | F169: 71631.646 | G169: 255859.5509 | H169: 0.1925 | I169: 49252.96355
A170: 159 | C170: LASHER 7 LEWIS | D170: LEWIS | E170: 3.571878704 | F170: 92119.082 | G170: 329038.1873 | H170: 0.1925 | I170: 63339.85105
A171: 160 | C171: LASHER 8 LEWIS | D171: LEWIS | E171: 3.571878704 | F171: 42099.892 | G171: 150375.7077 | H171: 0.1840625 | I171: 27678.5287
A172: 161 | C172: LASHER 9 LEWIS | D172: LEWIS | E172: 3.571878704 | F172: 54062.411 | G172: 193104.3746 | H172: 0.1840625 | I172: 35543.27394
A173: 162 | C173: LASHER 10 MESA | D173: MESAVERDE | E173: 3.571878704 | F173: 7785.458 | G173: 27808.71163 | H173: 0.2540625 | I173: 7065.150799
A174: 163 | C174: LASHER 10 FT UN | D174: FORT UNION | E174: 3.571878704 | F174: 7560.162 | G174: 27003.98165 | H174: 0.1840625 | I174: 4970.420372
A175: 164 | C175: LASHER 10 LEWIS | D175: LEWIS | E175: 3.571878704 | F175: 7560.162 | G175: 27003.98165 | H175: 0.1840625 | I175: 4970.420372
A176: 165 | C176: LASHER 11 MESA | D176: MESAVERDE | E176: 3.571878704 | F176: 23841.408 | G176: 85158.61752 | H176: 0.2540625 | I176: 21635.61126
A177: 166 | C177: LASHER 11 FT UN | D177: FORT UNION | E177: 3.571878704 | F177: 23841.456 | G177: 85158.78897 | H177: 0.1840625 | I177: 15674.53959
A178: 167 | C178: LASHER 11 LEWIS | D178: LEWIS | E178: 3.571878704 | F178: 23841.456 | G178: 85158.78897 | H178: 0.1840625 | I178: 15674.53959
A179: 168 | C179: LASHER 11 LANCE | D179: LANCE | E179: 3.571878704 | F179: 23841.456 | G179: 85158.78897 | H179: 0.1840625 | I179: 15674.53959
A180: 169 | C180: LASHER 12 MESA | D180: MESAVERDE | E180: 3.571878704 | F180: 12515.544 | G180: 44704.00509 | H180: 0.2540625 | I180: 11357.61129
A181: 170 | C181: LASHER 12 FT UN | D181: FORT UNION | E181: 3.571878704 | F181: 12521.292 | G181: 44724.53624 | H181: 0.1840625 | I181: 8232.109953
A182: 171 | C182: LASHER 12 LEWIS | D182: LEWIS | E182: 3.571878704 | F182: 12521.292 | G182: 44724.53624 | H182: 0.1840625 | I182: 8232.109953
A183: 172 | C183: LASHER 12 LANCE | D183: LANCE | E183: 3.571878704 | F183: 12521.292 | G183: 44724.53624 | H183: 0.1840625 | I183: 8232.109953
A184: 173 | C184: WHEELER 6 MESA | D184: MESAVERDE | E184: 3.571878704 | F184: 15721.424 | G184: 56155.01959 | H184: 0.2625 | I184: 14740.69264
A185: 174 | C185: WHEELER 6 LEW/LAN/FT UN | D185: LANCE/LEWIS | E185: 3.571878704 | F185: 21798.842 | G185: 77862.81952 | H185: 0.1925 | I185: 14988.59276
A186: 175 | C186: WHEELER 5 MESA | D186: MESAVERDE | E186: 3.571878704 | F186: 2177.159 | G186: 7776.547868 | H186: 0.2625 | I186: 2041.343815
A187: 176 | C187: WHEELER 5 LEW/LAN/FT UN | D187: LANCE/LEWIS | E187: 3.571878704 | F187: 46182.74 | G187: 164959.1455 | H187: 0.1925 | I187: 31754.63551
A188: 177 | C188: WHEELER 7 MESA | D188: MESAVERDE | E188: 3.571878704 | F188: 6131.636 | G188: 21901.46005 | H188: 0.2625 | I188: 5749.133263
A189: 178 | C189: WHEELER 7 LEW/LAN/FT UN | D189: LANCE/LEWIS | E189: 3.571878704 | F189: 13902.37 | G189: 49657.57934 | H189: 0.1925 | I189: 9559.084023
A190: 179 | C190: WHEELER 8 MESA | D190: MESAVERDE | E190: 3.571878704 | F190: 75.006 | G190: 267.9123341 | H190: 0.2625 | I190: 70.3269877
A191: 180 | C191: WHEELER 8 LEW/LAN/FT UN | D191: LANCE/LEWIS | E191: 3.571878704 | F191: 767.071 | G191: 2739.88457 | H191: 0.1925 | I191: 527.4277796
A192: 181 | C192: WHEELER 9 MESA | D192: MESAVERDE | E192: 3.571878704 | F192: 8265.609 | G192: 29523.75276 | H192: 0.2625 | I192: 7749.985101
A193: 182 | C193: WHEELER 9 LEW/LAN/FT UN | D193: LANCE/LEWIS | E193: 3.571878704 | F193: 72764.841 | G193: 259907.186 | H193: 0.1925 | I193: 50032.1333
A194: 183 | B194: CLAY BASIN (UT) | C194: CLAY BASIN UNIT 7 FR | D194: FRONTIER | E194: 3.571878704 | F194: 24392.633 | G194: 87127.52635 | H194: 0.1549177 | I194: 13497.59599
A195: 184 | C195: CLAY BASIN UNIT 8 FR | D195: FRONTIER | E195: 3.571878704 | F195: 51663.985 | G195: 184537.4878 | H195: 0.1549177 | I195: 28588.12317
A196: 185 | C196: CLAY BASIN UNIT 9 FR | D196: FRONTIER | E196: 3.571878704 | F196: 78692.805 | G196: 281081.1544 | H196: 0.1549177 | I196: 43544.44595
A197: 186 | C197: CLAY BASIN UNIT 12 FR | D197: FRONTIER | E197: 3.571878704 | F197: 79686.976 | G197: 284632.2126 | H197: 0.1549177 | I197: 44094.56772
A198: 187 | C198: CLAY BASIN UNIT 13 FR | D198: FRONTIER | E198: 3.571878704 | F198: 76167.554 | G198: 272061.2641 | H198: 0.1549177 | I198: 42147.10529
A199: 188 | C199: CLAY BASIN UNIT 14 FR | D199: FRONTIER | E199: 3.571878704 | F199: 36895.504 | G199: 131786.265 | H199: 0.1549177 | I199: 20416.02507
A200: 189 | C200: CLAY BASIN UNIT 15 FR | D200: LANCE | E200: 3.571878704 | F200: 144277.264 | G200: 515340.8868 | H200: 0.1549177 | I200: 79835.4249
A201: 190 | C201: CLAY BASIN UNIT 16 FR | D201: FRONTIER | E201: 3.571878704 | F201: 25487.4 | G201: 91037.90129 | H201: 0.1549177 | I201: 14103.38228
A202: 191 | C202: CLAY BASIN UNIT 17 FR | D202: FRONTIER | E202: 3.571878704 | F202: 58226.276 | G202: 207977.1953 | H202: 0.1549177 | I202: 32219.34874
... 1316 more rows

Sheet Ut 1.2
I1: ='Control Panel'!$F$32 -> Questar Gas Company
I2: ='Control Panel'!$F$33 -> Docket No. 14-057-22
I3: Exhibit 1.2
B8: TEST YEAR PURCHASED GAS COSTS
D11: (A) | E11: (B) | F11: (C) | G11: (D)
F12: Cost
C13: Component | E13: Dth | F13: per Dth | G13: Total Cost
B15: 1 | C15: Current Contracts | G15: =ROUND(Calculations!$P$183+Calculations!$P$186-G16,0) -> 75162118
B16: =B15+1 -> 2 | C16: Stabilization Costs | G16: ='Monthly Inputs'!S94 -> 0
B17: =B16+1 -> 3 | D17: Total Current Contracts | E17: =Calculations!$P$182+Calculations!$P$185 -> 18105000 | F17: =G17/E17 -> 4.151456393 | G17: =G15+G16 -> 75162118
B19: =B17+1 -> 4 | C19: Forecast Spot | E19: =Calculations!$P$179 -> 29415461 | F19: =G19/E19 -> 3.767401266 | G19: =ROUND(Calculations!P180,0) -> 110819845
B21: =B19+1 -> 5 | C21: Future Contracts | E21: =Calculations!P188 -> 915004 | F21: =G21/E21 -> 3.594172266 | G21: =ROUND(Calculations!P189,0) -> 3288682
B24: =B21+1 -> 6 | C24: Total Gas Purchased | E24: =E17+E19+E21 -> 48435465 | F24: =G24/E24 -> 3.907687167 | G24: =G17+G19+G21 -> 189270645

Sheet Ut 1.3 p1
N1: ='Control Panel'!$F$32 -> Questar Gas Company
N2: ='Control Panel'!$F$33 -> Docket No. 14-057-22
N3: Exhibit 1.3
N4: Page 1 of 2
B8: TEST YEAR TRANSPORTATION, GATHERING AND PROCESSING CHARGES
B11: (A) | D11: (B) | F11: (C) | H11: (D) | J11: (E) | L11: (F) | M11: (G)
D12: Fctr | F12: Dth | H12: Months/Days | J12: Rate | M12: Total Costs
B14: TRANSPORTATION DEMAND
B16: QPC Demand
A17: 1 | B17: T-1 Transportation - Yearly | F17: ='Other Inputs'!D22+'Other Inputs'!D23+'Other Inputs'!D24 -> 840902 | G17: x | H17: ='Other Inputs'!E22 -> 12 | I17: x | J17: ='Other Inputs'!F22 -> 5.28804 | K17: = | L17: =ROUND(F17*H17*J17,0) -> 53360681 | Q17: =L17*'Ut 1.5'!$G$51 -> 51754653.38
A18: =A17+1 -> 2 | B18: T-1 Transportation Nov-Mar | F18: ='Other Inputs'!D25 -> 75000 | G18: x | H18: ='Other Inputs'!E25 -> 5 | I18: x | J18: ='Other Inputs'!F25 -> 6.80887 | K18: = | L18: =ROUND(F18*H18*J18,0) -> 2553326 | Q18: =L18*'Ut 1.5'!$G$51 -> 2476477.054
A19: =A18+1 -> 3 | B19: No-Notice Transportation | F19: ='Other Inputs'!D30 -> 203542 | G19: x | H19: ='Other Inputs'!E30 -> 12 | I19: x | J19: ='Other Inputs'!F30 -> 0.86753 | K19: = | L19: =ROUND(F19*H19*J19,0) -> 2118945 | Q19: =L19*'Ut 1.5'!$G$51 -> 2055169.873
A20: =A19+1 -> 4 | B20: Capacity Release Credits | L20: =-ROUND('Other Inputs'!E291,0) -> -212509 | Q20: =L20*'Ut 1.5'!$G$51 -> -206112.9923
A21: =A20+1 -> 5 | C21: Total | L21: =SUM(L17:L20) -> 57820443 | Q21: =L21*'Ut 1.5'!$G$51 -> 56080187.31
Q22: =L22*'Ut 1.5'!$G$51 -> 0
B23: Kern River Demand | Q23: =L23*'Ut 1.5'!$G$51 -> 0
A24: =A21+1 -> 6 | B24: January - December | F24: ='Other Inputs'!D56 -> 1885 | G24: x | H24: ='Other Inputs'!E56 -> 12 | I24: x | J24: ='Other Inputs'!F56 -> 17.74204167 | K24: = | L24: =ROUND(F24*H24*J24,0) -> 401325
A25: =A24+1 -> 7 | B25: January - December | F25: ='Other Inputs'!D54 -> 3000 | G25: x | H25: ='Other Inputs'!E54 -> 12 | I25: x | J25: ='Other Inputs'!F54 -> 14.34754167 | K25: = | L25: =ROUND(F25*H25*J25,0) -> 516512 | Q25: =L25*'Ut 1.5'!$G$51 -> 500966.2362
A26: =A25+1 -> 8 | B26: November - March | F26: ='Other Inputs'!D55 -> 50000 | G26: x | H26: ='Other Inputs'!E55 -> 5 | I26: x | J26: =J25 -> 14.34754167 | K26: = | L26: =ROUND(F26*H26*J26,0) -> 3586885 | Q26: =L26*'Ut 1.5'!$G$51 -> 3478928.424
A27: =A26+1 -> 9 | C27: Total | L27: =SUM(L24:L26) -> 4504722 | Q27: =L27*'Ut 1.5'!$G$51 -> 4369140.747
Q28: =L28*'Ut 1.5'!$G$51 -> 0
A29: =A27+1 -> 10 | B29: Total Transportation Demand (SNG) | M29: =L21+L27 -> 62325165 | Q29: =M29*'Ut 1.5'!$G$51 -> 60449328.06
B32: TRANSPORTATION COMMODITY
B34: QPC Commodity
A35: =A29+1 -> 11 | B35: QPC Commodity (SNG) | F35: =F36-(D40*F40*H40)-(D41*F41*H41) -> 117146384.5 | I35: x | J35: ='Other Inputs'!F38 -> 0.00267 | K35: = | L35: =ROUND(F35*J35,0) -> 312781
A36: =A35+1 -> 12 | B36: QPC ACA | F36: =Calculations!$P$172 -> 126493664.5 | I36: x | J36: ='Other Inputs'!F39 -> 0.0014 | K36: = | L36: =ROUND(F36*J36,0) -> 177091
A37: =A36+1 -> 13 | C37: Total | L37: =SUM(L35:L36) -> 489872
B39: Kern River Commodity
A40: =A37+1 -> 14 | B40: January - December | D40: ='Other Inputs'!C60 -> 1.001527372 | E40: x | F40: ='Other Inputs'!D60 -> 4885 | G40: x | H40: ='Other Inputs'!E60 -> 365 | I40: x | J40: ='Other Inputs'!F60 -> 0.0044 | K40: = | L40: =ROUND(D40*F40*H40*J40,0) -> 7857
A41: =A40+1 -> 15 | B41: November - March | D41: ='Other Inputs'!C61 -> 1.001527372 | E41: x | F41: ='Other Inputs'!D61 -> 50000 | G41: x | H41: ='Other Inputs'!E61 -> 151 | I41: x | J41: ='Other Inputs'!F61 -> 0.0044 | K41: = | L41: =ROUND(D41*F41*H41*J41,0) -> 33271
A42: =A41+1 -> 16 | C42: Total (SNG) | L42: =SUM(L40:L41) -> 41128
A44: =A42+1 -> 17 | B44: Total Transportation Commodity | M44: =L37+L42 -> 531000
B47: OTHER CHARGES
A49: =A44+1 -> 18 | B49: QEP Field Services Demand | H49: 12 | I49: x | J49: ='Other Inputs'!E173 -> 745178 | K49: = | L49: =ROUND(H49*J49,0) -> 8942136
A50: =A49+1 -> 19 | B50: QEP Field Services Commodity | F50: ='Other Inputs'!D174 -> 41846570.98 | I50: x | J50: ='Other Inputs'!D173 -> 0.12579 | K50: = | L50: =ROUND(F50*J50,0) -> 5263880
A51: =A50+1 -> 20 | C51: Total QEP Field Services (SNG) | M51: =L49+L50 -> 14206016 | N51: 1/
A53: =A51+1 -> 21 | B53: Wexpro II Gathering | F53: ='Other Inputs'!D177 -> 4165731.243 | I53: x | J53: ='Other Inputs'!D176 -> 0.42172 | K53: = | L53: =ROUND(F53*J53,0) -> 1756772
A54: =A53+1 -> 22 | B54: Other Wexpro I Gathering Charges | L54: =ROUND('Other Inputs'!D165,0) -> 2020284
A55: =A54+1 -> 23 | B55: Other Transportation Charges | L55: =ROUND('Other Inputs'!$D$167,0) -> 3536398
A56: =A55+1 -> 24 | C56: Total Wexpro II Gathering, Other Gathering & Transportation | M56: =SUM(L53:L55) -> 7313454
A61: =A56+1 -> 25 | B61: TOTAL TRANSPORTATION AND OTHER CHARGES | M61: =SUM(M13:M59) -> 84375635
A66: 1/ | B66: See paragraph 7c in application.

Sheet Ut 1.3 p2
L1: ='Control Panel'!$F$32 -> Questar Gas Company
L2: ='Control Panel'!$F$33 -> Docket No. 14-057-22
L3: Exhibit 1.3
L4: Page 2 of 2
B7: TEST YEAR STORAGE AND WORKING GAS CHARGES
B10: (A) | D10: (B) | F10: (C) | H10: (D) | J10: (E) | K10: (F)
B12: STORAGE CHARGES 1/
B14: Component | D14: Dth | F14: Months | H14: Rate | K14: Total Costs
B15: Storage Demand
A16: 1 | B16: Peaking Demand | D16: ='Other Inputs'!E151 -> 184625 | E16: x | F16: 12 | G16: x | H16: ='Other Inputs'!E14 -> 2.87375 | I16: = | J16: =ROUND(D16*F16*H16,0) -> 6366793
A17: =A16+1 -> 2 | B17: Ryckman Demand | D17: ='Other Inputs'!E152 -> 0 | E17: x | F17: 12 | G17: x | H17: ='Other Inputs'!E15 -> 0.09 | I17: = | J17: =ROUND(D17*F17*H17,0) -> 0
A18: =A17+1 -> 3 | B18: Clay Basin Demand | D18: ='Other Inputs'!E153 -> 111827 | E18: x | F18: 12 | G18: x | H18: ='Other Inputs'!E16 -> 2.85338 | I18: = | J18: =ROUND(D18*F18*H18,0) -> 3829019
A19: 4 | B19: Clay Basin Capacity | D19: ='Other Inputs'!E154 -> 13419000 | E19: x | F19: 12 | G19: x | H19: ='Other Inputs'!E17 -> 0.02378 | I19: = | J19: =ROUND(D19*F19*H19,0) -> 3829246
A20: 5 | C20: Total Demand Charges (SNG) | J20: =SUM(J16:J19) -> 14025058
B22: Storage Commodity 2/
A23: =A20+1 -> 6 | B23: Peaking Injections | D23: =(+'Monthly Inputs'!S24+'Monthly Inputs'!S26+'Monthly Inputs'!S27) -> 792270 | F23: x | H23: ='Other Inputs'!E6 -> 0.03872 | I23: = | J23: =ROUND(D23*H23,0) -> 30677
A24: =A23+1 -> 7 | B24: Peaking Withdrawals | D24: =(+'Monthly Inputs'!S32+'Monthly Inputs'!S34+'Monthly Inputs'!S35) -> 576925 | F24: x | H24: ='Other Inputs'!E7 -> 0.03872 | I24: = | J24: =ROUND(D24*H24,0) -> 22339
A25: =A24+1 -> 8 | B25: Ryckman Injections | D25: ='Monthly Inputs'!S28 -> 0 | F25: x | H25: ='Other Inputs'!E8 -> 0.015 | I25: = | J25: =ROUND(D25*H25,0) -> 0
A26: =A25+1 -> 9 | B26: Ryckman Withdrawals | D26: ='Monthly Inputs'!S36 -> 0 | F26: x | H26: ='Other Inputs'!E9 -> 0.01 | I26: = | J26: 0
A27: =A26+1 -> 10 | B27: Clay Basin Injections | D27: ='Monthly Inputs'!S25 -> 12203923.43 | F27: x | H27: ='Other Inputs'!E10 -> 0.01049 | I27: = | J27: =ROUND(D27*H27,0) -> 128019
A28: =A27+1 -> 11 | B28: Clay Basin Withdrawals | D28: ='Monthly Inputs'!S33 -> 12040360 | F28: x | H28: ='Other Inputs'!E11 -> 0.01781 | I28: = | J28: =ROUND(D28*H28,0) -> 214439
A29: 12 | C29: Total Commodity Charges | J29: =SUM(J23:J28) -> 395474
A31: 13 | B31: Total Storage Charges | K31: =J20+J29 -> 14420532
B34: WORKING GAS CHARGES - QGC Account 164
C36: Month | D36: Amount | H36: Pre-Tax Return %
A38: =A31+1 -> 14 | C38: =+'Rate Base'!H8 -> 2013-08-21 | D38: =+'Rate Base'!H216 -> 46052383.98
A39: =A38+1 -> 15 | C39: =+'Rate Base'!I8 -> 2013-09-20 | D39: =+'Rate Base'!I216 -> 56496783.48
A40: 16 | C40: =+'Rate Base'!J8 -> 2013-10-20 | D40: =+'Rate Base'!J216 -> 64325936.47
A41: 17 | C41: =+'Rate Base'!K8 -> 2013-11-19 | D41: =+'Rate Base'!K216 -> 58898100.36
A42: 18 | C42: =+'Rate Base'!L8 -> 2013-12-19 | D42: =+'Rate Base'!L216 -> 39172683.37
A43: 19 | C43: =+'Rate Base'!M8 -> 2014-01-18 | D43: =+'Rate Base'!M216 -> 29848683.37
A44: 20 | C44: =+'Rate Base'!N8 -> 2014-02-17 | D44: =+'Rate Base'!N216 -> 18583033.52
A45: 21 | C45: =+'Rate Base'!O8 -> 2014-03-19 | D45: =+'Rate Base'!O216 -> 6166884.89
A46: 22 | C46: =+'Rate Base'!P8 -> 2014-04-18 | D46: =+'Rate Base'!P216 -> 4699533.51
A47: 23 | C47: =+'Rate Base'!Q8 -> 2014-05-18 | D47: =+'Rate Base'!Q216 -> 13360087
A48: 24 | C48: =+'Rate Base'!R8 -> 2014-06-17 | D48: =+'Rate Base'!R216 -> 27776654.2
A49: 25 | C49: =+'Rate Base'!S8 -> 2014-07-17 | D49: =+'Rate Base'!S216 -> 42002346.57
A50: 26 | C50: =+'Rate Base'!T8 -> 2014-08-16 | D50: =+'Rate Base'!T216 -> 56135251.62
A53: =A50+1 -> 27 | B53: 13-Month Average 3/ | D53: =(SUM(D39:D49)+D38/2+D50/2)/12 -> 34368712.05 | F53: x | H53: ='Other Inputs'!E281 -> 0.1079 | J53: = | K53: =D53*H53 -> 3708384.03
A56: =A53+1 -> 28 | B56: TOTAL FIRM STORAGE AND WORKING GAS CHARGES | K56: =K53+K31 -> 18128916.03
A60: 1/ | B60: =CONCATENATE("Exhibit 1.9 - ",'Other Inputs'!G22) -> Exhibit 1.9 - 1/1/2014
A61: 2/ | B61: Questar Gas planned volumes.
A62: 3/ | B62: (½ of Line 14 + sum of Lines 15 through 25 + ½ of Line 26) / 12

Sheet Ut 1.4 p1
G1: ='Control Panel'!$F$32 -> Questar Gas Company
G2: ='Control Panel'!$F$33 -> Docket No. 14-057-22
G3: Exhibit 1.4
G4: Page 1 of 3
B8: SUMMARY OF TEST-YEAR GAS RELATED COSTS AND REVENUES CREDITS
B11: (A) | E11: (B) | F11: (C) | G11: (D)
B12: Component | E12: Costs | F12: Dth | G12: $ per Dth
B14: WEXPRO I
A15: 1 | C15: Questar Gas Production 1/ | E15: ='Other Inputs'!D184 -> 332756883.4
A16: =A15+1 -> 2 | C16: Wexpro I Revenue Sharing Credits 2/ | E16: =-'Ut 1.4 p3'!H28 -> -28782968
A17: =A16+1 -> 3 | D17: Net Questar Gas Production Costs | E17: =E15+E16 -> 303973915.4 | F17: =F22 -> 66732110 | G17: =E17/F22 -> 4.55513718
A19: =A17+1 -> 4 | D19: Gathering 3/ | E19: ='Ut 1.3 p1'!L54+'Ut 1.3 p1'!M51 -> 16226300
A22: =A19+1 -> 5 | B22: Total Wexpro I Cost of Production | E22: =SUM(E17:E19) -> 320200215.4 | F22: ='Monthly Inputs'!S7 -> 66732110 | G22: =E22/F22 -> 4.798292987
B24: WEXPRO II
A25: =A22+1 -> 6 | C25: Wexpro II Production 4/ | E25: ='Other Inputs'!D205 -> 27408307.59
A26: =A25+1 -> 7 | C26: Wexpro II Revenue Sharing Credits 5/ | E26: =-'Ut 1.4 p3'!H44 -> -2193917
A27: =A26+1 -> 8 | D27: Net Cost of Wexpro II Production | E27: =E25+E26 -> 25214390.59 | F27: =F32 -> 4165060 | G27: =E27/F32 -> 6.053788081
A29: =A27+1 -> 9 | D29: Gathering 6/ | E29: ='Ut 1.3 p1'!L53 -> 1756772
A32: =A29+1 -> 10 | B32: Total Wexpro II Cost of Production | E32: =SUM(E27:E29) -> 26971162.59 | F32: ='Monthly Inputs'!S13 -> 4165060 | G32: =E32/F32 -> 6.475576003
A34: =A32+1 -> 11 | B34: Sales of Cost-of-Service Gas 7/ | E34: =-'Other Inputs'!E223 -> 0 | F34: ='Other Inputs'!F223 -> 0 | G34: ='Other Inputs'!G223 -> 0
A37: =A34+1 -> 12 | B37: Total Cost of Service Production | E37: =E22+E32+E34 -> 347171378 | F37: =F22+F32 -> 70897170 | G37: =E37/F37 -> 4.896829845
A39: =A37+1 -> 13 | B39: Questar Gas Contract Gas 8/ | E39: ='Ut 1.2'!G24 -> 189270645 | F39: ='Ut 1.2'!E24 -> 48435465 | G39: =E39/F39 -> 3.907687167
A41: =A39+1 -> 14 | B41: Injection / Withdrawal Adjustment 9/ | E41: ='Ut 1.4 p2'!H23 -> -1138786.467
A43: =A41+1 -> 15 | B43: Transportation & Other Costs 10/ | E43: ='Ut 1.3 p1'!M29+'Ut 1.3 p1'!M44+'Ut 1.3 p1'!L55 -> 66392563 | F43: ='Ut 1.3 p1'!F35 -> 117146384.5 | G43: =E43/F43 -> 0.5667487162
A45: =A43+1 -> 16 | B45: Storage & Working Gas 11/ | E45: ='Ut 1.3 p2'!K56 -> 18128916.03
B47: Gas Management Costs | E47: ='Ut 1.3 p1'!M58 -> 0
A50: =A45+1 -> 17 | B50: Questar Gas - Related Gas Costs for Rate Purposes 12/ | E50: =E37+E39+E41+E43+E45+E47 -> 619824715.5 | F50: ='Ut 1.6 p1'!H20 -> 112624004 | G50: =E50/F50 -> 5.503486766
A53: 1/ | B53: Exhibit 1.1, Page 19, Line 1419, Column H.
A54: 2/ | B54: Exhibit 1.4, Page 3, Line 8.
A55: 3/ | B55: Exhibit 1.3, Page 1, Lines 20 + 22.
A56: 4/ | B56: Exhibit 1.1, Page 20, Line 1499, Column H.
A57: 5/ | B57: Exhibit 1.4, Page 3, Line 16.
A58: 6/ | B58: Exhibit 1.3, Page 1, Line 21.
A59: 7/ | B59: Exhibit 1.4, Page 3, Line 17.
A60: 8/ | B60: Exhibit 1.2, Line 6.
A61: 9/ | B61: Exhibit 1.4, Page 2, Line 6.
A62: 10/ | B62: Exhibit 1.3, Page 1, Lines 10 + 17 + 23.
A63: 11/ | B63: Exhibit 1.3, Page 2, Line 28.
A64: 12/ | B64: Exhibit 1.6, Page 1, Line 4.

Sheet Ut 1.4 p2
J1: ='Control Panel'!$F$32 -> Questar Gas Company
J2: ='Control Panel'!$F$33 -> Docket No. 14-057-22
J3: Exhibit 1.4
J4: Page 2 of 3
B8: ANNUALIZED UNIT COST OF STORAGE GAS
C11: (A) | E11: (B) | F11: (C) | H11: (D)
F12: Average
E13: Dth | F13: Rate | H13: Total Costs
B15: 1 | C15: Company Production 1/ | E15: ='Ut 1.4 p1'!F37 -> 70897170 | F15: =H15/E15 -> 4.896829845 | H15: ='Ut 1.4 p1'!E37 -> 347171378
B16: =B15+1 -> 2 | C16: Purchased Gas 2/ | E16: ='Ut 1.2'!E24 -> 48435465 | F16: =H16/E16 -> 3.907687167 | H16: ='Ut 1.2'!G24 -> 189270645
B17: =B16+1 -> 3 | C17: Average Price | E17: =SUM(E15:E16) -> 119332635 | F17: =(+H15+H16)/(+E15+E16) -> 4.495350521 | H17: =SUM(H15:H16) -> 536442023
C20: Storage 3/
B21: =B17+1 -> 4 | C21: Withdrawals | E21: ='Monthly Inputs'!S37 -> 12617285 | F21: ='Ut Storage'!L27 -> 4.787919894 | H21: =E21*F21 -> 60410549.85
B22: =B21+1 -> 5 | C22: Injections | E22: =-'Monthly Inputs'!S29 -> -12996193.43 | F22: ='Ut Storage'!K27 -> 4.735951082 | H22: =E22*F22 -> -61549336.32
B23: =B22+1 -> 6 | C23: Storage Adjustment | H23: =H21+H22 -> -1138786.467
B29: 1/ | C29: Exhibit 1.4, Page 1, Line 12.
B30: 2/ | C30: Exhibit 1.2, Line 6.
B31: 3/ | C31: Questar Gas Company planned volumes.

Sheet Ut 1.4 p3
K1: ='Control Panel'!$F$32 -> Questar Gas Company
K2: ='Control Panel'!$F$33 -> Docket No. 14-057-22
K3: Exhibit 1.4
K4: Page 3 of 3
D8: OTHER REVENUES 1/
C11: (A) | E11: (B) | F11: (C) | G11: (D)
C12: Account | G12: =Expenses!S8 -> 12 Months Ending
C13: Number | E13: Account Name | G13: ='Control Panel'!F7 -> 2015-10-31
C14: WEXPRO I
B15: 1 | D15: 483 | E15: Sales for Resale | H15: ='Other Inputs'!F191 -> 3481704
B17: =B15+1 -> 2 | D17: 490 | E17: Plant By-Product | H17: ='Other Inputs'!F192 -> 6215460
B19: =B17+1 -> 3 | D19: 492 | E19: Gasoline and Oil Sales | F19: ='Other Inputs'!F193 -> 909964
B20: =B19+1 -> 4 | D20: 758-1 | E20: Gasoline and Oil Cost | F20: ='Other Inputs'!F196 -> -136495
B21: =B20+1 -> 5 | E21: Net Gasoline and Oil Sales | H21: =F19+F20 -> 773469
B23: =B21+1 -> 6 | D23: 495-1 | E23: Overriding Royalty Revenue from Questar E & P | H23: ='Other Inputs'!F194 -> 18312335
B25: =B23+1 -> 7 | D25: 495-2 | E25: Oil Revenue Received from Wexpro | H25: ='Other Inputs'!F195 -> 0
B28: =B25+1 -> 8 | E28: Total Wexpro I | H28: =SUM(H15:H25) -> 28782968
C30: WEXPRO II
B31: =B28+1 -> 9 | D31: 483 | E31: Sales for Resale | H31: ='Other Inputs'!E212 -> 0
B33: =B31+1 -> 10 | D33: 490 | E33: Plant By-Product | H33: ='Other Inputs'!E213 -> 1271523
B35: =B33+1 -> 11 | D35: 492 | E35: Gasoline and Oil Sales | F35: ='Other Inputs'!E214 -> 1085170
B36: =B35+1 -> 12 | D36: 758-1 | E36: Gasoline and Oil Cost | F36: ='Other Inputs'!E217 -> -162776
B37: =B36+1 -> 13 | E37: Net Gasoline and Oil Sales | H37: =F35+F36 -> 922394
B39: =B37+1 -> 14 | D39: 495-1 | E39: Overriding Royalty Revenue from Questar E & P | H39: ='Other Inputs'!E215 -> 0
B41: =B39+1 -> 15 | D41: 495-2 | E41: Oil Revenue Received from Wexpro | H41: ='Other Inputs'!E216 -> 0
B44: =B41+1 -> 16 | E44: Total Wexpro II | H44: =SUM(H31:H41) -> 2193917
B46: 17 | E46: Sales of Cost-of-Service Gas | H46: ='Other Inputs'!E223 -> 0
B49: 18 | E49: Grand Total (Line 8 + Line 16 + Line 17) | H49: =H28+H44+H46 -> 30976885
B53: 1/ | D53: Forecasted 12-month test year.

Sheet Ut 1.5
H1: ='Control Panel'!$F$32 -> Questar Gas Company
H2: ='Control Panel'!$F$33 -> Docket No. 14-057-22
H3: Exhibit 1.5
B8: TEST-YEAR GAS COST ALLOCATION
B11: (A) | D11: (B) | E11: (C) | F11: (D) | G11: (E)
D12: Allocation
D13: Factor 1/ | E13: System | F13: Wyoming | G13: Utah
A15: 1 | B15: Questar Gas Production (Exhibit 1.1) | D15: 2 | E15: ='Ut 1.4 p1'!E15+'Ut 1.4 p1'!E25 -> 360165191 | F15: =CHOOSE($D15,F$51,F$54)*$E15 -> 12817942.4 | G15: =CHOOSE($D15,G$51,G$54)*$E15 -> 347347248.6
A16: =A15+1 -> 2 | B16: Other Revenue's Credit (Exhibit 1.4, p 3) | D16: 2 | E16: ='Ut 1.4 p1'!E16+'Ut 1.4 p1'!E26+'Ut 1.4 p1'!E34 -> -30976885 | F16: -1102438.374 | G16: -29874446.63
A17: =A16+1 -> 3 | B17: Gathering (Exhibit 1.3, p 1) | C17: - Demand | D17: 1 | E17: ='Ut 1.3 p1'!L49 -> 8942136 | F17: 269136.6971 | G17: 8672999.303
A18: =A17+1 -> 4 | B18: Gathering | C18: - Commodity | D18: 2 | E18: ='Ut 1.3 p1'!L54+'Ut 1.3 p1'!L50+'Ut 1.3 p1'!L53 -> 9040936 | F18: 321758.4591 | G18: 8719177.541
A19: =A18+1 -> 5 | B19: Net Cost of Questar Gas Production | E19: =SUM(E15:E18) -> 347171378 | F19: =SUM(F15:F18) -> 12306399.18 | G19: =SUM(G15:G18) -> 334864978.8
A21: =A19+1 -> 6 | B21: Questar Gas Contract Gas (Exhibit 1.2) | D21: 2 | E21: ='Ut 1.4 p1'!E39 -> 189270645 | F21: =CHOOSE($D21,F$51,F$54)*$E21 -> 6735965.289 | G21: =CHOOSE($D21,G$51,G$54)*$E21 -> 182534679.7
A24: =A21+1 -> 7 | B24: Injection / Withdrawal Adjustment (Exhibit 1.4, p 1) | D24: 2 | E24: ='Ut 1.4 p1'!E41 -> -1138786.467 | F24: =CHOOSE($D24,F$51,F$54)*$E24 -> -40528.34562 | G24: =CHOOSE($D24,G$51,G$54)*$E24 -> -1098258.122
A27: =A24+1 -> 8 | B27: Transportation (Exhibit 1.3, p 1) | C27: - Demand | D27: 1 | E27: ='Ut 1.3 p1'!M29 -> 62325165 | F27: =CHOOSE($D27,F$51,F$54)*$E27 -> 1875836.943 | G27: =CHOOSE($D27,G$51,G$54)*$E27 -> 60449328.06
A28: =A27+1 -> 9 | B28: Transportation | C28: - Commodity | D28: 2 | E28: ='Ut 1.3 p1'!M44 -> 531000 | F28: =CHOOSE($D28,F$51,F$54)*$E28 -> 18897.79352 | G28: =CHOOSE($D28,G$51,G$54)*$E28 -> 512102.2065
A31: =A28+1 -> 10 | B31: Storage (Exhibit 1.3, p 2) | C31: - Demand | D31: 1 | E31: ='Ut 1.3 p2'!J20 -> 14025058 | F31: =CHOOSE($D31,F$51,F$54)*$E31 -> 422120.3733 | G31: =CHOOSE($D31,G$51,G$54)*$E31 -> 13602937.63
A32: =A31+1 -> 11 | B32: Storage | C32: - Commodity | D32: 2 | E32: ='Ut 1.3 p2'!J29 -> 395474 | F32: =CHOOSE($D32,F$51,F$54)*$E32 -> 14074.5499 | G32: =CHOOSE($D32,G$51,G$54)*$E32 -> 381399.4501
A35: =A32+1 -> 12 | B35: Other Transportation - Commodity (Exhibit 1.3, p 1) | D35: 2 | E35: ='Ut 1.3 p1'!L55 -> 3536398 | F35: =CHOOSE($D35,F$51,F$54)*$E35 -> 125857.0983 | G35: =CHOOSE($D35,G$51,G$54)*$E35 -> 3410540.902
A38: =A35+1 -> 13 | B38: Working Gas Costs (Exhibit 1.3, p 2) | D38: 2 | E38: ='Ut 1.3 p2'!K53 -> 3708384.03 | F38: =CHOOSE($D38,F$51,F$54)*$E38 -> 131977.9203 | G38: =CHOOSE($D38,G$51,G$54)*$E38 -> 3576406.109
A41: =A38+1 -> 14 | B41: Totals | E41: =SUM(E19:E38) -> 619824715.5 | F41: =SUM(F19:F38) -> 21590600.8 | G41: =SUM(G19:G38) -> 598234114.7
A48: 1/ | B48: Allocation Factors | E48: Total | F48: Wyoming | G48: Utah
B50: #1 Peak Day Demand | D50: Dth- | E50: =SUM(F50:G50) -> 1302881 | F50: ='Other Inputs'!$E$130 -> 39213.57146 | G50: ='Other Inputs'!$E$129 -> 1263667.429
D51: Percent- | E51: =F51+G51 -> 1 | F51: =F50/E50 -> 0.03009758486 | G51: =G50/E50 -> 0.9699024151
B53: #2 Commodity Sales - All | D53: Dth- | E53: =F53+G53 -> 112624004 | F53: ='Ut 1.6 p1'!H19 -> 4008183 | G53: ='Ut 1.6 p1'!H18 -> 108615821
D54: Percent- | E54: =F54+G54 -> 1 | F54: =F53/E53 -> 0.03558906501 | G54: =G53/E53 -> 0.964410935

Sheet Ut 1.6 p1
J1: ='Control Panel'!$F$32 -> Questar Gas Company
J2: ='Control Panel'!$F$33 -> Docket No. 14-057-22
J3: Exhibit 1.6
J4: Page 1 of 3
B8: TEST-YEAR GAS COST CHANGE
B11: (A) | C11: (B) | D11: (C) | F11: (D) | H11: (E) | J11: (F)
F12: Average Rate | H12: x Dth | I12: = | J12: Total
A13: 1 | B13: Utah Allocation of Questar Gas-Related Gas Costs (Exhibit 1.5) 1/ | J13: ='Ut 1.5'!G41 -> 598234114.7
H15: Total
B16: Test-Year Sales: | D16: Firm | F16: + Interruptible | H16: = Sales Dth
A18: =A13+1 -> 2 | B18: Utah | D18: =Calculations!P13 -> 105974485 | F18: =Calculations!P17 -> 2641336 | H18: =D18+F18 -> 108615821
A19: =A18+1 -> 3 | B19: Wyoming | D19: =Calculations!P32 -> 3837392 | F19: =Calculations!P36 -> 170791 | H19: =D19+F19 -> 4008183
A20: =A19+1 -> 4 | B20: Total Dth | H20: =SUM(H18:H19) -> 112624004
A22: =A20+1 -> 5 | B22: Supplier Non-Gas Costs 2/ | J22: =(-'Ut 1.6 p2'!F14) -> -95196297.14
A25: =A22+1 -> 6 | B25: Commodity Portion of Test-Year Gas Cost (Lines 1 + 5) | J25: =J13+J22 -> 503037817.6
F28: Current Case | H28: Prior Case 4/
B29: FIRM CUSTOMER RATES | F29: ='Control Panel'!F5 -> 14-057-22 | H29: ='Control Panel'!F9 -> 14-057-09 | J29: Difference
A31: =A25+1 -> 7 | B31: Gas Cost (line 6/ Firm Sales, line 2) | F31: =ROUND((J25)/H18,5) -> 4.63135 | H31: ='Other Inputs'!F105 -> 5.05224 | J31: =F31-H31 -> -0.42089 | M31: =J31*D18 -> -44603600.99
A32: =A31+1 -> 8 | B32: 191 Account Amortization (Commodity Portion) 3/ | F32: =D49/H18 -> 0.4153277541 | H32: ='Other Inputs'!F106 -> 0.22364 | J32: =F32-H32 -> 0.1916877541 | M32: =J32*D18 -> 20314011.03
A33: =A32+1 -> 9 | B33: Total Sales Unit Commodity Cost (Lines 7 + 8) | F33: =F31+F32 -> 5.046677754 | H33: =H31+H32 -> 5.27588 | J33: =J31+J32 -> -0.2292022459 | M33: =SUM(M31:M32) -> -24289589.97
A43: 1/ | B43: Exhibit 1.5, Line 14, Column E.
A45: 2/ | B45: Test Year Estimate of Transportation, Gathering, and Storage billings.
A47: 3/ | B47: 191 Account (August 2014) actual | D47: ='Other Inputs'!E123 -> 45987640
B48: Less: Supplier Non-Gas balance actual | D48: ='Other Inputs'!E124 -> 876475
B49: 191 Account Commodity Portion | D49: =D47-D48 -> 45111165 | F49: =D18 -> 105974485 | H49: =D49/F49 -> 0.4256794926
A51: 4/ | B51: In the prior Docket IS customers were paying First of Month rate.
B52: In the current Docket IS customers are paying the WACOG rate.

Sheet Ut 1.6 p2
E1: Questar Gas Company
G2: ='Control Panel'!$F$33 -> Docket No. 14-057-22
G3: Exhibit 1.6
G4: Page 2 of 3
C8: TEST-YEAR SUPPLIER NON-GAS COST CHANGE
C11: (A) | D11: (B) | E11: (C) | F11: (D)
D12: Dth | E12: Average Rate | F12: Total
B14: 1 | C14: Supplier Non-Gas (SNG) Costs 1/ | F14: ='Ut 1.5'!G27+'Ut 1.5'!G31+'Ut 1.5'!G17+(+'Ut 1.3 p1'!L35+'Ut 1.3 p1'!L42+'Ut 1.3 p1'!L54+'Ut 1.3 p1'!L55+'Ut 1.3 p1'!L50+'Ut 1.3 p1'!L53)*'Ut 1.5'!G54 -> 95196297.14
B15: =B14+1 -> 2 | C15: 191 Account Balance for SNG Costs 2/ | F15: 0
B16: =1+B15 -> 3 | C16: Total | F16: =SUM(F14:F15) -> 95196297.14
B19: =B16+1 -> 4 | C19: SNG Costs Recovered at Current Rates 3/ | F19: ='Other Inputs'!E229-(D29*('Other Inputs'!G81-'Other Inputs'!F230)) -> 94706544.11
B22: =1+B19 -> 5 | C22: SNG Costs Adjustment to Current Rates (Line 3 - Line 4) | F22: =F16-F19 -> 489753.0305
B28: 6a | C28: Adjustment for SNG contributions from:
B29: 6b | C29: IS SNG current rate | D29: ='RevRun Fcst'!T102+'RevRun Fcst'!T93 -> 2641336 | E29: ='Ut 1.6 p3'!E24 -> 0.1786 | F29: =D29*E29 -> 471742.6096
B30: 6c | C30: IS SNG new rate | D30: ='RevRun Fcst'!T102+'RevRun Fcst'!T93 -> 2641336 | E30: ='Ut 1.6 p3'!I24 -> 0.1788 | F30: =D30*E30 -> 472270.8768
B35: =2+B22 -> 7 | C35: Percent Change to Current Rates | F35: =(((+F16-F30)-(F19-F29))/(F19-F29))*100 -> 0.5191550844 | G35: %
C36: ((ln 3-ln 6c)-(ln 4-ln 6b))/(ln 4-ln 6b)
B42: 1/ | C42: Exhibit 1.6, Page 1, Line 5.
E43: SNG Balance
B44: 2/ | C44: August 2014 SNG Balance | E44: 876475
C45: Previous amortized balance of 5,896,338 from spring pass-through carries forward.
C46: Amortization will be adjusted in the spring pass-through.
B48: 3/ | C48: ="Output of Revrun.Exe computer program dated "&'RevRun Fcst'!D4 -> Output of Revrun.Exe computer program dated 9/11/2014

Sheet Ut 1.6 p3
I1: ='Control Panel'!$F$32 -> Questar Gas Company
I2: ='Control Panel'!$F$33 -> Docket No. 14-057-22
I3: Exhibit 1.6
I4: Page 3 of 3
F8: TEST YEAR CHANGE IN SUPPLIER NON-GAS COSTS
F9: BY RATE CLASS
C12: (A) | D12: (B) | E12: (C) | F12: (D) | G12: (E) | H12: (F) | I12: (G)
G13: Rate per Dth
C14: Rate Class | D14: Season | E14: Current total 1/ | F14: Curr. Base 1/ | G14: Calc. Base 2/ | H14: Amortization 3/ | I14: Total 4/ | K14: CHECK !! | M14: Current Amort.
B16: 1 | C16: GS | D16: Winter | E16: ='Other Inputs'!G73 -> 1.05304 | F16: ='Other Inputs'!E73 -> 1.12022 | G16: =ROUND(E16*('Ut 1.6 p2'!$F$14-'Ut 1.6 p2'!$F$30)/('Ut 1.6 p2'!$F$19-'Ut 1.6 p2'!$F$29),5) -> 1.05851 | H16: =I16-G16 -> -0.06718 | I16: =ROUND(E16*ROUND(1+'Ut 1.6 p2'!$F$35/100,7),5)+M16 -> 0.99133 | K16: =ROUND(G16*('Ut 1.6 p2'!$F$15)/('Ut 1.6 p2'!$F$14-'Ut 1.6 p2'!$F$30),5)-H16 -> 0.06718 | M16: -0.06718
B17: =B16+1 -> 2 | D17: Summer | E17: ='Other Inputs'!G74 -> 0.49441 | F17: ='Other Inputs'!E74 -> 0.52595 | G17: =ROUND(E17*('Ut 1.6 p2'!$F$14-'Ut 1.6 p2'!$F$30)/('Ut 1.6 p2'!$F$19-'Ut 1.6 p2'!$F$29),5) -> 0.49698 | H17: =I17-G17 -> -0.03154 | I17: =ROUND(E17*ROUND(1+'Ut 1.6 p2'!$F$35/100,7),5)+M17 -> 0.46544 | K17: =ROUND(G17*('Ut 1.6 p2'!$F$15)/('Ut 1.6 p2'!$F$14-'Ut 1.6 p2'!$F$30),5)-H17 -> 0.03154 | M17: -0.03154
B19: =B17+1 -> 3 | C19: FS | D19: Winter | E19: ='Other Inputs'!G76 -> 1.02562 | F19: ='Other Inputs'!E76 -> 1.09105 | G19: =ROUND(E19*('Ut 1.6 p2'!$F$14-'Ut 1.6 p2'!$F$30)/('Ut 1.6 p2'!$F$19-'Ut 1.6 p2'!$F$29),5) -> 1.03094 | H19: =I19-G19 -> -0.06543 | I19: =ROUND(E19*ROUND(1+'Ut 1.6 p2'!$F$35/100,7),5)+M19 -> 0.96551 | K19: =ROUND(G19*('Ut 1.6 p2'!$F$15)/('Ut 1.6 p2'!$F$14-'Ut 1.6 p2'!$F$30),5)-H19 -> 0.06543 | M19: -0.06543
B20: =B19+1 -> 4 | D20: Summer | E20: ='Other Inputs'!G77 -> 0.4944 | F20: ='Other Inputs'!E77 -> 0.52593 | G20: =ROUND(E20*('Ut 1.6 p2'!$F$14-'Ut 1.6 p2'!$F$30)/('Ut 1.6 p2'!$F$19-'Ut 1.6 p2'!$F$29),5) -> 0.49697 | H20: =I20-G20 -> -0.03153 | I20: =ROUND(E20*ROUND(1+'Ut 1.6 p2'!$F$35/100,7),5)+M20 -> 0.46544 | K20: =ROUND(G20*('Ut 1.6 p2'!$F$15)/('Ut 1.6 p2'!$F$14-'Ut 1.6 p2'!$F$30),5)-H20 -> 0.03153 | M20: -0.03153
B22: =B20+1 -> 5 | C22: NGV | E22: ='Other Inputs'!G79 -> 0.7599 | F22: ='Other Inputs'!E79 -> 0.80838 | G22: =ROUND(E22*('Ut 1.6 p2'!$F$14-'Ut 1.6 p2'!$F$30)/('Ut 1.6 p2'!$F$19-'Ut 1.6 p2'!$F$29),5) -> 0.76385 | H22: =I22-G22 -> -0.04848 | I22: =ROUND(E22*ROUND(1+'Ut 1.6 p2'!$F$35/100,7),5)+M22 -> 0.71537 | K22: =ROUND(G22*('Ut 1.6 p2'!$F$15)/('Ut 1.6 p2'!$F$14-'Ut 1.6 p2'!$F$30),5)-H22 -> 0.04848 | M22: -0.04848
B24: =B22+1 -> 6 | C24: IS 5/ | E24: ='Other Inputs'!F230 -> 0.1786 | F24: ='Other Inputs'!F230 -> 0.1786 | G24: ='Other Inputs'!$F$48 -> 0.1788 | H24: =I24-G24 -> 0 | I24: ='Other Inputs'!$F$48 -> 0.1788
B31: 1/ | C31: Current Questar Gas Tariff (excluding bad debt surcharge).
B33: 2/ | C33: Exhibit 1.6 page 2 (line 1 - line 6c)/(line 4 - line 6b)*Exhibit 1.6 page 3 column C. (N.A. to line 6)
B35: 3/ | C35: Column G - Column E
B37: 4/ | C37: (Current Questar Gas rates) x (1+Exhibit 1.6, Page 2, Line 7, % change).
C38: ="(except ln. 6, which is calculated by adding QPC T-2 and ACA rates, then adjusting for distr. loss of "&TEXT('Other Inputs'!E283,"0.000%") -> (except ln. 6, which is calculated by adding QPC T-2 and ACA rates, then adjusting for distr. loss of 0.494%
C39: ="= ("&TEXT('Other Inputs'!$F$42,"$0.00000")&" + "&TEXT('Other Inputs'!$F$44,"$0.00000")&") / ( 1 - "&TEXT('Other Inputs'!$E$283,"0.00000")&" ) = "&TEXT(('Other Inputs'!F42+'Other Inputs'!F44)/(1-('Other Inputs'!$E$283)),("$0.00000")) -> = ($0.17652 + $0.00140) / ( 1 - 0.00494 ) = $0.17880
B41: 5/ | C41: ="IS Tariff rate has an adjustment for bad debt of "&TEXT('Other Inputs'!$E$294,"0.00%")&" = "&TEXT($I$24,"$0.00000")&" / ( 1 - "&TEXT('Other Inputs'!$E$294,"0.00000")&" ) = "&TEXT($I$24/(1-('Other Inputs'!$E$294)),("$0.00000")) -> IS Tariff rate has an adjustment for bad debt of 0.25% = $0.17880 / ( 1 - 0.00250 ) = $0.17925

Sheet Ut 1.7
L1: ='Control Panel'!$F$32 -> Questar Gas Company
L2: ='Control Panel'!$F$33 -> Docket No. 14-057-22
L3: Exhibit 1.7
C7: EFFECT ON GS TYPICAL CUSTOMER
C8: 80 DTHS - ANNUAL CONSUMPTION
C11: (A) | D11: (B) | E11: (C) | F11: (D) | H11: (E) | J11: (F)
F12: Billed at Current | H12: Billed at
C13: Rate | E13: Usage | F13: Rates Effective | H13: Proposed Rates
C14: Schedule | D14: Month | E14: In Dth | F14: ='Other Inputs'!J86 -> 2014-07-01 | H14: ='Control Panel'!F5 -> 14-057-22 | J14: Change
B16: 1 | C16: GS | D16: Jan | E16: ='Monthly Inputs'!G116 -> 14.9 | F16: =ROUND((+E16*'Other Inputs'!$G$88)+'Other Inputs'!$G$90,2) -> 139.77 | H16: =ROUND((+E16*'Ut 1.8'!$F$10)+'Ut 1.8'!$C$12,2) -> 135.44 | J16: =H16-F16 -> -4.33
B17: =B16+1 -> 2 | D17: Feb | E17: ='Monthly Inputs'!G117 -> 12.5 | F17: =ROUND((+E17*'Other Inputs'!$G$88)+'Other Inputs'!$G$90,2) -> 118.35 | H17: =ROUND((+E17*'Ut 1.8'!$F$10)+'Ut 1.8'!$C$12,2) -> 114.71 | J17: -3.64
B18: =B17+1 -> 3 | D18: Mar | E18: ='Monthly Inputs'!G118 -> 10.1 | F18: =ROUND((+E18*'Other Inputs'!$G$88)+'Other Inputs'!$G$90,2) -> 96.92 | H18: =ROUND((+E18*'Ut 1.8'!$F$10)+'Ut 1.8'!$C$12,2) -> 93.98 | J18: -2.94
B19: 4 | D19: Apr | E19: ='Monthly Inputs'!G119 -> 8.3 | F19: =ROUND((+E19*'Other Inputs'!$G$86)+'Other Inputs'!$G$90,2) -> 71.39 | H19: =ROUND((+E19*'Ut 1.8'!$C$10)+'Ut 1.8'!$C$12,2) -> 69.25 | J19: -2.14
B20: 5 | D20: May | E20: ='Monthly Inputs'!G120 -> 4.4 | F20: =ROUND((+E20*'Other Inputs'!$G$86)+'Other Inputs'!$G$90,2) -> 41.02 | H20: =ROUND((+E20*'Ut 1.8'!$C$10)+'Ut 1.8'!$C$12,2) -> 39.88 | J20: -1.14
B21: 6 | D21: Jun | E21: ='Monthly Inputs'!G121 -> 3.1 | F21: =ROUND((+E21*'Other Inputs'!$G$86)+'Other Inputs'!$G$90,2) -> 30.89 | H21: =ROUND((+E21*'Ut 1.8'!$C$10)+'Ut 1.8'!$C$12,2) -> 30.09 | J21: -0.8
B22: 7 | D22: Jul | E22: ='Monthly Inputs'!G122 -> 2 | F22: =ROUND((+E22*'Other Inputs'!$G$86)+'Other Inputs'!$G$90,2) -> 22.33 | H22: =ROUND((+E22*'Ut 1.8'!$C$10)+'Ut 1.8'!$C$12,2) -> 21.81 | J22: -0.52
B23: 8 | D23: Aug | E23: ='Monthly Inputs'!G123 -> 1.8 | F23: =ROUND((+E23*'Other Inputs'!$G$86)+'Other Inputs'!$G$90,2) -> 20.77 | H23: =ROUND((+E23*'Ut 1.8'!$C$10)+'Ut 1.8'!$C$12,2) -> 20.3 | J23: -0.47
B24: 9 | D24: Sep | E24: ='Monthly Inputs'!G124 -> 2 | F24: =ROUND((+E24*'Other Inputs'!$G$86)+'Other Inputs'!$G$90,2) -> 22.33 | H24: =ROUND((+E24*'Ut 1.8'!$C$10)+'Ut 1.8'!$C$12,2) -> 21.81 | J24: -0.52
B25: 10 | D25: Oct | E25: ='Monthly Inputs'!G125 -> 3.1 | F25: =ROUND((+E25*'Other Inputs'!$G$86)+'Other Inputs'!$G$90,2) -> 30.89 | H25: =ROUND((+E25*'Ut 1.8'!$C$10)+'Ut 1.8'!$C$12,2) -> 30.09 | J25: -0.8
B26: 11 | D26: Nov | E26: ='Monthly Inputs'!G126 -> 6.3 | F26: =ROUND((+E26*'Other Inputs'!$G$88)+'Other Inputs'!$G$90,2) -> 62.99 | H26: =ROUND((+E26*'Ut 1.8'!$F$10)+'Ut 1.8'!$C$12,2) -> 61.16 | J26: -1.83
B27: 12 | D27: Dec | E27: ='Monthly Inputs'!G127 -> 11.5 | F27: =ROUND((+E27*'Other Inputs'!$G$88)+'Other Inputs'!$G$90,2) -> 109.42 | H27: =ROUND((+E27*'Ut 1.8'!$F$10)+'Ut 1.8'!$C$12,2) -> 106.07 | J27: -3.35
B30: =B27+1 -> 13 | D30: Total | E30: =SUM(E16:E27) -> 80 | F30: =SUM(F16:F27) -> 767.07 | H30: =SUM(H16:H27) -> 744.59 | J30: =H30-F30 -> -22.48
H32: Percent Change: | J32: =ROUND(J30/F30,4)*100 -> -2.93 | K32: %

Sheet Ut 1.7 Tot (hidden)
L1: ='Control Panel'!$F$32 -> Questar Gas Company
L2: Docket Nos. 08-057-15, 08-057-16 & 08-057-17
L3: Hearing Exhibit 2
A5: NOT USED
C7: EFFECT ON GS-1 TYPICAL CUSTOMER
B8: OF PROPOSED COMMODITY AND SNG RATES AND CET AND DSM AMORTIZATIONS
C9: 80 DTHS - ANNUAL CONSUMPTION
C12: (A) | D12: (B) | E12: (C) | F12: (D) | H12: (E) | J12: (F)
F13: Billed at Current | H13: Billed at
C14: Rate | E14: Usage | F14: Rates Effective | H14: Proposed
C15: Schedule | D15: Month | E15: In Dth | F15: ='Other Inputs'!J86 -> 2014-07-01 | H15: Rates | J15: Change
B17: 1 | C17: GS | D17: Jan | E17: ='Monthly Inputs'!G116 -> 14.9 | F17: =ROUND((+E17*'Other Inputs'!$G$88)+'Other Inputs'!$G$90,2) -> 139.77 | H17: =#REF! ->  | J17: =H17-F17 -> 
B18: =B17+1 -> 2 | D18: Feb | E18: ='Monthly Inputs'!G117 -> 12.5 | F18: =ROUND((+E18*'Other Inputs'!$G$88)+'Other Inputs'!$G$90,2) -> 118.35 | H18: =#REF! -> 
B19: 3 | D19: Mar | E19: ='Monthly Inputs'!G118 -> 10.1 | F19: =ROUND((+E19*'Other Inputs'!$G$88)+'Other Inputs'!$G$90,2) -> 96.92 | H19: =#REF! -> 
B20: 4 | D20: Apr | E20: ='Monthly Inputs'!G119 -> 8.3 | F20: =ROUND((+E20*'Other Inputs'!$G$86)+'Other Inputs'!$G$90,2) -> 71.39 | H20: =#REF! -> 
B21: 5 | D21: May | E21: ='Monthly Inputs'!G120 -> 4.4 | F21: =ROUND((+E21*'Other Inputs'!$G$86)+'Other Inputs'!$G$90,2) -> 41.02 | H21: =#REF! -> 
B22: 6 | D22: Jun | E22: ='Monthly Inputs'!G121 -> 3.1 | F22: =ROUND((+E22*'Other Inputs'!$G$86)+'Other Inputs'!$G$90,2) -> 30.89 | H22: =#REF! -> 
B23: 7 | D23: Jul | E23: ='Monthly Inputs'!G122 -> 2 | F23: =ROUND((+E23*'Other Inputs'!$G$86)+'Other Inputs'!$G$90,2) -> 22.33 | H23: =#REF! -> 
B24: 8 | D24: Aug | E24: ='Monthly Inputs'!G123 -> 1.8 | F24: =ROUND((+E24*'Other Inputs'!$G$86)+'Other Inputs'!$G$90,2) -> 20.77 | H24: =#REF! -> 
B25: 9 | D25: Sep | E25: ='Monthly Inputs'!G124 -> 2 | F25: =ROUND((+E25*'Other Inputs'!$G$86)+'Other Inputs'!$G$90,2) -> 22.33 | H25: =#REF! -> 
B26: 10 | D26: Oct | E26: ='Monthly Inputs'!G125 -> 3.1 | F26: =ROUND((+E26*'Other Inputs'!$G$86)+'Other Inputs'!$G$90,2) -> 30.89 | H26: =#REF! -> 
B27: 11 | D27: Nov | E27: ='Monthly Inputs'!G126 -> 6.3 | F27: =ROUND((+E27*'Other Inputs'!$G$88)+'Other Inputs'!$G$90,2) -> 62.99 | H27: =#REF! -> 
B28: 12 | D28: Dec | E28: ='Monthly Inputs'!G127 -> 11.5 | F28: =ROUND((+E28*'Other Inputs'!$G$88)+'Other Inputs'!$G$90,2) -> 109.42 | H28: =#REF! -> 
B31: =B28+1 -> 13 | D31: Total | E31: =SUM(E17:E28) -> 80 | F31: =SUM(F17:F28) -> 767.07 | H31: =SUM(H17:H28) ->  | J31: =H31-F31 -> 
H33: Percent Change: | J33: =ROUND(J31/F31,4)*100 ->  | K33: %

Sheet Ut 1.8 p1
F1: ='Control Panel'!F36 -> Questar Gas Company
F2: ='Control Panel'!F33 -> Docket No. 14-057-22
F3: Exhibit 1.8
F4: Page 1 of 17
A15: QUESTAR GAS COMPANY
A16: 333 South State Street
A17: P.O. Box 45433
A18: Salt Lake City, Utah 84145-0433
A29: LEGISLATIVE/PROPOSED RATE SCHEDULES
A31: P.S.C. Utah No. 400
A32: Affecting All Firm Sales Rate Schedules
A33: and Classes of Service In
A34: Questar Gas Company's
A35: Utah Service Area
A39: Date Issued: October 1, 2014
A40: To Become Effective November 1, 2014

Sheet LEG - PR
A2: LEGISLATIVE TARIFF
A3: SHEETS
A6: PROPOSED TARIFF
A7: SHEETS

Sheet Ut 1.8
A1: SUMMARY OF PROPOSED RATES
A3: UTAH RATE CLASSES | C3: Rates per Dth Used Each Month
C4: All Season Rates or Summer Rates: Apr. 1 - Oct. 31 | F4: Winter Rates: Nov. 1 - Mar. 31
A5: UT GS | C5: First 45 Dth | D5: All Over 45 Dth | F5: First 45 Dth | G5: All Over 45 Dth
B6: Distribution Non-Gas Cost | C6: ='Other Inputs'!F239 -> 2.01783 | D6: ='Other Inputs'!F240 -> 1.08394 | F6: ='Other Inputs'!F241 -> 2.5987 | G6: ='Other Inputs'!F242 -> 1.66481
B7: Supplier Non-Gas Cost | C7: ='Ut 1.6 p3'!I17 -> 0.46544 | D7: =C7 -> 0.46544 | F7: ='Ut 1.6 p3'!I16 -> 0.99133 | G7: =F7 -> 0.99133
B8: Commodity Cost | C8: =('Ut 1.6 p1'!$F$33) -> 5.046677754 | D8: =C8 -> 5.046677754 | F8: =D8 -> 5.046677754 | G8: =F8 -> 5.046677754
B10: Total Rate | C10: =SUM(C6:C9) -> 7.529947754 | D10: =SUM(D6:D9) -> 6.596057754 | F10: =SUM(F6:F9) -> 8.636707754 | G10: =SUM(G6:G9) -> 7.702817754
B12: BSF Category 1 | C12: 6.75
B13: BSF Category 2 | C13: 18.25
B14: BSF Category 3 | C14: 63.5
B15: BSF Category 4 | C15: 420.25
A18: UT FS | C18: First 200 Dth | D18: Next 1,800 Dth | E18: All Over 2,000 Dth | F18: First 200 Dth | G18: Next 1,800 Dth | H18: All Over 2,000 Dth
B19: Distribution Non-Gas Cost | C19: 0.83234 | D19: 0.45234 | E19: 0.05234 | F19: 1.25869 | G19: 0.87869 | H19: 0.47869
B20: Supplier Non-Gas Cost | C20: ='Ut 1.6 p3'!$I$20 -> 0.46544 | D20: =C20 -> 0.46544 | E20: =D20 -> 0.46544 | F20: ='Ut 1.6 p3'!$I$19 -> 0.96551 | G20: =F20 -> 0.96551 | H20: =G20 -> 0.96551
B21: Commodity Cost | C21: =('Ut 1.6 p1'!$F$33) -> 5.046677754 | D21: =C21 -> 5.046677754 | E21: =D21 -> 5.046677754 | F21: =E21 -> 5.046677754 | G21: =F21 -> 5.046677754 | H21: =G21 -> 5.046677754
B23: Total Rate | C23: =SUM(C19:C22) -> 6.344457754 | D23: =SUM(D19:D22) -> 5.964457754 | E23: 5.564457754 | F23: 7.270877754 | G23: 6.890877754 | H23: 6.490877754
B25: Minimum Monthly DNG Charge: | C25: =ROUND(C19*175,0) -> 146 | F25: =ROUND(F19*175,0) -> 220
B27: BSF Category 1 | C27: =C12 -> 6.75
B28: BSF Category 2 | C28: =C13 -> 18.25
B29: BSF Category 3 | C29: =C14 -> 63.5
B30: BSF Category 4 | C30: =C15 -> 420.25
A33: UT Future Rate Class
C34: First 10,000 Dth | D34: All Over 10,000 Dth
B35: Distribution Non-Gas Cost
B36: Supplier Non-Gas Cost
B37: Commodity Cost
B39: Total Rate | C39: =SUM(C35:C38) -> 0 | D39: =SUM(D35:D38) -> 0
B41: Minimum Yearly Distribution Non-Gas Charge | D41: =ROUND(((10000*C35))*12,-2) -> 0
B44: BSF Category 1 | C44: =C12 -> 6.75
B45: BSF Category 2 | C45: =C13 -> 18.25
B46: BSF Category 3 | C46: =C14 -> 63.5
B47: BSF Category 4 | C47: =C15 -> 420.25
A51: UT NGV
B52: Distribution Non-Gas Cost | C52: 5.45843
B53: Supplier Non-Gas Cost | C53: ='Ut 1.6 p3'!I22 -> 0.71537
B54: Commodity Cost | C54: ='Ut 1.6 p1'!F33 -> 5.046677754
B56: Total Rate | C56: =SUM(C52:C55) -> 11.22047775
A59: UT IS | C59: First 2,000 Dth | D59: Next 18,000 Dth | E59: All Over 20,000
B60: Distribution Non-Gas Cost | C60: 0.42907 | D60: 0.07037 | E60: 0.04413
B61: Supplier Non-Gas Cost | C61: ='Ut 1.6 p3'!$I$24/(1-'Other Inputs'!$E$294) -> 0.1792481203 | D61: =C61 -> 0.1792481203 | E61: =D61 -> 0.1792481203
B62: Commodity Cost | C62: =('Ut 1.6 p1'!$F$33) -> 5.046677754 | D62: =('Ut 1.6 p1'!$F$33) -> 5.046677754 | E62: =('Ut 1.6 p1'!$F$33) -> 5.046677754
B64: Total Rate | C64: =SUM(C60:C62) -> 5.654995874 | D64: =SUM(D60:D62) -> 5.296295874 | E64: 5.270055874
B66: BSF Category 1 | C66: =C12 -> 6.75
B67: BSF Category 2 | C67: =C13 -> 18.25
B68: BSF Category 3 | C68: 63.5
B69: BSF Category 4 | C69: 420.25

Sheet Ut 1.9
D1: ='Control Panel'!$F$32 -> Questar Gas Company
D2: ='Control Panel'!$F$33 -> Docket No. 14-057-22
D3: Exhibit 1.9
D4: Page 1 of 2
D6: ='Control Panel'!$F$32 -> Questar Gas Company
D7: ='Control Panel'!$F$33 -> Docket No. 14-057-22
D8: Exhibit 1.9
D9: Page 2 of 2

Sheet Ut 1.10
P17: Exhibit 1.10 | Q17: =CONCATENATE("Docket No. ",'Control Panel'!F5) -> Docket No. 14-057-22 | R17: Questar Gas Company

Sheet Ut 1.11
F1: ='Control Panel'!F36 -> Questar Gas Company
F2: ='Control Panel'!F33 -> Docket No. 14-057-22
F3: Exhibit 1.11
F4: Page 1 of 29
A17: QUESTAR GAS COMPANY
A18: 333 South State Street
A19: P.O. Box 45433
A20: Salt Lake City, Utah 84145-0433
A31: LEGISLATIVE/PROPOSED RATE SCHEDULES
A32: P.S.C. Utah Tariff

Sheet Ut Storage
A1: Storage Injection / Withdrawal adjustment
C3: (A) | D3: (B) | E3: (C) | F3: (D) | G3: (E) | H3: (F) | I3: (G) | K3: (H) | L3: (I) | M3: (J)
G4: Injections | I4: (J) / (C)
E5: Storage | G5: ------------------------------------------------------------- | I5: Storage | M5: Storage
C6: Injection Dth | D6: Withdrawal Dth | E6: Inventory Dth | F6: % that is | G6: Co. Prod. | H6: Purchased | I6: Inventory | M6: Inventory
A7: Line | B7: Month | C7: Per IRPs | D7: Per IRPs | E7: Balance | F7: Co. Prod. (1) | G7: $/Dth (2) | H7: $/Dth (3) | I7: Average $/Dth | K7: Injection (4) | L7: Withdrawal (5) | M7: Balance
B8: Mar14 | E8: =-1*'Other Inputs'!D234 -> 11686091 | I8: =M8/E8 -> 4.803595284 | M8: ='Other Inputs'!E234 -> 56135251.62
B9: Apr14 | C9: ='Monthly Inputs'!E29 -> 470850 | D9: =-'Monthly Inputs'!E37 -> -252680 | E9: =E8+C9+D9 -> 11904261 | F9: =F21 -> 0.869516973 | G9: ='Other Inputs'!F102 -> 5.27113 | H9: ='Monthly Inputs'!E79 -> 3.85 | I9: =M9/E9 -> 4.814753258 | K9: =(+F9*C9*G9)+((1-F9)*C9*H9) -> 2394600.27 | L9: =D9*I8 -> -1213772.456 | M9: =M8+L9+K9 -> 57316079.43
B10: May14 | C10: ='Monthly Inputs'!F29 -> 2185040 | D10: =-'Monthly Inputs'!F37 -> -145370 | E10: =E9+C10+D10 -> 13943931 | F10: =F22 -> 0.5520608289 | G10: =G9 -> 5.27113 | H10: ='Monthly Inputs'!F79 -> 3.86 | I10: =M10/E10 -> 4.787217033 | K10: =(+F10*C10*G10)+((1-F10)*C10*H10) -> 10136465.23 | L10: =D10*I9 -> -699920.6811 | M10: =M9+L10+K10 -> 66752623.98
A11: 1. | B11: ='Monthly Inputs'!G3 -> Nov14 | C11: ='Monthly Inputs'!G29 -> 0 | D11: =-'Monthly Inputs'!G37 -> -666210 | E11: =E10+C11+D11 -> 13277721 | F11: =Calculations!D176 -> 0.5314319246 | G11: ='Ut 1.4 p2'!$F$15 -> 4.896829845 | H11: =Calculations!D194 -> 4.05546 | I11: =M11/E11 -> 4.787217033 | K11: 0 | L11: =D11*I10 -> -3189291.859 | M11: =M10+L11+K11 -> 63563332.13
A12: 2. | B12: ='Monthly Inputs'!H3 -> Dec14 | C12: ='Monthly Inputs'!H29 -> 0 | D12: =-'Monthly Inputs'!H37 -> -5428284 | E12: 7849437 | F12: =Calculations!E176 -> 0.4898657869 | G12: ='Ut 1.4 p2'!$F$15 -> 4.896829845 | H12: =Calculations!E194 -> 4.13483 | I12: =M12/E12 -> 4.787217033 | K12: 0 | L12: =D12*I11 -> -25986373.62 | M12: =M11+L12+K12 -> 37576958.5
A13: 3. | B13: ='Monthly Inputs'!I3 -> Jan15 | C13: ='Monthly Inputs'!I29 -> 0 | D13: =-'Monthly Inputs'!I37 -> -4139601 | E13: 3709836 | F13: =Calculations!F176 -> 0.3662583162 | G13: ='Ut 1.4 p2'!$F$15 -> 4.896829845 | H13: =Calculations!F194 -> 4.07637 | I13: 4.787217033 | K13: 0 | L13: =D13*I12 -> -19817168.42 | M13: 17759790.09
A14: 4. | B14: ='Monthly Inputs'!J3 -> Feb15 | C14: ='Monthly Inputs'!J29 -> 0 | D14: =-'Monthly Inputs'!J37 -> -2026000 | E14: 1683836 | F14: =Calculations!G176 -> 0.3604663521 | G14: ='Ut 1.4 p2'!$F$15 -> 4.896829845 | H14: =Calculations!G194 -> 3.93502 | I14: 4.787217033 | K14: 0 | L14: -9698901.708 | M14: 8060888.379
A15: 5. | B15: ='Monthly Inputs'!K3 -> Mar15 | C15: ='Monthly Inputs'!K29 -> 0 | D15: =-'Monthly Inputs'!K37 -> 0 | E15: 1683836 | F15: =Calculations!H176 -> 0.4757563287 | G15: ='Ut 1.4 p2'!$F$15 -> 4.896829845 | H15: =Calculations!H194 -> 3.78748 | I15: 4.787217033 | K15: 0 | L15: 0 | M15: 8060888.379
A16: 6. | B16: ='Monthly Inputs'!L3 -> Apr15 | C16: ='Monthly Inputs'!L29 -> 0 | D16: =-'Monthly Inputs'!L37 -> 0 | E16: 1683836 | F16: =Calculations!I176 -> 0.6169457491 | G16: ='Ut 1.4 p2'!$F$15 -> 4.896829845 | H16: =Calculations!I194 -> 3.49102 | I16: 4.787217033 | K16: 0 | L16: 0 | M16: 8060888.379
A17: 7. | B17: ='Monthly Inputs'!M3 -> May15 | C17: ='Monthly Inputs'!M29 -> 780215.0852 | D17: =-'Monthly Inputs'!M37 -> -185530 | E17: 2278521.085 | F17: =Calculations!J176 -> 1 | G17: ='Ut 1.4 p2'!$F$15 -> 4.896829845 | H17: =Calculations!J194 -> 0 | I17: 4.824750839 | K17: 3820580.515 | L17: -888172.3761 | M17: 10993296.52
A18: 8. | B18: ='Monthly Inputs'!N3 -> Jun15 | C18: ='Monthly Inputs'!N29 -> 2207180.008 | D18: =-'Monthly Inputs'!N37 -> -104880 | E18: 4380821.094 | F18: =Calculations!K176 -> 1 | G18: ='Ut 1.4 p2'!$F$15 -> 4.896829845 | H18: =Calculations!K194 -> 0 | I18: 4.861066255 | K18: 10808184.94 | L18: -506019.868 | M18: 21295461.59
A19: 9. | B19: ='Monthly Inputs'!O3 -> Jul15 | C19: ='Monthly Inputs'!O29 -> 2723568.425 | D19: =-'Monthly Inputs'!O37 -> -66780 | E19: 7037609.519 | F19: =Calculations!L176 -> 1 | G19: ='Ut 1.4 p2'!$F$15 -> 4.896829845 | H19: =Calculations!L194 -> 0 | I19: 4.874906833 | K19: 13336851.15 | L19: -324622.0045 | M19: =M18+L19+K19 -> 34307690.73
A20: 10. | B20: ='Monthly Inputs'!P3 -> Aug15 | C20: ='Monthly Inputs'!P29 -> 2469479.909 | D20: =-'Monthly Inputs'!P37 -> 0 | E20: 9507089.428 | F20: =Calculations!M176 -> 1 | G20: ='Ut 1.4 p2'!$F$15 -> 4.896829845 | H20: =Calculations!M194 -> 0 | I20: 4.880601367 | K20: 12092622.92 | L20: 0 | M20: =M19+L20+K20 -> 46400313.65
A21: 11. | B21: ='Monthly Inputs'!Q3 -> Sep15 | C21: ='Monthly Inputs'!Q29 -> 2046350 | D21: =-'Monthly Inputs'!Q37 -> 0 | E21: 11553439.43 | F21: =Calculations!N176 -> 0.869516973 | G21: ='Ut 1.4 p2'!$F$15 -> 4.896829845 | H21: =Calculations!N194 -> 3.5 | I21: 4.851193336 | K21: 9647654.71 | L21: 0 | M21: =M20+L21+K21 -> 56047968.36
A22: 12. | B22: ='Monthly Inputs'!R3 -> Oct15 | C22: ='Monthly Inputs'!R29 -> 2769400 | D22: =-'Monthly Inputs'!R37 -> 0 | E22: 14322839.43 | F22: =Calculations!O176 -> 0.5520608289 | G22: ='Ut 1.4 p2'!$F$15 -> 4.896829845 | H22: =Calculations!O194 -> 3.51206 | I22: 4.740080401 | K22: 11843442.09 | L22: 0 | M22: =M21+L22+K22 -> 67891410.45
M25: Inj./With. Adj.
A26: 14. | B26: Total | C26: =SUM(C11:C22) -> 12996193.43 | D26: =SUM(D11:D22) -> -12617285 | K26: =SUM(K11:K22) -> 61549336.32 | L26: =SUM(L11:L22) -> -60410549.85 | M26: =L26+K26 -> 1138786.467
A27: 15. | B27: Average $ /Dth | K27: =K26/C26 -> 4.735951082 | L27: =L26/D26 -> 4.787919894
A31: ___________________________________________________________________

Sheet Ex 1.1 Data
A1: QEPFS gathered | B1: 50647652.65 | C1: Adjusted test year-> | D1: -0.1737707714 | E1: 41846570.98 | H1: Samson Gathered | I1: 2544019.238 | J1: Adjusted test year-> | K1: 0.6374605901 | L1: 4165731.243
A2: Birch Creek | B2: 1926442.741 | C2: Adjusted test year-> | D2: -0.1737707714 | E2: 1591683.3
A3: Other | B3: 28100850.75
C4: WEXPRO I | J4: WEXPRO II
A5: Input Operator Service Fee > | C5: ='Monthly Inputs'!S107 -> 292226081 | H5: Input Operator Service Fee > | J5: ='Monthly Inputs'!S109 -> 24803689
A7: do not change the order of the months below!!!!! | H7: do not change the order of the months below!!!!!
A8: \/ | C8: 2014-09-01 | H8: \/ | J8: 2014-09-01
A9: \/ | B9: Company | C9: Average Index | D9: Church Buttes | H9: \/ | I9: Company | J9: Average Index | K9: Church Buttes
A10: \/ | B10: Production | C10: Spot Prices | D10: & Canyon Cr | H10: \/ | I10: Production | J10: Spot Prices | K10: & Canyon Cr
A11: January | B11: 5859660 | C11: ='Graph (Ex 1.10) Inputs'!F5 -> 3.94 | D11: =C11+0.1 -> 4.04 | E11: =B11*D11 -> 23673026.4 | H11: January | I11: 380940 | J11: ='Graph (Ex 1.10) Inputs'!F5 -> 3.94 | K11: =J11+0.1 -> 4.04 | L11: =I11*K11 -> 1538997.6
A12: February | B12: 5172850 | C12: ='Graph (Ex 1.10) Inputs'!F6 -> 3.86 | D12: 3.96 | E12: =B12*D12 -> 20484486 | H12: February | I12: 338740 | J12: ='Graph (Ex 1.10) Inputs'!F6 -> 3.86 | K12: =J12+0.1 -> 3.96 | L12: =I12*K12 -> 1341410.4
A13: March | B13: 5608700 | C13: ='Graph (Ex 1.10) Inputs'!F7 -> 3.75 | D13: 3.85 | E13: 21593495 | H13: March | I13: 369370 | J13: ='Graph (Ex 1.10) Inputs'!F7 -> 3.75 | K13: 3.85 | L13: 1422074.5
A14: April | B14: 5407980 | C14: ='Graph (Ex 1.10) Inputs'!F8 -> 3.49 | D14: 3.59 | E14: 19414648.2 | H14: April | I14: 352200 | J14: ='Graph (Ex 1.10) Inputs'!F8 -> 3.49 | K14: 3.59 | L14: 1264398
A15: May | B15: 5563110 | C15: ='Graph (Ex 1.10) Inputs'!F9 -> 3.49 | D15: 3.59 | E15: 19971564.9 | H15: May | I15: 358720 | J15: ='Graph (Ex 1.10) Inputs'!F9 -> 3.49 | K15: 3.59 | L15: 1287804.8
A16: June | B16: 5624680 | C16: ='Graph (Ex 1.10) Inputs'!F10 -> 3.46 | D16: 3.56 | E16: 20023860.8 | H16: June | I16: 342300 | J16: ='Graph (Ex 1.10) Inputs'!F10 -> 3.46 | K16: 3.56 | L16: 1218588
A17: July | B17: 5587050 | C17: ='Graph (Ex 1.10) Inputs'!F11 -> 3.55 | D17: 3.65 | E17: 20392732.5 | H17: July | I17: 305930 | J17: ='Graph (Ex 1.10) Inputs'!F11 -> 3.55 | K17: 3.65 | L17: 1116644.5
A18: August | B18: 5368300 | C18: ='Graph (Ex 1.10) Inputs'!F12 -> 3.52 | D18: 3.62 | E18: 19433246 | H18: August | I18: 292770 | J18: ='Graph (Ex 1.10) Inputs'!F12 -> 3.52 | K18: 3.62 | L18: 1059827.4
A19: September | B19: 5227300 | C19: ='Graph (Ex 1.10) Inputs'!F13 -> 3.5 | D19: 3.6 | E19: 18818280 | H19: September | I19: 320700 | J19: ='Graph (Ex 1.10) Inputs'!F13 -> 3.5 | K19: 3.6 | L19: 1154520
A20: October | B20: 5307540 | C20: ='Graph (Ex 1.10) Inputs'!F14 -> 3.51 | D20: 3.61 | E20: 19160219.4 | H20: October | I20: 335400 | J20: ='Graph (Ex 1.10) Inputs'!F14 -> 3.51 | K20: 3.61 | L20: 1210794
A21: November | B21: 5992920 | C21: ='Graph (Ex 1.10) Inputs'!F3 -> 3.97 | D21: 4.07 | E21: 24391184.4 | H21: November | I21: 380880 | J21: ='Graph (Ex 1.10) Inputs'!F3 -> 3.97 | K21: 4.07 | L21: 1550181.6
A22: December | B22: 6012020 | C22: ='Graph (Ex 1.10) Inputs'!F4 -> 3.95 | D22: 4.05 | E22: 24348681 | H22: December | I22: 387110 | J22: ='Graph (Ex 1.10) Inputs'!F4 -> 3.95 | K22: 4.05 | L22: 1567795.5
B24: =SUM(B11:B22) -> 66732110 | C24: CANYON CREEK | D24: =E24/B24 -> 3.771878704 | E24: =SUM(E11:E22) -> 251705424.6 | I24: =SUM(I11:I22) -> 4165060 | J24: CANYON CREEK | K24: =L24/I24 -> 3.777385272 | L24: =SUM(L11:L22) -> 15733036.3
C25: CHURCH BUTTES | J25: CHURCH BUTTES
C26: All Others -> | D26: =D24-0.2 -> 3.571878704 | J26: All Others -> | K26: =K24-0.2 -> 3.577385272
A29: Make sure all spot pricing is only 2 decimals | H29: Make sure all spot pricing is only 2 decimals

Sheet Expenses
A1: %,LACTUALS
S7: Historical
S8: 12 Months Ending
C9: FERC Acct | E9: Description | G9: 2013-09-01 | H9: 2013-10-01 | I9: 2013-11-01 | J9: 2013-12-01 | K9: 2014-01-01 | L9: 2014-02-01 | M9: 2014-03-01 | N9: 2014-04-01 | O9: 2014-05-01 | P9: 2014-06-01 | Q9: 2014-07-01 | R9: 2014-08-01 | S9: 2014-08-01
B11: 497 | C11: UTILITY OPERATING EXPENSES
B12: 498 | C12: GAS PURCHASE EXPENSES
B13: 499
B14: 500 | D14: Utah % of Sales Dth from 191 Acct ===> | G14: 0.9663 | H14: 0.95749 | I14: 0.96026 | J14: 0.9703 | K14: 0.96769 | L14: 0.96192 | M14: 0.96045 | N14: 0.95997 | O14: 0.94891 | P14: 0.96392 | Q14: 0.9747 | R14: 0.97175
B15: 501
A16: %,FACCOUNT,TQGCACCTS,V758000 | B16: 502 | C16: 758 | D16: Gas Well Royalties
B17: 503 | E17: Utah | G17: 3453403.476 | H17: 3568125.876 | I17: 3420595.901 | J17: 4405716.061 | K17: 4885178.976 | L17: 5410851.213 | M17: 6288880.833 | N17: 5914453.436 | O17: 6537567.91 | P17: 5021310.458 | Q17: 5398159.771 | R17: 4796924.029 | S17: 59101167.94
B18: 504 | E18: Wyoming | G18: 120438.4737 | H18: 158415.2639 | I18: 141560.0786 | J18: 134854.9593 | K18: 163110.2241 | L18: 214202.0274 | M18: 258967.3975 | N18: 246628.0936 | O18: 351987.3798 | P18: 187950.1217 | Q18: 140118.4387 | R18: 139452.6409 | S18: 2257685.099
B19: 505 | E19: Total | G19: 3573841.95 | H19: 3726541.14 | I19: 3562155.98 | J19: 4540571.02 | K19: 5048289.2 | L19: 5625053.24 | M19: 6547848.23 | N19: 6161081.53 | O19: 6889555.29 | P19: 5209260.58 | Q19: 5538278.21 | R19: 4936376.67 | S19: 61358853.04
B20: 506
A21: %,FACCOUNT,TQGCACCTS,V758001,V758002,V758003,V758004 | B21: 507 | C21: 758.1 | D21: Gas Well Royalties - Other
B22: 508 | E22: Utah | G22: 16274.63 | H22: 10695.31 | I22: 7621.21 | J22: 17353.49 | K22: 20538.29 | L22: 18198.9 | M22: 13823.09 | N22: 33676.42 | O22: 46868.47 | P22: 35513.94 | Q22: 55547.94 | R22: 42487.02 | S22: 318598.71
B23: 509 | E23: Wyoming | G23: 0 | H23: 0 | I23: 0 | J23: 0 | K23: 0 | L23: 0 | M23: 0 | N23: 0 | O23: 0 | P23: 0 | Q23: 0 | R23: 0 | S23: 0
B24: 510 | E24: Total | G24: 16274.63 | H24: 10695.31 | I24: 7621.21 | J24: 17353.49 | K24: 20538.29 | L24: 18198.9 | M24: 13823.09 | N24: 33676.42 | O24: 46868.47 | P24: 35513.94 | Q24: 55547.94 | R24: 42487.02 | S24: 318598.71
B25: 511
A26: %,FACCOUNT,TQGCACCTS,V759000,V759001,V759002,V759003,V759004 | B26: 512 | C26: 759 | D26: Gathering by Others, GRI & ACA - Gas Cost
B27: 513 | E27: Utah | G27: 1560183.41 | H27: 1506403.61 | I27: 1676394.15 | J27: 1962550.47 | K27: 1647225.97 | L27: 1715910.91 | M27: 1544058.35 | N27: 1630022.67 | O27: 1564053.29 | P27: 1577802.69 | Q27: 1483636.46 | R27: 1469942.68 | S27: 19338184.66
B28: 514 | E28: Wyoming | G28: 0 | H28: 0 | I28: 0 | J28: 0 | K28: 0 | L28: 0 | M28: 0 | N28: 0 | O28: 0 | P28: 0 | Q28: 0 | R28: 0 | S28: 0
B29: 515 | E29: Total | G29: 1560183.41 | H29: 1506403.61 | I29: 1676394.15 | J29: 1962550.47 | K29: 1647225.97 | L29: 1715910.91 | M29: 1544058.35 | N29: 1630022.67 | O29: 1564053.29 | P29: 1577802.69 | Q29: 1483636.46 | R29: 1469942.68 | S29: 19338184.66
B30: 516
A31: %,FACCOUNT,TQGCACCTS,V759005 | B31: 517 | C31: 759 | D31: Gathering by Others - SNG Cost
B32: 518 | E32: Utah | G32: 0 | H32: 0 | I32: 0 | J32: 0 | K32: 0 | L32: 0 | M32: 0 | N32: 0 | O32: 0 | P32: 0 | Q32: 0 | R32: 0 | S32: 0
B33: 519 | E33: Wyoming | G33: 0 | H33: 0 | I33: 0 | J33: 0 | K33: 0 | L33: 0 | M33: 0 | N33: 0 | O33: 0 | P33: 0 | Q33: 0 | R33: 0 | S33: 0
B34: 520 | E34: Total | G34: 0 | H34: 0 | I34: 0 | J34: 0 | K34: 0 | L34: 0 | M34: 0 | N34: 0 | O34: 0 | P34: 0 | Q34: 0 | R34: 0 | S34: 0
B35: 521
A36: %,FACCOUNT,TQGCACCTS,V800000,V800005,V800002 | B36: 522 | C36: 800 | D36: Natural Gas Well Head Purchases
B37: 523 | E37: Utah | G37: 12034.18424 | H37: 14767.3587 | I37: 10766.75201 | J37: 11532.87907 | K37: 11964.41271 | L37: 3711.904992 | M37: 15492.56754 | N37: 16934.20679 | O37: 18810.73636 | P37: 376381.8231 | Q37: 34279.20481 | R37: 28247.04279 | S37: 554923.0731
B38: 524 | E38: Wyoming | G38: 419.695756 | H38: 655.6313049 | I38: 445.5779942 | J38: 353.010933 | K38: 399.4772859 | L38: 146.945008 | M38: 637.9624615 | N38: 706.1432105 | O38: 1012.783637 | P38: 14088.15688 | Q38: 889.775194 | R38: 821.177215 | S38: 20576.33688
B39: 525 | E39: Total | G39: 12453.88 | H39: 15422.99 | I39: 11212.33 | J39: 11885.89 | K39: 12363.89 | L39: 3858.85 | M39: 16130.53 | N39: 17640.35 | O39: 19823.52 | P39: 390469.98 | Q39: 35168.98 | R39: 29068.22 | S39: 575499.41
B40: 526
A41: %,FACCOUNT,TQGCACCTS,V801000 | B41: 527 | C41: 801 | D41: Natural Gas Field Line Purchases
B42: 528 | E42: Utah | G42: 0 | H42: 0 | I42: 0 | J42: 0 | K42: 0 | L42: 0 | M42: 0 | N42: 0 | O42: 0 | P42: 0 | Q42: 0 | R42: 0 | S42: 0
B43: 529 | E43: Wyoming | G43: 0 | H43: 0 | I43: 0 | J43: 0 | K43: 0 | L43: 0 | M43: 0 | N43: 0 | O43: 0 | P43: 0 | Q43: 0 | R43: 0 | S43: 0
B44: 530 | E44: Total | G44: 0 | H44: 0 | I44: 0 | J44: 0 | K44: 0 | L44: 0 | M44: 0 | N44: 0 | O44: 0 | P44: 0 | Q44: 0 | R44: 0 | S44: 0
B45: 531
A46: %,FACCOUNT,TQGCACCTS,V802000 | B46: 532 | C46: 802 | D46: Natural Gas Gasoline Plant Outlet Purchase
B47: 533 | E47: Utah | G47: 0 | H47: 0 | I47: 0 | J47: 0 | K47: 0 | L47: 0 | M47: 0 | N47: 0 | O47: 0 | P47: 0 | Q47: 0 | R47: 0 | S47: 0
B48: 534 | E48: Wyoming | G48: 0 | H48: 0 | I48: 0 | J48: 0 | K48: 0 | L48: 0 | M48: 0 | N48: 0 | O48: 0 | P48: 0 | Q48: 0 | R48: 0 | S48: 0
B49: 535 | E49: Total | G49: 0 | H49: 0 | I49: 0 | J49: 0 | K49: 0 | L49: 0 | M49: 0 | N49: 0 | O49: 0 | P49: 0 | Q49: 0 | R49: 0 | S49: 0
B50: 536
A51: %,FACCOUNT,TQGCACCTS,V803000,V803002 | B51: 537 | C51: 803 | D51: Natural Gas Transmission Line - Purchases
B52: 538 | E52: Utah | G52: 0 | H52: 9808527.56 | I52: 13509379.61 | J52: 44504029.17 | K52: 46457618.97 | L52: 32757433.61 | M52: 9646664.495 | N52: 2810332.574 | O52: 496326.1609 | P52: -83861.04 | Q52: 0 | R52: 0 | S52: 159906451.1
B53: 539 | E53: Wyoming | G53: 0 | H53: 435472.44 | I53: 559080.6091 | J53: 1362227.833 | K53: 1551163.77 | L53: 1296784.631 | M53: 397236.2755 | N53: 117188.6756 | O53: 26722.5591 | P53: -3138.96 | Q53: 0 | R53: 0 | S53: 5742737.833
B54: 540 | E54: Total | G54: 0 | H54: 10244000 | I54: 14068460.22 | J54: 45866257 | K54: 48008782.74 | L54: 34054218.24 | M54: 10043900.77 | N54: 2927521.25 | O54: 523048.72 | P54: -87000 | Q54: 0 | R54: 0 | S54: 165649188.9
B55: 541
A56: %,FACCOUNT,V804000,FAFFILIATE,V09 | B56: 542 | C56: 804 | D56: Natural Gas City Gate Purchases - Resources
B57: 543 | E57: Utah | G57: 0 | H57: 0 | I57: 0 | J57: 0 | K57: 0 | L57: 0 | M57: 0 | N57: 0 | O57: 0 | P57: 0 | Q57: 0 | R57: 0 | S57: 0
B58: 544 | E58: Wyoming | G58: 0 | H58: 0 | I58: 0 | J58: 0 | K58: 0 | L58: 0 | M58: 0 | N58: 0 | O58: 0 | P58: 0 | Q58: 0 | R58: 0 | S58: 0
B59: 545 | E59: Total | G59: 0 | H59: 0 | I59: 0 | J59: 0 | K59: 0 | L59: 0 | M59: 0 | N59: 0 | O59: 0 | P59: 0 | Q59: 0 | R59: 0 | S59: 0
B60: 546
A61: %,FACCOUNT,V804000,FAFFILIATE,V | B61: 547 | C61: 804.1 | D61: Natural Gas City Gate Purchases - Other
B62: 548 | E62: Utah | G62: 0 | H62: 0 | I62: 29383.956 | J62: 2606898.742 | K62: 6096.766338 | L62: 496839.8563 | M62: 45168.0426 | N62: 38.3988 | O62: 21943.54375 | P62: 84062.49928 | Q62: 0 | R62: 0 | S62: 3290431.805
B63: 549 | E63: Wyoming | G63: 0 | H63: 0 | I63: 1216.044 | J63: 79794.79814 | K63: 203.5636623 | L63: 19668.64368 | M63: 1859.9574 | N63: 1.6012 | O63: 1181.45625 | P63: 3146.50072 | Q63: 0 | R63: 0 | S63: 107072.5651
B64: 550 | E64: Total | G64: 0 | H64: 0 | I64: 30600 | J64: 2686693.54 | K64: 6300.33 | L64: 516508.5 | M64: 47028 | N64: 40 | O64: 23125 | P64: 87209 | Q64: 0 | R64: 0 | S64: 3397504.37
B65: 551
B66: 552 | C66: 805 | D66: Purchased Gas Cost Adjustments - Other
B67: 553 | E67: Utah | G67: 0 | H67: 0 | I67: 0 | J67: 0 | K67: 0 | L67: 0 | M67: 0 | N67: 0 | O67: 0 | P67: 0 | Q67: 0 | R67: 0 | S67: 0
B68: 554 | E68: Wyoming | G68: 0 | H68: 0 | I68: 0 | J68: 0 | K68: 0 | L68: 0 | M68: 0 | N68: 0 | O68: 0 | P68: 0 | Q68: 0 | R68: 0 | S68: 0
B69: 555 | E69: Total | G69: 0 | H69: 0 | I69: 0 | J69: 0 | K69: 0 | L69: 0 | M69: 0 | N69: 0 | O69: 0 | P69: 0 | Q69: 0 | R69: 0 | S69: 0
B70: 556
A71: %,FACCOUNT,TQGCACCTS,V805100 | B71: 557 | C71: 805.1 | D71: Purchased Gas Cost Adjustments - Utah
B72: 558 | E72: Utah | G72: -7719302.045 | H72: 878699.1054 | I72: 4067926.392 | J72: 11386926.54 | K72: 8844729.178 | L72: -13565366.18 | M72: -643376.6415 | N72: -6084550.972 | O72: -15136767.5 | P72: -9791215.004 | Q72: -9353489.242 | R72: -7415753.673 | S72: -44531540.04
B73: 559 | E73: Wyoming | G73: -269212.9555 | H73: 39011.89461 | I73: 168349.6082 | J73: 348543.459 | K73: 295314.8216 | L73: -537018.8208 | M73: -26493.3585 | N73: -253721.0282 | O73: -814974.4988 | P73: -366489.9964 | Q73: -242785.7575 | R73: -215585.3268 | S73: -1875061.959
B74: 560 | E74: Total | G74: -7988515 | H74: 917711 | I74: 4236276 | J74: 11735470 | K74: 9140044 | L74: -14102385 | M74: -669870 | N74: -6338272 | O74: -15951742 | P74: -10157705 | Q74: -9596275 | R74: -7631339 | S74: -46406602
B75: 561
A76: %,FACCOUNT,TQGCACCTS,V806000 | B76: 562 | C76: 806 | D76: Exchange Gas
B77: 563 | E77: Utah | G77: 0 | H77: 0 | I77: 0 | J77: 0 | K77: 0 | L77: 0 | M77: 0 | N77: 0 | O77: 0 | P77: 0 | Q77: 0 | R77: 0 | S77: 0
B78: 564 | E78: Wyoming | G78: 0 | H78: 0 | I78: 0 | J78: 0 | K78: 0 | L78: 0 | M78: 0 | N78: 0 | O78: 0 | P78: 0 | Q78: 0 | R78: 0 | S78: 0
B79: 565 | E79: Total | G79: 0 | H79: 0 | I79: 0 | J79: 0 | K79: 0 | L79: 0 | M79: 0 | N79: 0 | O79: 0 | P79: 0 | Q79: 0 | R79: 0 | S79: 0
B80: 566
A81: %,FACCOUNT,TQGCACCTS,V808100 | B81: 567 | C81: 808.1 | D81: Gas Withdrawn from Underground Storage
B82: 568 | E82: Utah | G82: 329656.3951 | H82: 366742.0232 | I82: 8293649.707 | J82: 25044531.93 | K82: 10157841.93 | L82: 11387479.63 | M82: 12230981.47 | N82: 6347752.475 | O82: 2156162.617 | P82: 118362.2334 | Q82: 575094.5019 | R82: 42495.60897 | S82: 77050750.53
B83: 569 | E83: Wyoming | G83: 11496.86486 | H83: 16282.36682 | I83: 343229.583 | J83: 766590.3311 | K83: 339158.07 | L83: 450801.7553 | M83: 503654.8672 | N83: 264696.3255 | O83: 116089.3531 | P83: 4430.356647 | Q83: 14927.55812 | R83: 1235.401032 | S83: 2832592.833
B84: 570 | E84: Total | G84: 341153.26 | H84: 383024.39 | I84: 8636879.29 | J84: 25811122.26 | K84: 10497000 | L84: 11838281.39 | M84: 12734636.34 | N84: 6612448.8 | O84: 2272251.97 | P84: 122792.59 | Q84: 590022.06 | R84: 43731.01 | S84: 79883343.36
B85: 571
A86: %,FACCOUNT,TQGCACCTS,V808200 | B86: 572 | C86: 808.2 | D86: Gas Delivered to Underground Storage
B87: 573 | E87: Utah | G87: -10422079.63 | H87: -7863077.72 | I87: -3081515.804 | J87: -5904959.823 | K87: -1135100.37 | L87: -550825.731 | M87: -305891.5211 | N87: -4939139.17 | O87: -10374248.43 | P87: -14014779.69 | Q87: -14440876.85 | R87: -13776146.09 | S87: -86808640.84
B88: 574 | E88: Wyoming | G88: -363473.128 | H88: -349099.6604 | I88: -127527.376 | J88: -180745.4465 | K88: -37899.63 | L88: -21805.80904 | M88: -12596.18893 | N88: -205958.2497 | O88: -558557.031 | P88: -524580.1012 | Q88: -374837.5751 | R88: -400489.9687 | S88: -3157570.165
B89: 575 | E89: Total | G89: -10785552.76 | H89: -8212177.38 | I89: -3209043.18 | J89: -6085705.27 | K89: -1173000 | L89: -572631.54 | M89: -318487.71 | N89: -5145097.42 | O89: -10932805.46 | P89: -14539359.79 | Q89: -14815714.43 | R89: -14176636.06 | S89: -89966211
B90: 576
A91: %,FACCOUNT,TQGCACCTS,V808300 | B91: 577 | C91: 808.3 | D91: Exchange Gas
B92: 578 | E92: Utah | G92: 304132.2957 | H92: 300136.7304 | I92: 301309.4225 | J92: 305566.876 | K92: 306699.6686 | L92: 308184.7392 | M92: 282947.6095 | N92: 280322.7596 | O92: 276250.4748 | P92: 284099.9973 | Q92: 294208.3215 | R92: 300372.7838 | S92: 3544231.679
B93: 579 | E93: Wyoming | G93: 10606.7043 | H93: 13325.26962 | I93: 12469.57746 | J93: 9353.124 | K93: 10240.3314 | L93: 12200.2608 | M93: 11651.39045 | N93: 11689.24036 | O93: 14873.52516 | P93: 10634.00272 | Q93: 7636.6785 | R93: 8732.21625 | S93: 133412.321
B94: 580 | E94: Total | G94: 314739 | H94: 313462 | I94: 313779 | J94: 314920 | K94: 316940 | L94: 320385 | M94: 294599 | N94: 292012 | O94: 291124 | P94: 294734 | Q94: 301845 | R94: 309105 | S94: 3677644
B95: 581
A96: %,FACCOUNT,TQGCACCTS,V813000,V813001,V813002,V813003,V813004 | B96: 582 | C96: 813 | D96: Other Gas Supply Expenses - Gas Cost
B97: 583 | E97: Utah | G97: 23671683.33 | H97: 26000393.5 | I97: 27610124.93 | J97: 27585741.56 | K97: 28414879.89 | L97: 29983757.97 | M97: 31505267.91 | N97: 31155920.74 | O97: 30045156.07 | P97: 33609368.23 | Q97: 29227148.59 | R97: 28037816.3 | S97: 346847259
B98: 584 | E98: Wyoming | G98: 825556.9991 | H98: 1154348.064 | I98: 1142634.667 | J98: 844374.4455 | K98: 948738.5105 | L98: 1186981.769 | M98: 1297343.272 | N98: 1299177.586 | O98: 1617652.911 | P98: 1258015.194 | Q98: 758640.463 | R98: 815094.7369 | S98: 13148558.62
B99: 585 | E99: Total | G99: 24497240.33 | H99: 27154741.56 | I99: 28752759.6 | J99: 28430116.01 | K99: 29363618.4 | L99: 31170739.74 | M99: 32802611.18 | N99: 32455098.33 | O99: 31662808.98 | P99: 34867383.42 | Q99: 29985789.05 | R99: 28852911.04 | S99: 359995817.6
B100: 586
B101: 587 | C101: 813 | D101: Other Gas Supply Expenses - SNG Cost
B102: 588 | E102: Utah | S102: 0
B103: 589 | E103: Wyoming | S103: 0
B104: 590 | E104: Total | G104: 0 | H104: 0 | I104: 0 | J104: 0 | K104: 0 | L104: 0 | M104: 0 | N104: 0 | O104: 0 | P104: 0 | Q104: 0 | R104: 0 | S104: 0
B105: 591
B106: 592 | C106: 813.5 | D106: CO2 Processing Expenses
A107: %,FACCOUNT,TQGCACCTS,V813005,V813007,V813008 | B107: 593 | E107: Utah | G107: 0 | H107: 0 | I107: 0 | J107: 0 | K107: 0 | L107: 0 | M107: 0 | N107: 0 | O107: 0 | P107: 0 | Q107: 0 | R107: 0 | S107: 0
A108: %,FACCOUNT,TQGCACCTS,V813006 | B108: 594 | E108: Wyoming | G108: 0 | H108: 0 | I108: 0 | J108: 0 | K108: 0 | L108: 0 | M108: 0 | N108: 0 | O108: 0 | P108: 0 | Q108: 0 | R108: 0 | S108: 0
B109: 595 | E109: Total | G109: 0 | H109: 0 | I109: 0 | J109: 0 | K109: 0 | L109: 0 | M109: 0 | N109: 0 | O109: 0 | P109: 0 | Q109: 0 | R109: 0 | S109: 0
B110: 596
A111: %,FACCOUNT,TQGCACCTS,V858000 | B111: 597 | C111: 858 | D111: Transportation GRI & ACA - Gas Cost
B112: 598 | E112: Utah | G112: 4575676.095 | H112: 4563040.608 | I112: 5757943.219 | J112: 5961285.748 | K112: 5886670.93 | L112: 5852465.385 | M112: 5710067.004 | N112: 4542557.602 | O112: 4537776.106 | P112: 4598060.695 | Q112: 4648079.425 | R112: 4636160.381 | S112: 61269783.2
B113: 599 | E113: Wyoming | G113: 159578.0652 | H113: 202586.822 | I113: 238290.3209 | J113: 182469.5318 | K113: 196548.8304 | L113: 231684.4248 | M113: 235132.6462 | N113: 189421.1078 | O113: 244317.1441 | P113: 172107.6748 | Q113: 120648.8247 | R113: 134779.0386 | S113: 2307564.431
B114: 600 | E114: Total | G114: 4735254.16 | H114: 4765627.43 | I114: 5996233.54 | J114: 6143755.28 | K114: 6083219.76 | L114: 6084149.81 | M114: 5945199.65 | N114: 4731978.71 | O114: 4782093.25 | P114: 4770168.37 | Q114: 4768728.25 | R114: 4770939.42 | S114: 63577347.63
B115: 601
A116: %,FACCOUNT,TQGCACCTS,V858001 | B116: 602 | C116: 858 | D116: Trans & Comp of Gas by Others - SNG Cost
B117: 603 | E117: Utah | G117: 0 | H117: 0 | I117: 0 | J117: 0 | K117: 0 | L117: 0 | M117: 0 | N117: 0 | O117: 0 | P117: 0 | Q117: 0 | R117: 0 | S117: 0
B118: 604 | E118: Wyoming | G118: 0 | H118: 0 | I118: 0 | J118: 0 | K118: 0 | L118: 0 | M118: 0 | N118: 0 | O118: 0 | P118: 0 | Q118: 0 | R118: 0 | S118: 0
B119: 605 | E119: Total | G119: 0 | H119: 0 | I119: 0 | J119: 0 | K119: 0 | L119: 0 | M119: 0 | N119: 0 | O119: 0 | P119: 0 | Q119: 0 | R119: 0 | S119: 0
B120: 606
B121: 607 | C121: System Total Gas Purchase Expenses
B122: 608 | D122: Utah Gas Purchase Expenses | G122: 15781662.14 | H122: 39154453.96 | I122: 61603579.45 | J122: 117887173.6 | K122: 105504344.6 | L122: 73818642.21 | M122: 66334083.21 | N122: 41708321.14 | O122: 20189899.45 | P122: 21815106.83 | Q122: 17921788.11 | R122: 18162546.08 | S122: 599881600.8
B123: 609 | D123: Wyoming Gas Purchase Expenses | G123: 495410.7194 | H123: 1670998.092 | I123: 2479748.69 | J123: 3547816.046 | K123: 3466977.969 | L123: 2853645.827 | M123: 2667394.221 | N123: 1669829.496 | O123: 1000305.582 | P123: 756162.9497 | Q123: 425238.4056 | R123: 484039.9155 | S123: 21517567.91
B124: 610
B125: 611
B126: 612 | D126: System Total Gas Purchase Expenses | G126: 16277072.86 | H126: 40825452.05 | I126: 64083328.14 | J126: 121434989.7 | K126: 108971322.6 | L126: 76672288.04 | M126: 69001477.43 | N126: 43378150.64 | O126: 21190205.03 | P126: 22571269.78 | Q126: 18347026.52 | R126: 18646586 | S126: 621399168.8
B127: 613
B128: 614
B129: 615 | C129: OPERATION AND MAINTENANCE EXPENSES
B130: 616
B131: 617 | C131: Production Expenses
B132: 618
A133: %,FACCOUNT,TQGCACCTS,V810000,V810001 | B133: 619 | C133: 810 | D133: Gas Used for Compressor Station Fuel | G133: -3532.86 | H133: -3851.56 | I133: -4007.24 | J133: -3617.18 | K133: -3350.33 | L133: -3256.53 | M133: -3231.39 | N133: -3302 | O133: -3355.24 | P133: -3237.11 | Q133: -3050.07 | R133: -2981.76 | S133: -40773.27
A134: %,FACCOUNT,TQGCACCTS,V812000,V812001 | B134: 620 | C134: 812 | D134: Gas Used for Other Utility Operations | G134: -66650.75 | H134: -78001.5 | I134: -89296.14 | J134: -110918.29 | K134: -183038.13 | L134: -128145.35 | M134: -104358.43 | N134: -109185.59 | O134: -97722.45 | P134: -102736.41 | Q134: -200920.6 | R134: -9293.74 | S134: -1280267.38
B135: 621
B136: 622 | D136: Total Production Expenses | G136: -70183.61 | H136: -81853.06 | I136: -93303.38 | J136: -114535.47 | K136: -186388.46 | L136: -131401.88 | M136: -107589.82 | N136: -112487.59 | O136: -101077.69 | P136: -105973.52 | Q136: -203970.67 | R136: -12275.5 | S136: -1321040.65
B137: 623
B138: 624 | C138: Distribution Operations & Maintenance Expenses
B139: 625
B140: 626 | C140: 870 | D140: Operation Supervision & Engineering
B141: 627 | E141: Utah | G141: 957757.54 | H141: 715499.5 | I141: 825667.3 | J141: 1177798.32 | K141: 1003847.52 | L141: 821717.22 | M141: 851647.68 | N141: 933819.55 | O141: 744035.4 | P141: 925009.9 | Q141: 782735.23 | R141: 797590.42 | S141: 10537125.58
B142: 628 | E142: Wyoming | G142: 43531.36 | H142: 35275.45 | I142: 50506.44 | J142: 67340.05 | K142: 47241.6 | L142: 39962.79 | M142: 40492.93 | N142: 46644.64 | O142: 40642.91 | P142: 38626.04 | Q142: 33924.44 | R142: 38731.79 | S142: 522920.44
A143: %,FACCOUNT,TQGCACCTS,N870 | B143: 629 | E143: Total | G143: 1001288.9 | H143: 750774.95 | I143: 876173.74 | J143: 1245138.37 | K143: 1051089.12 | L143: 861680.01 | M143: 892140.61 | N143: 980464.19 | O143: 784678.31 | P143: 963635.94 | Q143: 816659.67 | R143: 836322.21 | S143: 11060046.02
B144: 630
B145: 631 | C145: 871 | D145: Distribution Load Dispatching
B146: 632 | E146: Utah | G146: 152596.58 | H146: 165930.18 | I146: 179398.43 | J146: 187605.69 | K146: 151325.98 | L146: 163157.43 | M146: 149112.85 | N146: 145051.96 | O146: 159898.88 | P146: 149190.01 | Q146: 136151.98 | R146: 140986.7 | S146: 1880406.67
B147: 633 | E147: Wyoming | G147: 5698.63 | H147: 6214.42 | I147: 6680.22 | J147: 7006.02 | K147: 5391.07 | L147: 5830.07 | M147: 5264.25 | N147: 4996.61 | O147: 5576.53 | P147: 5203.04 | Q147: 4792.1 | R147: 4977.38 | S147: 67630.34
A148: %,FACCOUNT,TQGCACCTS,N871 | B148: 634 | E148: Total | G148: 158295.21 | H148: 172144.6 | I148: 186078.65 | J148: 194611.71 | K148: 156717.05 | L148: 168987.5 | M148: 154377.1 | N148: 150048.57 | O148: 165475.41 | P148: 154393.05 | Q148: 140944.08 | R148: 145964.08 | S148: 1948037.01
B149: 635
B150: 636 | C150: 872 | D150: Compressor Station Labor & Expenses
B151: 637 | E151: Utah | G151: 0 | H151: 0 | I151: 1056.74 | J151: 85.22 | K151: 0 | L151: 0 | M151: 439.62 | N151: 278.33 | O151: 0 | P151: 0 | Q151: 0 | R151: 207.15 | S151: 2067.06
B152: 638 | E152: Wyoming | G152: 0 | H152: 0 | I152: 0 | J152: 0 | K152: 0 | L152: 0 | M152: 0 | N152: 0 | O152: 0 | P152: 0 | Q152: 0 | R152: 0 | S152: 0
A153: %,FACCOUNT,TQGCACCTS,N872 | B153: 639 | E153: Total | G153: 0 | H153: 0 | I153: 1056.74 | J153: 85.22 | K153: 0 | L153: 0 | M153: 439.62 | N153: 278.33 | O153: 0 | P153: 0 | Q153: 0 | R153: 207.15 | S153: 2067.06
B154: 640
B155: 641 | C155: 873 | D155: Compressor Station Fuel & Power
B156: 642 | E156: Utah | G156: 3537.08 | H156: 3884.4 | I156: 4030.83 | J156: 3663.57 | K156: 3418.99 | L156: 3316.48 | M156: 3276.41 | N156: 3339.52 | O156: 3376.6 | P156: 3245.22 | Q156: 3057.78 | R156: 2988.8 | S156: 41135.68
B157: 643 | E157: Wyoming | G157: 0 | H157: 0 | I157: 0 | J157: 0 | K157: 0 | L157: 0 | M157: 0 | N157: 0 | O157: 0 | P157: 0 | Q157: 0 | R157: 0 | S157: 0
A158: %,FACCOUNT,TQGCACCTS,N873 | B158: 644 | E158: Total | G158: 3537.08 | H158: 3884.4 | I158: 4030.83 | J158: 3663.57 | K158: 3418.99 | L158: 3316.48 | M158: 3276.41 | N158: 3339.52 | O158: 3376.6 | P158: 3245.22 | Q158: 3057.78 | R158: 2988.8 | S158: 41135.68
B159: 645
B160: 646 | C160: 874 | D160: Mains & Service Expenses
B161: 647 | E161: Utah | G161: 625711.76 | H161: 665914.48 | I161: 690226.99 | J161: 832748.29 | K161: 605886.16 | L161: 718132.64 | M161: 594387.93 | N161: 879774.52 | O161: 684296 | P161: 1270014.25 | Q161: 592448.12 | R161: 616480.05 | S161: 8776021.19
B162: 648 | E162: Wyoming | G162: 51922.09 | H162: 51869.93 | I162: 58432.22 | J162: 61020.54 | K162: 40024.22 | L162: 40010.78 | M162: 38379.51 | N162: 61978.23 | O162: 56618.22 | P162: 84393.88 | Q162: 49950.5 | R162: 46766.9 | S162: 641367.02
A163: %,FACCOUNT,TQGCACCTS,N874 | B163: 649 | E163: Total | G163: 677633.85 | H163: 717784.41 | I163: 748659.21 | J163: 893768.83 | K163: 645910.38 | L163: 758143.42 | M163: 632767.44 | N163: 941752.75 | O163: 740914.22 | P163: 1354408.13 | Q163: 642398.62 | R163: 663246.95 | S163: 9417388.21
B164: 650
B165: 651 | C165: 875 | D165: Measuring & Regulating Station Expenses
B166: 652 | E166: Utah | G166: 142853.72 | H166: 297690.4 | I166: 222341.51 | J166: 243621.97 | K166: 208653.38 | L166: 184616.16 | M166: 304084.17 | N166: 149344.59 | O166: 253511.39 | P166: 140657.67 | Q166: 208452.9 | R166: 137510.49 | S166: 2493338.35
B167: 653 | E167: Wyoming | G167: 5541.88 | H167: 11169.44 | I167: 8355.42 | J167: 9143.96 | K167: 7656.29 | L167: 6741.62 | M167: 10879.63 | N167: 5405.17 | O167: 8958.24 | P167: 5307.65 | Q167: 7595.95 | R167: 4878.47 | S167: 91633.72
A168: %,FACCOUNT,TQGCACCTS,N875 | B168: 654 | E168: Total | G168: 148395.6 | H168: 308859.84 | I168: 230696.93 | J168: 252765.93 | K168: 216309.67 | L168: 191357.78 | M168: 314963.8 | N168: 154749.76 | O168: 262469.63 | P168: 145965.32 | Q168: 216048.85 | R168: 142388.96 | S168: 2584972.07
B169: 655
B170: 656 | C170: 878 | D170: Meter & House Regulator Expenses
B171: 657 | E171: Utah | G171: 357558.74 | H171: 402091.08 | I171: 445042.53 | J171: 415401.06 | K171: 263804.05 | L171: 284511.19 | M171: 296458.77 | N171: 274954.94 | O171: 285781.52 | P171: 256753 | Q171: 245757.02 | R171: 315536.44 | S171: 3843650.34
B172: 658 | E172: Wyoming | G172: 8375.05 | H172: 16433.58 | I172: 14078.44 | J172: 10289.61 | K172: 9728.02 | L172: 17877.08 | M172: 14655.01 | N172: 8285.46 | O172: 7662.03 | P172: 8646.45 | Q172: 6942.16 | R172: 9979.37 | S172: 132952.26
A173: %,FACCOUNT,TQGCACCTS,N878 | B173: 659 | E173: Total | G173: 365933.79 | H173: 418524.66 | I173: 459120.97 | J173: 425690.67 | K173: 273532.07 | L173: 302388.27 | M173: 311113.78 | N173: 283240.4 | O173: 293443.55 | P173: 265399.45 | Q173: 252699.18 | R173: 325515.81 | S173: 3976602.6
B174: 660
B175: 661 | C175: 879 | D175: Customer Installations Expenses
B176: 662 | E176: Utah | G176: 234854.69 | H176: 267950.94 | I176: 298692.97 | J176: 381492.04 | K176: 291353.51 | L176: 270820.27 | M176: 272771.97 | N176: 248414.69 | O176: 248561.13 | P176: 227443.2 | Q176: 216561.1 | R176: 212395.25 | S176: 3171311.76
B177: 663 | E177: Wyoming | G177: 7304.21 | H177: 15181.33 | I177: 16074.76 | J177: 18755.8 | K177: 14944.64 | L177: 14591.92 | M177: 17646.95 | N177: 15098.72 | O177: 10293.52 | P177: 9498.34 | Q177: 5915.76 | R177: 6903.87 | S177: 152209.82
A178: %,FACCOUNT,TQGCACCTS,N879 | B178: 664 | E178: Total | G178: 242158.9 | H178: 283132.27 | I178: 314767.73 | J178: 400247.84 | K178: 306298.15 | L178: 285412.19 | M178: 290418.92 | N178: 263513.41 | O178: 258854.65 | P178: 236941.54 | Q178: 222476.86 | R178: 219299.12 | S178: 3323521.58
B179: 665
B180: 666 | C180: 880 | D180: Other Expenses
B181: 667 | E181: Utah | G181: 701400.45 | H181: 706212.1 | I181: 962913.05 | J181: 928064.87 | K181: 749029.75 | L181: 1130762.74 | M181: 740441.54 | N181: 923920.1 | O181: 796443.82 | P181: 652608.36 | Q181: 532088.6 | R181: 686398.81 | S181: 9510284.19
B182: 668 | E182: Wyoming | G182: 46533.37 | H182: 52797.45 | I182: 80853.53 | J182: 95061.78 | K182: 74263.47 | L182: 106425.73 | M182: 89479.19 | N182: 100052.28 | O182: 79774.32 | P182: 54450.81 | Q182: 43702.85 | R182: 49169.2 | S182: 872563.98
A183: %,FACCOUNT,TQGCACCTS,N880 | B183: 669 | E183: Total | G183: 747933.82 | H183: 759009.55 | I183: 1043766.58 | J183: 1023126.65 | K183: 823293.22 | L183: 1237188.47 | M183: 829920.73 | N183: 1023972.38 | O183: 876218.14 | P183: 707059.17 | Q183: 575791.45 | R183: 735568.01 | S183: 10382848.17
B184: 670
B185: 671 | C185: 881 | D185: Rents
B186: 672 | E186: Utah | G186: 6066.08 | H186: 6008.61 | I186: 5976.21 | J186: 6089.58 | K186: 6183.64 | L186: 7761.55 | M186: 6923.79 | N186: 6835.83 | O186: 1706.26 | P186: 1751.67 | Q186: 1721.95 | R186: 1712.5 | S186: 58737.67
B187: 673 | E187: Wyoming | G187: 226.53 | H187: 225.03 | I187: 222.54 | J187: 227.41 | K187: 220.3 | L187: 277.34 | M187: 244.44 | N187: 235.47 | O187: 59.51 | P187: 61.09 | Q187: 60.61 | R187: 60.46 | S187: 2120.73
A188: %,FACCOUNT,TQGCACCTS,N881 | B188: 674 | E188: Total | G188: 6292.61 | H188: 6233.64 | I188: 6198.75 | J188: 6316.99 | K188: 6403.94 | L188: 8038.89 | M188: 7168.23 | N188: 7071.3 | O188: 1765.77 | P188: 1812.76 | Q188: 1782.56 | R188: 1772.96 | S188: 60858.4
B189: 675
B190: 676 | C190: 885 | D190: Maintenance Supervision & Engineering
B191: 677 | E191: Utah | G191: 46863.37 | H191: 47806.59 | I191: 55877.31 | J191: 72576.32 | K191: 52222.46 | L191: 42702.93 | M191: 44451.6 | N191: 45904.6 | O191: 37352.25 | P191: 65636.32 | Q191: 38456.61 | R191: 49000.4 | S191: 598850.76
B192: 678 | E192: Wyoming | G192: 1633.58 | H192: 1651.29 | I192: 1989.93 | J192: 2478.12 | K192: 1732.35 | L192: 1359.35 | M192: 1423.66 | N192: 1453.06 | O192: 1183.33 | P192: 2167.44 | Q192: 1203.28 | R192: 1607.85 | S192: 19883.24
A193: %,FACCOUNT,TQGCACCTS,N885 | B193: 679 | E193: Total | G193: 48496.95 | H193: 49457.88 | I193: 57867.24 | J193: 75054.44 | K193: 53954.81 | L193: 44062.28 | M193: 45875.26 | N193: 47357.66 | O193: 38535.58 | P193: 67803.76 | Q193: 39659.89 | R193: 50608.25 | S193: 618734
B194: 680
B195: 681 | C195: 886 | D195: Maintenance of Structures & Improvements
B196: 682 | E196: Utah | G196: 5548.84 | H196: 4952.84 | I196: 4814.75 | J196: 6810.96 | K196: 3805.01 | L196: 5581.12 | M196: 5822.13 | N196: 6026.09 | O196: 5125.55 | P196: 6340.27 | Q196: 5902.57 | R196: 6401.57 | S196: 67131.7
B197: 683 | E197: Wyoming | G197: 207.22 | H197: 185.49 | I197: 179.29 | J197: 254.35 | K197: 135.55 | L197: 199.43 | M197: 205.54 | N197: 207.58 | O197: 178.76 | P197: 221.13 | Q197: 207.75 | R197: 226 | S197: 2408.09
A198: %,FACCOUNT,TQGCACCTS,N886 | B198: 684 | E198: Total | G198: 5756.06 | H198: 5138.33 | I198: 4994.04 | J198: 7065.31 | K198: 3940.56 | L198: 5780.55 | M198: 6027.67 | N198: 6233.67 | O198: 5304.31 | P198: 6561.4 | Q198: 6110.32 | R198: 6627.57 | S198: 69539.79
B199: 685
B200: 686 | C200: 887 | D200: Maintenance of Mains
B201: 687 | E201: Utah | G201: 541343.68 | H201: 496514.63 | I201: 527276.68 | J201: 550475.28 | K201: 644086.99 | L201: 580291.35 | M201: 797268.29 | N201: 741084.99 | O201: 715214.76 | P201: 761675.59 | Q201: 703055.76 | R201: 705768.36 | S201: 7764056.36
B202: 688 | E202: Wyoming | G202: 10246.84 | H202: 10599.85 | I202: 15631.5 | J202: 28083.19 | K202: 29364 | L202: 20829.56 | M202: 24930.76 | N202: 16120.82 | O202: 10902.2 | P202: 16002.67 | Q202: 7440.33 | R202: 5132.71 | S202: 195284.43
A203: %,FACCOUNT,TQGCACCTS,N887 | B203: 689 | E203: Total | G203: 551590.52 | H203: 507114.48 | I203: 542908.18 | J203: 578558.47 | K203: 673450.99 | L203: 601120.91 | M203: 822199.05 | N203: 757205.81 | O203: 726116.96 | P203: 777678.26 | Q203: 710496.09 | R203: 710901.07 | S203: 7959340.79
B204: 690
B205: 691 | C205: 888 | D205: Maint of Compressor Station Equipment
B206: 692 | E206: Utah | G206: 219792.48 | H206: 78999.48 | I206: -36000.83 | J206: 58109.47 | K206: 220918.81 | L206: 194821.75 | M206: 142405.87 | N206: 197129.9 | O206: 174955.2 | P206: 210188.51 | Q206: 144820.65 | R206: 274842.59 | S206: 1880983.88
... 843 more rows

Sheet Rate Base
A1: %,LACTUALS
C2: Company: | F2: Company:
C3: Period Ended: | F3: Period Ended:
C4: Date,Time, Stamp: | F4: Date,Time, Stamp:
U5: Historical
U6: 13-Month Avg
U7: Period Ended
G8: =+H8-30 -> 2013-07-22 | H8: 2013-08-21 | I8: 2013-09-20 | J8: 2013-10-20 | K8: 2013-11-19 | L8: 2013-12-19 | M8: 2014-01-18 | N8: 2014-02-17 | O8: 2014-03-19 | P8: 2014-04-18 | Q8: 2014-05-18 | R8: 2014-06-17 | S8: 2014-07-17 | T8: 2014-08-16 | U8: 2014-08-31
C10: UTILITY RATE BASE
D11: NET UTILITY PLANT
D13: Intangible Plant
C14: 101 | D14: Gas Plant In Service
E15: Intangible Plant
B16: 1 | D16: 302 | E16: Franchises & Consents
B17: =+B16+1 -> 2 | E17: Distribution - Wyoming | H17: 10883.08 | I17: 10883.08 | J17: 10883.08 | K17: 10883.08 | L17: 10883.08 | M17: 10883.08 | N17: 10883.08 | O17: 10883.08 | P17: 10883.08 | Q17: 10883.08 | R17: 10883.08 | S17: 10883.08 | T17: 10883.08 | U17: 10883.08
B18: 3 | E18: Distribution - Utah | H18: 58742.88 | I18: 58742.88 | J18: 58742.88 | K18: 58742.88 | L18: 58742.88 | M18: 58742.88 | N18: 58742.88 | O18: 58742.88 | P18: 58742.88 | Q18: 58742.88 | R18: 58742.88 | S18: 58742.88 | T18: 58742.88 | U18: 58742.88
B19: 4
A20: ="%,FACCOUNT,TQGCACCTS,N"&(D16) -> %,FACCOUNT,TQGCACCTS,N302 | B20: 5 | E20: Total Intangible Plant | H20: 69625.96 | I20: 69625.96 | J20: 69625.96 | K20: 69625.96 | L20: 69625.96 | M20: 69625.96 | N20: 69625.96 | O20: 69625.96 | P20: 69625.96 | Q20: 69625.96 | R20: 69625.96 | S20: 69625.96 | T20: 69625.96 | U20: 69625.96
B21: 6
B22: 7 | E22: Production & Gathering Plant
A23: ="%,FACCOUNT,TQGCACCTS,N"&(D23) -> %,FACCOUNT,TQGCACCTS,N325 | B23: 8 | D23: 325 | E23: Land & Land Rights | H23: 6266900.69 | I23: 6266900.69 | J23: 6266900.69 | K23: 6266900.69 | L23: 6266900.69 | M23: 6266900.69 | N23: 6266900.69 | O23: 6266900.69 | P23: 6266900.69 | Q23: 6266900.69 | R23: 6266900.69 | S23: 6266900.69 | T23: 6266900.69 | U23: 6266900.69
A24: %,FACCOUNT,TQGCACCTS,N326,N327,N328,N329 | B24: 9 | D24: 326...9 | E24: Structures | H24: 1443936.84 | I24: 1443936.84 | J24: 1443936.84 | K24: 1443936.84 | L24: 1443936.84 | M24: 1443936.84 | N24: 1443936.84 | O24: 1443936.84 | P24: 1443936.84 | Q24: 1443936.84 | R24: 1437567.99 | S24: 1437567.99 | T24: 1437567.99 | U24: 1442609.996
A25: ="%,FACCOUNT,TQGCACCTS,N"&(D25) -> %,FACCOUNT,TQGCACCTS,N330 | B25: 10 | D25: 330 | E25: Gas Wells - Construction | H25: 52986090.91 | I25: 52986090.91 | J25: 52986090.91 | K25: 52986090.91 | L25: 52986090.91 | M25: 52986090.91 | N25: 52986090.91 | O25: 52986090.91 | P25: 52986090.91 | Q25: 52986090.91 | R25: 52175293.81 | S25: 52175293.81 | T25: 52175293.81 | U25: 52817174.85
A26: ="%,FACCOUNT,TQGCACCTS,N"&(D26) -> %,FACCOUNT,TQGCACCTS,N331 | B26: 11 | D26: 331 | E26: Gas Wells - Equipment | H26: 17432452.88 | I26: 17432452.88 | J26: 17432452.88 | K26: 17432452.88 | L26: 17432452.88 | M26: 17432452.88 | N26: 17432452.88 | O26: 17432452.88 | P26: 17432452.88 | Q26: 17432452.88 | R26: 17216356.88 | S26: 17216356.88 | T26: 17216356.88 | U26: 17387432.88
A27: %,FACCOUNT,TQGCACCTS,N332,N333,N334 | B27: 12 | D27: 332...4 | E27: Field Lines & Comp, Meas & Reg St Eqpt | H27: 2872306.78 | I27: 2872306.78 | J27: 2872306.78 | K27: 2872306.78 | L27: 2872306.78 | M27: 2872306.78 | N27: 2872306.78 | O27: 2872306.78 | P27: 2872306.78 | Q27: 2872306.78 | R27: 2693816.12 | S27: 2693816.12 | T27: 2693816.12 | U27: 2835121.226
A28: ="%,FACCOUNT,TQGCACCTS,N"&(D28) -> %,FACCOUNT,TQGCACCTS,N336 | B28: 13 | D28: 336 | E28: Purification Equipment | H28: 57014.71 | I28: 57014.71 | J28: 57014.71 | K28: 57014.71 | L28: 57014.71 | M28: 57014.71 | N28: 57014.71 | O28: 57014.71 | P28: 57014.71 | Q28: 57014.71 | R28: 57014.71 | S28: 57014.71 | T28: 57014.71 | U28: 57014.71
A29: ="%,FACCOUNT,TQGCACCTS,N"&(D29) -> %,FACCOUNT,TQGCACCTS,N337 | B29: 14 | D29: 337 | E29: Other Equipment | H29: 121186.63 | I29: 121186.63 | J29: 121186.63 | K29: 121186.63 | L29: 121186.63 | M29: 121186.63 | N29: 121186.63 | O29: 121186.63 | P29: 121186.63 | Q29: 121186.63 | R29: 121186.63 | S29: 121186.63 | T29: 121186.63 | U29: 121186.63
B30: 15
B31: 16 | E31: Total Production & Gathering Plant | H31: 81179889.44 | I31: 81179889.44 | J31: 81179889.44 | K31: 81179889.44 | L31: 81179889.44 | M31: 81179889.44 | N31: 81179889.44 | O31: 81179889.44 | P31: 81179889.44 | Q31: 81179889.44 | R31: 79968136.83 | S31: 79968136.83 | T31: 79968136.83 | U31: 80927440.98
B32: 17
B33: 18 | E33: Distribution Plant
B34: 19 | D34: 374 | E34: Land & Land Rights
B35: 20 | F35: Wyoming | H35: 361364.44 | I35: 361364.44 | J35: 361364.44 | K35: 361364.44 | L35: 361364.44 | M35: 361364.44 | N35: 361364.44 | O35: 361364.44 | P35: 361364.44 | Q35: 361364.44 | R35: 361364.44 | S35: 361364.44 | T35: 361364.44 | U35: 361364.44
A36: ="%,FACCOUNT,TQGCACCTS,N"&(D34) -> %,FACCOUNT,TQGCACCTS,N374 | B36: 21 | F36: Utah | H36: 11304884.27 | I36: 11374163.2 | J36: 11374133.9 | K36: 11362796.27 | L36: 12682662.82 | M36: 12719174.25 | N36: 12723425.03 | O36: 13822319.81 | P36: 13701155.42 | Q36: 13701268.66 | R36: 13714884.27 | S36: 14388070 | T36: 14576087.81 | U36: 12875378.31
B37: 22 | F37: Total | H37: 11666248.71 | I37: 11735527.64 | J37: 11735498.34 | K37: 11724160.71 | L37: 13044027.26 | M37: 13080538.69 | N37: 13084789.47 | O37: 14183684.25 | P37: 14062519.86 | Q37: 14062633.1 | R37: 14076248.71 | S37: 14749434.44 | T37: 14937452.25 | U37: 13236742.75
B38: 23
B39: 24 | D39: 375 | E39: Structures & Improvements
B40: 25 | F40: Wyoming | H40: 721780.23 | I40: 721780.23 | J40: 721780.23 | K40: 721780.23 | L40: 721780.23 | M40: 721780.23 | N40: 721780.23 | O40: 721780.23 | P40: 721780.23 | Q40: 721780.23 | R40: 721780.23 | S40: 721780.23 | T40: 717226.15 | U40: 721590.4767
A41: ="%,FACCOUNT,TQGCACCTS,N"&(D39) -> %,FACCOUNT,TQGCACCTS,N375 | B41: 26 | F41: Utah | H41: 7967628.55 | I41: 8028725.48 | J41: 7861314.04 | K41: 7992053.84 | L41: 10431061.42 | M41: 10869211.09 | N41: 10869211.09 | O41: 10424265.45 | P41: 10613284.26 | Q41: 11180671.69 | R41: 11660031.16 | S41: 11712193.54 | T41: 11712952.97 | U41: 10123526.15
B42: 27 | F42: Total | H42: 8689408.78 | I42: 8750505.71 | J42: 8583094.27 | K42: 8713834.07 | L42: 11152841.65 | M42: 11590991.32 | N42: 11590991.32 | O42: 11146045.68 | P42: 11335064.49 | Q42: 11902451.92 | R42: 12381811.39 | S42: 12433973.77 | T42: 12430179.12 | U42: 10845116.63
B43: 28
B44: 29 | D44: 376 | E44: Mains
B45: 30 | F45: Dist - Wy - Mains - SD
B46: 31 | F46: Dist - Wy - Mains - LD
B47: 32 | F47: Dist - Wy - Mains - Feeders
B48: 33 | F48: Wyoming | H48: 31342733.28 | I48: 31428057.86 | J48: 31497595.25 | K48: 31836391.17 | L48: 32596637.96 | M48: 32906200.59 | N48: 32917901.63 | O48: 32634970.48 | P48: 32475313.01 | Q48: 32519791.55 | R48: 33270608.65 | S48: 33080212.1 | T48: 33041505.96 | U48: 32446316.66
B49: 34 | F49: Dist - Ut - Mains - SD
B50: 35 | F50: Dist - Ut - Mains - LD
B51: 36 | F51: Dist - Ut - Mains - Feeders
A52: ="%,FACCOUNT,TQGCACCTS,N"&(D44) -> %,FACCOUNT,TQGCACCTS,N376 | B52: 37 | F52: Utah | H52: 1032250371 | I52: 1034630713 | J52: 1058234825 | K52: 1062122870 | L52: 1070052390 | M52: 1070819313 | N52: 1075865883 | O52: 1091106215 | P52: 1093340596 | Q52: 1097467945 | R52: 1106805124 | S52: 1107192093 | T52: 1108599961 | U52: 1078171928
B53: 38 | F53: Total | H53: 1063593104 | I53: 1066058770 | J53: 1089732420 | K53: 1093959261 | L53: 1102649028 | M53: 1103725513 | N53: 1108783785 | O53: 1123741186 | P53: 1125815909 | Q53: 1129987736 | R53: 1140075732 | S53: 1140272305 | T53: 1141641467 | U53: 1110618244
B54: 39
B55: 40 | D55: 377 | E55: Compressor Station Equipment
B56: 41 | F56: Wyoming | H56: 0 | I56: 0 | J56: 0 | K56: 0 | L56: 0 | M56: 0 | N56: 0 | O56: 0 | P56: 0 | Q56: 0 | R56: 0 | S56: 0 | T56: 0 | U56: 0
A57: ="%,FACCOUNT,TQGCACCTS,N"&(D55) -> %,FACCOUNT,TQGCACCTS,N377 | B57: 42 | F57: Utah | H57: 4935431.81 | I57: 4935431.81 | J57: 4935431.81 | K57: 4935431.81 | L57: 15526458.51 | M57: 15526458.51 | N57: 17607328.49 | O57: 17745410.74 | P57: 17712351.64 | Q57: 17898265.07 | R57: 17742002.32 | S57: 17742002.32 | T57: 17742228.7 | U57: 13637116.94
B58: 43 | F58: Total | H58: 4935431.81 | I58: 4935431.81 | J58: 4935431.81 | K58: 4935431.81 | L58: 15526458.51 | M58: 15526458.51 | N58: 17607328.49 | O58: 17745410.74 | P58: 17712351.64 | Q58: 17898265.07 | R58: 17742002.32 | S58: 17742002.32 | T58: 17742228.7 | U58: 13637116.94
B59: 44
B60: 45 | D60: 378 | E60: Measuring & Regulation Station Equip
B61: 46 | F61: Wyoming | H61: 5118051.17 | I61: 5151142.9 | J61: 5151339.12 | K61: 5202137.88 | L61: 5205353.01 | M61: 5213964.07 | N61: 5213964.07 | O61: 5229532.83 | P61: 5229532.83 | Q61: 5229532.83 | R61: 5329343.01 | S61: 5334339.69 | T61: 5315594.5 | U61: 5225583.756
A62: ="%,FACCOUNT,TQGCACCTS,N"&(D60) -> %,FACCOUNT,TQGCACCTS,N378 | B62: 47 | F62: Utah | H62: 53062841.49 | I62: 53061002.14 | J62: 53178864.78 | K62: 53877433.67 | L62: 67419147.85 | M62: 68674592.95 | N62: 70038338.6 | O62: 70715627.58 | P62: 70850665.35 | Q62: 73655387.73 | R62: 74940570 | S62: 75054943.28 | T62: 75380820.51 | U62: 66307367.08
B63: 48 | F63: Total | H63: 58180892.66 | I63: 58212145.04 | J63: 58330203.9 | K63: 59079571.55 | L63: 72624500.86 | M63: 73888557.02 | N63: 75252302.67 | O63: 75945160.41 | P63: 76080198.18 | Q63: 78884920.56 | R63: 80269913.01 | S63: 80389282.97 | T63: 80696415.01 | U63: 71532950.83
B64: 49
B65: 50 | D65: 380 | E65: Services
B66: 51 | F66: Wyoming | H66: 15798067.92 | I66: 15883445.09 | J66: 15905162.82 | K66: 15924270.88 | L66: 16001293.81 | M66: 16065442.71 | N66: 16068526.31 | O66: 16037533.31 | P66: 16113189.52 | Q66: 16165681.43 | R66: 16240875.56 | S66: 16320576.25 | T66: 16365247.61 | U66: 16067304.62
A67: ="%,FACCOUNT,TQGCACCTS,N"&(D65) -> %,FACCOUNT,TQGCACCTS,N380 | B67: 52 | F67: Utah | H67: 317490392.2 | I67: 317835450.2 | J67: 318683600.1 | K67: 319073127.8 | L67: 319702762.7 | M67: 319874205 | N67: 319896475.4 | O67: 324057092.9 | P67: 324952022.3 | Q67: 326379208.1 | R67: 327440763.5 | S67: 328245780.1 | T67: 328632238.1 | U67: 322433483.6
B68: 53 | F68: Total | H68: 333288460.1 | I68: 333718895.3 | J68: 334588763 | K68: 334997398.7 | L68: 335704056.5 | M68: 335939647.7 | N68: 335965001.8 | O68: 340094626.2 | P68: 341065211.8 | Q68: 342544889.6 | R68: 343681639.1 | S68: 344566356.3 | T68: 344997485.7 | U68: 338500788.2
B69: 54
B70: 55 | D70: 381...2 | E70: Meters & Meter Installation
B71: 56 | F71: Wyoming | H71: 8037083 | I71: 8160238.44 | J71: 8157663.56 | K71: 8156922.81 | L71: 8295686.77 | M71: 8295686.77 | N71: 8294992.424 | O71: 8448181.574 | P71: 8446102.244 | Q71: 8445360.154 | R71: 8548706.494 | S71: 8535838.064 | T71: 8534583.804 | U71: 8339267.725
A72: %,FACCOUNT,TQGCACCTS,N381,N382 | B72: 57 | F72: Utah | H72: 260002813.9 | I72: 263431020.5 | J72: 263011982.3 | K72: 261247313.8 | L72: 264249726.2 | M72: 264249726.2 | N72: 264205376 | O72: 267672350.6 | P72: 267611554.6 | Q72: 267576719.3 | R72: 271105230 | S72: 270931419.7 | T72: 270807793.1 | U72: 265891476.9
B73: 58 | F73: Total | H73: 268039896.9 | I73: 271591259 | J73: 271169645.8 | K73: 269404236.6 | L73: 272545413 | M73: 272545413 | N73: 272500368.4 | O73: 276120532.2 | P73: 276057656.9 | Q73: 276022079.5 | R73: 279653936.5 | S73: 279467257.8 | T73: 279342376.9 | U73: 274230744.6
B74: 59
B75: 60 | D75: 383...4 | E75: House Regulators & Reg Installations
B76: 61 | F76: Wyoming | H76: 931101.69 | I76: 930272.46 | J76: 930272.46 | K76: 930272.46 | L76: 906588.31 | M76: 906588.31 | N76: 906588.31 | O76: 900429.84 | P76: 896557 | Q76: 914729.58 | R76: 914729.58 | S76: 914729.58 | T76: 914729.58 | U76: 914556.1271
A77: %,FACCOUNT,TQGCACCTS,N383,N384 | B77: 62 | F77: Utah | H77: 14194289.18 | I77: 14184308.81 | J77: 14184308.81 | K77: 14184308.81 | L77: 14080756.83 | M77: 14082787.11 | N77: 14082787.11 | O77: 14078914.27 | P77: 14083036.34 | Q77: 14069377.45 | R77: 14020519.54 | S77: 14020519.54 | T77: 14020519.54 | U77: 14098252.41
B78: 63 | F78: Total | H78: 15125390.87 | I78: 15114581.27 | J78: 15114581.27 | K78: 15114581.27 | L78: 14987345.14 | M78: 14989375.42 | N78: 14989375.42 | O78: 14979344.11 | P78: 14979593.34 | Q78: 14984107.03 | R78: 14935249.12 | S78: 14935249.12 | T78: 14935249.12 | U78: 15012808.54
B79: 64
B80: 65 | D80: 387 | E80: Other Equipment
B81: =+B80+1 -> 66 | F81: Wyoming | H81: 52618.85 | I81: 52618.85 | J81: 52618.85 | K81: 52618.85 | L81: 52618.85 | M81: 52618.85 | N81: 52618.85 | O81: 48746.01 | P81: 52618.85 | Q81: 52618.85 | R81: 52618.85 | S81: 52618.85 | T81: 52618.85 | U81: 52296.11333
A82: ="%,FACCOUNT,TQGCACCTS,N"&(D80) -> %,FACCOUNT,TQGCACCTS,N387 | B82: 67 | F82: Utah | H82: 1143414.51 | I82: 1169301.5 | J82: 1170476.38 | K82: 1192859.3 | L82: 1193080.95 | M82: 1193080.95 | N82: 1193080.95 | O82: 1517090.11 | P82: 1513217.27 | Q82: 1531223 | R82: 1531223 | S82: 906448.28 | T82: 700967.14 | U82: 1252772.71
B83: 68 | F83: Total | H83: 1196033.36 | I83: 1221920.35 | J83: 1223095.23 | K83: 1245478.15 | L83: 1245699.8 | M83: 1245699.8 | N83: 1245699.8 | O83: 1565836.12 | P83: 1565836.12 | Q83: 1583841.85 | R83: 1583841.85 | S83: 959067.13 | T83: 753585.99 | U83: 1305068.823
B84: =+B83+1 -> 69
B85: =+B84+1 -> 70 | D85: 388 | E85: Other Equipment
B86: =+B85+1 -> 71 | F86: Wyoming | H86: 7220 | I86: 7220 | J86: 7220 | K86: 7220 | L86: 7220 | M86: 7220 | N86: 7220 | O86: 7220 | P86: 7220 | Q86: 7220 | R86: 7220 | S86: 7220 | T86: 7220 | U86: 7220
A87: ="%,FACCOUNT,TQGCACCTS,N"&(D85) -> %,FACCOUNT,TQGCACCTS,N388 | B87: =+B86+1 -> 72 | F87: Utah | H87: 309948 | I87: 309948 | J87: 309948 | K87: 309948 | L87: 309948 | M87: 309948 | N87: 309948 | O87: 319038 | P87: 319038 | Q87: 319038 | R87: 319038 | S87: 319038 | T87: 319038 | U87: 314114.25
B88: =+B87+1 -> 73 | F88: Total | H88: 317168 | I88: 317168 | J88: 317168 | K88: 317168 | L88: 317168 | M88: 317168 | N88: 317168 | O88: 326258 | P88: 326258 | Q88: 326258 | R88: 326258 | S88: 326258 | T88: 326258 | U88: 321334.25
B89: =+B83+1 -> 69
B90: 70 | E90: Total Distribution Plant | H90: 1765032035 | I90: 1771656205 | J90: 1795729902 | K90: 1799491122 | L90: 1839796539 | M90: 1842849363 | N90: 1851336810 | O90: 1875848083 | P90: 1879000599 | Q90: 1888197183 | R90: 1904726632 | S90: 1905841187 | T90: 1907802698 | U90: 1849240916
B91: 71
B92: 72 | C92: General Plant
B93: 73 | D93: 389 | E93: Land & Land Rights
B94: 74 | F94: Distribution - Wyoming | H94: 11584.02 | I94: 11584.02 | J94: 11584.02 | K94: 11584.02 | L94: 11584.02 | M94: 11584.02 | N94: 11584.02 | O94: 11584.02 | P94: 11584.02 | Q94: 11584.02 | R94: 11584.02 | S94: 11584.02 | T94: 11584.02 | U94: 11584.02
A95: ="%,FACCOUNT,TQGCACCTS,N"&(D93) -> %,FACCOUNT,TQGCACCTS,N389 | B95: 75 | F95: Distribution - Utah | H95: 2707795.83 | I95: 2707795.83 | J95: 2707795.83 | K95: 2707795.83 | L95: 2707795.83 | M95: 2707795.83 | N95: 2707795.83 | O95: 2707795.83 | P95: 2707795.83 | Q95: 2707795.83 | R95: 2703949.33 | S95: 2707795.83 | T95: 2707795.83 | U95: 2707475.288
B96: 76 | F96: Total | H96: 2719379.85 | I96: 2719379.85 | J96: 2719379.85 | K96: 2719379.85 | L96: 2719379.85 | M96: 2719379.85 | N96: 2719379.85 | O96: 2719379.85 | P96: 2719379.85 | Q96: 2719379.85 | R96: 2715533.35 | S96: 2719379.85 | T96: 2719379.85 | U96: 2719059.308
B97: 77
B98: 78 | D98: 390 | E98: Structures & Improvements
B99: 79 | F99: Distribution - Wyoming | H99: 179167.56 | I99: 179167.56 | J99: 179167.56 | K99: 179167.56 | L99: 179167.56 | M99: 179167.56 | N99: 179167.56 | O99: 179167.56 | P99: 111749.71 | Q99: 111749.71 | R99: 111749.71 | S99: 111749.71 | T99: 111749.71 | U99: 153885.8662
A100: ="%,FACCOUNT,TQGCACCTS,N"&(D98) -> %,FACCOUNT,TQGCACCTS,N390 | B100: 80 | F100: Distribution - Utah | H100: 15622992.28 | I100: 15636843.41 | J100: 15665602.31 | K100: 15667394.78 | L100: 21286539.42 | M100: 21286539.42 | N100: 21408966.85 | O100: 22234215.81 | P100: 22187487.81 | Q100: 22201964.65 | R100: 21955443.8 | S100: 21955443.8 | T100: 21955970.75 | U100: 20022993.63
B101: 81 | F101: General | H101: 42810241.45 | I101: 42850462.45 | J101: 42869960.03 | K101: 42872245.23 | L101: 42872200.82 | M101: 42872200.82 | N101: 42944487.36 | O101: 46174639.3 | P101: 46158753.78 | Q101: 46162400.78 | R101: 46168575.52 | S101: 46168575.52 | T101: 46169039.52 | U101: 44383678.51
B102: 82 | F102: Total | H102: 58612401.29 | I102: 58666473.42 | J102: 58714729.9 | K102: 58718807.57 | L102: 64337907.8 | M102: 64337907.8 | N102: 64532621.77 | O102: 68588022.67 | P102: 68457991.3 | Q102: 68476115.14 | R102: 68235769.03 | S102: 68235769.03 | T102: 68236759.98 | U102: 64560558.01
B103: 83
B104: 84 | D104: 391 | E104: Office Furniture & Equipment
B105: 85 | F105: Distribution - Wyoming | H105: 1700299.39 | I105: 1700299.39 | J105: 1700299.39 | K105: 1700299.39 | L105: 1700299.39 | M105: 1700299.39 | N105: 1700299.39 | O105: 276913.08 | P105: 278470.01 | Q105: 280871.01 | R105: 283272.01 | S105: 283272.01 | T105: 283272.01 | U105: 1049698.347
A106: ="%,FACCOUNT,TQGCACCTS,N"&(D104) -> %,FACCOUNT,TQGCACCTS,N391 | B106: 86 | F106: Distribution - Utah | H106: 12814365.32 | I106: 12854541.36 | J106: 12252501.53 | K106: 12252950.59 | L106: 12340583.68 | M106: 12374367.16 | N106: 12612256.85 | O106: 13910555.65 | P106: 13952069.97 | Q106: 15958063.38 | R106: 16008844.39 | S106: 16067529.74 | T106: 16093616.42 | U106: 13753187.93
B107: 87 | F107: General | H107: 44406520.96 | I107: 44381845.27 | J107: 44545663.94 | K107: 44539711.16 | L107: 44987390.69 | M107: 45020422.25 | N107: 45011718.16 | O107: 44951845.03 | P107: 45961486.69 | Q107: 46237434.51 | R107: 45871376.65 | S107: 45874301.14 | T107: 45877079.56 | U107: 45210416.31
B108: 88 | F108: Total | H108: 58921185.67 | I108: 58936686.02 | J108: 58498464.86 | K108: 58492961.14 | L108: 59028273.76 | M108: 59095088.8 | N108: 59324274.4 | O108: 59139313.76 | P108: 60192026.67 | Q108: 62476368.9 | R108: 62163493.05 | S108: 62225102.89 | T108: 62253967.99 | U108: 60013302.59
B109: 89
B110: 90 | D110: 392 | E110: Transportation Equipment
B111: 91 | F111: Distribution - Wyoming | H111: 1578432.75 | I111: 1578432.75 | J111: 1578432.75 | K111: 1578432.75 | L111: 1648729.47 | M111: 1648729.47 | N111: 1648729.47 | O111: 1648729.47 | P111: 1648729.47 | Q111: 1631659.35 | R111: 1631659.35 | S111: 1729375.27 | T111: 1998763.81 | U111: 1646686.488
A112: ="%,FACCOUNT,TQGCACCTS,N"&(D110) -> %,FACCOUNT,TQGCACCTS,N392 | B112: 92 | F112: Distribution - Utah | H112: 39806418.98 | I112: 39721430.54 | J112: 39839619.5 | K112: 40100181.19 | L112: 40674446.29 | M112: 41021862.06 | N112: 41201980.19 | O112: 41243150.36 | P112: 41360584.03 | Q112: 40643582.35 | R112: 40591130.13 | S112: 40725720.29 | T112: 41128133.28 | U112: 40632580.26
B113: 93 | F113: General | H113: 0 | I113: 0 | J113: 0 | K113: 0 | L113: 0 | M113: 0 | N113: 0 | O113: 0 | P113: 0 | Q113: 0 | R113: 0 | S113: 0 | T113: 0 | U113: 0
B114: 94 | F114: Total | H114: 41384851.73 | I114: 41299863.29 | J114: 41418052.25 | K114: 41678613.94 | L114: 42323175.76 | M114: 42670591.53 | N114: 42850709.66 | O114: 42891879.83 | P114: 43009313.5 | Q114: 42275241.7 | R114: 42222789.48 | S114: 42455095.56 | T114: 43126897.09 | U114: 42279266.74
B115: 95
B116: 96 | D116: 393 | E116: Stores Equipment
B117: 97 | F117: Distribution - Wyoming | H117: 12371.89 | I117: 12371.89 | J117: 12371.89 | K117: 12371.89 | L117: 12371.89 | M117: 12371.89 | N117: 12371.89 | O117: 12371.89 | P117: 12371.89 | Q117: 12371.89 | R117: 12371.89 | S117: 12371.89 | T117: 12371.89 | U117: 12371.89
A118: ="%,FACCOUNT,TQGCACCTS,N"&(D116) -> %,FACCOUNT,TQGCACCTS,N393 | B118: 98 | F118: Distribution - Utah | H118: 45026.02 | I118: 45026.02 | J118: 45026.02 | K118: 45026.02 | L118: 45026.02 | M118: 45026.02 | N118: 45026.02 | O118: 45026.02 | P118: 45026.02 | Q118: 45026.02 | R118: 45026.02 | S118: 45026.02 | T118: 45026.02 | U118: 45026.02
B119: 99 | F119: Total | H119: 57397.91 | I119: 57397.91 | J119: 57397.91 | K119: 57397.91 | L119: 57397.91 | M119: 57397.91 | N119: 57397.91 | O119: 57397.91 | P119: 57397.91 | Q119: 57397.91 | R119: 57397.91 | S119: 57397.91 | T119: 57397.91 | U119: 57397.91
B120: 100
B121: 101 | D121: 394 | E121: Tools, Shop & Garage Equipment
B122: 102 | F122: Distribution - Wyoming | H122: 1871272.84 | I122: 1890921.99 | J122: 1814499.61 | K122: 1813665.39 | L122: 1846562.78 | M122: 1884125.36 | N122: 1890575.38 | O122: 1874367.71 | P122: 2111789.47 | Q122: 2069722.72 | R122: 2071217.57 | S122: 2082758.46 | T122: 2088814.68 | U122: 1944187.517
A123: ="%,FACCOUNT,TQGCACCTS,N"&(D121) -> %,FACCOUNT,TQGCACCTS,N394 | B123: 103 | F123: Distribution - Utah | H123: 22750630.13 | I123: 22870960.44 | J123: 22900428.33 | K123: 22557254.64 | L123: 22628433.74 | M123: 23108977.43 | N123: 23220723.13 | O123: 23153472.59 | P123: 24607241.03 | Q123: 24632098.06 | R123: 24562259.51 | S123: 24748129.26 | T123: 25026510.77 | U123: 23573212.38
B124: 104 | F124: General | H124: 0 | I124: 0 | J124: 0 | K124: 0 | L124: 0 | M124: 0 | N124: 0 | O124: 0 | P124: 0 | Q124: 0 | R124: 0 | S124: 0 | T124: 0 | U124: 0
B125: 105 | F125: Total | H125: 24621902.97 | I125: 24761882.43 | J125: 24714927.94 | K125: 24370920.03 | L125: 24474996.52 | M125: 24993102.79 | N125: 25111298.51 | O125: 25027840.3 | P125: 26719030.5 | Q125: 26701820.78 | R125: 26633477.08 | S125: 26830887.72 | T125: 27115325.45 | U125: 25517399.9
B126: 106
B127: 107 | D127: 395 | E127: Laboratory Equipment
B128: 108 | F128: Distribution - Wyoming | H128: 0 | I128: 0 | J128: 0 | K128: 0 | L128: 0 | M128: 0 | N128: 0 | O128: 0 | P128: 0 | Q128: 0 | R128: 0 | S128: 0 | T128: 0 | U128: 0
A129: ="%,FACCOUNT,TQGCACCTS,N"&(D127) -> %,FACCOUNT,TQGCACCTS,N395 | B129: 109 | F129: Distribution - Utah | H129: 76245.36 | I129: 76245.36 | J129: 76245.36 | K129: 76245.36 | L129: 76245.36 | M129: 76245.36 | N129: 76245.36 | O129: 76245.36 | P129: 76245.36 | Q129: 76245.36 | R129: 76245.36 | S129: 76245.36 | T129: 76245.36 | U129: 76245.36
B130: 110 | F130: General | H130: 0 | I130: 0 | J130: 0 | K130: 0 | L130: 0 | M130: 0 | N130: 0 | O130: 0 | P130: 0 | Q130: 0 | R130: 0 | S130: 0 | T130: 0 | U130: 0
B131: 111 | F131: Total | H131: 76245.36 | I131: 76245.36 | J131: 76245.36 | K131: 76245.36 | L131: 76245.36 | M131: 76245.36 | N131: 76245.36 | O131: 76245.36 | P131: 76245.36 | Q131: 76245.36 | R131: 76245.36 | S131: 76245.36 | T131: 76245.36 | U131: 76245.36
B132: 112
B133: 113 | D133: 396 | E133: Power Operated Equipment
B134: 114 | F134: Distribution - Wyoming | H134: 695559.31 | I134: 695559.31 | J134: 695559.31 | K134: 695559.31 | L134: 695559.31 | M134: 695559.31 | N134: 695559.31 | O134: 695559.31 | P134: 695559.31 | Q134: 695559.31 | R134: 695559.31 | S134: 695559.31 | T134: 695559.31 | U134: 695559.31
A135: ="%,FACCOUNT,TQGCACCTS,N"&(D133) -> %,FACCOUNT,TQGCACCTS,N396 | B135: 115 | F135: Distribution - Utah | H135: 9785545.93 | I135: 9787145.78 | J135: 9787145.78 | K135: 9787145.78 | L135: 9787145.78 | M135: 9898076.23 | N135: 9859961.9 | O135: 9860222.17 | P135: 9873381.19 | Q135: 10119565.46 | R135: 10418828.5 | S135: 10108382 | T135: 10095643.35 | U135: 9935632.934
B136: 116 | F136: General | H136: 0 | I136: 0 | J136: 0 | K136: 0 | L136: 0 | M136: 0 | N136: 0 | O136: 0 | P136: 0 | Q136: 0 | R136: 0 | S136: 0 | T136: 0 | U136: 0
B137: 117 | F137: Total | H137: 10481105.24 | I137: 10482705.09 | J137: 10482705.09 | K137: 10482705.09 | L137: 10482705.09 | M137: 10593635.54 | N137: 10555521.21 | O137: 10555781.48 | P137: 10568940.5 | Q137: 10815124.77 | R137: 11114387.81 | S137: 10803941.31 | T137: 10791202.66 | U137: 10631192.24
B138: 118
B139: 119 | D139: 397 | E139: Communication Equipment
B140: 120 | F140: Distribution - Wyoming | H140: 73309.11 | I140: 73309.11 | J140: 73309.11 | K140: 73309.11 | L140: 73309.11 | M140: 73309.11 | N140: 73309.11 | O140: 73309.11 | P140: 73309.11 | Q140: 73309.11 | R140: 73309.11 | S140: 73309.11 | T140: 73309.11 | U140: 73309.11
A141: ="%,FACCOUNT,TQGCACCTS,N"&(D139) -> %,FACCOUNT,TQGCACCTS,N397 | B141: 121 | F141: Distribution - Utah | H141: 3726641.2 | I141: 3741631.01 | J141: 3742204.79 | K141: 3742204.79 | L141: 3720830.98 | M141: 3720830.98 | N141: 3720830.98 | O141: 3788202.29 | P141: 3788202.29 | Q141: 3892379.45 | R141: 4247958.07 | S141: 4874158.36 | T141: 5090656.64 | U141: 3949006.909
B142: 122 | F142: Total | H142: 3799950.31 | I142: 3814940.12 | J142: 3815513.9 | K142: 3815513.9 | L142: 3794140.09 | M142: 3794140.09 | N142: 3794140.09 | O142: 3861511.4 | P142: 3861511.4 | Q142: 3965688.56 | R142: 4321267.18 | S142: 4947467.47 | T142: 5163965.75 | U142: 4022316.019
B143: 123
B144: 124 | D144: 398 | E144: Miscellaneous Equipment
B145: =+B144+1 -> 125 | F145: Distribution - Wyoming | H145: 3863.92 | I145: 3863.92 | J145: 3863.92 | K145: 3863.92 | L145: 3863.92 | M145: 3863.92 | N145: 3863.92 | O145: 3863.92 | P145: 3863.92 | Q145: 3863.92 | R145: 3863.92 | S145: 3863.92 | T145: 3863.92 | U145: 3863.92
A146: ="%,FACCOUNT,TQGCACCTS,N"&(D144) -> %,FACCOUNT,TQGCACCTS,N398 | B146: 126 | F146: Distribution - Utah | H146: 209290.24 | I146: 209290.24 | J146: 213212.48 | K146: 213212.48 | L146: 213212.48 | M146: 213212.48 | N146: 219291.02 | O146: 242323.33 | P146: 246621.86 | Q146: 246621.86 | R146: 246621.86 | S146: 246621.86 | T146: 246621.86 | U146: 228183.1667
B147: 127 | F147: General | H147: 0 | I147: 0 | J147: 0 | K147: 0 | L147: 0 | M147: 0 | N147: 0 | O147: 0 | P147: 0 | Q147: 0 | R147: 0 | S147: 0 | T147: 0 | U147: 0
B148: 128 | F148: Total | H148: 213154.16 | I148: 213154.16 | J148: 217076.4 | K148: 217076.4 | L148: 217076.4 | M148: 217076.4 | N148: 223154.94 | O148: 246187.25 | P148: 250485.78 | Q148: 250485.78 | R148: 250485.78 | S148: 250485.78 | T148: 250485.78 | U148: 232047.0867
B149: 129
B150: 130 | D150: 399 | E150: Communication Equipment
B151: =+B150+1 -> 131 | F151: Distribution - Wyoming | H151: 0 | I151: 0 | J151: 0 | K151: 0 | L151: 0 | M151: 0 | N151: 0 | O151: 0 | P151: 0 | Q151: 0 | R151: 0 | S151: 0 | T151: 0 | U151: 0
A152: ="%,FACCOUNT,TQGCACCTS,N"&(D150) -> %,FACCOUNT,TQGCACCTS,N399 | B152: =+B151+1 -> 132 | F152: Distribution - Utah | H152: 52300 | I152: 52300 | J152: 52300 | K152: 52300 | L152: 52300 | M152: 52300 | N152: 52300 | O152: 52300 | P152: 52300 | Q152: 52300 | R152: 52300 | S152: 52300 | T152: 52300 | U152: 52300
B153: =+B152+1 -> 133 | F153: Total | H153: 52300 | I153: 52300 | J153: 52300 | K153: 52300 | L153: 52300 | M153: 52300 | N153: 52300 | O153: 52300 | P153: 52300 | Q153: 52300 | R153: 52300 | S153: 52300 | T153: 52300 | U153: 52300
B154: =+B148+1 -> 129
B155: 130 | E155: Total General Plant | H155: 200939874.5 | I155: 201081027.7 | J155: 200766793.5 | K155: 200681921.2 | L155: 207563598.5 | M155: 208606866.1 | N155: 209297043.7 | O155: 213215859.8 | P155: 215964622.8 | Q155: 217866168.8 | R155: 217843146 | S155: 218654072.9 | T155: 219843927.8 | U155: 210161085.2
B156: 131
B157: 132 | C157: 101 | D157: Gas Plant in Service
B158: 133 | E158: Production | H158: 81179889.44 | I158: 81179889.44 | J158: 81179889.44 | K158: 81179889.44 | L158: 81179889.44 | M158: 81179889.44 | N158: 81179889.44 | O158: 81179889.44 | P158: 81179889.44 | Q158: 81179889.44 | R158: 79968136.83 | S158: 79968136.83 | T158: 79968136.83 | U158: 80927440.98
B159: 134 | E159: Distribution - Wyoming | H159: 62380903.66 | I159: 62707023.35 | J159: 62795899.81 | K159: 63203861.8 | L159: 64159426.46 | M159: 64541749.05 | N159: 64555839.34 | O159: 64400641.79 | P159: 64314561.2 | Q159: 64428962.14 | R159: 65458129.89 | S159: 65339562.28 | T159: 65320973.97 | U159: 64146383
B160: 135 | E160: Distribution - Utah | H160: 1702720757 | I160: 1709018807 | J160: 1733003628 | K160: 1736356886 | L160: 1775706738 | M160: 1778377240 | N160: 1786850597 | O160: 1811517068 | P160: 1814755664 | Q160: 1823837847 | R160: 1839338128 | S160: 1840571251 | T160: 1842551350 | U160: 1785164159
B161: 136 | E161: General | H161: 200939874.5 | I161: 201081027.7 | J161: 200766793.5 | K161: 200681921.2 | L161: 207563598.5 | M161: 208606866.1 | N161: 209297043.7 | O161: 213215859.8 | P161: 215964622.8 | Q161: 217866168.8 | R161: 217843146 | S161: 218654072.9 | T161: 219843927.8 | U161: 210161085.2
B162: 137 | E162: Total | H162: 2047221425 | I162: 2053986748 | J162: 2077746211 | K162: 2081422559 | L162: 2128609653 | M162: 2132705744 | N162: 2141883369 | O162: 2170313459 | P162: 2176214737 | Q162: 2187312867 | R162: 2202607541 | S162: 2204533023 | T162: 2207684388 | U162: 2140399068
B163: 138
B164: 139 | C164: 105 | D164: Gas Plant Held for Future Use
B165: 140 | E165: Distribution - Utah | H165: 5036.83 | I165: 5036.83 | J165: 5036.83 | K165: 5036.83 | L165: 5036.83 | M165: 5036.83 | N165: 5036.83 | O165: 5036.83 | P165: 5036.83 | Q165: 5036.83 | R165: 5036.83 | S165: 5036.83 | T165: 5036.83 | U165: 5036.83
A166: %,FACCOUNT,TQGCACCTS,N105 | B166: 141 | E166: Total | H166: 5036.83 | I166: 5036.83 | J166: 5036.83 | K166: 5036.83 | L166: 5036.83 | M166: 5036.83 | N166: 5036.83 | O166: 5036.83 | P166: 5036.83 | Q166: 5036.83 | R166: 5036.83 | S166: 5036.83 | T166: 5036.83 | U166: 5036.83
B167: 142
B168: 143 | C168: 106 | D168: Completed Construction Not Classified - Gas
B169: 144 | E169: Production | H169: 0 | I169: 0 | J169: 0 | K169: 0 | L169: 0 | M169: 0 | N169: 0 | O169: 0 | P169: 0 | Q169: 0 | R169: 0 | S169: 0 | T169: 0 | U169: 0
B170: 145 | E170: Distribution - Wyoming | H170: 356415.99 | I170: 478009.18 | J170: 859781.71 | K170: 829818.92 | L170: 588806.42 | M170: 372748.65 | N170: 122300.15 | O170: 0 | P170: -60702.54 | Q170: 17007.53 | R170: 176023.47 | S170: 727697.83 | T170: 936734.75 | U170: 396505.5575
B171: 146 | E171: Distribution - Utah | H171: 8990157.77 | I171: 6575876.81 | J171: 4740448.28 | K171: 11902427.02 | L171: 21120262.76 | M171: 18164179.37 | N171: 27058670.75 | O171: 39379731.47 | P171: 10980637.12 | Q171: 8178112.92 | R171: 2956146.93 | S171: 6621971.27 | T171: 6552554.19 | U171: 13787485.06
B172: 147 | E172: General | H172: 225792.01 | I172: 95039.52 | J172: -2311.12 | K172: 556793.46 | L172: 1331892.69 | M172: 314778.99 | N172: 1096445.15 | O172: 9836452.77 | P172: 2410489.91 | Q172: 410067.95 | R172: 123926.41 | S172: 56308.06 | T172: 498002.79 | U172: 1382648.432
B173: 148 | E173: Total | H173: 9572365.77 | I173: 7148925.51 | J173: 5597918.87 | K173: 13289039.4 | L173: 23040961.87 | M173: 18851707.01 | N173: 28277416.05 | O173: 49216184.24 | P173: 13330424.49 | Q173: 8605188.4 | R173: 3256096.81 | S173: 7405977.16 | T173: 7987291.73 | U173: 15566639.05
B174: 149
B175: 150 | C175: 108 | D175: Accum Prov for Depreciation of Gas Plant in Service
B176: 151 | E176: Production | H176: -67730549.63 | I176: -67777089.28 | J176: -67811857.43 | K176: -67843367.93 | L176: -67886609.88 | M176: -67961140.79 | N176: -68050568.86 | O176: -68129649.47 | P176: -68224081.55 | Q176: -68304512.95 | R176: -67171390.31 | S176: -67270278.51 | T176: -67313568.07 | U176: -67829383.82
B177: 152 | E177: Distribution - Wyoming | H177: -25712952.07 | I177: -25875323.08 | J177: -26037179.55 | K177: -26200541.82 | L177: -24527065.78 | M177: -24695782.86 | N177: -24864660.45 | O177: -24984200.1 | P177: -25130872.3 | Q177: -25277803.42 | R177: -25466096.44 | S177: -25610221.65 | T177: -25754337.31 | U177: -25366949.34
B178: 153 | E178: Distribution - Utah | H178: -555659789.1 | I178: -558356889.8 | J178: -559801370.8 | K178: -562352276.7 | L178: -540333369.8 | M178: -543456459.2 | N178: -546707051.5 | O178: -546403513.8 | P178: -548216266.6 | Q178: -550738960.1 | R178: -534715841 | S178: -537333079.5 | T178: -565494454 | U178: -549082683.4
B179: 154 | E179: General | H179: -130242788.5 | I179: -131150224.9 | J179: -131480791.3 | K179: -132432489.4 | L179: -105395013.9 | M179: -106313705.6 | N179: -107330315.9 | O179: -107613007 | P179: -108582049.9 | Q179: -109208667.5 | R179: -126814794.6 | S179: -127441864.8 | T179: -102581437.8 | U179: -117514586.5
B180: 155 | E180: Total | H180: -779346079.3 | I180: -783159527.1 | J180: -785131199.1 | K180: -788828675.8 | L180: -738142059.3 | M180: -742427088.5 | N180: -746952596.7 | O180: -747130370.4 | P180: -750153270.3 | Q180: -753529943.9 | R180: -754168122.4 | S180: -757655444.5 | T180: -761143797.2 | U180: -759793603
B181: 156
B182: 157 | C182: 111 | D182: Accum Prov for Amortization of Gas Plant in Service
B183: 158 | E183: Production | H183: -6071047.41 | I183: -6071574.3 | J183: -6072342.48 | K183: -6073025 | L183: -6074498.01 | M183: -6076311.65 | N183: -6078507.36 | O183: -6080432.19 | P183: -6082750.98 | Q183: -6084703.26 | R183: -6086682.23 | S183: -6089142.24 | T183: -6090167.45 | U183: -6079214.761
B184: 159 | E184: Distribution - Wyoming | H184: -300 | I184: -300 | J184: -300 | K184: -300 | L184: -300 | M184: -300 | N184: -300 | O184: -300 | P184: -300 | Q184: -300 | R184: -10883.08 | S184: -10883.08 | T184: -10883.08 | U184: -2504.808333
B185: 160 | E185: Distribution - Utah | H185: -69325.97 | I185: -69325.97 | J185: -69325.97 | K185: -69325.97 | L185: -69325.97 | M185: -69325.97 | N185: -69325.97 | O185: -69325.97 | P185: -69325.97 | Q185: -69325.97 | R185: -58742.89 | S185: -58742.89 | T185: -58742.89 | U185: -67121.16167
B186: 161 | E186: General | H186: 0 | I186: 0 | J186: 0 | K186: 0 | L186: 0 | M186: 0 | N186: 0 | O186: 0 | P186: 0 | Q186: 0 | R186: 0 | S186: 0 | T186: 0 | U186: 0
B187: 162 | E187: Total | H187: -6140673.38 | I187: -6141200.27 | J187: -6141968.45 | K187: -6142650.97 | L187: -6144123.98 | M187: -6145937.62 | N187: -6148133.33 | O187: -6150058.16 | P187: -6152376.95 | Q187: -6154329.23 | R187: -6156308.2 | S187: -6158768.21 | T187: -6159793.42 | U187: -6148840.731
B188: 163
B189: 164 | C189: 254 | D189: Other Regulatory Liabilities - ARC
B190: 165 | E190: Production | H190: 0 | I190: 0 | J190: 0 | K190: 0 | L190: 0 | M190: 0 | N190: 0 | O190: 0 | P190: 0 | Q190: 0 | R190: 0 | S190: 0 | T190: 0 | U190: 0
B191: 166 | E191: Distribution - Wyoming | H191: 0 | I191: 0 | J191: 0 | K191: 0 | L191: 0 | M191: 0 | N191: 0 | O191: 0 | P191: 0 | Q191: 0 | R191: 0 | S191: 0 | T191: 0 | U191: 0
B192: 167 | E192: Distribution - Utah | H192: 0 | I192: 0 | J192: 0 | K192: 0 | L192: 0 | M192: 0 | N192: 0 | O192: 0 | P192: 0 | Q192: 0 | R192: 0 | S192: 0 | T192: 0 | U192: 0
B193: 168 | E193: General | H193: 0 | I193: 0 | J193: 0 | K193: 0 | L193: -52689870 | M193: -52689870 | N193: -52689870 | O193: -54496865 | P193: -55301061 | Q193: -56058895 | R193: -56754824 | S193: -57507091 | T193: -58028227 | U193: -38933538.29
B194: 169 | E194: Total | H194: 0 | I194: 0 | J194: 0 | K194: 0 | L194: -52689870 | M194: -52689870 | N194: -52689870 | O194: -54496865 | P194: -55301061 | Q194: -56058895 | R194: -56754824 | S194: -57507091 | T194: -58028227 | U194: -38933538.29
B195: 170
B196: 171
B197: 172 | C197: System Net Utility Plant
B198: 173 | E198: Production | H198: 7378292.4 | I198: 7331225.86 | J198: 7295689.53 | K198: 7263496.51 | L198: 7218781.55 | M198: 7142437 | N198: 7050813.22 | O198: 6969807.78 | P198: 6873056.91 | Q198: 6790673.23 | R198: 6710064.29 | S198: 6608716.08 | T198: 6564401.31 | U198: 7018842.401
B199: 174 | E199: Distribution - Wyoming | H199: 37024067.58 | I199: 37309409.45 | J199: 37618201.97 | K199: 37832838.9 | L199: 40220867.1 | M199: 40218414.84 | N199: 39813179.04 | O199: 39416141.69 | P199: 39122686.36 | Q199: 39167866.25 | R199: 40157173.84 | S199: 40446155.38 | T199: 40492488.33 | U199: 39173434.4
B200: 175 | E200: Distribution - Utah | H200: 1155981800 | I200: 1157168468 | J200: 1177873380 | K200: 1185837711 | L200: 1256424305 | M200: 1253015634 | N200: 1267132890 | O200: 1304423959 | P200: 1277450708 | Q200: 1281207673 | R200: 1307519691 | S200: 1309801399 | T200: 1283550707 | U200: 1249806876
B201: 176 | E201: General | H201: 70922878 | I201: 70025842.22 | J201: 69283691.03 | K201: 68806225.21 | L201: 50810607.36 | M201: 49918069.45 | N201: 50373302.93 | O201: 60942440.62 | P201: 54492001.82 | Q201: 53008674.2 | R201: 34397453.8 | S201: 33761425.15 | T201: 59732265.83 | U201: 94029147.1
B202: 177 | E202: Total
... 92 more rows

Sheet RevRun Fcst
H1: 3 | I1: 4 | J1: 5 | K1: 6 | L1: 7 | M1: 8 | N1: 9 | O1: 10 | P1: 11 | Q1: 12 | R1: 13 | S1: 14
D3: TEMPERATURE ADJUSTED INPUT DATA FROM REVRUN SYSTEM
D4: 9/11/2014
T7: 12-Month
B8: Rate Class | D8: Description | H8: Nov14 | I8: Dec14 | J8: Jan15 | K8: Feb15 | L8: Mar15 | M8: Apr15 | N8: May15 | O8: Jun15 | P8: July15 | Q8: Aug15 | R8: Sep15 | S8: Oct15 | T8: Total
B10: UTILITY OPERATING REVENUE
B11: TARIFF DTH SALES AND REVENUE
A13: 13 | B13: Utah | H13: =MONTH(H8) -> 11 | I13: =MONTH(I8) -> 12 | J13: 1 | K13: 2 | L13: 3 | M13: 4 | N13: =MONTH(N8) -> 5 | O13: 6 | P13: 7 | Q13: 8 | R13: 9 | S13: 10
A14: 14 | C14: GS | D14: Distribution Non-Gas Rev | H14: 30125411.86 | I14: 41518572.11 | J14: 46835124.93 | K14: 39394579.65 | L14: 30196324.26 | M14: 19028870.19 | N14: 13253202.07 | O14: 11177646.52 | P14: 10334387.1 | Q14: 10286148.4 | R14: 11895291.11 | S14: 16197387.77 | T14: 280242946
A15: 15
A16: 16 | D16: Supplier Non-Gas Revenue | H16: 11448094.87 | I16: 17178698.54 | J16: 19883283.3 | K16: 16080135.62 | L16: 11444791.49 | M16: 3915982.81 | N16: 2019405.29 | O16: 1341177.6 | P16: 1070573.17 | Q16: 1050198.04 | R16: 1575168.01 | S16: 2974090.23 | T16: 89981598.97
A17: 17
A18: 18 | D18: Commodity Revenue | H18: 57356581.69 | I18: 86067720.17 | J18: 99618074.05 | K18: 80563763.88 | L18: 57340031.26 | M18: 41787697.23 | N18: 21549199.96 | O18: 14311789.98 | P18: 11424153.14 | Q18: 11206728.84 | R18: 16808716.27 | S18: 31736702.65 | T18: 529771159.1
A19: 19 | D19: Total Revenue | H19: 98930088.42 | I19: 144764990.8 | J19: 166336482.3 | K19: 136038479.1 | L19: 98981147.01 | M19: 64732550.23 | N19: 36821807.32 | O19: 26830614.1 | P19: 22829113.41 | Q19: 22543075.28 | R19: 30279175.39 | S19: 50908180.65 | T19: 899995704.1
A20: 20 | H20: 931314 | I20: 934310 | J20: 938897 | K20: 940377 | L20: 942613 | M20: 942787 | N20: 943320 | O20: 943476 | P20: 941640 | Q20: 943541 | R20: 943577 | S20: 947133 | T20: 941082.0833
A21: 21 | D21: Total Dth | H21: 10871472 | I21: 16313434 | J21: 18881793 | K21: 15270204 | L21: 10868335 | M21: 7920517 | N21: 4084475 | O21: 2712683 | P21: 2165355 | Q21: 2124144 | R21: 3185955 | S21: 6015433 | T21: 100413800
A22: 22
A23: 23 | C23: GS-C | D23: Distribution Non-Gas Rev | T23: 0
A24: 24
A25: 25 | D25: Supplier Non-Gas Revenue | T25: 0
A26: 26
A27: 27 | D27: Commodity Revenue | T27: 0
A28: 28 | D28: Total Revenue | T28: 0
A29: 29
A30: 30 | D30: Total Dth | T30: 0
A31: 31
A32: 32 | C32: GSS | D32: Distribution Non-Gas Rev | H32: 0 | I32: 0 | J32: 0 | K32: 0 | L32: 0 | M32: 0 | N32: 0 | O32: 0 | P32: 0 | Q32: 0 | R32: 0 | S32: 0 | T32: 0
A33: 33 | H33: 0 | I33: 0 | J33: 0 | K33: 0 | L33: 0 | M33: 0 | N33: 0 | O33: 0 | P33: 0 | Q33: 0 | R33: 0 | S33: 0
A34: 34 | D34: Supplier Non-Gas Revenue | H34: 0 | I34: 0 | J34: 0 | K34: 0 | L34: 0 | M34: 0 | N34: 0 | O34: 0 | P34: 0 | Q34: 0 | R34: 0 | S34: 0 | T34: 0
A35: 35 | H35: 0 | I35: 0 | J35: 0 | K35: 0 | L35: 0 | M35: 0 | N35: 0 | O35: 0 | P35: 0 | Q35: 0 | R35: 0 | S35: 0
A36: 36 | D36: Commodity Revenue | H36: 0 | I36: 0 | J36: 0 | K36: 0 | L36: 0 | M36: 0 | N36: 0 | O36: 0 | P36: 0 | Q36: 0 | R36: 0 | S36: 0 | T36: 0
A37: 37 | D37: Total Revenue | H37: 0 | I37: 0 | J37: 0 | K37: 0 | L37: 0 | M37: 0 | N37: 0 | O37: 0 | P37: 0 | Q37: 0 | R37: 0 | S37: 0 | T37: 0
A38: 38 | H38: 0 | I38: 0 | J38: 0 | K38: 0 | L38: 0 | M38: 0 | N38: 0 | O38: 0 | P38: 0 | Q38: 0 | R38: 0 | S38: 0 | T38: 0
A39: 39 | D39: Total Dth | H39: 0 | I39: 0 | J39: 0 | K39: 0 | L39: 0 | M39: 0 | N39: 0 | O39: 0 | P39: 0 | Q39: 0 | R39: 0 | S39: 0 | T39: 0
A40: 40
A41: 41 | C41: F-S | D41: Distribution Non-Gas Rev | H41: 467228.03 | I41: 482239.45 | J41: 486074.87 | K41: 454060.95 | L41: 398460.63 | M41: 212631.44 | N41: 206480.73 | O41: 208904.17 | P41: 195182.53 | Q41: 194454.42 | R41: 206561.33 | S41: 216778.9 | T41: 3729057.45
A42: 42
A43: 43 | D43: Supplier Non-Gas Revenue | H43: 509554.67 | I43: 551728.17 | J43: 557619.34 | K43: 508648.03 | L43: 424732.82 | M43: 187286.14 | N43: 175923.33 | O43: 171130.64 | P43: 147297.08 | Q43: 146055.65 | R43: 167000.9 | S43: 185187.41 | T43: 3732164.18
A44: 44
A45: 45 | D45: Commodity Revenue | H45: 2621194.36 | I45: 2838138.54 | J45: 2868443.19 | K45: 2616530.48 | L45: 2184863.25 | M45: 1998582.49 | N45: 1877326.93 | O45: 1826182.56 | P45: 1571848.2 | Q45: 1558600.47 | R45: 1782113.13 | S45: 1976186.37 | T45: 25720009.97
A46: 46 | D46: Total Revenue | H46: 3597977.06 | I46: 3872106.16 | J46: 3912137.4 | K46: 3579239.46 | L46: 3008056.7 | M46: 2398500.07 | N46: 2259730.99 | O46: 2206217.37 | P46: 1914327.81 | Q46: 1899110.54 | R46: 2155675.36 | S46: 2378152.68 | T46: 33181231.6
A47: 47 | H47: 596 | I47: 596 | J47: 596 | K47: 596 | L47: 596 | M47: 596 | N47: 596 | O47: 596 | P47: 596 | Q47: 596 | R47: 596 | S47: 596 | T47: 596
A48: 48 | D48: Total Dth | H48: 496826 | I48: 537946 | J48: 543690 | K48: 495942 | L48: 414123 | M48: 378815 | N48: 355832 | O48: 346138 | P48: 297931 | Q48: 295420 | R48: 337785 | S48: 374570 | T48: 4875018
A49: 49
A50: 50 | C50: F-3 | D50: Distribution Non-Gas Rev | H50: 0 | I50: 0 | J50: 0 | K50: 0 | L50: 0 | M50: 0 | N50: 0 | O50: 0 | P50: 0 | Q50: 0 | R50: 0 | S50: 0 | T50: 0
A51: 51 | D51: Supplier Non-Gas Revenue
A52: 52 | D52: Supplier Non-Gas Demand Revenue | H52: 0 | I52: 0 | J52: 0 | K52: 0 | L52: 0 | M52: 0 | N52: 0 | O52: 0 | P52: 0 | Q52: 0 | R52: 0 | S52: 0 | T52: 0
A53: 53 | D53: Commodity Tariff Revenue
A54: 54 | D54: Commodity Demand Revenue | H54: 0 | I54: 0 | J54: 0 | K54: 0 | L54: 0 | M54: 0 | N54: 0 | O54: 0 | P54: 0 | Q54: 0 | R54: 0 | S54: 0 | T54: 0
A55: 55 | D55: Total Revenue | H55: 0 | I55: 0 | J55: 0 | K55: 0 | L55: 0 | M55: 0 | N55: 0 | O55: 0 | P55: 0 | Q55: 0 | R55: 0 | S55: 0 | T55: 0
A56: 56 | H56: 0 | I56: 0 | J56: 0 | K56: 0 | L56: 0 | M56: 0 | N56: 0 | O56: 0 | P56: 0 | Q56: 0 | R56: 0 | S56: 0 | T56: 0
A57: 57 | D57: Total Sales Dth | H57: 0 | I57: 0 | J57: 0 | K57: 0 | L57: 0 | M57: 0 | N57: 0 | O57: 0 | P57: 0 | Q57: 0 | R57: 0 | S57: 0 | T57: 0
A58: 58
A59: 59 | C59: NGV | D59: Distribution Non-Gas Rev | H59: 305600.36 | I59: 283884.66 | J59: 273493.94 | K59: 272934.48 | L59: 314133.47 | M59: 270023.12 | N59: 381073 | O59: 306398.81 | P59: 320933.88 | Q59: 361443.05 | R59: 307995.71 | S59: 326381.82 | T59: 3724296.3
A60: 60
A61: 61 | D61: Supplier Non-Gas Revenue | H61: 42754.25 | I61: 39716.17 | J61: 38262.48 | K61: 38184.22 | L61: 43948.06 | M61: 37776.91 | N61: 53313.06 | O61: 42865.96 | P61: 44899.45 | Q61: 50566.79 | R61: 43089.37 | S61: 45661.63 | T61: 521038.35
A62: 62
A63: 63 | D63: Commodity Revenue | H63: 296836.84 | I63: 275743.87 | J63: 265651.11 | K63: 265107.69 | L63: 305125.24 | M63: 262279.82 | N63: 370145.19 | O63: 297612.39 | P63: 311730.65 | Q63: 351078.16 | R63: 299163.5 | S63: 317022.35 | T63: 3617496.81
A64: 64 | D64: Total Revenue | H64: 645191.45 | I64: 599344.7 | J64: 577407.53 | K64: 576226.39 | L64: 663206.77 | M64: 570079.85 | N64: 804531.25 | O64: 646877.16 | P64: 677563.98 | Q64: 763088 | R64: 650248.58 | S64: 689065.8 | T64: 7862831.46
A65: 65 | H65: 1 | I65: 1 | J65: 1 | K65: 1 | L65: 1 | M65: 1 | N65: 1 | O65: 1 | P65: 1 | Q65: 1 | R65: 1 | S65: 1 | T65: 1
A66: 66 | D66: Total Dth | H66: 56263 | I66: 52265 | J66: 50352 | K66: 50249 | L66: 57834 | M66: 49713 | N66: 70158 | O66: 56410 | P66: 59086 | Q66: 66544 | R66: 56704 | S66: 60089 | T66: 685667
A67: 67
A68: 68 | C68: F-4 | D68: Distribution Non-Gas Rev | H68: 0 | I68: 0 | J68: 0 | K68: 0 | L68: 0 | M68: 0 | N68: 0 | O68: 0 | P68: 0 | Q68: 0 | R68: 0 | S68: 0 | T68: 0
A69: 69
A70: 70 | D70: Supplier Non-Gas Revenue | H70: 0 | I70: 0 | J70: 0 | K70: 0 | L70: 0 | M70: 0 | N70: 0 | O70: 0 | P70: 0 | Q70: 0 | R70: 0 | S70: 0 | T70: 0
A71: 71
A72: 72 | D72: Commodity Revenue | H72: 0 | I72: 0 | J72: 0 | K72: 0 | L72: 0 | M72: 0 | N72: 0 | O72: 0 | P72: 0 | Q72: 0 | R72: 0 | S72: 0 | T72: 0
A73: 73 | D73: Total Revenue | H73: 0 | I73: 0 | J73: 0 | K73: 0 | L73: 0 | M73: 0 | N73: 0 | O73: 0 | P73: 0 | Q73: 0 | R73: 0 | S73: 0 | T73: 0
A74: 74 | H74: 0 | I74: 0 | J74: 0 | K74: 0 | L74: 0 | M74: 0 | N74: 0 | O74: 0 | P74: 0 | Q74: 0 | R74: 0 | S74: 0 | T74: 0
A75: 75 | D75: Total Dth | H75: 0 | I75: 0 | J75: 0 | K75: 0 | L75: 0 | M75: 0 | N75: 0 | O75: 0 | P75: 0 | Q75: 0 | R75: 0 | S75: 0 | T75: 0
A76: 76
A77: 77 | C77: I-2 | D77: Distribution Non-Gas Rev | H77: 0 | I77: 0 | J77: 0 | K77: 0 | L77: 0 | M77: 0 | N77: 0 | O77: 0 | P77: 0 | Q77: 0 | R77: 0 | S77: 0 | T77: 0
A78: 78
A79: 79 | D79: Supplier Non-Gas Revenue | H79: 0 | I79: 0 | J79: 0 | K79: 0 | L79: 0 | M79: 0 | N79: 0 | O79: 0 | P79: 0 | Q79: 0 | R79: 0 | S79: 0 | T79: 0
A80: 80
A81: 81 | D81: Commodity Revenue | H81: 0 | I81: 0 | J81: 0 | K81: 0 | L81: 0 | M81: 0 | N81: 0 | O81: 0 | P81: 0 | Q81: 0 | R81: 0 | S81: 0 | T81: 0
A82: 82 | D82: Total Revenue | H82: 0 | I82: 0 | J82: 0 | K82: 0 | L82: 0 | M82: 0 | N82: 0 | O82: 0 | P82: 0 | Q82: 0 | R82: 0 | S82: 0 | T82: 0
A83: 83
A84: 84 | D84: Total Dth | H84: 0 | I84: 0 | J84: 0 | K84: 0 | L84: 0 | M84: 0 | N84: 0 | O84: 0 | P84: 0 | Q84: 0 | R84: 0 | S84: 0 | T84: 0
A85: 85
A86: 104 | C86: ISE | D86: Distribution Non-Gas Rev | H86: 0 | I86: 0 | J86: 0 | K86: 0 | L86: 0 | M86: 0 | N86: 0 | O86: 0 | P86: 0 | Q86: 0 | R86: 0 | S86: 0 | T86: 0
A87: 105
A88: 106 | D88: Supplier Non-Gas Revenue | H88: 0 | I88: 0 | J88: 0 | K88: 0 | L88: 0 | M88: 0 | N88: 0 | O88: 0 | P88: 0 | Q88: 0 | R88: 0 | S88: 0 | T88: 0
A89: 107
A90: 108 | D90: Commodity Revenue | H90: 0 | I90: 0 | J90: 0 | K90: 0 | L90: 0 | M90: 0 | N90: 0 | O90: 0 | P90: 0 | Q90: 0 | R90: 0 | S90: 0 | T90: 0
A91: 109 | D91: Total Revenue | H91: 0 | I91: 0 | J91: 0 | K91: 0 | L91: 0 | M91: 0 | N91: 0 | O91: 0 | P91: 0 | Q91: 0 | R91: 0 | S91: 0 | T91: 0
A92: 110 | H92: 0 | I92: 0 | J92: 0 | K92: 0 | L92: 0 | M92: 0 | N92: 0 | O92: 0 | P92: 0 | Q92: 0 | R92: 0 | S92: 0 | T92: 0
A93: 111 | D93: Total Dth | H93: 0 | I93: 0 | J93: 0 | K93: 0 | L93: 0 | M93: 0 | N93: 0 | O93: 0 | P93: 0 | Q93: 0 | R93: 0 | S93: 0 | T93: 0
A94: 112
A95: 86 | C95: IS | D95: Distribution Non-Gas Rev | H95: 84416.06 | I95: 79880.45 | J95: 83215.36 | K95: 81688.8 | L95: 75706.66 | M95: 72172.46 | N95: 71376.48 | O95: 74119.51 | P95: 73639.89 | Q95: 78067.21 | R95: 73299.94 | S95: 78942.31 | T95: 926525.13
A96: 87
A97: 88 | D97: Supplier Non-Gas Revenue | H97: 46690.87 | I97: 41926.88 | J97: 45394.19 | K97: 43783.46 | L97: 37832.91 | M97: 34551.46 | N97: 33833.46 | O97: 36339.99 | P97: 35895.05 | Q97: 40117.04 | R97: 35581.71 | S97: 40984.19 | T97: 472931.21
A98: 89
A99: 90 | D99: Commodity Revenue | H99: 1437619.8 | I99: 1290935.94 | J99: 1397694.79 | K99: 1348100.02 | L99: 1164881.65 | M99: 1063845.27 | N99: 1041738.22 | O99: 1118914.42 | P99: 1105214.66 | Q99: 1235210.74 | R99: 1095566.95 | S99: 1261910.09 | T99: 14561632.55
A100: 91 | D100: Total Revenue | H100: 1568726.73 | I100: 1412743.27 | J100: 1526304.34 | K100: 1473572.28 | L100: 1278421.22 | M100: 1170569.19 | N100: 1146948.16 | O100: 1229373.92 | P100: 1214749.6 | Q100: 1353394.99 | R100: 1204448.6 | S100: 1381836.59 | T100: 15961088.89
A101: 92 | H101: 89 | I101: 89 | J101: 89 | K101: 89 | L101: 89 | M101: 89 | N101: 89 | O101: 89 | P101: 89 | Q101: 89 | R101: 89 | S101: 89 | T101: 89
A102: 93 | D102: Total Dth | H102: 260770 | I102: 234163 | J102: 253528 | K102: 244532 | L102: 211298 | M102: 192971 | N102: 188961 | O102: 202960 | P102: 200475 | Q102: 224055 | R102: 198725 | S102: 228898 | T102: 2641336
A103: 94
A104: 95 | C104: IS-2 | D104: Distribution Non-Gas Rev | H104: 0 | I104: 0 | J104: 0 | K104: 0 | L104: 0 | M104: 0 | N104: 0 | O104: 0 | P104: 0 | Q104: 0 | R104: 0 | S104: 0 | T104: 0
A105: 96
A106: 97 | D106: Supplier Non-Gas Revenue | H106: 0 | I106: 0 | J106: 0 | K106: 0 | L106: 0 | M106: 0 | N106: 0 | O106: 0 | P106: 0 | Q106: 0 | R106: 0 | S106: 0 | T106: 0
A107: 98
A108: 99 | D108: Commodity Revenue | H108: 0 | I108: 0 | J108: 0 | K108: 0 | L108: 0 | M108: 0 | N108: 0 | O108: 0 | P108: 0 | Q108: 0 | R108: 0 | S108: 0 | T108: 0
A109: 100 | D109: Total Revenue | H109: 0 | I109: 0 | J109: 0 | K109: 0 | L109: 0 | M109: 0 | N109: 0 | O109: 0 | P109: 0 | Q109: 0 | R109: 0 | S109: 0 | T109: 0
A110: 101 | H110: 0 | I110: 0 | J110: 0 | K110: 0 | L110: 0 | M110: 0 | N110: 0 | O110: 0 | P110: 0 | Q110: 0 | R110: 0 | S110: 0 | T110: 0
A111: 102 | D111: Total Dth | H111: 0 | I111: 0 | J111: 0 | K111: 0 | L111: 0 | M111: 0 | N111: 0 | O111: 0 | P111: 0 | Q111: 0 | R111: 0 | S111: 0 | T111: 0
A112: 103 | H112: 0 | I112: 0 | J112: 0 | K112: 0 | L112: 0 | M112: 0 | N112: 0 | O112: 0 | P112: 0 | Q112: 0 | R112: 0 | S112: 0
A113: 113 | C113: FT-1L | D113: Distribution Non-Gas Rev | H113: 0 | I113: 0 | J113: 0 | K113: 0 | L113: 0 | M113: 0 | N113: 0 | O113: 0 | P113: 0 | Q113: 0 | R113: 0 | S113: 0 | T113: 0
A114: 114 | H114: 0 | I114: 0 | J114: 0 | K114: 0 | L114: 0 | M114: 0 | N114: 0 | O114: 0 | P114: 0 | Q114: 0 | R114: 0 | S114: 0
A115: 115 | D115: Supplier Non-Gas Revenue | H115: 0 | I115: 0 | J115: 0 | K115: 0 | L115: 0 | M115: 0 | N115: 0 | O115: 0 | P115: 0 | Q115: 0 | R115: 0 | S115: 0 | T115: 0
A116: 116 | H116: 0 | I116: 0 | J116: 0 | K116: 0 | L116: 0 | M116: 0 | N116: 0 | O116: 0 | P116: 0 | Q116: 0 | R116: 0 | S116: 0
A117: 117 | D117: Commodity Revenue | H117: 0 | I117: 0 | J117: 0 | K117: 0 | L117: 0 | M117: 0 | N117: 0 | O117: 0 | P117: 0 | Q117: 0 | R117: 0 | S117: 0 | T117: 0
A118: 118 | D118: Total Revenue | H118: 0 | I118: 0 | J118: 0 | K118: 0 | L118: 0 | M118: 0 | N118: 0 | O118: 0 | P118: 0 | Q118: 0 | R118: 0 | S118: 0 | T118: 0
A119: 119 | H119: 0 | I119: 0 | J119: 0 | K119: 0 | L119: 0 | M119: 0 | N119: 0 | O119: 0 | P119: 0 | Q119: 0 | R119: 0 | S119: 0 | T119: 0
A120: 120 | D120: Total Dth | H120: 0 | I120: 0 | J120: 0 | K120: 0 | L120: 0 | M120: 0 | N120: 0 | O120: 0 | P120: 0 | Q120: 0 | R120: 0 | S120: 0 | T120: 0
A121: 121
A122: 122 | C122: FT-1 | D122: Distribution Non-Gas Rev | H122: 217680.81 | I122: 260726.02 | J122: 167799.16 | K122: 194981.44 | L122: 205046.34 | M122: 144121.27 | N122: 173788.94 | O122: 240608.73 | P122: 280542.75 | Q122: 244245.68 | R122: 240140.15 | S122: 225866.1 | T122: 2595547.39
A123: 123
A124: 124 | D124: Supplier Non-Gas Revenue | H124: 0 | I124: 0 | J124: 0 | K124: 0 | L124: 0 | M124: 0 | N124: 0 | O124: 0 | P124: 0 | Q124: 0 | R124: 0 | S124: 0 | T124: 0
A125: 125
A126: 126 | D126: Commodity Revenue | H126: 0 | I126: 0 | J126: 0 | K126: 0 | L126: 0 | M126: 0 | N126: 0 | O126: 0 | P126: 0 | Q126: 0 | R126: 0 | S126: 0 | T126: 0
A127: 127 | D127: Total Revenue | H127: 217680.81 | I127: 260726.02 | J127: 167799.16 | K127: 194981.44 | L127: 205046.34 | M127: 144121.27 | N127: 173788.94 | O127: 240608.73 | P127: 280542.75 | Q127: 244245.68 | R127: 240140.15 | S127: 225866.1 | T127: 2595547.39
A128: 128 | H128: 8 | I128: 8 | J128: 8 | K128: 8 | L128: 8 | M128: 8 | N128: 8 | O128: 8 | P128: 8 | Q128: 8 | R128: 8 | S128: 8 | T128: 8
A129: 129 | D129: Total Dth | H129: 781681 | I129: 1038941 | J129: 503375 | K129: 636485 | L129: 681472 | M129: 358151 | N129: 512484 | O129: 928034 | P129: 1238873 | Q129: 946625 | R129: 920311 | S129: 828708 | T129: 9375140
A130: 130
A131: 131 | C131: FT-2 | D131: Distribution Non-Gas Rev | H131: 0 | I131: 0 | J131: 0 | K131: 0 | L131: 0 | M131: 0 | N131: 0 | O131: 0 | P131: 0 | Q131: 0 | R131: 0 | S131: 0 | T131: 0
A132: 132 | H132: 0 | I132: 0 | J132: 0 | K132: 0 | L132: 0 | M132: 0 | N132: 0 | O132: 0 | P132: 0 | Q132: 0 | R132: 0 | S132: 0
A133: 133 | D133: Supplier Non-Gas Revenue | H133: 0 | I133: 0 | J133: 0 | K133: 0 | L133: 0 | M133: 0 | N133: 0 | O133: 0 | P133: 0 | Q133: 0 | R133: 0 | S133: 0 | T133: 0
A134: 134 | H134: 0 | I134: 0 | J134: 0 | K134: 0 | L134: 0 | M134: 0 | N134: 0 | O134: 0 | P134: 0 | Q134: 0 | R134: 0 | S134: 0
A135: 135 | D135: Commodity Revenue | H135: 0 | I135: 0 | J135: 0 | K135: 0 | L135: 0 | M135: 0 | N135: 0 | O135: 0 | P135: 0 | Q135: 0 | R135: 0 | S135: 0 | T135: 0
A136: 136 | D136: Total Revenue | H136: 0 | I136: 0 | J136: 0 | K136: 0 | L136: 0 | M136: 0 | N136: 0 | O136: 0 | P136: 0 | Q136: 0 | R136: 0 | S136: 0 | T136: 0
A137: 137 | H137: 0 | I137: 0 | J137: 0 | K137: 0 | L137: 0 | M137: 0 | N137: 0 | O137: 0 | P137: 0 | Q137: 0 | R137: 0 | S137: 0 | T137: 0
A138: 138 | D138: Total Dth | H138: 0 | I138: 0 | J138: 0 | K138: 0 | L138: 0 | M138: 0 | N138: 0 | O138: 0 | P138: 0 | Q138: 0 | R138: 0 | S138: 0 | T138: 0
A139: 139
A140: 140 | C140: MT | D140: Distribution Non-Gas Rev | H140: 3154.72 | I140: 4850.8 | J140: 4990.53 | K140: 4007.09 | L140: 2828.68 | M140: 2344.94 | N140: 1880.5 | O140: 1624.99 | P140: 1668.24 | Q140: 1610.35 | R140: 1692.86 | S140: 2293.71 | T140: 32947.41
A141: 141
A142: 142 | D142: Supplier Non-Gas Revenue | H142: 0 | I142: 0 | J142: 0 | K142: 0 | L142: 0 | M142: 0 | N142: 0 | O142: 0 | P142: 0 | Q142: 0 | R142: 0 | S142: 0 | T142: 0
A143: 143
A144: 144 | D144: Commodity Revenue | H144: 0 | I144: 0 | J144: 0 | K144: 0 | L144: 0 | M144: 0 | N144: 0 | O144: 0 | P144: 0 | Q144: 0 | R144: 0 | S144: 0 | T144: 0
A145: 145 | D145: Total Revenue | H145: 3154.72 | I145: 4850.8 | J145: 4990.53 | K145: 4007.09 | L145: 2828.68 | M145: 2344.94 | N145: 1880.5 | O145: 1624.99 | P145: 1668.24 | Q145: 1610.35 | R145: 1692.86 | S145: 2293.71 | T145: 32947.41
A146: 146 | H146: 1 | I146: 1 | J146: 1 | K146: 1 | L146: 1 | M146: 1 | N146: 1 | O146: 1 | P146: 1 | Q146: 1 | R146: 1 | S146: 1 | T146: 1
A147: 147 | D147: Total Dth | H147: 3546 | I147: 6095 | J147: 6305 | K147: 4827 | L147: 3056 | M147: 2329 | N147: 1631 | O147: 1247 | P147: 1312 | Q147: 1225 | R147: 1349 | S147: 2252 | T147: 35174
A148: 148
A149: 149 | C149: FT-E | D149: Distribution Non-Gas Rev | H149: 280094 | I149: 280094 | J149: 280094 | K149: 280094 | L149: 280094 | M149: 280094 | N149: 280094 | O149: 280094 | P149: 280094 | Q149: 280094 | R149: 280094 | S149: 280094 | T149: 3361128
A150: 150
A151: 151 | D151: Supplier Non-Gas Revenue | H151: 0 | I151: 0 | J151: 0 | K151: 0 | L151: 0 | M151: 0 | N151: 0 | O151: 0 | P151: 0 | Q151: 0 | R151: 0 | S151: 0 | T151: 0
A152: 152
A153: 153 | D153: Commodity Revenue | H153: 0 | I153: 0 | J153: 0 | K153: 0 | L153: 0 | M153: 0 | N153: 0 | O153: 0 | P153: 0 | Q153: 0 | R153: 0 | S153: 0 | T153: 0
A154: 154 | D154: Total Revenue | H154: 280094 | I154: 280094 | J154: 280094 | K154: 280094 | L154: 280094 | M154: 280094 | N154: 280094 | O154: 280094 | P154: 280094 | Q154: 280094 | R154: 280094 | S154: 280094 | T154: 3361128
A155: 155 | H155: 1 | I155: 1 | J155: 1 | K155: 1 | L155: 1 | M155: 1 | N155: 1 | O155: 1 | P155: 1 | Q155: 1 | R155: 1 | S155: 1 | T155: 1
A156: 156 | D156: Total Dth | H156: 3326804 | I156: 3542994 | J156: 3569126 | K156: 3675098 | L156: 3392112 | M156: 3342216 | N156: 3330792 | O156: 3631614 | P156: 3468636 | Q156: 3671960 | R156: 3319628 | S156: 3635844 | T156: 41906824
A157: 157
A158: 158 | C158: TS | D158: Distribution Non-Gas Rev | H158: 1130687.63 | I158: 1243236.89 | J158: 1279922.64 | K158: 1182545.91 | L158: 1124354.21 | M158: 1080521.85 | N158: 1043161.14 | O158: 1025234.54 | P158: 1038711.12 | Q158: 1053952.71 | R158: 1035135.86 | S158: 1127667.86 | T158: 13365132.36
A159: 159
A160: 160 | D160: Supplier Non-Gas Revenue | H160: 0 | I160: 0 | J160: 0 | K160: 0 | L160: 0 | M160: 0 | N160: 0 | O160: 0 | P160: 0 | Q160: 0 | R160: 0 | S160: 0 | T160: 0
A161: 161
A162: 162 | D162: Commodity Revenue | H162: 0 | I162: 0 | J162: 0 | K162: 0 | L162: 0 | M162: 0 | N162: 0 | O162: 0 | P162: 0 | Q162: 0 | R162: 0 | S162: 0 | T162: 0
A163: 163 | D163: Total Revenue | H163: 1130687.63 | I163: 1243236.89 | J163: 1279922.64 | K163: 1182545.91 | L163: 1124354.21 | M163: 1080521.85 | N163: 1043161.14 | O163: 1025234.54 | P163: 1038711.12 | Q163: 1053952.71 | R163: 1035135.86 | S163: 1127667.86 | T163: 13365132.36
A164: 164 | H164: 359 | I164: 359 | J164: 359 | K164: 359 | L164: 359 | M164: 359 | N164: 359 | O164: 359 | P164: 359 | Q164: 359 | R164: 359 | S164: 359 | T164: 359
A165: 165 | D165: Total Dth | H165: 3218237 | I165: 3882862 | J165: 4103172 | K165: 3522187 | L165: 3174289 | M165: 2922556 | N165: 2705000 | O165: 2605526 | P165: 2643144 | Q165: 2733033 | R165: 2617504 | S165: 3156360 | T165: 37283870
A166: 166
A167: 167 | C167: TSE | D167: Distribution Non-Gas Rev | H167: 0 | I167: 0 | J167: 0 | K167: 0 | L167: 0 | M167: 0 | N167: 0 | O167: 0 | P167: 0 | Q167: 0 | R167: 0 | S167: 0 | T167: 0
A168: 168 | H168: 0 | I168: 0 | J168: 0 | K168: 0 | L168: 0 | M168: 0 | N168: 0 | O168: 0 | P168: 0 | Q168: 0 | R168: 0 | S168: 0
A169: 169 | D169: Supplier Non-Gas Revenue | H169: 0 | I169: 0 | J169: 0 | K169: 0 | L169: 0 | M169: 0 | N169: 0 | O169: 0 | P169: 0 | Q169: 0 | R169: 0 | S169: 0 | T169: 0
A170: 170 | H170: 0 | I170: 0 | J170: 0 | K170: 0 | L170: 0 | M170: 0 | N170: 0 | O170: 0 | P170: 0 | Q170: 0 | R170: 0 | S170: 0
A171: 171 | D171: Commodity Revenue | H171: 0 | I171: 0 | J171: 0 | K171: 0 | L171: 0 | M171: 0 | N171: 0 | O171: 0 | P171: 0 | Q171: 0 | R171: 0 | S171: 0 | T171: 0
A172: 172 | D172: Total Revenue | H172: 0 | I172: 0 | J172: 0 | K172: 0 | L172: 0 | M172: 0 | N172: 0 | O172: 0 | P172: 0 | Q172: 0 | R172: 0 | S172: 0 | T172: 0
A173: 173 | H173: 0 | I173: 0 | J173: 0 | K173: 0 | L173: 0 | M173: 0 | N173: 0 | O173: 0 | P173: 0 | Q173: 0 | R173: 0 | S173: 0 | T173: 0
A174: 174 | D174: Total Dth | H174: 0 | I174: 0 | J174: 0 | K174: 0 | L174: 0 | M174: 0 | N174: 0 | O174: 0 | P174: 0 | Q174: 0 | R174: 0 | S174: 0 | T174: 0
A175: 175
A176: 176 | C176: FT-2C | D176: Distribution Non-Gas Rev | T176: 0
A177: 177
A178: 178 | D178: Supplier Non-Gas Revenue | T178: 0
A179: 179
A180: 180 | D180: Commodity Revenue | T180: 0
A181: 181 | D181: Total Revenue | T181: 0
A182: 182 | H182: 0 | I182: 0 | J182: 0 | K182: 0 | L182: 0 | M182: 0 | N182: 0 | O182: 0 | P182: 0 | Q182: 0 | R182: 0 | S182: 0 | T182: 0
A183: 183 | D183: Total Dth | T183: 0
A184: 184
A185: 185 | C185: E-1 | D185: Distribution Non-Gas Rev | H185: 0 | I185: 0 | J185: 0 | K185: 0 | L185: 0 | M185: 0 | N185: 0 | O185: 0 | P185: 0 | Q185: 0 | R185: 0 | S185: 0 | T185: 0
A186: 186 | H186: 0 | I186: 0 | J186: 0 | K186: 0 | L186: 0 | M186: 0 | N186: 0 | O186: 0 | P186: 0 | Q186: 0 | R186: 0 | S186: 0
A187: 187 | D187: Supplier Non-Gas Revenue | H187: 0 | I187: 0 | J187: 0 | K187: 0 | L187: 0 | M187: 0 | N187: 0 | O187: 0 | P187: 0 | Q187: 0 | R187: 0 | S187: 0 | T187: 0
A188: 188 | H188: 0 | I188: 0 | J188: 0 | K188: 0 | L188: 0 | M188: 0 | N188: 0 | O188: 0 | P188: 0 | Q188: 0 | R188: 0 | S188: 0
A189: 189 | D189: Commodity Revenue | H189: 0 | I189: 0 | J189: 0 | K189: 0 | L189: 0 | M189: 0 | N189: 0 | O189: 0 | P189: 0 | Q189: 0 | R189: 0 | S189: 0 | T189: 0
A190: 190 | D190: Total Revenue | H190: 0 | I190: 0 | J190: 0 | K190: 0 | L190: 0 | M190: 0 | N190: 0 | O190: 0 | P190: 0 | Q190: 0 | R190: 0 | S190: 0 | T190: 0
A191: 191 | H191: 0 | I191: 0 | J191: 0 | K191: 0 | L191: 0 | M191: 0 | N191: 0 | O191: 0 | P191: 0 | Q191: 0 | R191: 0 | S191: 0 | T191: 0
A192: 192 | D192: Total Dth | H192: 0 | I192: 0 | J192: 0 | K192: 0 | L192: 0 | M192: 0 | N192: 0 | O192: 0 | P192: 0 | Q192: 0 | R192: 0 | S192: 0 | T192: 0
A193: 193
A194: 194 | C194: CET | D194: Distribution Non-Gas Revenue
A195: 195 | C195: DSM | D195: Distribution Non-Gas Rev
A196: 196 | T196: 0
A197: 197 | C197: Utah Totals
A198: 198 | D198: Distribution Non-Gas Rev | H198: 32614273.47 | I198: 44153484.38 | J198: 49410715.43 | K198: 41864892.32 | L198: 32596948.25 | M198: 21090779.27 | N198: 15411056.86 | O198: 13314631.27 | P198: 12525159.51 | Q198: 12500015.82 | R198: 14040210.96 | S198: 18455412.47 | T198: 307977580
A199: 199 | D199: Supplier Non-Gas Revenue | H199: 12047094.66 | I199: 17812069.76 | J199: 20524559.31 | K199: 16670751.33 | L199: 11951305.28 | M199: 4175597.32 | N199: 2282475.14 | O199: 1591514.19 | P199: 1298664.75 | Q199: 1286937.52 | R199: 1820839.99 | S199: 3245923.46 | T199: 94707732.71
A200: 200 | D200: Commodity Revenue | H200: 61712232.69 | I200: 90472538.52 | J200: 104149863.1 | K200: 84793502.07 | L200: 60994901.4 | M200: 45112404.81 | N200: 24838410.3 | O200: 17554499.35 | P200: 14412946.65 | Q200: 14351618.21 | R200: 19985559.85 | S200: 35291821.46 | T200: 573670298.4
A201: 201 | D201: Total Utah Revenue | H201: 106373600.8 | I201: 152438092.7 | J201: 174085137.9 | K201: 143329145.7 | L201: 105543154.9 | M201: 70378781.4 | N201: 42531942.3 | O201: 32460644.81 | P201: 28236770.91 | Q201: 28138571.55 | R201: 35846610.8 | S201: 56993157.39 | T201: 976355611.2
A202: 202 | H202: 932369 | I202: 935365 | J202: 939952 | K202: 941432 | L202: 943668 | M202: 943842 | N202: 944375 | O202: 944531 | P202: 942695 | Q202: 944596 | R202: 944632 | S202: 948188 | T202: 942137.0833
A203: 203 | D203: Sales Dth | H203: 11685331 | I203: 17137808 | J203: 19729363 | K203: 16060927 | L203: 11551590 | M203: 8542016 | N203: 4699426 | O203: 3318191 | P203: 2722847 | Q203: 2710163 | R203: 3779169 | S203: 6678990 | T203: 108615821
A204: 204 | D204: Transportation Dth | H204: 7330268 | I204: 8470892 | J204: 8181978 | K204: 7838597 | L204: 7250929 | M204: 6625252 | N204: 6549907 | O204: 7166421 | P204: 7351965 | Q204: 7352843 | R204: 6858792 | S204: 7623164 | T204: 88601008
A205: 205 | D205: Total Utah Dth | H205: 19015599 | I205: 25608700 | J205: 27911341 | K205: 23899524 | L205: 18802519 | M205: 15167268 | N205: 11249333 | O205: 10484612 | P205: 10074812 | Q205: 10063006 | R205: 10637961 | S205: 14302154 | T205: 197216829
... 167 more rows
